Workbook

Sheet INDICE
F1: ANGOLA
F2: Trocas comerciais com Portugal (PT) 2018-2022 Setores agrícola e agroalimentar, do mar e das florestas
C3: Fonte
D4: Estatísticas do Comércio Internacional | F4: Angola - Síntese
D5: dados: 2021 provisórios; 2022 preliminares | F5: 1. Evolução da balança comercial
F6: 2. Ranking dos parceiros comerciais de Portugal por país
C7: Data | D7: 2023-04-18T16:29:06.580 | F7: 2A Parceiros comerciais de Portugal - UE vs. Países Terceiros
F8: 3. Principais produtos transacionados (NC a 2 e 4 dígitos)
F9: 3A Principais produtos transacionados (sem mar nem florestas)
F10: 4. Evolução da balança comercial por país x produto
F11: 4A Evolução da balança comercial por produto
F12: 5.1. Trocas comerciais por país
F13: 5.1A Trocas comerciais por país (sem mar nem florestas)
F14: 5.2. Trocas comerciais por produto (NC 2 dígitos)

Sheet Sintese
A1: Angola - Síntese (2018-2022)
A3: • As trocas comerciais de bens transacionáveis (excluindo serviços) entre Portugal e Angola representam um total de 1,2 mil milhões de € (M€) em exportações e 0,6 mil M€ em importações, na média do período 2018-2022, correspondendo a um saldo positivo da balança comercial de cerca de 580 M€.
A4: • No que respeita aos produtos dos setores agrícola e agroalimentar, mar e florestas, Portugal exportou para Angola 331,1 M€ em média anual, no mesmo período (este país ocupa assim a 9ª posição em relação ao total dos países), enquanto as importações totalizaram 15,4 M€ (50ª posição), com um saldo positivo de 315,7 M€. Estes setores representam perto de 27,6% do total de exportações de bens transacionáveis e 2,5% das correspondentes importações.
A5: • Se nos referirmos apenas ao setor agrícola e agroalimentar, as exportações representam, em média, 270,8 M€ (6ª posição) e as importações 7,1 milhões (59ª posição), ou seja, Portugal tem um saldo positivo de 2,6 M€. Estes valores representam, respetivamente, cerca de 81,8% das exportações do setor agroflorestal e mar e 46,2% das importações.
A6: • As principais exportações agrícolas e agroalimentares (NC 4 dígitos) neste período são Óleo de soja e suas frações (17%), Vinhos de uvas frescas (13%) e Enchidos e etc., de carne, miudezas ou sangue (8%). As importações agrícolas e agroalimentares mais relevantes referem-se a Bananas, frescas ou secas (44%), Resíduos de tratamentos de cereais ou leguminosas (28%) e Café (13%). Se considerarmos também os produtos do mar e da floresta, merecem particular destaque, em termos de exportações, Óleo de soja e suas frações (14%), Vinhos de uvas frescas (11%) e Enchidos e etc., de carne, miudezas ou sangue (6%). Nas importações destes setores, destacam-se Crustáceos (40%), Bananas, frescas ou secas (20%) e Resíduos de tratamentos de cereais ou leguminosas (13%).
A9: Saldo da Balança Comercial | B9: 2018 | C9: 2019 | D9: 2020 | E9: 2021 | F9: 2022 | G9: média 2018-2022 | J9: Posição entre os parceiros comerciais de Portugal (milhares de euros)
A10: Total de Bens Transacionáveis* | B10: 584196.281 | C10: 2347-02-26T12:54:43.200 | D10: 480932.956 | E10: 871030.259 | F10: 4091-05-05T04:33:36 | G10: 579970.8448 | J10: AA + M + F | K10: Posição | L10: média 2018-2022 | M10: % do total | N10: TVMA* 2018-2022 | O10: TVT* 2018-2022
A11: Agrícola e Agroalimentar (AA) | B11: 369237.573 | C11: 2693-05-24T10:49:26.400 | D11: 197019.372 | E11: 181947.685 | F11: 2667-12-07T14:38:24 | G11: 263694.3382 | J11: Exportações | K11: 9ª | L11: 331120.0664 | M11: 0.02554837633 | N11: -0.05470530198 | O11: -0.2015110911
A12: Mar (M) | B12: 18857.48 | C12: 7503.86 | D12: 3394.536 | E12: 2831.434 | F12: 7124.15 | G12: 7942.292 | J12: Importações | K12: 50ª | L12: 15423.1486 | M12: 0.001031103894 | N12: 0.2423253604 | O12: 1.38199806
A13: Florestas (F) | B13: 58771 | C13: 2028-04-07T19:45:07.200 | D13: 25579.001 | E13: 34534.557 | F13: 2049-05-23T01:22:04.800 | G13: 44060.2876 | J13: AA
A14: AA + M + F | B14: 446866.053 | C14: 2842-03-19T03:12:57.600 | D14: 225992.909 | E14: 219313.676 | F14: 2836-10-31T19:36:28.800 | G14: 315696.9178 | J14: Exportações | K14: 6ª | L14: 270815.6406 | M14: 0.03832332895 | N14: -0.05950061342 | O14: -0.2175905874
J15: Importações | K15: 59ª | L15: 7121.3024 | M15: 0.0006981233206 | N15: 0.307300832 | O15: 2.818367175
A16: milhares de euros *exclui serviços | K16: *TVMA - Taxa de variação média anual; TVT - Taxa de variação total
A18: Evolução das trocas comerciais Portugal-Angola em milhares de euros (2018-2022)
F27: Exportações | H27: Importações | J27: Saldo
A28: Principais produtos agrícolas e agroalimentares, do mar e da floresta transacionados (NC 4 dígitos)
A47: Principais produtos agrícolas e agroalimentares transacionados (NC 4 dígitos)
A81: Fonte: GPP a partir de dados INE/Comércio Internacional (2021 provisórios; 2022 preliminares) | N81: 2023-04-18T16:29:06.580

Sheet 1
A1: Evolução da balança comercial Portugal-Angola 2018-2022 em milhões de euros
A3: Total de Bens Transacionáveis (BT)(1) | B3: 2018 | C3: 2019 | D3: 2020 | E3: 2021 | F3: 2022 | G3: média quinquénio | H3: var. 18/19 | I3: var. 19/20 | J3: var. 20/21 | K3: var. 21/22 | L3: TVMA* 2018-2022 | M3: TVT* 2018-2022
A4: Exportações | B4: 1512.774981 | C4: 1238.801143 | D4: 870.320678 | E4: 951.626628 | F4: 1423.905859 | G4: 1199.485858 | H4: -0.1811068014 | I4: -0.2974492452 | J4: 0.09342068051 | K4: 0.4962862714 | L4: -0.01502153389 | M4: -0.05874576399
A5: Importações | B5: 928.5787 | C5: 1075.479605 | D5: 389.387722 | E5: 80.596369 | F5: 623.532669 | G5: 619.515013 | H5: 0.1581997358 | I5: -0.637940394 | J5: -0.793017693 | K5: 6.736485858 | L5: -0.09476752916 | M5: -0.3285085378
A6: Saldo (exp-imp) | B6: 584.196281 | C6: 163.321538 | D6: 480.932956 | E6: 871.030259 | F6: 800.37319 | G6: 579.9708448
A7: Cobertura (exp/imp) | B7: 1.62912953 | C7: 1.151859261 | D7: 2.235100464 | E7: 11.8073139 | F7: 2.283610675 | G7: 1.936169153
A8: Exp BT Angola / Exp BT Mundo | B8: 0.02614996025 | C8: 0.02068018419 | D8: 0.01618978593 | E8: 0.0149583258 | F8: 0.01820822181 | G8: 0.01914093675 | L8: Exportações
A9: Imp BT Angola / Imp BT Mundo | B9: 0.01230896046 | C9: 0.0134473396 | D9: 0.005714057914 | E9: 0.000969338819 | F9: 0.005705269191 | G9: 0.007446123918 | L9: Importações
A10: Exp BT Angola / Exp TE Mundo | B10: 0.01697006828 | C10: 0.0132817377 | D10: 0.01171584665 | E10: 0.01064403238 | F10: 0.01189047811 | G10: 0.01287397092
A11: Imp BT Angola / Imp TE Mundo | B11: 0.01052877429 | C11: 0.01165177661 | D11: 0.004955002186 | E11: 0.0008436699403 | F11: 0.004960564418 | G11: 0.006449122561
A12: (1) Todos os produtos transacionados entre PT e Angola (exclui serviços) | D12: TE - Total da Economia (bens e serviços) Fonte: INE/Contas Nacionais | H12: *TVMA - Taxa de variação média anual; TVT - Taxa de variação total
A24: Agro(1) + Mar + Florestas (AMF) | B24: 2018 | C24: 2019 | D24: 2020 | E24: 2021 | F24: 2022 | G24: média quinquénio | H24: var. 18/19 | I24: var. 19/20 | J24: var. 20/21 | K24: var. 21/22 | L24: TVMA* 2018-2022 | M24: TVT* 2018-2022
A25: Exportações | B25: 456.113723 | C25: 355.161704 | D25: 239.847484 | E25: 240.275672 | F25: 364.201749 | G25: 331.1200664 | H25: -0.2213308083 | I25: -0.3246808952 | J25: 0.001785251164 | K25: 0.5157662279 | L25: -0.05470530198 | M25: -0.2015110911
A26: Importações | B26: 9.24767 | C26: 11.02357 | D26: 13.854575 | E26: 20.961996 | F26: 22.027932 | G26: 15.4231486 | H26: 0.1920375619 | I26: 0.256813809 | J26: 0.5130017341 | K26: 0.05085088271 | L26: 0.2423253604 | M26: 1.38199806
A27: Saldo (exp-imp) | B27: 446.866053 | C27: 344.138134 | D27: 225.992909 | E27: 219.313676 | F27: 342.173817 | G27: 315.6969178
A28: Cobertura (exp/imp) | B28: 49.32201549 | C28: 32.21839241 | D28: 17.31178935 | E28: 11.46244241 | F28: 16.53363325 | G28: 21.46903171
A29: Exp AMF / Exp BT | B29: 0.3015079762 | C29: 0.2866979144 | D29: 0.2755851838 | E29: 0.2524894375 | F29: 0.2557765646 | G29: 0.2760516635 | L29: Exportações
A30: Imp AMF / Imp BT | B30: 0.009958951245 | C30: 0.01024991078 | D30: 0.03558041052 | E30: 0.2600861088 | F30: 0.03532763092 | G30: 0.02489552033 | L30: Importações
A31: Exp AMF Angola / Exp AMF Mundo | B31: 0.039149008 | C31: 0.03002764178 | D31: 0.02079222846 | E31: 0.01793561188 | F31: 0.02221823213 | G31: 0.02554837633
A32: Imp AMF Angola / Imp AMF Mundo | B32: 0.0006784493842 | C32: 0.0007968827221 | D32: 0.001062028603 | E32: 0.0014026458 | F32: 0.001139245932 | G32: 0.001031103894
A33: (1) Produtos agrícolas e agroalimentares | B33: BT - Total de Bens Transacionáveis (exclui serviços) | H33: *TVMA - Taxa de variação média anual; TVT - Taxa de variação total
A45: Agroalimentar (AA)(1) | B45: 2018 | C45: 2019 | D45: 2020 | E45: 2021 | F45: 2022 | G45: média quinquénio | H45: var. 18/19 | I45: var. 19/20 | J45: var. 20/21 | K45: var. 21/22 | L45: TVMA* 2018-2022 | M45: TVT* 2018-2022
A46: Exportações | B46: 372.008146 | C46: 293.451069 | D46: 203.104681 | E46: 194.451632 | F46: 291.062675 | G46: 270.8156406 | H46: -0.211170314 | I46: -0.3078754775 | J46: -0.0426038876 | K46: 0.4968384272 | L46: -0.05950061342 | M46: -0.2175905874
A47: Importações | B47: 2.770573 | C47: 3.667618 | D47: 6.085309 | E47: 12.503947 | F47: 10.579065 | G47: 7.1213024 | H47: 0.3237759842 | I47: 0.6591992405 | J47: 1.054776019 | K47: -0.1539419513 | L47: 0.3978784894 | M47: 2.818367175
A48: Saldo (exp-imp) | B48: 369.237573 | C48: 289.783451 | D48: 197.019372 | E48: 181.947685 | F48: 280.48361 | G48: 263.6943382
A49: Cobertura (exp/imp) | B49: 134.2711944 | C49: 80.01135042 | D49: 33.37623135 | E49: 15.55122011 | F49: 27.51308126 | G49: 38.02894827
A50: Exp AA / Exp AMF | B50: 0.8156039322 | C50: 0.8262463709 | D50: 0.8468076363 | E50: 0.809285561 | F50: 0.7991797837 | G50: 0.8178774652 | L50: Exportações
A51: Imp AA / Imp AMF | B51: 0.2995968714 | C51: 0.332706918 | D51: 0.4392274032 | E51: 0.5965055522 | F51: 0.4802568394 | G51: 0.4617281843 | L51: Importações
A52: Exp AA / Exp BT | B52: 0.245911091 | C52: 0.2368831113 | D52: 0.2333676381 | E52: 0.2043360561 | F52: 0.2044114596 | G52: 0.2257764348
A53: Imp AA / Imp BT | B53: 0.002983670636 | C53: 0.003410216226 | D53: 0.01562789132 | E53: 0.155142808 | F53: 0.01696633637 | G53: 0.0114949634
A54: Exp AA Angola / Exp AA Mundo | B54: 0.06091626824 | C54: 0.04664128311 | D54: 0.03069399657 | E54: 0.02609457564 | F54: 0.03283064157 | G54: 0.03832332895
A55: Imp AA Angola / Imp AA Mundo | B55: 0.0003045965914 | C55: 0.0003936448649 | D55: 0.0006698598383 | E55: 0.001217421627 | F55: 0.0007993285591 | G55: 0.0006981233206
A56: (1) Produtos agrícolas e agroalimentares | B56: AMF - Agroalimentar, Mar e Florestas; BT - Total de Bens Transacionáveis (exclui serviços) | H56: *TVMA - Taxa de variação média anual; TVT - Taxa de variação total
A67: Mar (M) | B67: 2018 | C67: 2019 | D67: 2020 | E67: 2021 | F67: 2022 | G67: média quinquénio | H67: var. 18/19 | I67: var. 19/20 | J67: var. 20/21 | K67: var. 21/22 | L67: TVMA* 2018-2022 | M67: TVT* 2018-2022
A68: Exportações | B68: 24.643145 | C68: 12.813457 | D68: 9.067925 | E68: 9.153373 | F68: 15.648161 | G68: 14.2652122 | H68: -0.4800397027 | I68: -0.2923123713 | J68: 0.009423103963 | K68: 0.7095513315 | L68: -0.1073282453 | M68: -0.3650095797
A69: Importações | B69: 5.785665 | C69: 5.309597 | D69: 5.673389 | E69: 6.321939 | F69: 8.524011 | G69: 6.3229202 | H69: -0.08228405896 | I69: 0.06851593445 | J69: 0.1143143895 | K69: 0.3483222473 | L69: 0.1017236683
A70: Saldo (exp-imp) | B70: 18.85748 | C70: 7.50386 | D70: 3.394536 | E70: 2.831434 | F70: 7.12415 | G70: 7.942292
A71: Cobertura (exp/imp) | B71: 4.259345296 | C71: 2.413263568 | D71: 1.598325974 | E71: 1.447874299 | F71: 1.835774379 | G71: 2.256111377
A72: Exp M / Exp AMF | B72: 0.05402851034 | C72: 0.03607781147 | D72: 0.03780704658 | E72: 0.03809529664 | F72: 0.04296563936 | G72: 0.04308169044 | L72: Exportações
A73: Imp M / Imp AMF | B73: 0.6256348897 | C73: 0.4816585734 | D73: 0.4094957081 | E73: 0.3015905069 | F73: 0.3869637422 | G73: 0.4099629955 | L73: Importações
A74: Exp M / Exp BT | B74: 0.01629002681 | C74: 0.0103434333 | D74: 0.01041906188 | E74: 0.009618660019 | F74: 0.01098960363 | G74: 0.01189277231
A75: Imp M / Imp BT | B75: 0.006230667363 | C75: 0.004936957405 | D75: 0.0145700254 | E75: 0.07843950141 | F75: 0.01367051227 | G75: 0.01020624209
A76: Exp M Angola / Exp M Mundo | B76: 0.02259166198 | C76: 0.01199327376 | D76: 0.01007917138 | E76: 0.008355993413 | F76: 0.01217481728 | G76: 0.01311242312
A77: Imp M Angola / Imp M Mundo | B77: 0.002624795162 | C77: 0.002436330053 | D77: 0.002947418852 | E77: 0.003021880507 | F77: 0.003268580601 | G77: 0.002871871549
A78: AMF - Agroalimentar, Mar e Florestas; BT - Total de Bens Transacionáveis (exclui serviços) | H78: *TVMA - Taxa de variação média anual; TVT - Taxa de variação total
A90: Florestas (F) | B90: 2018 | C90: 2019 | D90: 2020 | E90: 2021 | F90: 2022 | G90: média quinquénio | H90: var. 18/19 | I90: var. 19/20 | J90: var. 20/21 | K90: var. 21/22 | L90: TVMA* 2018-2022 | M90: TVT* 2018-2022
A91: Exportações | B91: 59.462432 | C91: 48.897178 | D91: 27.674878 | E91: 36.670667 | F91: 57.490913 | G91: 46.0392136 | H91: -0.17767948 | I91: -0.4340189121 | J91: 0.325052526 | K91: 0.567762948 | L91: -0.008394026178 | M91: -0.03315570746
A92: Importações | B92: 0.691432 | C92: 2.046355 | D92: 2.095877 | E92: 2.13611 | F92: 2.924856 | G92: 1.978926 | H92: 1.959589663 | I92: 0.02420010213 | J92: 0.01919626009 | K92: 0.3692440932 | L92: 0.4341307687 | M92: 3.23014266
A93: Saldo (exp-imp) | B93: 58.771 | C93: 46.850823 | D93: 25.579001 | E93: 34.534557 | F93: 54.566057 | G93: 44.0602876
A94: Cobertura (exp/imp) | B94: 85.99895868 | C94: 23.89476801 | D94: 13.20443805 | E94: 17.16703119 | F94: 19.65598067 | G94: 23.26474744
A95: Exp F / Exp AMF | B95: 0.1303675575 | C95: 0.1376758177 | D95: 0.1153853171 | E95: 0.1526191424 | F95: 0.1578545769 | G95: 0.1390408443 | L95: Exportações
A96: Imp F / Imp AMF | B96: 0.07476823892 | C96: 0.1856345086 | D96: 0.1512768887 | E96: 0.1019039408 | F96: 0.1327794184 | G96: 0.1283088202 | L96: Importações
A97: Exp F / Exp BT | B97: 0.03930685842 | C97: 0.03947136978 | D97: 0.03179848382 | E97: 0.03853472141 | F97: 0.0403755014 | G97: 0.03838245637
A98: Imp F / Imp BT | B98: 0.000744613246 | C98: 0.001902737151 | D98: 0.005382493801 | E98: 0.02650379945 | F98: 0.004690782288 | G98: 0.003194314841
A99: Exp F Angola / Exp F Mundo | B99: 0.01335326497 | C99: 0.01094440386 | D99: 0.006886546036 | E99: 0.007561990261 | F99: 0.009211585403 | G99: 0.009579533994
A100: Imp F Angola / Imp F Mundo | B100: 0.0002966901284 | C100: 0.0008756519625 | D100: 0.001029373879 | E100: 0.0008274002546 | F100: 0.0008374114698 | G100: 0.0007743517383
A101: AMF - Agroalimentar, Mar e Florestas; BT - Total de Bens Transacionáveis (exclui serviços) | H101: *TVMA - Taxa de variação média anual; TVT - Taxa de variação total
A111: Fonte: GPP a partir de dados INE/Comércio Internacional (2021 provisórios; 2022 preliminares) | H111: 2023-04-18T16:29:06.580

Sheet 2
A1: Ranking dos parceiros comerciais de Portugal por país (média 2018-2022 em milhares de euros) produtos agrícolas e agroalimentares, do mar e da floresta
A2: Exportações | F2: Importações | K2: Trocas comerciais (total e saldo)
A3: P | B3: País | C3: média quinquénio | D3: % do Total | F3: P | G3: País | H3: média quinquénio | I3: % do Total | K3: P | L3: País | M3: Total (exp+imp) | N3: % do Total | O3: Saldo (exp-imp)
A4: 1 | B4: Espanha | C4: 4147137.938 | D4: 0.3199825426 | F4: 1 | G4: Espanha | H4: 6901979.232 | I4: 0.4614270306 | K4: 1 | L4: Espanha | M4: 11049117.17 | N4: 0.3957645176 | O4: -2754841.293
A5: 2 | B5: França | C5: 1359640.969 | D5: 0.1049064152 | F5: 2 | G5: França | H5: 986185.2734 | I5: 0.0659307319 | K5: 2 | L5: França | M5: 2345826.243 | N5: 0.08402434124 | O5: 373455.696
A6: 3 | B6: Itália | C6: 876774.7284 | D6: 0.06764969264 | F6: 3 | G6: Alemanha | H6: 880951.0908 | I6: 0.05889537367 | K6: 3 | L6: Alemanha | M6: 1516599.607 | N6: 0.05432255832 | O6: -245302.5748
A7: 4 | B7: Alemanha | C7: 635648.516 | D7: 0.04904501161 | F7: 4 | G7: Países Baixos | H7: 833152.697 | I7: 0.05569984523 | K7: 4 | L7: Países Baixos | M7: 1421542.299 | N7: 0.0509177334 | O7: -244763.0948
A8: 5 | B8: Países Baixos | C8: 588389.6022 | D8: 0.04539863485 | F8: 5 | G8: Brasil | H8: 705274.2876 | I8: 0.04715062294 | K8: 5 | L8: Itália | M8: 1323334.658 | N8: 0.04740006776 | O8: 430214.799
A9: 6 | B9: Estados Unidos | C9: 554106.8534 | D9: 0.04275346575 | F9: 6 | G9: Itália | H9: 446559.9294 | I9: 0.02985445411 | K9: 6 | L9: Brasil | M9: 1157990.816 | N9: 0.04147767371 | O9: -252557.7592 | P9: Nota: Nesta listagem, o Reino Unido passa a ser constituído por três componentes: Reino Unido [até 2020] ; Reino Unido (sem Irlanda do Norte) pós-2020 e Reino Unido (Irlanda do Norte) pós-2020. Estas componentes são calculadas igualmente como média do quinquénio, embora a primeira corresponda apenas a 2018-2020 e as duas últimas a 2021-2022.
A10: 7 | B10: Brasil | C10: 452716.5284 | D10: 0.03493044793 | F10: 7 | G10: Suécia | H10: 342692.7562 | I10: 0.02291048634 | K10: 7 | L10: Estados Unidos | M10: 835578.634 | N10: 0.02992930294 | O10: 272635.0728
A11: 8 | B11: Reino Unido | C11: 382822.421 | D11: 0.0295375976 | F11: 8 | G11: Bélgica | H11: 284922.9008 | I11: 0.01904832276 | K11: 8 | L11: Reino Unido | M11: 527725.3878 | N11: 0.01890241368 | O11: 237919.4542
A12: 9 | B12: Angola | C12: 331120.0664 | D12: 0.02554837633 | F12: 9 | G12: Estados Unidos | H12: 281471.7806 | I12: 0.01881760051 | K12: 9 | L12: Bélgica | M12: 524078.8948 | N12: 0.01877180121 | O12: -45766.9068
A13: 10 | B13: Reino Unido (sem Irlanda do Norte) pós 2020 | C13: 297928.3204 | D13: 0.02298738621 | F13: 10 | G13: Polónia | H13: 207249.91 | I13: 0.01385554887 | K13: 10 | L13: Polónia | M13: 458630.3884 | N13: 0.01642752372 | O13: 44130.5684
A14: 11 | B14: Polónia | C14: 251380.4784 | D14: 0.01939587393 | F14: 11 | G14: Ucrânia | H14: 195332.8996 | I14: 0.01305884541 | K14: 11 | L14: Suécia | M14: 436691.4122 | N14: 0.0156416991 | O14: -248694.1002
A15: 12 | B15: Bélgica | C15: 239155.994 | D15: 0.01845266402 | F15: 12 | G15: China, República Popular da | H15: 173709.004 | I15: 0.01161319488 | K15: 12 | L15: China, República Popular da | M15: 367378.4436 | N15: 0.01315900178 | O15: 19960.4356
A16: 13 | B16: Israel | C16: 214334.0624 | D16: 0.01653746735 | F16: 13 | G16: África do Sul | H16: 145344.5192 | I16: 0.009716906942 | K16: 13 | L16: Reino Unido (sem Irlanda do Norte) pós 2020 | M16: 358990.3996 | N16: 0.01285855333 | O16: 236866.2412
A17: 14 | B17: China, República Popular da | C17: 193669.4396 | D17: 0.01494303798 | F17: 14 | G17: Reino Unido | H17: 144902.9668 | I17: 0.009687387263 | K17: 14 | L17: Angola | M17: 346543.215 | N17: 0.01241271191 | O17: 315696.9178
A18: 15 | B18: Turquia | C18: 167228.7496 | D18: 0.01290294205 | F18: 15 | G18: Dinamarca | H18: 144434.8984 | I18: 0.009656094875 | K18: 15 | L18: Dinamarca | M18: 229206.2586 | N18: 0.008209859936 | O18: -59663.5382
A19: 16 | B19: Suíça | C19: 143381.926 | D19: 0.01106298221 | F19: 16 | G19: Roménia | H19: 138756.2138 | I19: 0.009276450357 | K19: 16 | L19: Turquia | M19: 223208.1582 | N19: 0.007995016046 | O19: 111249.341
A20: 17 | B20: Marrocos | C20: 109032.6026 | D20: 0.008412676387 | F20: 17 | G20: Irlanda | H20: 118290.7746 | I20: 0.007908247626 | K20: 17 | L20: Israel | M20: 222677.5138 | N20: 0.007976009077 | O20: 205990.611
A21: 18 | B21: Cabo Verde | C21: 100901.0544 | D21: 0.007785266952 | F21: 18 | G21: Canadá | H21: 108500.262 | I21: 0.007253709702 | K21: 18 | L21: Ucrânia | M21: 209672.7922 | N21: 0.007510197439 | O21: -180993.007
A22: 19 | B22: Canadá | C22: 96471.0096 | D22: 0.007443456041 | F22: 19 | G22: Rússia, Federação da | H22: 105947.3528 | I22: 0.007083036729 | K22: 19 | L22: Canadá | M22: 204971.2716 | N22: 0.007341795294 | O22: -12029.2524
A23: 20 | B23: Suécia | C23: 93998.656 | D23: 0.007252695569 | F23: 20 | G23: Uruguai | H23: 102111.7952 | I23: 0.006826613188 | K23: 20 | L23: Rússia, Federação da | M23: 185992.9178 | N23: 0.006662016183 | O23: -25901.7878
A24: 21 | B24: Dinamarca | C24: 84771.3602 | D24: 0.006540741055 | F24: 21 | G24: Argentina | H24: 97726.5184 | I24: 0.006533438552 | K24: 21 | L24: África do Sul | M24: 182500.0166 | N24: 0.00653690516 | O24: -108189.0218
A25: 22 | B25: Egito | C25: 83378.3752 | D25: 0.0064332619 | F25: 22 | G25: Índia | H25: 75540.6788 | I25: 0.005050219645 | K25: 22 | L25: Irlanda | M25: 182267.8406 | N25: 0.006528588928 | O25: -54313.7086
A26: 23 | B26: Rússia, Federação da | C26: 80045.565 | D26: 0.006176110801 | F26: 23 | G26: Finlândia | H26: 74110.91 | I26: 0.004954633445 | K26: 23 | L26: Roménia | M26: 164596.3888 | N26: 0.00589562129 | O26: -112916.0388
A27: 24 | B27: Argélia | C27: 78380.8918 | D27: 0.00604766888 | F27: 24 | G27: Vietname | H27: 70006.3292 | I27: 0.004680224545 | K27: 24 | L27: Marrocos | M27: 151640.996 | N27: 0.005431576543 | O27: 66424.2092
A28: 25 | B28: México | C28: 73464.5916 | D28: 0.005668339747 | F28: 25 | G28: Costa Rica | H28: 69968.8442 | I28: 0.004677718511 | K28: 25 | L28: Suíça | M28: 147879.1934 | N28: 0.005296833833 | O28: 138884.6586
A29: 26 | B29: Japão | C29: 66614.1746 | D29: 0.005139779115 | F29: 26 | G29: Áustria | H29: 64420.9792 | I29: 0.004306819847 | K29: 26 | L29: Grécia | M29: 116206.8788 | N29: 0.004162374118 | O29: -11091.8156
A30: 27 | B30: Irlanda | C30: 63977.066 | D30: 0.004936306569 | F30: 27 | G30: Grécia | H30: 63649.3472 | I30: 0.004255232926 | K30: 27 | L30: Argentina | M30: 113791.3158 | N30: 0.0040758519 | O30: -81661.721
A31: 28 | B31: Luxemburgo | C31: 55247.7972 | D31: 0.004262778544 | F31: 28 | G31: Reino Unido (sem Irlanda do Norte) pós 2020 | H31: 61062.0792 | I31: 0.004082262919 | K31: 28 | L31: Uruguai | M31: 105100.8748 | N31: 0.003764571991 | O31: -99122.7156
A32: 29 | B32: Grécia | C32: 52557.5316 | D32: 0.00405520454 | F32: 29 | G32: Turquia | H32: 55979.4086 | I32: 0.003742464504 | K32: 29 | L32: Áustria | M32: 103584.973 | N32: 0.003710274427 | O32: -25256.9854
A33: 30 | B33: Áustria | C33: 39163.9938 | D33: 0.003021793463 | F33: 30 | G33: Equador | H33: 48766.9652 | I33: 0.003260281607 | K33: 30 | L33: Finlândia | M33: 103332.8204 | N33: 0.00370124266 | O33: -44888.9996
A34: 31 | B34: Moçambique | C34: 37451.371 | D34: 0.002889651874 | F34: 31 | G34: Chile | H34: 47783.2146 | I34: 0.003194513644 | K34: 31 | L34: Cabo Verde | M34: 101737.191 | N34: 0.003644089361 | O34: 100064.9178
A35: 32 | B35: África do Sul | C35: 37155.4974 | D35: 0.002866823025 | F35: 32 | G35: Bulgária | H35: 47615.198 | I35: 0.003183281011 | K35: 32 | L35: Índia | M35: 100003.3314 | N35: 0.003581984841 | O35: -51078.0262
A36: 33 | B36: Chile | C36: 36026.5554 | D36: 0.002779716751 | F36: 33 | G36: Cuba | H36: 43073.8564 | I36: 0.00287967277 | K36: 33 | L36: Egito | M36: 93743.8836 | N36: 0.003357779839 | O36: 73012.8668
A37: 34 | B37: Austrália | C37: 34889.2258 | D37: 0.002691963312 | F37: 34 | G37: Marrocos | H37: 42608.3934 | I37: 0.002848554565 | K37: 34 | L37: México | M37: 93550.6764 | N37: 0.003350859417 | O37: 53378.5068
A38: 35 | B38: Arábia Saudita | C38: 32824.7102 | D38: 0.002532670576 | F38: 35 | G38: Moçambique | H38: 40008.1492 | I38: 0.002674717044 | K38: 35 | L38: Chile | M38: 83809.77 | N38: 0.00300195325 | O38: -11756.6592
A39: 36 | B39: Guiné-Bissau | C39: 32182.3282 | D39: 0.002483106026 | F39: 36 | G39: Checa, República | H39: 35954.3558 | I39: 0.0024037035 | K39: 36 | L39: Argélia | M39: 83292.5462 | N39: 0.002983426989 | O39: 73469.2374
A40: 37 | B40: Finlândia | C40: 29221.9104 | D40: 0.00225468777 | F40: 37 | G40: Colômbia | H40: 29155.8878 | I40: 0.001949196641 | K40: 37 | L40: Japão | M40: 83024.7762 | N40: 0.002973835828 | O40: 50203.573
A41: 38 | B41: Checa, República | C41: 29121.3328 | D41: 0.00224692746 | F41: 38 | G41: Indonésia | H41: 28536.2748 | I41: 0.001907772844 | K41: 38 | L41: Moçambique | M41: 77459.5202 | N41: 0.002774495842 | O41: -2556.7782
A42: 39 | B42: Emirados Árabes Unidos | C42: 29075.6888 | D42: 0.002243405686 | F42: 39 | G42: Guiana | H42: 28025.2642 | I42: 0.001873609585 | K42: 39 | L42: Vietname | M42: 75952.8202 | N42: 0.002720527875 | O42: -64059.8382
A43: 40 | B43: São Tomé e Príncipe | C43: 26794.1658 | D43: 0.002067369214 | F43: 40 | G43: Hungria | H43: 24241.9694 | I43: 0.001620680037 | K43: 40 | L43: Costa Rica | M43: 73986.1334 | N43: 0.002650083798 | O43: -65951.555
A44: 41 | B44: Jordânia | C44: 26642.1032 | D44: 0.002055636453 | F44: 41 | G44: Namíbia | H44: 22812.3548 | I44: 0.001525104145 | K44: 41 | L44: Checa, República | M44: 65075.6886 | N44: 0.002330923649 | O44: -6833.023
A45: 42 | B45: Roménia | C45: 25840.175 | D45: 0.001993761727 | F45: 42 | G45: Costa do Marfim | H45: 22796.1714 | I45: 0.001524022215 | K45: 42 | L45: Luxemburgo | M45: 63935.742 | N45: 0.002290092295 | O45: 46559.8524
A46: 43 | B46: Tunísia | C46: 24967.3514 | D46: 0.001926416893 | F46: 43 | G46: Uganda | H46: 22685.1304 | I46: 0.001516598646 | K46: 43 | L46: Bulgária | M46: 60599.4354 | N46: 0.002170590279 | O46: -34630.9606
A47: 44 | B47: Índia | C47: 24462.6526 | D47: 0.001887475626 | F47: 44 | G47: México | H47: 20086.0848 | I47: 0.001342841257 | K47: 44 | L47: Equador | M47: 51816.5236 | N47: 0.00185599819 | O47: -45717.4068
A48: 45 | B48: Noruega | C48: 22053.074 | D48: 0.001701558712 | F48: 45 | G48: Peru | H48: 19492.7516 | I48: 0.001303174378 | K48: 45 | L48: Austrália | M48: 48706.4602 | N48: 0.001744599902 | O48: 21071.9914
A49: 46 | B49: Coreia, República da | C49: 18918.1652 | D49: 0.001459677178 | F49: 46 | G49: Paraguai | H49: 18841.0926 | I49: 0.001259608167 | K49: 46 | L49: Cuba | M49: 48370.083 | N49: 0.001732551323 | O49: -37777.6298
A50: 47 | B50: Hungria | C50: 18307.2964 | D50: 0.001412544106 | F50: 47 | G50: Senegal | H50: 17576.369 | I50: 0.001175055949 | K50: 47 | L50: Hungria | M50: 42549.2658 | N50: 0.001524057479 | O50: -5934.673
A51: 48 | B51: Nigéria | C51: 16230.2952 | D51: 0.001252288012 | F51: 48 | G51: Nova Zelânda | H51: 17376.4264 | I51: 0.001161688925 | K51: 48 | L51: Colômbia | M51: 37488.773 | N51: 0.001342797432 | O51: -20823.0026
A52: 49 | B52: Argentina | C52: 16064.7974 | D52: 0.001239518626 | F52: 49 | G52: Japão | H52: 16410.6016 | I52: 0.001097119379 | K52: 49 | L52: Tunísia | M52: 35512.9364 | N52: 0.001272025622 | O52: 14421.7664
A53: 50 | B53: Lituânia | C53: 14413.7628 | D53: 0.001112129024 | F53: 50 | G53: Angola | H53: 15423.1486 | I53: 0.001031103894 | K53: 50 | L53: Noruega | M53: 34929.1028 | N53: 0.001251113488 | O53: 9177.0452
A54: 51 | B54: Ucrânia | C54: 14339.8926 | D54: 0.001106429389 | F54: 51 | G54: Lituânia | H54: 14634.3552 | I54: 0.0009783696586 | K54: 51 | L54: Costa do Marfim | M54: 32980.227 | N54: 0.001181307378 | O54: -12612.1158
A55: 52 | B55: Macau | C55: 14162.3014 | D55: 0.001092726907 | F55: 52 | G55: Mauritânia | H55: 14124.4552 | I55: 0.0009442806481 | K55: 52 | L55: Arábia Saudita | M55: 32858.648 | N55: 0.001176952581 | O55: 32790.7724
A56: 53 | B56: Síria, República Árabe da | C56: 13309.7072 | D56: 0.001026942922 | F56: 53 | G56: Austrália | H56: 13817.2344 | I56: 0.0009237416147 | K56: 53 | L56: Guiné-Bissau | M56: 32561.5328 | N56: 0.001166310315 | O56: 31803.1236
A57: 54 | B57: Iraque | C57: 13221.9204 | D57: 0.001020169517 | F57: 54 | G57: Tanzânia, República Unida da | H57: 13710.948 | I57: 0.0009166359112 | K57: 54 | L57: Indonésia | M57: 32138.0738 | N57: 0.001151142583 | O57: -24934.4758
A58: 55 | B58: Bulgária | C58: 12984.2374 | D58: 0.001001830505 | F58: 55 | G58: Eslovénia | H58: 13650.401 | I58: 0.0009125880836 | K58: 55 | L58: Coreia, República da | M58: 31290.6162 | N58: 0.001120787791 | O58: 6545.7142
A59: 56 | B59: HongKong | C59: 12801.5844 | D59: 0.0009877374677 | F59: 56 | G59: Suazilândia | H59: 13238.574 | I59: 0.0008850556754 | K59: 56 | L59: Emirados Árabes Unidos | M59: 29704.3194 | N59: 0.001063968773 | O59: 28447.0582
A60: 57 | B60: Eslováquia | C60: 12721.3848 | D60: 0.000981549472 | F60: 57 | G60: Noruega | H60: 12876.0288 | I60: 0.0008608179677 | K60: 57 | L60: Lituânia | M60: 29048.118 | N60: 0.001040464521 | O60: -220.5924
A61: 58 | B61: Letónia | C61: 11855.2754 | D61: 0.0009147226888 | F61: 58 | G61: Tailândia | H61: 12763.9036 | I61: 0.0008533219153 | K61: 58 | L61: Senegal | M61: 28854.7126 | N61: 0.001033537 | O61: -6298.0254
A62: 59 | B62: Croácia | C62: 11368.3906 | D62: 0.0008771559045 | F62: 59 | G62: Camarões | H62: 12420.1756 | I62: 0.0008303422184 | K62: 59 | L62: Guiana | M62: 28164.8444 | N62: 0.001008826849 | O62: -27885.684
A63: 60 | B63: Senegal | C63: 11278.3436 | D63: 0.0008702081086 | F63: 60 | G63: Coreia, República da | H63: 12372.451 | I63: 0.0008271516234 | K63: 60 | L63: São Tomé e Príncipe | M63: 27847.8924 | N63: 0.0009974740546 | O63: 25740.4392
A64: 61 | B64: Dominicana, República | C64: 11207.4662 | D64: 0.0008647393899 | F64: 61 | G64: Estónia | H64: 12168.0976 | I64: 0.0008134897187 | K64: 61 | L64: Jordânia | M64: 26698.3012 | N64: 0.0009562972438 | O64: 26585.9052
A65: 62 | B65: Líbia, Jamahira Árabe da | C65: 11110.442 | D65: 0.0008572532511 | F65: 62 | G65: Moldava, República de | H65: 11911.7076 | I65: 0.0007963489432 | K65: 62 | L65: Peru | M65: 25630.734 | N65: 0.0009180584224 | O65: -13354.7692
A66: 63 | B66: Costa do Marfim | C66: 10184.0556 | D66: 0.000785775649 | F66: 63 | G66: Sérvia | H66: 11556.9174 | I66: 0.0007726296907 | K66: 63 | L66: Uganda | M66: 23651.9568 | N66: 0.0008471812843 | O66: -21718.304
A67: 64 | B67: Malta | C67: 9933.0434 | D67: 0.0007664081904 | F67: 64 | G67: Letónia | H67: 10708.7876 | I67: 0.0007159285616 | K67: 64 | L67: Namíbia | M67: 23552.016 | N67: 0.0008436015392 | O67: -22072.6936
A68: 65 | B68: Líbano | C68: 9909.3948 | D68: 0.000764583525 | F68: 65 | G68: Tunísia | H68: 10545.585 | I68: 0.0007050177651 | K68: 65 | L68: Letónia | M68: 22564.063 | N68: 0.0008082143914 | O68: 1146.4878
A69: 66 | B69: Território Palestiniano Ocupado | C69: 9895.7186 | D69: 0.0007635283045 | F69: 66 | G69: Paquistão | H69: 10439.2814 | I69: 0.0006979109117 | K69: 66 | L69: Tailândia | M69: 22047.6444 | N69: 0.0007897169717 | O69: -3480.1628
A70: 67 | B70: Chipre | C70: 9812.818 | D70: 0.0007571319065 | F70: 67 | G70: Egito | H70: 10365.5084 | I70: 0.000692978869 | K70: 67 | L70: Eslovénia | M70: 21976.3266 | N70: 0.000787162464 | O70: -5324.4754
A71: 68 | B71: Tailândia | C71: 9283.7408 | D71: 0.0007163096647 | F71: 68 | G71: Islândia | H71: 10004.2966 | I71: 0.0006688303048 | K71: 68 | L71: Nigéria | M71: 21616.2318 | N71: 0.0007742643525 | O71: 10844.3586
A72: 69 | B72: Kuwait | C72: 9136.5242 | D72: 0.0007049508088 | F72: 69 | G72: Maurícias | H72: 9636.258 | I72: 0.0006442253397 | K72: 69 | L72: Nova Zelânda | M72: 21601.4804 | N72: 0.0007737359772 | O72: -13151.3724
A73: 70 | B73: Camarões | C73: 9091.9556 | D73: 0.0007015120098 | F73: 70 | G73: Luxemburgo | H73: 8687.9448 | I73: 0.000580826519 | K73: 70 | L73: Camarões | M73: 21512.1312 | N73: 0.000770535609 | O73: -3328.22
A74: 71 | B74: Colômbia | C74: 8332.8852 | D74: 0.0006429440817 | F74: 71 | G74: Israel | H74: 8343.4514 | I74: 0.0005577956518 | K74: 71 | L74: Estónia | M74: 20482.628 | N74: 0.0007336601889 | O74: -3853.5672
A75: 72 | B75: Eslovénia | C75: 8325.9256 | D75: 0.0006424070968 | F75: 72 | G75: Filipinas | H75: 8336.7014 | I75: 0.0005573443853 | K75: 72 | L75: Paraguai | M75: 20050.3854 | N75: 0.0007181778403 | O75: -17631.7998
A76: 73 | B76: Estónia | C76: 8314.5304 | D76: 0.0006415278723 | F76: 73 | G76: Belize | H76: 8129.6594 | I76: 0.0005435027361 | K76: 73 | L76: Croácia | M76: 18456.18 | N76: 0.0006610755468 | O76: 4280.6012
A77: 74 | B77: Geórgia | C77: 8048.6886 | D77: 0.0006210161999 | F77: 74 | G77: Malásia | H77: 8111.8758 | I77: 0.0005423138258 | K77: 74 | L77: Eslováquia | M77: 18115.4256 | N77: 0.0006488701825 | O77: 7327.344
A78: 75 | B78: Gibraltar | C78: 7970.9208 | D78: 0.0006150158356 | F78: 75 | G78: Bangladesh | H78: 7928.3318 | I78: 0.0005300431191 | K78: 75 | L78: Sérvia | M78: 17501.5482 | N78: 0.0006268819196 | O78: -5612.2866
A79: 76 | B79: Gana | C79: 7302.601 | D79: 0.0005634499914 | F79: 76 | G79: Croácia | H79: 7087.7894 | I79: 0.0004738492404 | K79: 76 | L79: Mauritânia | M79: 16926.9998 | N79: 0.0006063023686 | O79: -11321.9106
A80: 77 | B80: Taiwan | C80: 6604.3054 | D80: 0.0005095712912 | F80: 77 | G80: Quénia | H80: 6720.3804 | I80: 0.0004492863668 | K80: 77 | L80: HongKong | M80: 15599.17 | N80: 0.0005587412909 | O80: 10003.9988
A81: 78 | B81: Belarus | C81: 6189.2796 | D81: 0.0004775489633 | F81: 78 | G81: Gana | H81: 6620.3222 | I81: 0.0004425970453 | K81: 78 | L81: Maurícias | M81: 15492.8062 | N81: 0.0005549314826 | O81: -3779.7098
A82: 79 | B82: Guatemala | C82: 6179.8032 | D82: 0.0004768177886 | F82: 79 | G82: Reino Unido (Irlanda do Norte) pós-2020 | H82: 6512.7256 | I82: 0.0004354037492 | K82: 79 | L82: Suazilândia | M82: 15229.7308 | N82: 0.0005455084756 | O82: -11247.4172
A83: 80 | B83: Peru | C83: 6137.9824 | D83: 0.0004735910027 | F83: 80 | G83: Panamá | H83: 6501.636 | I83: 0.0004346623617 | K83: 80 | L83: Moldava, República de | M83: 14880.8148 | N83: 0.0005330107737 | O83: -8942.6004
A84: 81 | B84: Vietname | C84: 5946.491 | D84: 0.0004588160167 | F84: 81 | G84: Honduras | H84: 6221.2504 | I84: 0.0004159173771 | K84: 81 | L84: Síria, República Árabe da | M84: 14259.5412 | N84: 0.0005107575889 | O84: 12359.8732
A85: 82 | B85: Sérvia | C85: 5944.6308 | D85: 0.0004586724885 | F85: 82 | G85: Suriname | H85: 5829.6302 | I85: 0.0003897358804 | K85: 82 | L85: Tanzânia, República Unida da | M85: 14227.4994 | N85: 0.0005096098947 | O85: -13194.3966
A86: 83 | B86: Maurícias | C86: 5856.5482 | D86: 0.0004518762606 | F86: 83 | G86: Eslováquia | H86: 5394.0408 | I86: 0.0003606148535 | K86: 83 | L86: Macau | M86: 14180.6616 | N86: 0.0005079322277 | O86: 14143.9412
A87: 84 | B87: Andorra | C87: 5401.2632 | D87: 0.000416747636 | F87: 84 | G87: Nigéria | H87: 5385.9366 | I87: 0.0003600730528 | K87: 84 | L87: Gana | M87: 13922.9232 | N87: 0.0004987003848 | O87: 682.2788
A88: 85 | B88: Cuba | C88: 5296.2266 | D88: 0.0004086432809 | F88: 85 | G88: Etiópia | H88: 5332.739 | I88: 0.0003565165642 | K88: 85 | L88: Paquistão | M88: 13694.5862 | N88: 0.0004905216605 | O88: -7183.9766
A89: 86 | B89: Singapura | C89: 4688.1098 | D89: 0.000361722546 | F89: 86 | G89: Congo | H89: 5207.2118 | I89: 0.0003481245304 | K89: 86 | L89: Dominicana, República | M89: 13458.9994 | N89: 0.0004820832582 | O89: 8955.933
A90: 87 | B90: Omã | C90: 4393.4536 | D90: 0.0003389876282 | F90: 87 | G90: Guatemala | H90: 5138.5064 | I90: 0.0003435312785 | K90: 87 | L90: Chipre | M90: 13259.2352 | N90: 0.0004749279732 | O90: 6366.4008
A91: 88 | B91: Nova Zelânda | C91: 4225.054 | D91: 0.0003259943464 | F91: 88 | G91: Camboja | H91: 4965.2796 | I91: 0.0003319503211 | K91: 88 | L91: Iraque | M91: 13234.1844 | N91: 0.0004740306872 | O91: 13209.6564
A92: 89 | B92: Panamá | C92: 4203.97 | D92: 0.0003243675589 | F92: 89 | G92: Argélia | H92: 4911.6544 | I92: 0.0003283652455 | K92: 89 | L92: Malta | M92: 12121.6218 | N92: 0.0004341801911 | O92: 7744.465
A93: 90 | B93: Costa Rica | C93: 4017.2892 | D93: 0.0003099637465 | F93: 90 | G93: Macedónia, Antiga República jugoslava da | H93: 4838.0028 | I93: 0.0003234413189 | K93: 90 | L93: Filipinas | M93: 11815.5126 | N93: 0.0004232157713 | O93: -4857.8902
A94: 91 | B94: Catar | C94: 3815.048 | D94: 0.0002943593334 | F94: 91 | G94: Zimbabwe | H94: 4709.1506 | I94: 0.0003148269946 | K94: 91 | L94: Islândia | M94: 11807.758 | N94: 0.0004229380119 | O94: -8200.8352
A95: 92 | B95: Burquina Faso | C95: 3646.8948 | D95: 0.0002813850632 | F95: 92 | G95: Suíça | H95: 4497.2674 | I95: 0.0003006616903 | K95: 92 | L95: Malásia | M95: 11523.7994 | N95: 0.0004127669968 | O95: -4699.9522
A96: 93 | B96: Indonésia | C96: 3601.799 | D96: 0.0002779055867 | F96: 93 | G96: Sri Lanca | H96: 4393.1556 | I96: 0.0002937013682 | K96: 93 | L96: Guatemala | M96: 11318.3096 | N96: 0.0004054066285 | O96: 1041.2968
A97: 94 | B97: Sudão | C97: 3570.9408 | D97: 0.000275524647 | F97: 94 | G97: Madagáscar | H97: 3797.768 | I97: 0.0002538971435 | K97: 94 | L97: Líbia, Jamahira Árabe da | M97: 11116.443 | N97: 0.0003981760383 | O97: 11104.441
A98: 95 | B98: Filipinas | C98: 3478.8112 | D98: 0.000268416163 | F98: 95 | G98: Mali | H98: 3762.5872 | I98: 0.0002515451555 | K98: 95 | L98: Panamá | M98: 10705.606 | N98: 0.0003834604095 | O98: -2297.666
A99: 96 | B99: Mali | C99: 3441.82 | D99: 0.0002655620168 | F99: 96 | G99: Myanmar | H99: 3487.5904 | I99: 0.0002331604353 | K99: 96 | L99: Líbano | M99: 10450.9178 | N99: 0.0003743378207 | O99: 9367.8718
A100: 97 | B100: Malásia | C100: 3411.9236 | D100: 0.0002632552871 | F100: 97 | G100: Nicarágua | H100: 3458.6086 | I100: 0.0002312228772 | K100: 97 | L100: Kuwait | M100: 10320.1982 | N100: 0.0003696556204 | O100: 7952.8502
A101: 98 | B101: Venezuela | C101: 3292.4432 | D101: 0.0002540364854 | F101: 98 | G101: Chipre | H101: 3446.4172 | I101: 0.0002304078296 | K101: 98 | L101: Taiwan | M101: 10028.0136 | N101: 0.000359189961 | O101: 3180.5972
A102: 99 | B102: Paquistão | C102: 3255.3048 | D102: 0.0002511709816 | F102: 99 | G102: Taiwan | H102: 3423.7082 | I102: 0.0002288896352 | K102: 99 | L102: Território Palestiniano Ocupado | M102: 9896.2038 | N102: 0.0003544687112 | O102: 9895.2334
A103: 100 | B103: Irão, República Islâmica do | C103: 3151.3458 | D103: 0.0002431497714 | F103: 100 | G103: Congo, República Democrática do | H103: 3287.5874 | I103: 0.0002197893736 | K103: 100 | L103: Bangladesh | M103: 9893.1502 | N103: 0.0003543593354 | O103: -5963.5134
A104: 101 | B104: Equador | C104: 3049.5584 | D104: 0.0002352961163 | F104: 101 | G104: Malavi | H104: 3258.318 | I104: 0.0002178325882 | K104: 101 | L104: Quénia | M104: 9767.4084 | N104: 0.0003498554332 | O104: -3673.3524
A105: 102 | B105: Quénia | C105: 3047.028 | D105: 0.0002351008771 | F105: 102 | G105: Papuásia-Nova Guiné | H105: 3105.1676 | I105: 0.0002075938245 | K105: 102 | L105: Reino Unido (Irlanda do Norte) pós-2020 | M105: 9039.3634 | N105: 0.0003237778404 | O105: -3986.0878
A106: 103 | B106: Uruguai | C106: 2989.0796 | D106: 0.000230629727 | F106: 103 | G106: HongKong | H106: 2797.5856 | I106: 0.0001870306434 | K106: 103 | L106: Geórgia | M106: 8359.3498 | N106: 0.0002994206678 | O106: 7738.0274
A107: 104 | B107: Moldava, República de | C107: 2969.1072 | D107: 0.0002290887077 | F107: 104 | G107: Gabão | H107: 2642.8406 | I107: 0.0001766852738 | K107: 104 | L107: Belize | M107: 8131.84 | N107: 0.0002912715727 | O107: -8127.4788
A108: 105 | B108: Mauritânia | C108: 2802.5446 | D108: 0.0002162371641 | F108: 105 | G108: Centro-Africana, República | H108: 2579.2684 | I108: 0.0001724351985 | K108: 105 | L108: Gibraltar | M108: 7990.6994 | N108: 0.0002862161062 | O108: 7951.1422
A109: 106 | B109: Timor-Leste | C109: 2726.394 | D109: 0.0002103615788 | F109: 106 | G109: Gâmbia | H109: 2389.373 | I109: 0.0001597398734 | K109: 106 | L109: Congo | M109: 7640.4052 | N109: 0.0002736690391 | O109: -2774.0184
A110: 107 | B110: Guiné | C110: 2676.647 | D110: 0.0002065232277 | F110: 107 | G110: Dominicana, República | H110: 2251.5332 | I110: 0.0001505246892 | K110: 107 | L110: Honduras | M110: 7590.891 | N110: 0.000271895507 | O110: -4851.6098
A111: 108 | B111: Arménia | C111: 2588.4812 | D111: 0.0001997205803 | F111: 108 | G111: Malta | H111: 2188.5784 | I111: 0.0001463158898 | K111: 108 | L111: Etiópia | M111: 7364.853 | N111: 0.0002637991299 | O111: -3300.625
A112: 109 | B112: Gabão | C112: 2550.5466 | D112: 0.0001967936438 | F112: 109 | G112: Serra Leoa | H112: 1997.8504 | I112: 0.0001335649017 | K112: 109 | L112: Mali | M112: 7204.4072 | N112: 0.0002580521771 | O112: -320.7672
A113: 110 | B113: Reino Unido (Irlanda do Norte) pós-2020 | C113: 2526.6378 | D113: 0.000194948902 | F113: 110 | G113: Benim | H113: 1832.152 | I113: 0.0001224872502 | K113: 110 | L113: Belarus | M113: 7048.6518 | N113: 0.0002524732281 | O113: 5329.9074
A114: 111 | B114: Congo | C114: 2433.1934 | D114: 0.0001877389714 | F114: 111 | G114: El Salvador | H114: 1779.4546 | I114: 0.0001189642021 | K114: 111 | L114: Suriname | M114: 6411.9606 | N114: 0.0002296678056 | O114: -5247.2998
A115: 112 | B115: Albânia | C115: 2230.3856 | D115: 0.0001720908409 | F115: 112 | G115: Burquina Faso | H115: 1725.7416 | I115: 0.0001153732568 | K115: 112 | L115: Singapura | M115: 5996.509 | N115: 0.000214786888 | O115: 3379.7106
A116: 113 | B116: Seychelles | C116: 2209.8298 | D116: 0.000170504808 | F116: 113 | G116: Laos, República Democrática Popular do | H116: 1570.485 | I116: 0.0001049936845 | K116: 113 | L116: Camboja | M116: 5868.657 | N116: 0.0002102074013 | O116: -4061.9022
A117: 114 | B117: Guiné Equatorial | C117: 2176.4366 | D117: 0.0001679282743 | F117: 114 | G117: Singapura | H117: 1308.3992 | I117: 8.74721203e-05 | K117: 114 | L117: Sri Lanca | M117: 5833.9434 | N117: 0.0002089640068 | O117: -2952.3678
A118: 115 | B118: Etiópia | C118: 2032.114 | D118: 0.000156792712 | F118: 115 | G118: Seychelles | H118: 1264.2444 | I118: 8.45201818e-05 | K118: 115 | L118: Macedónia, Antiga República jugoslava da | M118: 5788.8886 | N118: 0.0002073502045 | O118: -3887.117
A119: 116 | B119: Suazilândia | C119: 1991.1568 | D119: 0.0001536325594 | F119: 116 | G119: Kuwait | H119: 1183.674 | I119: 7.913370364e-05 | K119: 116 | L119: Andorra | M119: 5443.4826 | N119: 0.0001949782261 | O119: 5359.0438
A120: 117 | B120: Bangladesh | C120: 1964.8184 | D120: 0.0001516003559 | F120: 117 | G120: Bolívia | H120: 1171.2708 | I120: 7.830449631e-05 | K120: 117 | L120: Burquina Faso | M120: 5372.6364 | N120: 0.0001924406105 | O120: 1921.1532
A121: 118 | B121: Islândia | C121: 1803.4614 | D121: 0.000139150463 | F121: 118 | G121: Togo | H121: 1123.3014 | I121: 7.509753537e-05 | K121: 118 | L121: Gabão | M121: 5193.3872 | N121: 0.0001860201452 | O121: -92.294
A122: 119 | B122: Benim | C122: 1771.8166 | D122: 0.0001367088313 | F122: 119 | G122: São Tomé e Príncipe | H122: 1053.7266 | I122: 7.044616041e-05 | K122: 119 | L122: Nicarágua | M122: 5085.0522 | N122: 0.0001821397312 | O122: -1832.165
A123: 120 | B123: Congo, República Democrática do | C123: 1727.2344 | D123: 0.0001332689829 | F123: 120 | G123: Venezuela | H123: 1042.4414 | I123: 6.96916962e-05 | K123: 120 | L123: Congo, República Democrática do | M123: 5014.8218 | N123: 0.0001796241727 | O123: -1560.353
A124: 121 | B124: Jamaica | C124: 1687.498 | D124: 0.000130203024 | F124: 121 | G124: Iémen | H124: 1024.4982 | I124: 6.849211602e-05 | K124: 121 | L124: Omã | M124: 4887.3662 | N124: 0.0001750588845 | O124: 3899.541
A125: 122 | B125: Nicarágua | C125: 1626.4436 | D125: 0.0001254922229 | F125: 122 | G125: Síria, República Árabe da | H125: 949.834 | I125: 6.350049275e-05 | K125: 122 | L125: Zimbabwe | M125: 4774.1098 | N125: 0.0001710021926 | O125: -4644.1914
A126: 123 | B126: Togo | C126: 1570.864 | D126: 0.0001212038433 | F126: 123 | G126: Belarus | H126: 859.3722 | I126: 5.745273191e-05 | K126: 123 | L126: Venezuela | M126: 4334.8846 | N126: 0.0001552697366 | O126: 2250.0018
A127: 124 | B127: El Salvador | C127: 1565.6294 | D127: 0.000120799955 | F127: 124 | G127: Cabo Verde | H127: 836.1366 | I127: 5.5899332e-05 | K127: 124 | L127: Madagáscar | M127: 4107.7632 | N127: 0.0001471345535 | O127: -3487.7728
A128: 125 | B128: Cazaquistão | C128: 1539.9044 | D128: 0.0001188150798 | F128: 125 | G128: Bósnia-Herzegovina | H128: 758.1446 | I128: 5.068523098e-05 | K128: 125 | L128: Myanmar | M128: 3979.9732 | N128: 0.0001425572876 | O128: -2995.2076
A129: 126 | B129: Sri Lanca | C129: 1440.7878 | D129: 0.0001111674968 | F129: 126 | G129: Turquemenistão | H129: 720.6558 | I129: 4.817894327e-05 | K129: 126 | L129: Catar | M129: 3835.8118 | N129: 0.0001373936201 | O129: 3794.2842
A130: 127 | B130: Azerbaijão | C130: 1435.1898 | D130: 0.0001107355695 | F130: 127 | G130: Chade | H130: 675.9004 | I130: 4.518685207e-05 | K130: 127 | L130: Benim | M130: 3603.9686 | N130: 0.0001290893085 | O130: -60.3354
A131: 128 | B131: Bolívia | C131: 1412.2374 | D131: 0.0001089646211 | F131: 128 | G131: Emirados Árabes Unidos | H131: 628.6306 | I131: 4.202666241e-05 | K131: 128 | L131: Sudão | M131: 3591.4234 | N131: 0.0001286399563 | O131: 3550.4582
A132: 129 | B132: Honduras | C132: 1369.6406 | D132: 0.0001056779611 | F132: 129 | G132: Timor-Leste | H132: 614.51 | I132: 4.108263949e-05 | K132: 129 | L132: Seychelles | M132: 3474.0742 | N132: 0.0001244366657 | O132: 945.5854
A133: 130 | B133: São Bartolomeu | C133: 1280.9726 | D133: 9.883656527e-05 | F133: 130 | G133: Faroé, Ilhas | H133: 597.6172 | I133: 3.995328308e-05 | K133: 130 | L133: Irão, República Islâmica do | M133: 3375.8016 | N133: 0.0001209166734 | O133: 2926.89
A134: 131 | B134: Ruanda | C134: 1241.2404 | D134: 9.577093048e-05 | F134: 131 | G134: Líbano | H134: 541.523 | I134: 3.620314427e-05 | K134: 131 | L134: El Salvador | M134: 3345.084 | N134: 0.0001198164103 | O134: -213.8252
A135: 132 | B135: Paraguai | C135: 1209.2928 | D135: 9.330593548e-05 | F135: 132 | G135: Omã | H135: 493.9126 | I135: 3.302018403e-05 | K135: 132 | L135: Timor-Leste | M135: 3340.904 | N135: 0.0001196666883 | O135: 2111.884
A136: 133 | B136: Iémen | C136: 1145.3826 | D136: 8.837478812e-05 | F136: 133 | G136: Gronelândia | H136: 481.3548 | I136: 3.218064103e-05 | K136: 133 | L136: Malavi | M136: 3267.4472 | N136: 0.0001170355645 | O136: -3249.1888
A137: 134 | B137: Montenegro | C137: 1046.3476 | D137: 8.073350114e-05 | F137: 134 | G137: Guiné-Bissau | H137: 379.2046 | I137: 2.535146031e-05 | K137: 134 | L137: Papuásia-Nova Guiné | M137: 3108.0532 | N137: 0.0001113262858 | O137: -3102.282
A138: 135 | B138: Uganda | C138: 966.8264 | D138: 7.4597849e-05 | F138: 135 | G138: Geórgia | H138: 310.6612 | I138: 2.076903888e-05 | K138: 135 | L138: Guiné | M138: 2979.4642 | N138: 0.0001067204007 | O138: 2373.8298
A139: 136 | B139: Macedónia, Antiga República jugoslava da | C139: 950.8858 | D139: 7.336791313e-05 | F139: 136 | G139: Usbequistão | H139: 308.3052 | I139: 2.061153014e-05 | K139: 136 | L139: Gâmbia | M139: 2880.9438 | N139: 0.0001031915325 | O139: -1897.8022
A140: 137 | B140: Bermudas | C140: 907.5284 | D140: 7.002256718e-05 | F140: 137 | G140: Guiné | H140: 302.8172 | I140: 2.024463371e-05 | K140: 137 | L140: Togo | M140: 2694.1654 | N140: 9.650138139e-05 | O140: 447.5626
A141: 138 | B141: Camboja | C141: 903.3774 | D141: 6.970228665e-05 | F141: 138 | G141: Irão, República Islâmica do | H141: 224.4558 | I141: 1.500583671e-05 | K141: 138 | L141: Centro-Africana, República | M141: 2675.6308 | N141: 9.583749694e-05 | O141: -2482.906
A142: 139 | B142: Barbados | C142: 886.8842 | D142: 6.842971358e-05 | F142: 139 | G142: Zâmbia | H142: 199.4064 | I142: 1.333117646e-05 | K142: 139 | L142: Arménia | M142: 2615.4888 | N142: 9.368329138e-05 | O142: 2561.4736
A143: 140 | B143: Trindade e Tobago | C143: 878.7574 | D143: 6.780267051e-05 | F143: 140 | G143: Azerbaijão | H143: 125.9648 | I143: 8.421289267e-06 | K143: 140 | L143: Bolívia | M143: 2583.5082 | N143: 9.25377893e-05 | O143: 240.9666
A144: 141 | B144: Namíbia | C144: 739.6612 | D144: 5.707036394e-05 | F144: 141 | G144: Fiji, Ilhas | H144: 123.8224 | I144: 8.278060602e-06 | K144: 141 | L144: Serra Leoa | M144: 2504.667 | N144: 8.971380354e-05 | O144: -1491.0338
A145: 142 | B145: Turquemenistão | C145: 730.8192 | D145: 5.638813786e-05 | F145: 142 | G145: Maldivas | H145: 106.1904 | I145: 7.099285481e-06 | K145: 142 | L145: Albânia | M145: 2336.138 | N145: 8.367732141e-05 | O145: 2124.6332
A146: 143 | B146: Barém | C146: 714.5288 | D146: 5.513121232e-05 | F146: 143 | G146: Albânia | H146: 105.7524 | I146: 7.070003295e-06 | K146: 143 | L146: Guiné Equatorial | M146: 2182.423 | N146: 7.817145683e-05 | O146: 2170.4502
A147: 144 | B147: Burundi | C147: 677.1012 | D147: 5.224339455e-05 | F147: 144 | G147: Tajiquistão | H147: 59.4122 | I147: 3.971961391e-06 | K147: 144 | L147: Iémen | M147: 2169.8808 | N147: 7.77222121e-05 | O147: 120.8844
A148: 145 | B148: Aruba | C148: 656.9934 | D148: 5.06919282e-05 | F148: 145 | G148: Jordânia | H148: 56.198 | I148: 3.757078281e-06 | K148: 145 | L148: Jamaica | M148: 1698.6206 | N148: 6.084230551e-05 | O148: 1676.3754
A149: 146 | B149: Niger | C149: 652.165 | D149: 5.031938122e-05 | F149: 146 | G149: Andorra | H149: 42.2194 | I149: 2.822548681e-06 | K149: 146 | L149: Laos, República Democrática Popular do | M149: 1586.3348 | N149: 5.682037916e-05 | O149: -1554.6352
A150: 147 | B150: São Martinho (parte holandesa) | C150: 597.7744 | D150: 4.612274182e-05 | F150: 147 | G150: Libéria | H150: 38.8276 | I150: 2.595792246e-06 | K150: 147 | L150: Azerbaijão | M150: 1561.1546 | N150: 5.591845826e-05 | O150: 1309.225
A151: 148 | B151: Suriname | C151: 582.3304 | D151: 4.493112233e-05 | F151: 148 | G151: Falkland Ilhas (Malvinas) | H151: 38.0622 | I151: 2.544621961e-06 | K151: 148 | L151: Cazaquistão | M151: 1555.7084 | N151: 5.57233827e-05 | O151: 1524.1004
A152: 149 | B152: Bósnia-Herzegovina | C152: 535.6404 | D152: 4.13286415e-05 | F152: 149 | G152: Aruba | H152: 38.029 | I152: 2.542402398e-06 | K152: 149 | L152: Turquemenistão | M152: 1451.475 | N152: 5.198988249e-05 | O152: 10.1634
A153: 150 | B153: Tanzânia, República Unida da | C153: 516.5514 | D153: 3.985578315e-05 | F153: 150 | G153: Arábia Saudita | H153: 33.9378 | I153: 2.268888061e-06 | K153: 150 | L153: Bósnia-Herzegovina | M153: 1293.785 | N153: 4.634163876e-05 | O153: -222.5042
A154: 151 | B154: Ceuta e Melilha | C154: 507.8786 | D154: 3.918661211e-05 | F154: 151 | G154: São Marino | H154: 32.7702 | I154: 2.190828974e-06 | K154: 151 | L154: São Bartolomeu | M154: 1281.3862 | N154: 4.589753041e-05 | O154: 1280.559
A155: 152 | B155: Serra Leoa | C155: 506.8166 | D155: 3.910467091e-05 | F155: 152 | G155: Botswana | H155: 29.9908 | I155: 2.005014116e-06 | K155: 152 | L155: Ruanda | M155: 1241.8804 | N155: 4.448248579e-05 | O155: 1240.6004
A156: 153 | B156: Myanmar | C156: 492.3828 | D156: 3.799099587e-05 | F156: 153 | G156: São Pedro e Miquelon | H156: 28.9156 | I156: 1.933132367e-06 | K156: 153 | L156: Montenegro | M156: 1046.6634 | N156: 3.749007539e-05 | O156: 1046.0318
A157: 154 | B157: Gâmbia | C157: 491.5708 | D157: 3.792834403e-05 | F157: 154 | G157: Arménia | H157: 27.0076 | I157: 1.805574351e-06 | K157: 154 | L157: Bermudas | M157: 908.2538 | N157: 3.253242965e-05 | O157: 906.803
A158: 155 | B158: Curaçau | C158: 479.6396 | D158: 3.700776319e-05 | F158: 155 | G158: Catar | H158: 20.7638 | I158: 1.388149436e-06 | K158: 155 | L158: Barbados | M158: 897.2042 | N158: 3.213664784e-05 | O158: 876.5642
A159: 156 | B159: Kosovo | C159: 471.1818 | D159: 3.6355181e-05 | F159: 156 | G159: Sudão | H159: 20.4826 | I159: 1.369350005e-06 | K159: 156 | L159: Trindade e Tobago | M159: 878.7678 | N159: 3.147628079e-05 | O159: 878.747
A160: 157 | B160: Polinésia Francesa | C160: 366.6458 | D160: 2.828945096e-05 | F160: 157 | G160: Gibraltar | H160: 19.7786 | I160: 1.322284574e-06 | K160: 157 | L160: Barém | M160: 719.082 | N160: 2.575655018e-05 | O160: 709.9756
A161: 158 | B161: Antígua e Barbuda | C161: 363.7054 | D161: 2.806257722e-05 | F161: 158 | G161: Macau | H161: 18.3602 | I161: 1.227458426e-06 | K161: 158 | L161: Aruba | M161: 695.0224 | N161: 2.489476767e-05 | O161: 618.9644
A162: 159 | B162: Haiti | C162: 328.5232 | D162: 2.534800877e-05 | F162: 159 | G162: Quirguizistão | H162: 17.4752 | I162: 1.168292366e-06 | K162: 159 | L162: Burundi | M162: 677.2152 | N162: 2.425693771e-05 | O162: 676.9872
A163: 160 | B163: Comores | C163: 311.607 | D163: 2.40427981e-05 | F163: 160 | G163: Salomão, Ilhas | H163: 16.0532 | I163: 1.073225543e-06 | K163: 160 | L163: Chade | M163: 676.014 | N163: 2.421391234e-05 | O163: -675.7868
A164: 161 | B164: Madagáscar | C164: 309.9952 | D164: 2.391843574e-05 | F164: 161 | G164: Cazaquistão | H164: 15.804 | I164: 1.05656545e-06 | K164: 161 | L164: Niger | M164: 655.4318 | N164: 2.347668562e-05 | O164: 648.8982
A165: 162 | B165: Nova Caledónia | C165: 302.6442 | D165: 2.335125141e-05 | F165: 162 | G165: Santa Helena | H165: 15.7338 | I165: 1.051872278e-06 | K165: 162 | L165: Faroé, Ilhas | M165: 598.4668 | N165: 2.143627593e-05 | O165: -596.7676
A166: 163 | B166: Libéria | C166: 295.8354 | D166: 2.282590184e-05 | F166: 163 | G166: Marshall, Ilhas | H166: 13.4098 | I166: 8.965028707e-07 | K166: 163 | L166: São Martinho (parte holandesa) | M166: 597.7772 | N166: 2.141157538e-05 | O166: 597.7716
A167: 164 | B167: Somália | C167: 292.9902 | D167: 2.260637349e-05 | F167: 164 | G167: Curaçau | H167: 12.9632 | I167: 8.666457377e-07 | K167: 164 | L167: Usbequistão | M167: 531.3872 | N167: 1.903357487e-05 | O167: -85.2232
A168: 165 | B168: Bahamas | C168: 280.4744 | D168: 2.164068642e-05 | F168: 165 | G168: Iraque | H168: 12.264 | I168: 8.199012071e-07 | K168: 165 | L168: Ceuta e Melilha | M168: 507.8786 | N168: 1.819152843e-05 | O168: 507.8786
A169: 166 | B169: Usbequistão | C169: 223.082 | D169: 1.721243581e-05 | F169: 166 | G169: Jamaica | H169: 11.1226 | I169: 7.435937024e-07 | K169: 166 | L169: Curaçau | M169: 492.6028 | N169: 1.764436982e-05 | O169: 466.6764
A170: 167 | B170: São Marino | C170: 219.9688 | D170: 1.697222927e-05 | F170: 167 | G170: Nepal | H170: 10.3458 | I170: 6.916612776e-07 | K170: 167 | L170: Gronelândia | M170: 481.9304 | N170: 1.72620988e-05 | O170: -480.7792
A171: 168 | B171: Bonaire, Santo Eustáquio e Saba | C171: 206.5448 | D171: 1.593646781e-05 | F171: 168 | G171: Barbados | H171: 10.32 | I171: 6.899364365e-07 | K171: 168 | L171: Kosovo | M171: 479.554 | N171: 1.717697935e-05 | O171: 462.8096
A172: 169 | B172: Guiana | C172: 139.5802 | D172: 1.076965077e-05 | F172: 169 | G172: Antígua e Barbuda | H172: 9.2326 | I172: 6.172390643e-07 | K172: 169 | L172: Antígua e Barbuda | M172: 372.938 | N172: 1.335813762e-05 | O172: 354.4728
A173: 170 | B173: Zâmbia | C173: 138.1944 | D173: 1.066272599e-05 | F173: 170 | G173: Kosovo | H173: 8.3722 | I173: 5.597176195e-07 | K173: 170 | L173: Polinésia Francesa | M173: 367.1436 | N173: 1.315059e-05 | O173: 366.148
A174: 171 | B174: Maldivas | C174: 129.0678 | D174: 9.958540908e-06 | F174: 171 | G174: Jibuti | H174: 7.3022 | I174: 4.881835123e-07 | K174: 171 | L174: Zâmbia | M174: 337.6008 | N174: 1.209240663e-05 | O174: -61.212
A175: 172 | B175: Santa Lúcia | C175: 120.252 | D175: 9.278336357e-06 | F175: 172 | G175: Líbia, Jamahira Árabe da | H175: 6.001 | I175: 4.011926895e-07 | K175: 172 | L175: Libéria | M175: 334.663 | N175: 1.198717859e-05 | O175: 257.0078
A176: 173 | B176: Liechtenstein | C176: 119.4194 | D176: 9.214095074e-06 | F176: 173 | G176: Guiné Equatorial | H176: 5.9864 | I176: 4.002166166e-07 | K176: 173 | L176: Haiti | M176: 328.8008 | N176: 1.177720247e-05 | O176: 328.2456
A177: 174 | B177: Afeganistão | C177: 109.4574 | D177: 8.445452666e-06 | F177: 174 | G177: Barém | H177: 4.5532 | I177: 3.044010254e-07 | K177: 174 | L177: Comores | M177: 311.607 | N177: 1.116134368e-05 | O177: 311.607
A178: 175 | B178: Quirguizistão | C178: 109.2342 | D178: 8.428231126e-06 | F178: 175 | G178: São Cristovão e Nevis | H178: 4.4378 | I178: 2.966860385e-07 | K178: 175 | L178: Nova Caledónia | M178: 303.3498 | N178: 1.086558188e-05 | O178: 301.9386
A179: 176 | B179: Virgens Britânicas, Ilhas | C179: 102.589 | D179: 7.915504512e-06 | F179: 176 | G179: Afeganistão | H179: 4.3662 | I179: 2.918992702e-07 | K179: 176 | L179: Somália | M179: 292.9902 | N179: 1.049451494e-05 | O179: 292.9902
A180: 177 | B180: Botswana | C180: 98.1832 | D180: 7.575564267e-06 | F180: 177 | G180: Niger | H180: 3.2668 | I180: 2.183996464e-07 | K180: 177 | L180: Bahamas | M180: 280.4744 | N180: 1.004621581e-05 | O180: 280.4744
A181: 178 | B181: Jibuti | C181: 96.957 | D181: 7.480953815e-06 | F181: 178 | G181: Liechtenstein | H181: 1.7444 | I181: 1.166206511e-07 | K181: 178 | L181: São Marino | M181: 252.739 | N181: 9.052771085e-06 | O181: 187.1986
A182: 179 | B182: Centro-Africana, República | C182: 96.3624 | D182: 7.435076002e-06 | F182: 179 | G182: Lesoto | H182: 1.7136 | I182: 1.145615385e-07 | K182: 179 | L182: Maldivas | M182: 235.2582 | N182: 8.426632338e-06 | O182: 22.8774
A183: 180 | B183: Nepal | C183: 77.231 | D183: 5.958946173e-06 | F183: 180 | G183: Butão | H183: 1.2178 | I183: 8.141517368e-08 | K183: 180 | L183: Bonaire, Santo Eustáquio e Saba | M183: 206.5448 | N183: 7.398156965e-06 | O183: 206.5448
A184: 181 | B184: Zimbabwe | C184: 64.9592 | D184: 5.012085513e-06 | F184: 181 | G184: Bermudas | H184: 0.7254 | I184: 4.849611347e-08 | K184: 181 | L184: Fiji, Ilhas | M184: 135.9286 | N184: 4.868779649e-06 | O184: -111.7162
A185: 182 | B185: Caimão, Ilhas | C185: 51.6906 | D185: 3.988314318e-06 | F185: 182 | G185: Nova Caledónia | H185: 0.7056 | I185: 4.717239822e-08 | K185: 182 | L185: Botswana | M185: 128.174 | N185: 4.591020305e-06 | O185: 68.1924
A186: 183 | B186: Mongólia | C186: 37.8358 | D186: 2.919313431e-06 | F186: 183 | G186: Ruanda | H186: 0.64 | I186: 4.278675575e-08 | K186: 183 | L186: Quirguizistão | M186: 126.7094 | N186: 4.538560303e-06 | O186: 91.759
A187: 184 | B187: Turcas e Caicos, Ilhas | C187: 19.071 | D187: 1.47146952e-06 | F187: 184 | G187: Polinésia Francesa | H187: 0.4978 | I187: 3.328007346e-08 | K187: 184 | L187: Liechtenstein | M187: 121.1638 | N187: 4.339924369e-06 | O187: 117.675
A188: 185 | B188: Laos, República Democrática Popular do | C188: 15.8498 | D188: 1.222929977e-06 | F188: 185 | G188: Território Palestiniano Ocupado | H188: 0.4852 | I188: 3.24377092e-08 | K188: 185 | L188: Santa Lúcia | M188: 120.2706 | N188: 4.307931146e-06 | O188: 120.2334
A189: 186 | B189: Fiji, Ilhas | C189: 12.1062 | D189: 9.340833883e-07 | F189: 186 | G189: São Bartolomeu | H189: 0.4136 | I189: 2.76509409e-08 | K189: 186 | L189: Afeganistão | M189: 113.8236 | N189: 4.077008277e-06 | O189: 105.0912
A190: 187 | B190: Anguila | C190: 10.0614 | D190: 7.76311857e-07 | F190: 187 | G190: Micronésia, Estados Federados da | H190: 0.3438 | I190: 2.298451035e-08 | K190: 187 | L190: Jibuti | M190: 104.2592 | N190: 3.734424331e-06 | O190: 89.6548
A191: 188 | B191: Malavi | C191: 9.1292 | D191: 7.043856923e-07 | F191: 188 | G191: Montenegro | H191: 0.3158 | I191: 2.111258979e-08 | K191: 188 | L191: Virgens Britânicas, Ilhas | M191: 102.589 | N191: 3.674600013e-06 | O191: 102.589
A192: 189 | B192: Brunei Darussalam | C192: 7.7238 | D192: 5.959486275e-07 | F192: 189 | G192: Haiti | H192: 0.2776 | I192: 1.855875531e-08 | K192: 189 | L192: Nepal | M192: 87.5768 | N192: 3.136883199e-06 | O192: 66.8852
A193: 190 | B193: São Vicente e Granadinas | C193: 7.6034 | D193: 5.866588719e-07 | F193: 190 | G193: Burundi | H193: 0.114 | I193: 7.621390868e-09 | K193: 190 | L193: Tajiquistão | M193: 59.4122 | N193: 2.128065104e-06 | O193: -59.4122
A194: 191 | B194: Guam | C194: 6.6636 | D194: 5.141463107e-07 | F194: 191 | G194: Oceano Indico, Território Britânico do | H194: 0.098 | I194: 6.551721974e-09 | K194: 191 | L194: Caimão, Ilhas | M194: 51.6906 | N194: 1.851487776e-06 | O194: 51.6906
A195: 192 | B195: Territórios Franceses do Sul | C195: 6.3102 | D195: 4.868788717e-07 | F195: 192 | G195: Nauru | H195: 0.0694 | I195: 4.639688827e-09 | K195: 192 | L195: Falkland Ilhas (Malvinas) | M195: 38.0622 | N195: 1.363336816e-06 | O195: -38.0622
A196: 193 | B196: Menores distantes dos Estados Unidos, lhas | C196: 4.5544 | D196: 3.514058403e-07 | F196: 193 | G196: Vanuatu | H196: 0.065 | I196: 4.345529881e-09 | K196: 193 | L196: Mongólia | M196: 37.8488 | N196: 1.355693115e-06 | O196: 37.8228
A197: 194 | B197: Sudão do Sul | C197: 3.771 | D197: 2.909607026e-07 | F197: 194 | G197: São Vicente e Granadinas | H197: 0.0416 | I197: 2.781139124e-09 | K197: 194 | L197: São Pedro e Miquelon | M197: 29.2314 | N197: 1.047029436e-06 | O197: -28.5998
A198: 195 | B198: Melilha | C198: 3.6164 | D198: 2.790321625e-07 | F198: 195 | G198: Santa Sé (Cidade Estado do Vaticano) | H198: 0.021 | I198: 1.403940423e-09 | K198: 195 | L198: Turcas e Caicos, Ilhas | M198: 19.071 | N198: 6.830975724e-07 | O198: 19.071
A199: 196 | B199: Marianas do Norte, Ilhas | C199: 2.9244 | D199: 2.256392147e-07 | F199: 196 | G199: Santa Lúcia | H199: 0.0186 | I199: 1.243490089e-09 | K199: 196 | L199: Salomão, Ilhas | M199: 16.0532 | N199: 5.750040349e-07 | O199: -16.0532
A200: 197 | B200: Papuásia-Nova Guiné | C200: 2.8856 | D200: 2.22645506e-07 | F200: 197 | G200: Mongólia | H200: 0.013 | I200: 8.691059762e-10 | K200: 197 | L200: Santa Helena | M200: 15.7338 | N200: 5.635635564e-07 | O200: -15.7338
... 56 more rows

Sheet 2AA
A1: Ranking dos parceiros comerciais de Portugal por país (média 2018-2022 em milhares de euros) produtos agrícolas e agroalimentares
A2: Exportações | F2: Importações | K2: Trocas comerciais (total e saldo)
A3: P | B3: País | C3: média quinquénio | D3: % do Total | F3: P | G3: País | H3: média quinquénio | I3: % do Total | K3: P | L3: País | M3: Total (exp+imp) | N3: % do Total | O3: Saldo (exp-imp)
A4: 1 | B4: Espanha | C4: 2411384.356 | D4: 0.3412368491 | F4: 1 | G4: Espanha | H4: 4705156.347 | I4: 0.461261043 | K4: 1 | L4: Espanha | M4: 7116540.703 | N4: 0.4121412567 | O4: -2293771.991
A5: 2 | B5: França | C5: 676917.193 | D5: 0.095791071 | F5: 2 | G5: França | H5: 802414.1936 | I5: 0.07866314753 | K5: 2 | L5: França | M5: 1479331.387 | N5: 0.08567273374 | O5: -125497.0006
A6: 3 | B6: Itália | C6: 450062.431 | D6: 0.06368867969 | F6: 3 | G6: Alemanha | H6: 691414.1182 | I6: 0.0677814665 | K6: 3 | L6: Alemanha | M6: 951387.8206 | N6: 0.05509786122 | O6: -431440.4158
A7: 4 | B7: Brasil | C7: 371211.2184 | D7: 0.05253038414 | F7: 4 | G7: Países Baixos | H7: 595089.4646 | I7: 0.05833846251 | K7: 4 | L7: Países Baixos | M7: 927519.5784 | N7: 0.05371557624 | O7: -262659.3508
A8: 5 | B8: Países Baixos | C8: 332430.1138 | D8: 0.04704244029 | F8: 5 | G8: Brasil | H8: 551854.2014 | I8: 0.05409997581 | K8: 5 | L8: Brasil | M8: 923065.4198 | N8: 0.0534576219 | O8: -180642.983
A9: 6 | B9: Angola | C9: 270815.6406 | D9: 0.03832332895 | F9: 6 | G9: Itália | H9: 325226.391 | I9: 0.03188294995 | K9: 6 | L9: Itália | M9: 775288.822 | N9: 0.0448994143 | O9: 124836.04 | P9: Nota: Nesta listagem, o Reino Unido passa a ser constituído por três componentes: Reino Unido [até 2020] ; Reino Unido (sem Irlanda do Norte) pós-2020 e Reino Unido (Irlanda do Norte) pós-2020. Estas componentes são calculadas igualmente como média do quinquénio, embora a primeira corresponda apenas a 2018-2020 e as duas últimas a 2021-2022.
A10: 7 | B10: Alemanha | C10: 259973.7024 | D10: 0.03678907796 | F10: 7 | G10: Bélgica | H10: 255604.7054 | I10: 0.02505772058 | K10: 7 | L10: Bélgica | M10: 422129.3612 | N10: 0.02444683909 | O10: -89080.0496
A11: 8 | B11: Reino Unido | C11: 202835.6198 | D11: 0.02870342408 | F11: 8 | G11: Estados Unidos | H11: 216780.4662 | I11: 0.02125166022 | K11: 8 | L11: Estados Unidos | M11: 400397.4384 | N11: 0.02318827508 | O11: -33163.494
A12: 9 | B12: Estados Unidos | C12: 183616.9722 | D12: 0.02598377852 | F12: 9 | G12: Ucrânia | H12: 191923.2566 | I12: 0.01881483101 | K12: 9 | L12: Polónia | M12: 317728.7036 | N12: 0.01840066862 | O12: -49129.98
A13: 10 | B13: Israel | C13: 169490.6434 | D13: 0.0239847509 | F13: 10 | G13: Polónia | H13: 183429.3418 | I13: 0.01798214624 | K13: 10 | L13: Reino Unido | M13: 313115.4092 | N13: 0.01813349823 | O13: 92555.8304
A14: 11 | B14: Bélgica | C14: 166524.6558 | D14: 0.02356503172 | F14: 11 | G14: Roménia | H14: 135147.0966 | I14: 0.01324888827 | K14: 11 | L14: Angola | M14: 277936.943 | N14: 0.0160962026 | O14: 263694.3382
A15: 12 | B15: Reino Unido (sem Irlanda do Norte) pós 2020 | C15: 153212.605 | D15: 0.02168123321 | F15: 12 | G15: África do Sul | H15: 112523.4846 | I15: 0.01103102555 | K15: 12 | L15: Reino Unido (sem Irlanda do Norte) pós 2020 | M15: 202799.7018 | N15: 0.01174476862 | O15: 103625.5082
A16: 13 | B16: Polónia | C16: 134299.3618 | D16: 0.01900480566 | F16: 13 | G16: Irlanda | H16: 110291.18 | I16: 0.01081218582 | K16: 13 | L16: Ucrânia | M16: 198678.4348 | N16: 0.01150609309 | O16: -185168.0784
A17: 14 | B17: Suíça | C17: 92002.5032 | D17: 0.01301934477 | F17: 14 | G17: Reino Unido | H17: 110279.7894 | I17: 0.01081106916 | K17: 14 | L17: Canadá | M17: 175349.2144 | N17: 0.01015502456 | O17: -30879.5124
A18: 15 | B18: Cabo Verde | C18: 85448.1822 | D18: 0.01209183778 | F18: 15 | G18: Canadá | H18: 103114.3634 | I18: 0.01010862027 | K18: 15 | L18: Israel | M18: 174656.3316 | N18: 0.01011489753 | O18: 164324.9552
A19: 16 | B19: Canadá | C19: 72234.851 | D19: 0.01022200915 | F19: 16 | G19: Argentina | H19: 72786.9924 | I19: 0.007135534201 | K19: 16 | L19: Roménia | M19: 150956.573 | N19: 0.008742369966 | O19: -119337.6202
A20: 17 | B20: China, República Popular da | C20: 72213.8082 | D20: 0.01021903137 | F20: 17 | G20: Dinamarca | H20: 70235.3942 | I20: 0.00688539313 | K20: 17 | L20: Irlanda | M20: 137073.4678 | N20: 0.007938355676 | O20: -83508.8922
A21: 18 | B21: Japão | C21: 54930.0814 | D21: 0.007773197936 | F21: 18 | G21: Costa Rica | H21: 69966.4528 | I21: 0.006859027972 | K21: 18 | L21: África do Sul | M21: 134358.9168 | N21: 0.007781147489 | O21: -90688.0524
A22: 19 | B22: Suécia | C22: 50847.6768 | D22: 0.007195493731 | F22: 19 | G22: Reino Unido (sem Irlanda do Norte) pós 2020 | H22: 49587.0968 | I22: 0.004861176612 | K22: 19 | L22: Dinamarca | M22: 117607.5464 | N22: 0.006811022939 | O22: -22863.242
A23: 20 | B23: Rússia, Federação da | C23: 48396.534 | D23: 0.006848630634 | F23: 20 | G23: Bulgária | H23: 45267.761 | I23: 0.004437738752 | K23: 20 | L23: China, República Popular da | M23: 117263.0136 | N23: 0.006791069961 | O23: 27164.6028
A24: 21 | B24: Dinamarca | C24: 47372.1522 | D24: 0.00670366958 | F24: 21 | G24: China, República Popular da | H24: 45049.2054 | I24: 0.00441631307 | K24: 21 | L24: Suíça | M24: 94989.5902 | N24: 0.005501145952 | O24: 89015.4162
A25: 22 | B25: Luxemburgo | C25: 45467.1782 | D25: 0.006434095249 | F25: 22 | G25: Cuba | H25: 35800.4636 | I25: 0.003509630279 | K25: 22 | L25: Cabo Verde | M25: 85574.9204 | N25: 0.004955912811 | O25: 85321.444
A26: 23 | B26: Marrocos | C26: 40790.7978 | D26: 0.005772337073 | F26: 23 | G26: Grécia | H26: 30695.8376 | I26: 0.003009207989 | K26: 23 | L26: Argentina | M26: 73024.3208 | N26: 0.004229068111 | O26: -72549.664
A27: 24 | B27: Guiné-Bissau | C27: 30105.257 | D27: 0.004260218001 | F27: 24 | G27: Vietname | H27: 28842.503 | I27: 0.00282751986 | K27: 24 | L27: Costa Rica | M27: 71166.176 | N27: 0.004121457101 | O27: -68766.7296
A28: 25 | B28: Irlanda | C28: 26782.2878 | D28: 0.003789982082 | F28: 25 | G28: Colômbia | H28: 28226.344 | I28: 0.002767115886 | K28: 25 | L28: Japão | M28: 68521.65 | N28: 0.003968304282 | O28: 41338.5128
A29: 26 | B29: São Tomé e Príncipe | C29: 25260.8806 | D29: 0.003574686582 | F29: 26 | G29: Guiana | H29: 28025.2642 | I29: 0.002747403411 | K29: 26 | L29: Suécia | M29: 64561.625 | N29: 0.003738966778 | O29: 37133.7286
A30: 27 | B30: Arábia Saudita | C30: 25200.9646 | D30: 0.003566207823 | F30: 27 | G30: Chile | H30: 24582.6414 | I30: 0.00240991244 | K30: 27 | L30: Rússia, Federação da | M30: 60555.2322 | N30: 0.003506943969 | O30: 36237.8358
A31: 28 | B31: Moçambique | C31: 25040.048 | D31: 0.003543436392 | F31: 28 | G31: Áustria | H31: 23768.2002 | I31: 0.002330070248 | K31: 28 | L31: Luxemburgo | M31: 53710.6 | N31: 0.003110549789 | O31: 37223.7564
A32: 29 | B32: Grécia | C32: 22268.7026 | D32: 0.003151261179 | F32: 29 | G32: Uruguai | H32: 22544.114 | I32: 0.002210069288 | K32: 29 | L32: Bulgária | M32: 53424.102 | N32: 0.003093957789 | O32: -37111.42
A33: 30 | B33: África do Sul | C33: 21835.4322 | D33: 0.003089948753 | F33: 30 | G33: Checa, República | H33: 22169.9018 | I33: 0.002173384108 | K33: 30 | L33: Grécia | M33: 52964.5402 | N33: 0.003067343119 | O33: -8427.135
A34: 31 | B34: Finlândia | C34: 19885.3292 | D34: 0.002813988182 | F34: 31 | G34: Costa do Marfim | H34: 21706.6942 | I34: 0.002127974433 | K34: 31 | L34: Marrocos | M34: 50677.0038 | N34: 0.002934864691 | O34: 30904.5918
A35: 32 | B35: Checa, República | C35: 18233.8742 | D35: 0.002580289519 | F35: 32 | G35: Índia | H35: 20821.1078 | I35: 0.002041157656 | K35: 32 | L35: Checa, República | M35: 40403.776 | N35: 0.002339909756 | O35: -3936.0276
A36: 33 | B36: Jordânia | C36: 17519.4376 | D36: 0.002479189048 | F36: 33 | G36: Paraguai | H36: 18543.3936 | I36: 0.001817866282 | K36: 33 | L36: Cuba | M36: 38670.0018 | N36: 0.002239501438 | O36: -32930.9254
A37: 34 | B37: Noruega | C37: 16995.9884 | D37: 0.00240511535 | F37: 34 | G37: Turquia | H37: 17986.1158 | I37: 0.001763234614 | K37: 34 | L37: Áustria | M37: 38055.3092 | N37: 0.002203902656 | O37: -9481.0912
A38: 35 | B38: Roménia | C38: 15809.4764 | D38: 0.002237211127 | F38: 35 | G38: Hungria | H38: 16799.7058 | I38: 0.001646927169 | K38: 35 | L38: Moçambique | M38: 35153.372 | N38: 0.002035842345 | O38: 14926.724
A39: 36 | B39: Austrália | C39: 14444.1886 | D39: 0.002044008204 | F39: 36 | G39: Uganda | H39: 16711.9112 | I39: 0.001638320392 | K39: 36 | L39: Colômbia | M39: 34587.7746 | N39: 0.002003086821 | O39: -21864.9134
A40: 37 | B40: Áustria | C40: 14287.109 | D40: 0.002021779749 | F40: 37 | G40: Suécia | H40: 13713.9482 | I40: 0.001344420798 | K40: 37 | L40: Vietname | M40: 30876.7168 | N40: 0.001788167791 | O40: -26808.2892
A41: 38 | B41: Coreia, República da | C41: 13714.1396 | D41: 0.00194069841 | F41: 38 | G41: Japão | H41: 13591.5686 | I41: 0.001332423547 | K41: 38 | L41: Guiné-Bissau | M41: 30466.7032 | N41: 0.001764422613 | O41: 29743.8108
A42: 39 | B42: Iraque | C42: 12402.8826 | D42: 0.001755141426 | F42: 39 | G42: Suazilândia | H42: 13238.5734 | I42: 0.001297818335 | K42: 39 | L42: Chile | M42: 30212.416 | N42: 0.001749696042 | O42: -18952.8668
A43: 40 | B43: Emirados Árabes Unidos | C43: 11850.4352 | D43: 0.001676964171 | F43: 40 | G43: Indonésia | H43: 13223.1014 | I43: 0.001296301567 | K43: 40 | L43: Guiana | M43: 28043.5076 | N43: 0.001624087734 | O43: -28007.0208
A44: 41 | B44: Argélia | C44: 11256.5744 | D44: 0.001592926474 | F44: 41 | G44: México | H44: 13063.4442 | I44: 0.001280649877 | K44: 41 | L44: Hungria | M44: 27985.9222 | N44: 0.001620752782 | O44: -5613.4894
A45: 42 | B45: Macau | C45: 11226.3432 | D45: 0.001588648434 | F45: 42 | G45: Austrália | H45: 12929.8552 | I45: 0.001267553734 | K45: 42 | L45: Turquia | M45: 27952.4328 | N45: 0.001618813306 | O45: -8019.7988
A46: 43 | B46: Hungria | C46: 11186.2164 | D46: 0.00158297006 | F46: 43 | G46: Rússia, Federação da | H46: 12158.6982 | I46: 0.001191954826 | K46: 43 | L46: Austrália | M46: 27374.0438 | N46: 0.00158531698 | O46: 1514.3334
A47: 44 | B47: Nigéria | C47: 10950.0114 | D47: 0.001549544509 | F47: 44 | G47: Moldava, República de | H47: 11903.4008 | I47: 0.001166927231 | K47: 44 | L47: Finlândia | M47: 27340.3908 | N47: 0.001583368029 | O47: 12430.2676
A48: 45 | B48: Turquia | C48: 9966.317 | D48: 0.00141034116 | F48: 45 | G48: Peru | H48: 11309.1784 | I48: 0.00110867377 | K48: 45 | L48: Costa do Marfim | M48: 27312.2444 | N48: 0.001581737982 | O48: -16101.144
A49: 46 | B49: Território Palestiniano Ocupado | C49: 9369.3582 | D49: 0.001325865063 | F49: 46 | G49: Lituânia | H49: 10559.0186 | I49: 0.001035133282 | K49: 46 | L49: São Tomé e Príncipe | M49: 26314.3518 | N49: 0.001523946883 | O49: 24207.4094
A50: 47 | B50: Eslováquia | C50: 9086.8 | D50: 0.001285880035 | F50: 47 | G50: Paquistão | H50: 10304.0036 | I50: 0.001010133372 | K50: 47 | L50: Arábia Saudita | M50: 25224.07 | N50: 0.001460805234 | O50: 25177.8592
A51: 48 | B51: Senegal | C51: 8493.732 | D51: 0.001201954528 | F51: 48 | G51: Tailândia | H51: 10199.4412 | I51: 0.0009998827965 | K51: 48 | L51: Uruguai | M51: 24295.7548 | N51: 0.001407043581 | O51: -20792.4732
A52: 49 | B52: Bulgária | C52: 8156.341 | D52: 0.001154210069 | F52: 49 | G52: Moçambique | H52: 10113.324 | I52: 0.0009914404608 | K52: 49 | L52: Índia | M52: 23835.9726 | N52: 0.001380416148 | O52: -17806.243
A53: 50 | B53: Líbia, Jamahira Árabe da | C53: 7994.648 | D53: 0.001131328768 | F53: 50 | G53: Marrocos | H53: 9886.206 | I53: 0.0009691753801 | K53: 50 | L53: Paraguai | M53: 19188.0202 | N53: 0.001111238604 | O53: -17898.767
A54: 51 | B54: Gibraltar | C54: 7555.2434 | D54: 0.001069148286 | F54: 51 | G54: Egito | H54: 9790.4264 | I54: 0.0009597858094 | K54: 51 | L54: México | M54: 18719.0294 | N54: 0.001084077872 | O54: -7407.859
A55: 52 | B55: Kuwait | C55: 7349.7522 | D55: 0.001040069069 | F55: 52 | G55: Letónia | H55: 8947.386 | I55: 0.0008771399491 | K55: 52 | L55: Noruega | M55: 18005.9244 | N55: 0.001042779718 | O55: 15986.0524
A56: 53 | B56: Ucrânia | C56: 6755.1782 | D56: 0.0009559304465 | F56: 53 | G56: Sérvia | H56: 8809.7352 | I56: 0.000863645615 | K56: 53 | L56: Jordânia | M56: 17548.9282 | N56: 0.001016313631 | O56: 17489.947
A57: 54 | B57: Colômbia | C57: 6361.4306 | D57: 0.0009002109218 | F57: 54 | G57: Luxemburgo | H57: 8243.4218 | I57: 0.0008081281592 | K57: 54 | L57: Uganda | M57: 17197.4672 | N57: 0.0009959594191 | O57: -16226.3552
A58: 55 | B58: Letónia | C58: 5852.2048 | D58: 0.0008281499884 | F58: 55 | G58: Equador | H58: 8207.9326 | I58: 0.0008046490431 | K58: 55 | L58: Lituânia | M58: 15596.0102 | N58: 0.0009032140069 | O58: -5522.027
A59: 56 | B59: HongKong | C59: 5831.0346 | D59: 0.0008251541771 | F59: 56 | G59: Nova Zelânda | H59: 7880.6232 | I59: 0.0007725618893 | K59: 56 | L59: Suazilândia | M59: 15229.1516 | N59: 0.0008819680715 | O59: -11247.9952
A60: 57 | B60: Maurícias | C60: 5663.2906 | D60: 0.0008014165951 | F60: 57 | G60: Finlândia | H60: 7455.0616 | I60: 0.0007308427682 | K60: 57 | L60: Letónia | M60: 14799.5908 | N60: 0.0008570908544 | O60: -3095.1812
A61: 58 | B61: México | C61: 5655.5852 | D61: 0.000800326198 | F61: 58 | G61: Malásia | H61: 7402.4108 | I61: 0.0007256812473 | K61: 58 | L61: Coreia, República da | M61: 14651.7386 | N61: 0.0008485282684 | O61: 12776.5406
A62: 59 | B62: Chile | C62: 5629.7746 | D62: 0.0007966737202 | F62: 59 | G62: Angola | H62: 7121.3024 | I62: 0.0006981233206 | K62: 59 | L62: Indonésia | M62: 14360.499 | N62: 0.0008316616671 | O62: -12085.7038
A63: 60 | B63: Costa do Marfim | C63: 5605.5502 | D63: 0.0007932457068 | F63: 60 | G63: Camarões | H63: 6330.7516 | I63: 0.0006206231782 | K63: 60 | L63: Tailândia | M63: 13287.7642 | N63: 0.0007695362206 | O63: -7111.1182
A64: 61 | B64: Andorra | C64: 5268.3636 | D64: 0.0007455301725 | F64: 61 | G64: Honduras | H64: 6193.611 | I64: 0.0006071788607 | K64: 61 | L64: Peru | M64: 13096.3328 | N64: 0.0007584498261 | O64: -9522.024
A65: 62 | B65: Lituânia | C65: 5036.9916 | D65: 0.0007127885434 | F65: 62 | G65: Etiópia | H65: 5332.6708 | I65: 0.0005227782275 | K65: 62 | L65: Eslováquia | M65: 12662.696 | N65: 0.000733336555 | O65: 5510.904
A66: 63 | B66: Estónia | C66: 4881.8086 | D66: 0.0006908284781 | F66: 63 | G66: Israel | H66: 5165.6882 | I66: 0.0005064084063 | K66: 63 | L66: Iraque | M66: 12415.1466 | N66: 0.0007190001906 | O66: 12390.6186
A67: 64 | B67: Malta | C67: 4732.9478 | D67: 0.0006697630721 | F67: 64 | G67: Belize | H67: 5153.7922 | I67: 0.0005052422046 | K67: 64 | L67: Emirados Árabes Unidos | M67: 12305.7766 | N67: 0.0007126662299 | O67: 11395.0938
A68: 65 | B68: Síria, República Árabe da | C68: 4399.3294 | D68: 0.0006225524765 | F68: 65 | G68: Camboja | H68: 4964.372 | I68: 0.000486672756 | K68: 65 | L68: Moldava, República de | M68: 12104.7888 | N68: 0.0007010263942 | O68: -11702.0128
A69: 66 | B69: Chipre | C69: 4087.4456 | D69: 0.0005784175609 | F69: 66 | G69: Zimbabwe | H69: 4708.9854 | I69: 0.000461636417 | K69: 66 | L69: Argélia | M69: 11803.7068 | N69: 0.0006835897886 | O69: 10709.442
A70: 67 | B70: Omã | C70: 3805.6814 | D70: 0.0005385448929 | F70: 67 | G70: Guatemala | H70: 4634.8976 | I70: 0.0004543733606 | K70: 67 | L70: Sérvia | M70: 11344.2464 | N70: 0.0006569809916 | O70: -6275.224
A71: 68 | B71: Eslovénia | C71: 3324.2138 | D71: 0.0004704120436 | F71: 68 | G71: Suriname | H71: 4613.819 | I71: 0.0004523069601 | K71: 68 | L71: Egito | M71: 11328.9988 | N71: 0.0006560979551 | O71: -8251.854
A72: 69 | B72: Mali | C72: 3288.1148 | D72: 0.0004653036465 | F72: 69 | G72: Macedónia, Antiga República jugoslava da | H72: 4601.6794 | I72: 0.0004511168776 | K72: 69 | L72: Macau | M72: 11242.8404 | N72: 0.0006511082512 | O72: 11209.846
A73: 70 | B73: Tailândia | C73: 3088.323 | D73: 0.0004370309557 | F73: 70 | G73: Eslovénia | H73: 4575.887 | I73: 0.0004485883688 | K73: 70 | L73: Nigéria | M73: 11147.6308 | N73: 0.0006455943638 | O73: 10752.392
A74: 71 | B74: Índia | C74: 3014.8648 | D74: 0.0004266358295 | F74: 71 | G74: Tanzânia, República Unida da | H74: 4539.6584 | I74: 0.0004450367669 | K74: 71 | L74: Paquistão | M74: 10570.8542 | N74: 0.0006121914167 | O74: -10037.153
A75: 72 | B75: Singapura | C75: 2956.254 | D75: 0.0004183417702 | F75: 72 | G75: Filipinas | H75: 4493.245 | I75: 0.0004404867176 | K75: 72 | L75: Nova Zelânda | M75: 10271.0628 | N75: 0.0005948295537 | O75: -5490.1836
A76: 73 | B76: Cuba | C76: 2869.5382 | D76: 0.0004060705509 | F76: 73 | G76: Tunísia | H76: 4126.4674 | I76: 0.000404530374 | K76: 73 | L76: Território Palestiniano Ocupado | M76: 9369.8434 | N76: 0.0005426371035 | O76: 9368.873
A77: 74 | B77: Taiwan | C77: 2744.627 | D77: 0.0003883942712 | F77: 74 | G77: Estónia | H77: 4043.5748 | I77: 0.0003964041558 | K77: 74 | L77: Senegal | M77: 9057.0902 | N77: 0.000524524582 | O77: 7930.3738
A78: 75 | B78: Gana | C78: 2742.0304 | D78: 0.0003880268243 | F78: 75 | G78: Reino Unido (Irlanda do Norte) pós-2020 | H78: 4000.7948 | I78: 0.0003922103 | K78: 75 | L78: Equador | M78: 9035.3682 | N78: 0.0005232665926 | O78: -7380.497
A79: 76 | B79: Sérvia | C79: 2534.5112 | D79: 0.0003586606232 | F79: 76 | G79: Mali | H79: 3760.9918 | I79: 0.0003687016695 | K79: 76 | L79: Estónia | M79: 8925.3834 | N79: 0.0005168970269 | O79: 838.2338
A80: 77 | B80: Líbano | C80: 2519.7508 | D80: 0.0003565718677 | F80: 77 | G80: Eslováquia | H80: 3575.896 | I80: 0.0003505561552 | K80: 77 | L80: Malásia | M80: 8903.6532 | N80: 0.0005156385627 | O80: -5901.1684
A81: 78 | B81: Timor-Leste | C81: 2471.9198 | D81: 0.0003498032662 | F81: 78 | G81: Myanmar | H81: 3336.325 | I81: 0.0003270702684 | K81: 78 | L81: Camarões | M81: 8611.8814 | N81: 0.00049874114 | O81: -4049.6218
A82: 79 | B82: Belarus | C82: 2455.9286 | D82: 0.0003475403392 | F82: 79 | G82: Quénia | H82: 3256.0222 | I82: 0.0003191979363 | K82: 79 | L82: Kuwait | M82: 8533.2046 | N82: 0.000494184719 | O82: 6166.2998
A83: 80 | B83: Nova Zelânda | C83: 2390.4396 | D83: 0.0003382729406 | F83: 80 | G83: Malavi | H83: 3254.1762 | I83: 0.0003190169672 | K83: 80 | L83: Líbia, Jamahira Árabe da | M83: 8000.598 | N83: 0.0004633397955 | O83: 7988.698
A84: 81 | B84: Filipinas | C84: 2342.9576 | D84: 0.0003315537264 | F84: 81 | G84: Nicarágua | H84: 3164.5064 | I84: 0.0003102263591 | K84: 81 | L84: Eslovénia | M84: 7900.1008 | N84: 0.0004575196866 | O84: -1251.6732
A85: 82 | B85: Camarões | C85: 2281.1298 | D85: 0.000322804427 | F85: 82 | G85: Chipre | H85: 3134.9022 | I85: 0.0003073241678 | K85: 82 | L85: Gibraltar | M85: 7555.2434 | N85: 0.0004375479098 | O85: 7555.2434
A86: 83 | B86: Guiné | C86: 2270.2954 | D86: 0.0003212712428 | F86: 83 | G86: Sri Lanca | H86: 3073.8124 | I86: 0.0003013353456 | K86: 83 | L86: Chipre | M86: 7222.3478 | N86: 0.0004182688785 | O86: 952.5434
A87: 84 | B87: Irão, República Islâmica do | C87: 2234.7082 | D87: 0.0003162352708 | F87: 84 | G87: Suíça | H87: 2987.087 | I87: 0.0002928333861 | K87: 84 | L87: Maurícias | M87: 7215.0708 | N87: 0.0004178474446 | O87: 4111.5104
A88: 85 | B88: Congo | C88: 2184.5722 | D88: 0.000309140487 | F88: 85 | G88: Taiwan | H88: 2718.5488 | I88: 0.000266507755 | K88: 85 | L88: Mali | M88: 7049.1066 | N88: 0.0004082359357 | O88: -472.877
A89: 86 | B89: Seychelles | C89: 2103.9052 | D89: 0.000297725238 | F89: 86 | G89: Dominicana, República | H89: 2224.7352 | I89: 0.000218097679 | K89: 86 | L89: HongKong | M89: 7034.5032 | N89: 0.0004073902069 | O89: 4627.566
A90: 87 | B90: Gabão | C90: 2079.6516 | D90: 0.0002942930925 | F90: 87 | G90: Serra Leoa | H90: 1997.841 | I90: 0.0001958545382 | K90: 87 | L90: Honduras | M90: 7007.3132 | N90: 0.0004058155485 | O90: -5379.9088
A91: 88 | B91: Venezuela | C91: 2058.7692 | D91: 0.000291338008 | F91: 88 | G91: Benim | H91: 1817.538 | I91: 0.0001781788769 | K91: 88 | L91: Filipinas | M91: 6836.2026 | N91: 0.0003959059954 | O91: -2150.2874
A92: 89 | B92: Vietname | C92: 2034.2138 | D92: 0.0002878631545 | F92: 89 | G92: Croácia | H92: 1813.5626 | I92: 0.0001777891561 | K92: 89 | L92: Etiópia | M92: 6077.0796 | N92: 0.0003519427947 | O92: -4588.262
A93: 90 | B93: Suazilândia | C93: 1990.5782 | D93: 0.0002816882473 | F93: 90 | G93: Burquina Faso | H93: 1725.737 | I93: 0.0001691793407 | K93: 90 | L93: Malta | M93: 5803.922 | N93: 0.0003361233789 | O93: 3661.9736
A94: 91 | B94: Sudão | C94: 1865.0268 | D94: 0.0002639213725 | F94: 91 | G94: Gana | H94: 1658.4144 | I94: 0.0001625794978 | K94: 91 | L94: Taiwan | M94: 5463.1758 | N94: 0.0003163896946 | O94: 26.0782
A95: 92 | B95: Burquina Faso | C95: 1848.8938 | D95: 0.0002616383793 | F95: 92 | G95: Laos, República Democrática Popular do | H95: 1570.3752 | I95: 0.0001539487425 | K95: 92 | L95: Camboja | M95: 5365.8038 | N95: 0.0003107505758 | O95: -4562.9402
A96: 93 | B96: Guiné Equatorial | C96: 1818.2522 | D96: 0.0002573022629 | F96: 93 | G96: Maurícias | H96: 1551.7802 | I96: 0.000152125817 | K96: 93 | L96: Síria, República Árabe da | M96: 5349.1634 | N96: 0.0003097868779 | O96: 3449.4954
A97: 94 | B97: Peru | C97: 1787.1544 | D97: 0.0002529015894 | F97: 94 | G97: Madagáscar | H97: 1535.4896 | I97: 0.0001505287991 | K97: 94 | L97: Reino Unido (Irlanda do Norte) pós-2020 | M97: 5342.7154 | N97: 0.000309413454 | O97: -2658.8742
A98: 95 | B98: Croácia | C98: 1771.985 | D98: 0.000250754956 | F98: 95 | G98: Panamá | H98: 1513.6692 | I98: 0.0001483896777 | K98: 95 | L98: Andorra | M98: 5273.09 | N98: 0.0003053812281 | O98: 5263.6372
A99: 96 | B99: Uruguai | C99: 1751.6408 | D99: 0.0002478760327 | F99: 96 | G99: Congo, República Democrática do | H99: 1226.6902 | I99: 0.0001202562379 | K99: 96 | L99: Belize | M99: 5155.9728 | N99: 0.0002985986026 | O99: -5151.6116
A100: 97 | B100: Dominicana, República | C100: 1708.9932 | D100: 0.0002418409381 | F100: 97 | G100: HongKong | H100: 1203.4686 | I100: 0.0001179797526 | K100: 97 | L100: Guatemala | M100: 5126.7604 | N100: 0.0002969068207 | O100: -4143.0348
A101: 98 | B101: Benim | C101: 1572.4166 | D101: 0.0002225138787 | F101: 98 | G101: Kuwait | H101: 1183.4524 | I101: 0.0001160175025 | K101: 98 | L101: Tanzânia, República Unida da | M101: 4910.6254 | N101: 0.000284389763 | O101: -4168.6914
A102: 99 | B102: Bangladesh | C102: 1558.9346 | D102: 0.0002206060305 | F102: 99 | G102: Togo | H102: 1123.3014 | I102: 0.0001101207138 | K102: 99 | L102: Macedónia, Antiga República jugoslava da | M102: 4874.3908 | N102: 0.0002822913033 | O102: -4328.968
A103: 100 | B103: Egito | C103: 1538.5724 | D103: 0.00021772456 | F103: 100 | G103: Malta | H103: 1070.9742 | I103: 0.0001049909164 | K103: 100 | L103: Tunísia | M103: 4852.0784 | N103: 0.000280999122 | O103: -3400.8564
A104: 101 | B104: Catar | C104: 1515.2294 | D104: 0.0002144212742 | F104: 101 | G104: Singapura | H104: 1064.6932 | I104: 0.0001043751705 | K104: 101 | L104: Zimbabwe | M104: 4772.268 | N104: 0.0002763770507 | O104: -4645.7028
A105: 102 | B105: Malásia | C105: 1501.2424 | D105: 0.0002124419631 | F105: 102 | G105: São Tomé e Príncipe | H105: 1053.4712 | I105: 0.0001032750431 | K105: 102 | L105: Suriname | M105: 4769.9158 | N105: 0.0002762408274 | O105: -4457.7222
A106: 103 | B106: Geórgia | C106: 1344.215 | D106: 0.0001902208953 | F106: 103 | G106: Noruega | H106: 1009.936 | I106: 9.900715266e-05 | K106: 103 | L106: Gana | M106: 4400.4448 | N106: 0.0002548435997 | O106: 1083.616
A107: 104 | B107: Reino Unido (Irlanda do Norte) pós-2020 | C107: 1341.9206 | D107: 0.000189896213 | F107: 104 | G107: Síria, República Árabe da | H107: 949.834 | I107: 9.311516754e-05 | K107: 104 | L107: Omã | M107: 4285.638 | N107: 0.0002481947768 | O107: 3325.7248
A108: 105 | B108: Albânia | C108: 1266.1722 | D108: 0.0001791769988 | F108: 105 | G108: Coreia, República da | H108: 937.599 | I108: 9.191573261e-05 | K108: 105 | L108: Singapura | M108: 4020.9472 | N108: 0.0002328657 | O108: 1891.5608
A109: 106 | B109: Costa Rica | C109: 1199.7232 | D109: 0.0001697737499 | F109: 106 | G109: El Salvador | H109: 727.8254 | I109: 7.135097718e-05 | K109: 106 | L109: Dominicana, República | M109: 3933.7284 | N109: 0.0002278145849 | O109: -515.742
A110: 107 | B110: Indonésia | C110: 1137.3976 | D110: 0.0001609540065 | F110: 107 | G110: Turquemenistão | H110: 720.6558 | I110: 7.06481191e-05 | K110: 107 | L110: Myanmar | M110: 3786.5344 | N110: 0.0002192901174 | O110: -2886.1156
A111: 108 | B111: Islândia | C111: 1133.5366 | D111: 0.0001604076334 | F111: 108 | G111: Chade | H111: 675.9004 | I111: 6.626060868e-05 | K111: 108 | L111: Quénia | M111: 3706.4946 | N111: 0.0002146547608 | O111: -2805.5498
A112: 109 | B112: Congo, República Democrática do | C112: 1102.9464 | D112: 0.0001560787907 | F112: 109 | G112: Timor-Leste | H112: 614.232 | I112: 6.021506451e-05 | K112: 109 | L112: Croácia | M112: 3585.5476 | N112: 0.0002076503396 | O112: -41.5776
A113: 110 | B113: Togo | C113: 886.836 | D113: 0.0001254968423 | F113: 110 | G113: Senegal | H113: 563.3582 | I113: 5.52277484e-05 | K113: 110 | L113: Nicarágua | M113: 3581.558 | N113: 0.0002074192893 | O113: -2747.4548
A114: 111 | B114: Panamá | C114: 853.2114 | D114: 0.0001207385994 | F114: 111 | G114: Argélia | H114: 547.1324 | I114: 5.3637083e-05 | K114: 111 | L114: Burquina Faso | M114: 3574.6308 | N114: 0.0002070181134 | O114: 123.1568
A115: 112 | B115: Equador | C115: 827.4356 | D115: 0.0001170910462 | F115: 112 | G115: Líbano | H115: 532.1362 | I115: 5.216695909e-05 | K115: 112 | L115: Sri Lanca | M115: 3466.8512 | N115: 0.0002007762577 | O115: -2680.7736
A116: 113 | B116: Ruanda | C116: 825.9096 | D116: 0.0001168751008 | F116: 113 | G116: Omã | H116: 479.9566 | I116: 4.705163136e-05 | K116: 113 | L116: Benim | M116: 3389.9546 | N116: 0.0001963229338 | O116: -245.1214
A117: 114 | B117: Honduras | C117: 813.7022 | D117: 0.0001151476222 | F117: 114 | G117: Emirados Árabes Unidos | H117: 455.3414 | I117: 4.46385271e-05 | K117: 114 | L117: Malavi | M117: 3260.7796 | N117: 0.0001888420032 | O117: -3247.5728
A118: 115 | B118: Bermudas | C118: 793.1712 | D118: 0.0001122422647 | F118: 115 | G118: Belarus | H118: 370.9342 | I118: 3.636382797e-05 | K118: 115 | L118: Timor-Leste | M118: 3086.1518 | N118: 0.000178728758 | O118: 1857.6878
A119: 116 | B119: Etiópia | C119: 744.4088 | D119: 0.0001053418601 | F119: 116 | G119: Guiné-Bissau | H119: 361.4462 | I119: 3.543368996e-05 | K119: 116 | L119: Líbano | M119: 3051.887 | N119: 0.0001767443757 | O119: 1987.6146
A120: 117 | B120: Tunísia | C120: 725.611 | D120: 0.000102681769 | F120: 117 | G120: Usbequistão | H120: 308.2694 | I120: 3.022060363e-05 | K120: 117 | L120: Belarus | M120: 2826.8628 | N120: 0.0001637125165 | O120: 2084.9944
A121: 118 | B121: Burundi | C121: 677.0954 | D121: 9.581628921e-05 | F121: 118 | G121: Guiné | H121: 302.1342 | I121: 2.961915098e-05 | K121: 118 | L121: Guiné | M121: 2572.4296 | N121: 0.0001489774895 | O121: 1968.1612
A122: 119 | B122: Iémen | C122: 670.7886 | D122: 9.492380911e-05 | F122: 119 | G122: Geórgia | H122: 294.5626 | I122: 2.887688359e-05 | K122: 119 | L122: Serra Leoa | M122: 2499.2974 | N122: 0.0001447421738 | O122: -1496.3846
A123: 120 | B123: Paraguai | C123: 644.6266 | D123: 9.122160443e-05 | F123: 120 | G123: Bolívia | H123: 281.6492 | I123: 2.761094301e-05 | K123: 120 | L123: Irão, República Islâmica do | M123: 2440.1832 | N123: 0.0001413186845 | O123: 2029.2332
A124: 121 | B124: Namíbia | C124: 633.8792 | D124: 8.970073161e-05 | F124: 121 | G124: Bangladesh | H124: 280.7044 | I124: 2.751832134e-05 | K124: 121 | L124: Congo | M124: 2383.877 | N124: 0.0001380578154 | O124: 1985.2674
A125: 122 | B125: Azerbaijão | C125: 594.9756 | D125: 8.419545335e-05 | F125: 122 | G125: Irão, República Islâmica do | H125: 205.475 | I125: 2.014335036e-05 | K125: 122 | L125: Panamá | M125: 2366.8806 | N125: 0.0001370735004 | O125: -660.4578
A126: 123 | B126: Arménia | C126: 559.6906 | D126: 7.920224594e-05 | F126: 123 | G126: Congo | H126: 199.3048 | I126: 1.953846656e-05 | K126: 123 | L126: Congo, República Democrática do | M126: 2329.6366 | N126: 0.0001349165832 | O126: -123.7438
A127: 124 | B127: Cazaquistão | C127: 531.8816 | D127: 7.526697303e-05 | F127: 124 | G127: Zâmbia | H127: 199.3012 | I127: 1.953811364e-05 | K127: 124 | L127: Venezuela | M127: 2213.7304 | N127: 0.0001282040906 | O127: 1903.808
A128: 125 | B128: Aruba | C128: 522.985 | D128: 7.400800834e-05 | F128: 125 | G128: Nigéria | H128: 197.6194 | I128: 1.937324158e-05 | K128: 125 | L128: Seychelles | M128: 2103.9052 | N128: 0.0001218437678 | O128: 2103.9052
A129: 126 | B129: Serra Leoa | C129: 501.4564 | D129: 7.096147965e-05 | F129: 126 | G129: Islândia | H129: 194.2478 | I129: 1.904271319e-05 | K129: 126 | L129: Gabão | M129: 2079.9016 | N129: 0.0001204536439 | O129: 2079.4016
A130: 127 | B130: Guatemala | C130: 491.8628 | D130: 6.960388196e-05 | F130: 127 | G130: Venezuela | H130: 154.9612 | I130: 1.519132617e-05 | K130: 127 | L130: Togo | M130: 2010.1374 | N130: 0.0001164133796 | O130: -236.4654
A131: 128 | B131: Uganda | C131: 485.556 | D131: 6.871140185e-05 | F131: 128 | G131: Cabo Verde | H131: 126.7382 | I131: 1.242453811e-05 | K131: 128 | L131: Sudão | M131: 1881.5594 | N131: 0.0001089670232 | O131: 1848.4942
A132: 129 | B132: São Bartolomeu | C132: 472.0258 | D132: 6.679673288e-05 | F132: 129 | G132: Azerbaijão | H132: 124.8946 | I132: 1.224380429e-05 | K132: 129 | L132: Bangladesh | M132: 1839.639 | N132: 0.000106539281 | O132: 1278.2302
A133: 130 | B133: Mauritânia | C133: 470.2498 | D133: 6.654540976e-05 | F133: 130 | G133: Albânia | H133: 104.056 | I133: 1.020093182e-05 | K133: 130 | L133: Guiné Equatorial | M133: 1818.2522 | N133: 0.0001053007041 | O133: 1818.2522
A134: 131 | B134: Barém | C134: 469.46 | D134: 6.643364455e-05 | F134: 131 | G134: Namíbia | H134: 69.6464 | I134: 6.827652205e-06 | K134: 131 | L134: Madagáscar | M134: 1665.147 | N134: 9.643390038e-05 | O134: -1405.8322
A135: 132 | B135: Gâmbia | C135: 455.249 | D135: 6.442263505e-05 | F135: 132 | G135: Tajiquistão | H135: 59.4122 | I135: 5.824361896e-06 | K135: 132 | L135: Geórgia | M135: 1638.7776 | N135: 9.490676548e-05 | O135: 1049.6524
A136: 133 | B136: Quénia | C136: 450.4724 | D136: 6.374669472e-05 | F136: 133 | G136: Iémen | H136: 45.76 | I136: 4.485994465e-06 | K136: 133 | L136: Laos, República Democrática Popular do | M136: 1584.7624 | N136: 9.177857535e-05 | O136: -1555.988
A137: 134 | B137: Myanmar | C137: 450.2094 | D137: 6.370947739e-05 | F137: 134 | G137: Libéria | H137: 38.8276 | I137: 3.806389831e-06 | K137: 134 | L137: Catar | M137: 1531.2716 | N137: 8.868075487e-05 | O137: 1499.1872
A138: 135 | B138: Kosovo | C138: 418.4652 | D138: 5.921733131e-05 | F138: 135 | G138: Aruba | H138: 38.029 | I138: 3.728100601e-06 | K138: 135 | L138: Albânia | M138: 1370.2282 | N138: 7.935422503e-05 | O138: 1162.1162
A139: 136 | B139: Nicarágua | C139: 417.0516 | D139: 5.901729169e-05 | F139: 136 | G139: São Marino | H139: 32.7702 | I139: 3.212564157e-06 | K139: 136 | L139: Islândia | M139: 1327.7844 | N139: 7.689617106e-05 | O139: 939.2888
A140: 137 | B140: Camboja | C140: 401.4318 | D140: 5.680692181e-05 | F140: 137 | G140: Botswana | H140: 29.9908 | I140: 2.94009097e-06 | K140: 137 | L140: El Salvador | M140: 1020.3732 | N140: 5.909302153e-05 | O140: -435.2776
A141: 138 | B141: Sri Lanca | C141: 393.0388 | D141: 5.561922195e-05 | F141: 138 | G141: Jordânia | H141: 29.4906 | I141: 2.891054816e-06 | K141: 138 | L141: Ruanda | M141: 826.0866 | N141: 4.784127341e-05 | O141: 825.7326
A142: 139 | B142: Bolívia | C142: 391.1324 | D142: 5.534944582e-05 | F142: 139 | G142: Bósnia-Herzegovina | H142: 27.8982 | I142: 2.734946914e-06 | K142: 139 | L142: Bermudas | M142: 793.8604 | N142: 4.59749528e-05 | O142: 792.482
A143: 140 | B143: Tanzânia, República Unida da | C143: 370.967 | D143: 5.24958246e-05 | F143: 140 | G143: Papuásia-Nova Guiné | H143: 25.837 | I143: 2.532881097e-06 | K143: 140 | L143: Turquemenistão | M143: 732.4956 | N143: 4.242112421e-05 | O143: -708.816
A144: 141 | B144: São Martinho (parte holandesa) | C144: 349.244 | D144: 4.942178622e-05 | F144: 141 | G144: Arábia Saudita | H144: 23.1054 | I144: 2.265093892e-06 | K144: 141 | L144: Azerbaijão | M144: 719.8702 | N144: 4.168994759e-05 | O144: 470.081
A145: 142 | B145: Comores | C145: 311.607 | D145: 4.409574549e-05 | F145: 142 | G145: Quirguizistão | H145: 17.4752 | I145: 1.713147956e-06 | K145: 142 | L145: Iémen | M145: 716.5486 | N145: 4.149758328e-05 | O145: 625.0286
A146: 143 | B146: Libéria | C146: 294.774 | D146: 4.171369475e-05 | F146: 143 | G146: Sudão | H146: 16.5326 | I146: 1.62074196e-06 | K146: 143 | L146: Namíbia | M146: 703.5256 | N146: 4.074338039e-05 | O146: 564.2328
A147: 144 | B147: Somália | C147: 292.8146 | D147: 4.143641856e-05 | F147: 144 | G147: Macau | H147: 16.4972 | I147: 1.617271588e-06 | K147: 144 | L147: Burundi | M147: 677.2094 | N147: 3.921932647e-05 | O147: 676.9814
A148: 145 | B148: El Salvador | C148: 292.5478 | D148: 4.139866349e-05 | F148: 145 | G148: Catar | H148: 16.0422 | I148: 1.57266653e-06 | K148: 145 | L148: Chade | M148: 675.9044 | N148: 3.914374982e-05 | O148: -675.8964
A149: 146 | B149: Jamaica | C149: 276.7996 | D149: 3.917012363e-05 | F149: 146 | G149: Arménia | H149: 15.34 | I149: 1.50382769e-06 | K149: 146 | L149: Bolívia | M149: 672.7816 | N149: 3.896289865e-05 | O149: 109.4832
A150: 147 | B150: Macedónia, Antiga República jugoslava da | C150: 272.7114 | D150: 3.859159931e-05 | F150: 147 | G150: Curaçau | H150: 12.9632 | I150: 1.270822628e-06 | K150: 147 | L150: Arménia | M150: 575.0306 | N150: 3.330183077e-05 | O150: 544.3506
A151: 148 | B151: Paquistão | C151: 266.8506 | D151: 3.776223301e-05 | F151: 148 | G151: Iraque | H151: 12.264 | I151: 1.202277887e-06 | K151: 148 | L151: Aruba | M151: 561.014 | N151: 3.249008537e-05 | O151: 484.956
A152: 149 | B152: Antígua e Barbuda | C152: 264.4064 | D152: 3.741635239e-05 | F152: 149 | G152: Jamaica | H152: 11.1226 | I152: 1.090382912e-06 | K152: 149 | L152: Cazaquistão | M152: 537.7376 | N152: 3.114207583e-05 | O152: 526.0256
A153: 150 | B153: Argentina | C153: 237.3284 | D153: 3.358452385e-05 | F153: 150 | G153: Kosovo | H153: 8.3722 | I153: 8.207526849e-07 | K153: 150 | L153: Barém | M153: 473.8044 | N153: 2.743950312e-05 | O153: 465.1156
A154: 151 | B154: Curaçau | C154: 224.0074 | D154: 3.169945893e-05 | F154: 151 | G154: Líbia, Jamahira Árabe da | H154: 5.95 | I154: 5.832969202e-07 | K154: 151 | L154: São Bartolomeu | M154: 472.3088 | N154: 2.735288822e-05 | O154: 471.7428
A155: 152 | B155: Moldava, República de | C155: 201.388 | D155: 2.849857029e-05 | F155: 152 | G155: Cazaquistão | H155: 5.856 | I155: 5.740818091e-07 | K155: 152 | L155: Mauritânia | M155: 471.8238 | N155: 2.732480035e-05 | O155: 468.6758
A156: 153 | B156: Haiti | C156: 195.7344 | D156: 2.769852502e-05 | F156: 153 | G156: Andorra | H156: 4.7264 | I156: 4.633436241e-07 | K156: 153 | L156: Gâmbia | M156: 455.249 | N156: 2.636490155e-05 | O156: 455.249
A157: 154 | B157: Ceuta e Melilha | C157: 191.5534 | D157: 2.710686851e-05 | F157: 154 | G157: São Cristovão e Nevis | H157: 4.4378 | I157: 4.350512726e-07 | K157: 154 | L157: Kosovo | M157: 426.8374 | N157: 2.471949642e-05 | O157: 410.093
A158: 155 | B158: Suriname | C158: 156.0968 | D158: 2.208937785e-05 | F158: 155 | G158: Afeganistão | H158: 4.3662 | I158: 4.28032103e-07 | K158: 155 | L158: São Martinho (parte holandesa) | M158: 349.244 | N158: 2.022581856e-05 | O158: 349.244
A159: 156 | B159: Trindade e Tobago | C159: 142.2682 | D159: 2.013248206e-05 | F159: 156 | G159: Barém | H159: 4.3444 | I159: 4.258949815e-07 | K159: 156 | L159: Usbequistão | M159: 348.6042 | N159: 2.018876573e-05 | O159: -267.9346
A160: 157 | B160: Nova Caledónia | C160: 140.1192 | D160: 1.982837543e-05 | F160: 157 | G160: Nepal | H160: 2.4222 | I160: 2.374557647e-07 | K160: 157 | L160: Zâmbia | M160: 336.5272 | N160: 1.948934868e-05 | O160: -62.0752
A161: 158 | B161: Zâmbia | C161: 137.226 | D161: 1.941895648e-05 | F161: 158 | G161: Lesoto | H161: 1.7136 | I161: 1.67989513e-07 | K161: 158 | L161: Libéria | M161: 333.6016 | N161: 1.931991798e-05 | O161: 255.9464
A162: 159 | B162: Polinésia Francesa | C162: 133.1554 | D162: 1.884292275e-05 | F162: 159 | G162: Liechtenstein | H162: 1.6922 | I162: 1.658916048e-07 | K162: 159 | L162: Comores | M162: 311.607 | N162: 1.804614151e-05 | O162: 311.607
A163: 160 | B163: Madagáscar | C163: 129.6574 | D163: 1.834791809e-05 | F163: 160 | G163: Mauritânia | H163: 1.574 | I163: 1.543040928e-07 | K163: 160 | L163: Somália | M163: 292.8146 | N163: 1.695781452e-05 | O163: 292.8146
A164: 161 | B164: Maldivas | C164: 127.1794 | D164: 1.799725441e-05 | F164: 161 | G164: Fiji, Ilhas | H164: 1.3646 | I164: 1.337759626e-07 | K164: 161 | L164: Jamaica | M164: 287.9222 | N164: 1.667448024e-05 | O164: 265.677
A165: 162 | B165: Niger | C165: 113.05 | D165: 1.599779218e-05 | F165: 162 | G165: Bermudas | H165: 0.6892 | I165: 6.756440964e-08 | K165: 162 | L165: Antígua e Barbuda | M165: 264.426 | N165: 1.531374139e-05 | O165: 264.3868
A166: 163 | B166: Liechtenstein | C166: 106.2456 | D166: 1.503489632e-05 | F166: 163 | G166: Território Palestiniano Ocupado | H166: 0.4852 | I166: 4.756565809e-08 | K166: 163 | L166: Curaçau | M166: 236.9706 | N166: 1.372371282e-05 | O166: 211.0442
A167: 164 | B167: Centro-Africana, República | C167: 83.0308 | D167: 1.174975217e-05 | F167: 164 | G167: Montenegro | H167: 0.3086 | I167: 3.025301337e-08 | K167: 164 | L167: Haiti | M167: 195.7408 | N167: 1.133596542e-05 | O167: 195.728
A168: 165 | B168: Jibuti | C168: 77.3086 | D168: 1.093999926e-05 | F168: 165 | G168: São Bartolomeu | H168: 0.283 | I168: 2.774336612e-08 | K168: 165 | L168: Ceuta e Melilha | M168: 191.5534 | N168: 1.109345991e-05 | O168: 191.5534
A169: 166 | B169: Nepal | C169: 76.6542 | D169: 1.084739462e-05 | F169: 166 | G169: Gabão | H169: 0.25 | I169: 2.450827396e-08 | K169: 166 | L169: Trindade e Tobago | M169: 142.2786 | N169: 8.239801254e-06 | O169: 142.2578
A170: 167 | B170: Zimbabwe | C170: 63.2826 | D170: 8.955169247e-06 | F170: 167 | G170: Ruanda | H170: 0.177 | I170: 1.735185796e-08 | K170: 167 | L170: Nova Caledónia | M170: 140.1192 | N170: 8.114743608e-06 | O170: 140.1192
A171: 168 | B171: Caimão, Ilhas | C171: 51.4562 | D171: 7.281606315e-06 | F171: 168 | G171: Barbados | H171: 0.1378 | I171: 1.35089606e-08 | K171: 168 | L171: Polinésia Francesa | M171: 133.1554 | N171: 7.711448046e-06 | O171: 133.1554
A172: 169 | B172: Bósnia-Herzegovina | C172: 50.6168 | D172: 7.162822178e-06 | F172: 169 | G172: Niger | H172: 0.1252 | I172: 1.22737436e-08 | K172: 169 | L172: Maldivas | M172: 127.183 | N172: 7.365567576e-06 | O172: 127.1758
A173: 170 | B173: Montenegro | C173: 46.101 | D173: 6.523787857e-06 | F173: 170 | G173: Burundi | H173: 0.114 | I173: 1.117577292e-08 | K173: 170 | L173: Niger | M173: 113.1752 | N173: 6.554331817e-06 | O173: 112.9248
A174: 171 | B174: Bahamas | C174: 42.9652 | D174: 6.080038395e-06 | F174: 171 | G174: Oceano Indico, Território Britânico do | H174: 0.098 | I174: 9.607243391e-09 | K174: 171 | L174: Liechtenstein | M174: 107.9378 | N174: 6.251017509e-06 | O174: 104.5534
A175: 172 | B175: Usbequistão | C175: 40.3348 | D175: 5.707808474e-06 | F175: 172 | G175: São Vicente e Granadinas | H175: 0.0416 | I175: 4.078176786e-09 | K175: 172 | L175: Centro-Africana, República | M175: 83.0308 | N175: 4.808574796e-06 | O175: 83.0308
A176: 173 | B176: Mongólia | C176: 30.8452 | D176: 4.364927902e-06 | F176: 173 | G176: Antígua e Barbuda | H176: 0.0196 | I176: 1.921448678e-09 | K176: 173 | L176: Nepal | M176: 79.0764 | N176: 4.579563054e-06 | O176: 74.232
A177: 174 | B177: Afeganistão | C177: 18.9718 | D177: 2.684713964e-06 | F177: 174 | G177: Santa Sé (Cidade Estado do Vaticano) | H177: 0.018 | I177: 1.764595725e-09 | K177: 174 | L177: Bósnia-Herzegovina | M177: 78.515 | N177: 4.547050614e-06 | O177: 22.7186
A178: 175 | B178: Guiana | C178: 18.2434 | D178: 2.581637522e-06 | F178: 175 | G178: Mongólia | H178: 0.0112 | I178: 1.097970673e-09 | K178: 175 | L178: Jibuti | M178: 77.3086 | N178: 4.477184195e-06 | O178: 77.3086
A179: 176 | B179: Turcas e Caicos, Ilhas | C179: 18.0666 | D179: 2.556618418e-06 | F179: 176 | G179: Trindade e Tobago | H179: 0.0104 | I179: 1.019544197e-09 | K179: 176 | L179: Tajiquistão | M179: 59.4122 | N179: 3.440747379e-06 | O179: -59.4122
A180: 177 | B180: Laos, República Democrática Popular do | C180: 14.3872 | D180: 2.035943703e-06 | F180: 177 | G180: Haiti | H180: 0.0064 | I180: 6.274118133e-10 | K180: 177 | L180: Caimão, Ilhas | M180: 51.4562 | N180: 2.979990394e-06 | O180: 51.4562
A181: 178 | B181: Turquemenistão | C181: 11.8398 | D181: 1.675459176e-06 | F181: 178 | G181: Maldivas | H181: 0.0036 | I181: 3.52919145e-10 | K181: 178 | L181: Montenegro | M181: 46.4096 | N181: 2.687725914e-06 | O181: 45.7924
A182: 179 | B182: Barbados | C182: 11.7888 | D182: 1.668242127e-06 | F182: 179 | G182: Anguila | H182: 0 | I182: 0 | K182: 179 | L182: Bahamas | M182: 42.9652 | N182: 2.488249876e-06 | O182: 42.9652
A183: 180 | B183: Virgens Britânicas, Ilhas | C183: 9.9272 | D183: 1.404805684e-06 | F183: 180 | G183: Antárctica | H183: 0 | I183: 0 | K183: 180 | L183: São Marino | M183: 32.7902 | N183: 1.898983621e-06 | O183: -32.7502
A184: 181 | B184: Fiji, Ilhas | C184: 8.1268 | D184: 1.150029699e-06 | F184: 181 | G184: Antilhas Holandesas | H184: 0 | I184: 0 | K184: 181 | L184: Mongólia | M184: 30.8564 | N184: 1.786991181e-06 | O184: 30.834
A185: 182 | B185: Santa Lúcia | C185: 7.138 | D185: 1.010103853e-06 | F185: 182 | G185: Bahamas | H185: 0 | I185: 0 | K185: 182 | L185: Botswana | M185: 30.0852 | N185: 1.742328563e-06 | O185: -29.8964
A186: 183 | B186: Brunei Darussalam | C186: 6.98 | D186: 9.877451518e-07 | F186: 183 | G186: Bonaire, Santo Eustáquio e Saba | H186: 0 | I186: 0 | K186: 183 | L186: Papuásia-Nova Guiné | M186: 28.7226 | N186: 1.663416111e-06 | O186: -22.9514
A187: 184 | B187: Malavi | C187: 6.6034 | D187: 9.344521971e-07 | F187: 184 | G187: Bouvet, Ilha | H187: 0 | I187: 0 | K187: 184 | L187: Afeganistão | M187: 23.338 | N187: 1.351576988e-06 | O187: 14.6056
A188: 185 | B188: Guam | C188: 6.5774 | D188: 9.307729171e-07 | F188: 185 | G188: Brunei Darussalam | H188: 0 | I188: 0 | K188: 185 | L188: Quirguizistão | M188: 22.1318 | N188: 1.281722152e-06 | O188: -12.8186
A189: 186 | B189: São Vicente e Granadinas | C189: 5.6654 | D189: 8.017150979e-07 | F189: 186 | G189: Butão | H189: 0 | I189: 0 | K189: 186 | L189: Turcas e Caicos, Ilhas | M189: 18.0666 | N189: 1.046293633e-06 | O189: 18.0666
A190: 187 | B190: Quirguizistão | C190: 4.6566 | D190: 6.589590364e-07 | F190: 187 | G190: Caimão, Ilhas | H190: 0 | I190: 0 | K190: 187 | L190: Barbados | M190: 11.9266 | N190: 6.907069203e-07 | O190: 11.651
A191: 188 | B191: Menores distantes dos Estados Unidos, lhas | C191: 4.5542 | D191: 6.444683339e-07 | F191: 188 | G191: Centro-Africana, República | H191: 0 | I191: 0 | K191: 188 | L191: Virgens Britânicas, Ilhas | M191: 9.9272 | N191: 5.749153774e-07 | O191: 9.9272
A192: 189 | B192: Sudão do Sul | C192: 3.771 | D192: 5.336371014e-07 | F192: 189 | G192: Ceuta | H192: 0 | I192: 0 | K192: 189 | L192: Fiji, Ilhas | M192: 9.4914 | N192: 5.496768286e-07 | O192: 6.7622
A193: 190 | B193: Bonaire, Santo Eustáquio e Saba | C193: 3.1276 | D193: 4.425890741e-07 | F193: 190 | G193: Ceuta e Melilha | H193: 0 | I193: 0 | K193: 190 | L193: Santa Lúcia | M193: 7.138 | N193: 4.133840321e-07 | O193: 7.138
A194: 191 | B194: Marianas do Norte, Ilhas | C194: 2.9244 | D194: 4.138340863e-07 | F194: 191 | G194: Christmas, Ilha | H194: 0 | I194: 0 | K194: 191 | L194: Brunei Darussalam | M194: 6.98 | N194: 4.042337551e-07 | O194: 6.98
A195: 192 | B195: Papuásia-Nova Guiné | C195: 2.8856 | D195: 4.083434685e-07 | F195: 192 | G195: Cocos (Keeling), Ilhas | H195: 0 | I195: 0 | K195: 192 | L195: Guam | M195: 6.5774 | N195: 3.809179228e-07 | O195: 6.5774
A196: 193 | B196: Belize | C196: 2.1806 | D196: 3.08578378e-07 | F196: 193 | G196: Comores | H196: 0 | I196: 0 | K196: 193 | L196: São Vicente e Granadinas | M196: 5.707 | N196: 3.30510321e-07 | O196: 5.6238
A197: 194 | B197: Melilha | C197: 1.3464 | D197: 1.905300963e-07 | F197: 194 | G197: Cook, Ilhas | H197: 0 | I197: 0 | K197: 194 | L197: Menores distantes dos Estados Unidos, lhas | M197: 4.5542 | N197: 2.637480469e-07 | O197: 4.5542
A198: 195 | B198: Granada | C198: 0.6866 | D198: 9.716129244e-08 | F198: 195 | G198: Coreia, República Popular Democrática da | H198: 0 | I198: 0 | K198: 195 | L198: São Cristovão e Nevis | M198: 4.4378 | N198: 2.570069568e-07 | O198: -4.4378
A199: 196 | B199: Virgens dos Estados Unidos, Ilhas | C199: 0.295 | D199: 4.174567619e-08 | F199: 196 | G199: Domínica | H199: 0 | I199: 0 | K199: 196 | L199: Sudão do Sul | M199: 3.771 | N199: 2.183904714e-07 | O199: 3.771
A200: 197 | B200: Botswana | C200: 0.0944 | D200: 1.335861638e-08 | F200: 197 | G200: Eritreia | H200: 0 | I200: 0 | K200: 197 | L200: Bonaire, Santo Eustáquio e Saba | M200: 3.1276 | N200: 1.811291537e-07 | O200: 3.1276
... 57 more rows

Sheet 2A
A1: Parceiros comerciais de Portugal - União Europeia vs. Países Terceiros (média 2018-2022 em milhões de euros) produtos agrícolas e agroalimentares, do mar e da floresta
A2: Exportações | F2: Importações | K2: Trocas comerciais (total e saldo)
A3: P | B3: Grupo de Países | C3: média quinquénio | D3: % do Total | F3: P | G3: Grupo de Países | H3: média quinquénio | I3: % do Total | K3: P | L3: Grupo de Países | M3: média quinquénio | N3: % do Total | O3: Saldo (exp-imp)
A4: 1 | B4: União Europeia | C4: 8690.064715 | D4: 0.6705031383 | F4: 1 | G4: União Europeia | H4: 11673.13485 | I4: 0.7803993275 | K4: 1 | L4: União Europeia | M4: 20363.19956 | N4: 0.7293824229 | O4: -2983.070133
A5: 2 | B5: Países Terceiros | C5: 4271.031018 | D5: 0.3295418153 | F5: 2 | G5: Países Terceiros | H5: 3284.764829 | I5: 0.2196006725 | K5: 2 | L5: Países Terceiros | M5: 7555.795847 | N5: 0.2706384458 | O5: 986.2661894
B6: Outros | C6: 0 | D6: -4.495366773e-05 | G6: Outros | H6: 0 | I6: 0 | L6: Outros | M6: 0 | N6: -2.086875799e-05 | O6: 0
B7: Total | C7: 12960.51311 | D7: 1 | G7: Total | H7: 14957.89968 | I7: 1 | L7: Total | M7: 27918.41279 | N7: 1 | O7: -1997.386566
F27: valores em milhões de euros
A28: Nota: Outros = Países não determinados, abastecimentos de bordo, etc.
A29: Fonte: GPP a partir de dados INE/Comércio Internacional (2021 provisórios; 2022 preliminares) | M29: 2023-03-23

Sheet 3
A1: Principais produtos agrícolas e agroalimentares, do mar e da floresta transacionados entre Portugal e Angola em 2018-2022 (NC a 2 e 4 dígitos) em milhões de euros
AC4: P | AE4: Cód.NC | AF4: Descritivo | AG4: Média export quinquénio | AH4: % do total | AI4: % acumulada | AN4: P | AO4: NC | AP4: Exportações | AQ4: 2018 | AR4: 2019 | AS4: 2020 | AT4: 2021 | AU4: 2022 | AV4: média quinquénio
AC5: 1 | AD5: º | AE5: 15 | AF5: Gorduras e óleos animais ou vegetais | AG5: 61.7124106 | AH5: 0.1863747228 | AN5: 1º | AO5: 15 | AP5: Gorduras e óleos animais ou vegetais | AQ5: 80.950073 | AR5: 65.639728 | AS5: 49.189793 | AT5: 45.091752 | AU5: 67.690707 | AV5: 61.7124106
AC6: 2 | AD6: º | AE6: 22 | AF6: Bebidas, líquidos alcoólicos e vinagres | AG6: 39.978392 | AH6: 0.1207368446 | AN6: 2º | AO6: 22 | AP6: Bebidas, líquidos alcoólicos e vinagres | AQ6: 48.10069 | AR6: 41.175345 | AS6: 28.650491 | AT6: 27.079802 | AU6: 54.885632 | AV6: 39.978392
AC7: 3 | AD7: º | AE7: 04 | AF7: Leite e laticínios; ovos; mel, etc. | AG7: 35.1690744 | AH7: 0.1062124527 | AI7: 0.4133240202 | AN7: 3º | AO7: 04 | AP7: Leite e laticínios; ovos; mel, etc. | AQ7: 49.506584 | AR7: 42.735565 | AS7: 23.020897 | AT7: 24.76255 | AU7: 35.819776 | AV7: 35.1690744
AC8: 4 | AD8: º | AE8: 48 | AF8: Papel e cartão | AG8: 34.8163276 | AH8: 0.1051471389 | AO8: - | AP8: Outros | AQ8: 277.556376 | AR8: 205.611066 | AS8: 138.986303 | AT8: 143.341568 | AU8: 205.805634 | AV8: 194.2601894
AC9: 5 | AD9: º | AE9: 16a | AF9: Preparações de carnes (exc. NC 1604-05) (a) | AG9: 25.2198472 | AH9: 0.07616526378 | AP9: Total | AQ9: 456.113723 | AR9: 355.161704 | AS9: 239.847484 | AT9: 240.275672 | AU9: 364.201749 | AV9: 331.1200664
AC10: 6 | AD10: º | AE10: 19a | AF10: Preparações à base de cereais (exc. NC 19022010) (a) | AG10: 21.0494608 | AH10: 0.06357047771
AC11: 7 | AD11: º | AE11: 02 | AF11: Carnes e miudezas | AG11: 15.9243246 | AH11: 0.04809229707
AC12: 8 | AD12: º | AE12: 11 | AF12: Produtos da indústria de moagem e outros | AG12: 14.5651942 | AH12: 0.04398765185
AC13: 9 | AD13: º | AE13: 44 | AF13: Madeira e suas obras | AG13: 10.9151118 | AH13: 0.0329642112
AC14: 10 | AD14: º | AE14: 21 | AF14: Preparações alimentícias diversas | AG14: 10.7051542 | AH14: 0.03233012821 | AI14: 0.8155811888
AE15: - | AF15: Outros | AG15: 61.064769 | AH15: 0.1844188112
AE16: Total | AG16: 331.1200664 | AH16: 1
AC38: P | AE38: Cód.NC | AF38: Descritivo | AG38: Média import quinquénio | AH38: % do total | AI38: % acumulada | AN38: P | AO38: NC | AP38: Importações | AQ38: 2018 | AR38: 2019 | AS38: 2020 | AT38: 2021 | AU38: 2022 | AV38: média quinquénio
AC39: 1 | AD39: º | AE39: 03 | AF39: Peixes e crustáceos | AG39: 6.3229202 | AH39: 0.4099629955 | AN39: 1º | AO39: 03 | AP39: Peixes e crustáceos | AQ39: 5.785665 | AR39: 5.309597 | AS39: 5.673389 | AT39: 6.321939 | AU39: 8.524011 | AV39: 6.3229202
AC40: 2 | AD40: º | AE40: 08 | AF40: Frutas | AG40: 4.0175898 | AH40: 0.2604908961 | AN40: 2º | AO40: 08 | AP40: Frutas | AQ40: 0.582306 | AR40: 2.619066 | AS40: 3.601434 | AT40: 5.073929 | AU40: 8.211214 | AV40: 4.0175898
AC41: 3 | AD41: º | AE41: 44 | AF41: Madeira e suas obras | AG41: 1.9762478 | AH41: 0.1281351721 | AI41: 0.7985890637 | AN41: 3º | AO41: 44 | AP41: Madeira e suas obras | AQ41: 0.689727 | AR41: 2.038961 | AS41: 2.095519 | AT41: 2.134523 | AU41: 2.922509 | AV41: 1.9762478
AC42: 4 | AD42: º | AE42: 23a | AF42: Resíduos indústrias alimentares; alimentos p/ animais (exc. NC 230120) (a) | AG42: 1.9627162 | AH42: 0.1272578156 | AO42: - | AP42: Outros | AQ42: 2.189972 | AR42: 1.055946 | AS42: 2.484233 | AT42: 7.431605 | AU42: 2.370198 | AV42: 3.1063908
AC43: 5 | AD43: º | AE43: 09 | AF43: Café, chá, mate e especiarias | AG43: 0.9121384 | AH43: 0.05914086829 | AP43: Total | AQ43: 9.24767 | AR43: 11.02357 | AS43: 13.854575 | AT43: 20.961996 | AU43: 22.027932 | AV43: 15.4231486
AC44: 6 | AD44: º | AE44: 22 | AF44: Bebidas, líquidos alcoólicos e vinagres | AG44: 0.1239274 | AH44: 0.008035155675
AC45: 7 | AD45: º | AE45: 11 | AF45: Produtos da indústria de moagem e outros | AG45: 0.0381826 | AH45: 0.002475668295
AC46: 8 | AD46: º | AE46: 33 | AF46: Óleos essenciais e resinóides (NC 3301) | AG46: 0.037708 | AH46: 0.002444896368
AC47: 9 | AD47: º | AE47: 12 | AF47: Sementes e frutos oleaginosos | AG47: 0.0133348 | AH47: 0.0008645964806
AC48: 10 | AD48: º | AE48: 07 | AF48: Produtos hortícolas | AG48: 0.0085028 | AH48: 0.0005513011785 | AI48: 0.9993593656
AE49: - | AF49: Outros | AG49: 0.0098806 | AH49: 0.0006406344292
AE50: Total | AG50: 15.4231486 | AH50: 1
AC62: DESAGREGAÇÃO A 4 DÍGITOS | AN62: DESAGREGAÇÃO A 4 DÍGITOS
AC64: P | AE64: Cód.NC | AF64: Descritivo | AG64: Média export quinquénio | AH64: % do total | AI64: % acumulada | AN64: P | AO64: NC | AP64: Exportações | AQ64: 2018 | AR64: 2019 | AS64: 2020 | AT64: 2021 | AU64: 2022 | AV64: média quinquénio
AC65: 1 | AD65: º | AE65: 1507 | AF65: Óleo de soja e suas frações | AG65: 47.0618528 | AH65: 0.1421292684 | AN65: 1º | AO65: 1507 | AP65: Óleo de soja e suas frações | AQ65: 58.10773 | AR65: 52.528417 | AS65: 38.464757 | AT65: 36.149768 | AU65: 50.058592 | AV65: 47.0618528
AC66: 2 | AD66: º | AE66: 2204 | AF66: Vinhos de uvas frescas | AG66: 35.186499 | AH66: 0.1062650759 | AN66: 2º | AO66: 2204 | AP66: Vinhos de uvas frescas | AQ66: 39.566082 | AR66: 36.835782 | AS66: 26.136991 | AT66: 24.172424 | AU66: 49.221216 | AV66: 35.186499
AC67: 3 | AD67: º | AE67: 1601 | AF67: Enchidos e etc., de carne, miudezas ou sangue | AG67: 21.1313696 | AH67: 0.06381784659 | AI67: 0.312212191 | AN67: 3º | AO67: 1601 | AP67: Enchidos e etc., de carne, miudezas ou sangue | AQ67: 24.769508 | AR67: 23.624733 | AS67: 18.613847 | AT67: 15.931238 | AU67: 22.717522 | AV67: 21.1313696
AC68: 4 | AD68: º | AE68: 0401 | AF68: Leite e nata, não concentrados | AG68: 12.3753972 | AH68: 0.03737434984 | AN68: - | AO68: - | AP68: Outros | AQ68: 333.670403 | AR68: 242.172772 | AS68: 156.631889 | AT68: 164.022242 | AU68: 242.204419 | AV68: 227.740345
AC69: 5 | AD69: º | AE69: 4819 | AF69: Embalagens de papel, cartão etc. | AG69: 9.4416592 | AH69: 0.02851430692 | AP69: Total | AQ69: 456.113723 | AR69: 355.161704 | AS69: 239.847484 | AT69: 240.275672 | AU69: 364.201749 | AV69: 331.1200664
AC70: 6 | AD70: º | AE70: 4802 | AF70: Papel e cartão p/ escrita, etc. | AG70: 9.127964 | AH70: 0.02756693093
AC71: 7 | AD71: º | AE71: 1901 | AF71: Extratos de malte; preparações de farinhas, etc., sem cacau | AG71: 8.303255 | AH71: 0.02507626641
AC72: 8 | AD72: º | AE72: 1101 | AF72: Farinhas de trigo ou trigo/centeio | AG72: 8.2918344 | AH72: 0.0250417756
AC73: 9 | AD73: º | AE73: 1509 | AF73: Azeite (processos mecânicos ou físicos) | AG73: 7.9065562 | AH73: 0.02387821519
AC74: 10 | AD74: º | AE74: 0203 | AF74: Carnes de suíno | AG74: 7.7456206 | AH74: 0.02339218122 | AI74: 0.5030562171
AE75: - | AF75: Outros | AG75: 164.5480584 | AH75: 0.4969437829
AE76: Total | AG76: 331.1200664 | AH76: 1
AC89: DESAGREGAÇÃO A 4 DÍGITOS | AN89: DESAGREGAÇÃO A 4 DÍGITOS
G91: média 2018-2022 em milhões de euros | I91: Cód. NC | J91: Descritivo | K91: Export | L91: Import | M91: Saldo | AC91: P | AE91: Cód.NC | AF91: Descritivo | AG91: Média import quinquénio | AH91: % do total | AI91: % acumulada | AN91: P | AO91: NC | AP91: Importações | AQ91: 2018 | AR91: 2019 | AS91: 2020 | AT91: 2021 | AU91: 2022 | AV91: média quinquénio
I92: 1507 | J92: Óleo de soja e suas frações | K92: 47.0618528 | L92: 0 | M92: 47.0618528 | AC92: 1 | AD92: º | AE92: 0306 | AF92: Crustáceos | AG92: 6.176593 | AH92: 0.4004754905 | AN92: 1º | AO92: 0306 | AP92: Crustáceos | AQ92: 5.706812 | AR92: 5.309597 | AS92: 5.673298 | AT92: 6.119092 | AU92: 8.074166 | AV92: 6.176593
I93: 2204 | J93: Vinhos de uvas frescas | K93: 35.186499 | L93: 0.0017728 | M93: 35.1847262 | AC93: 2 | AD93: º | AE93: 0803 | AF93: Bananas, frescas ou secas | AG93: 3.1489294 | AH93: 0.2041690372 | AN93: 2º | AO93: 0803 | AP93: Bananas, frescas ou secas | AQ93: 0.382208 | AR93: 2.387255 | AS93: 3.091002 | AT93: 3.818092 | AU93: 6.06609 | AV93: 3.1489294
I94: 1601 | J94: Enchidos e etc., de carne, miudezas ou sangue | K94: 21.1313696 | L94: 0 | M94: 21.1313696 | AC94: 3 | AD94: º | AE94: 2302 | AF94: Resíduos de tratamentos de cereais ou leguminosas | AG94: 1.9626818 | AH94: 0.1272555852 | AI94: 0.7319001128 | AN94: 3º | AO94: 2302 | AP94: Resíduos de tratamentos de cereais ou leguminosas | AQ94: 1.47792 | AR94: 0 | AS94: 0.70142 | AT94: 6.325772 | AU94: 1.308297 | AV94: 1.9626818
I95: 0401 | J95: Leite e nata, não concentrados | K95: 12.3753972 | L95: 0 | M95: 12.3753972 | AC95: 4 | AD95: º | AE95: 4407 | AF95: Madeira serrada, etc. | AG95: 1.9058432 | AH95: 0.1235703065 | AN95: - | AO95: - | AP95: Outros | AQ95: 1.68073 | AR95: 3.326718 | AS95: 4.388855 | AT95: 4.69904 | AU95: 6.579379 | AV95: 4.1349444
I96: 4819 | J96: Embalagens de papel, cartão etc. | K96: 9.4416592 | L96: 2e-06 | M96: 9.4416572 | AC96: 5 | AD96: º | AE96: 0901 | AF96: Café | AG96: 0.9106488 | AH96: 0.0590442862 | AP96: Total | AQ96: 9.24767 | AR96: 11.02357 | AS96: 13.854575 | AT96: 20.961996 | AU96: 22.027932 | AV96: 15.4231486
I97: 4802 | J97: Papel e cartão p/ escrita, etc. | K97: 9.127964 | L97: 3.2e-06 | M97: 9.1279608 | AC97: 6 | AD97: º | AE97: 0807 | AF97: Melões, melancias e papaia, frescos | AG97: 0.40231 | AH97: 0.02608481643
I98: 1901 | J98: Extratos de malte; preparações de farinhas, etc., sem cacau | K98: 8.303255 | L98: 6.6e-06 | M98: 8.3032484 | AC98: 7 | AD98: º | AE98: 0810 | AF98: Outras frutas frescas | AG98: 0.3286148 | AH98: 0.02130659624
I99: 1101 | J99: Farinhas de trigo ou trigo/centeio | K99: 8.2918344 | L99: 0 | M99: 8.2918344 | AC99: 8 | AD99: º | AE99: 0303 | AF99: Peixes congelados | AG99: 0.146309 | AH99: 0.009486324991
I100: 1509 | J100: Azeite (processos mecânicos ou físicos) | K100: 7.9065562 | L100: 0 | M100: 7.9065562 | AC100: 9 | AD100: º | AE100: 0804 | AF100: Tâmaras, figos, ananases, abacates, goiabas, mangas | AG100: 0.1157532 | AH100: 0.007505160133
I101: 0203 | J101: Carnes de suíno | K101: 7.7456206 | L101: 0 | M101: 7.7456206 | AC101: 10 | AD101: º | AE101: 2203 | AF101: Cervejas de malte | AG101: 0.0990648 | AH101: 0.006423124264 | AI101: 0.9853207276
I102: - | J102: Outros | K102: 163.5152878 | L102: 1.2906478 | M102: 162.22464 | AE102: - | AF102: Outros | AG102: 0.2264006 | AH102: 0.01467927243
I103: 0714 | J103: Raízes de mandioca, de araruta, batata-doce, etc. | K103: 0.0041054 | L103: 0.0081788 | M103: -0.0040734 | AE103: Total | AG103: 15.4231486 | AH103: 1
I104: 1106 | J104: Farinhas, etc. de leguminosas e outros tubérculos | K104: 0.0118872 | L104: 0.037976 | M104: -0.0260888
I105: 4402 | J105: Carvão vegetal (exceto para uso medicinal ou para desenho) | K105: 0.017633 | L105: 0.043836 | M105: -0.026203
I106: 0804 | J106: Tâmaras, figos, ananases, abacates, goiabas, mangas | K106: 0.076224 | L106: 0.1157532 | M106: -0.0395292
I107: 0810 | J107: Outras frutas frescas | K107: 0.224487 | L107: 0.3286148 | M107: -0.1041278
I108: 0807 | J108: Melões, melancias e papaia, frescos | K108: 0.0091904 | L108: 0.40231 | M108: -0.3931196
I109: 4407 | J109: Madeira serrada, etc. | K109: 0.0748862 | L109: 1.9058432 | M109: -1.830957
I110: 2302 | J110: Resíduos de tratamentos de cereais ou leguminosas | K110: 0.0072798 | L110: 1.9626818 | M110: -1.955402
I111: 0803 | J111: Bananas, frescas ou secas | K111: 0.0098552 | L111: 3.1489294 | M111: -3.1390742
I112: 0306 | J112: Crustáceos | K112: 0.5972224 | L112: 6.176593 | M112: -5.5793706
I113: Total | K113: 331.1200664 | L113: 15.4231486 | M113: 315.6969178
A116: Fonte: GPP a partir de dados INE/Comércio Internacional (2021 provisórios; 2022 preliminares) | Y116: 2023-04-18T16:29:06.580

Sheet 3A
A1: Principais produtos agrícolas e agroalimentares transacionados entre Portugal e Angola em 2018-2022 (NC a 2 e 4 dígitos) em milhões de euros
AC4: P | AE4: Cód.NC | AF4: Descritivo | AG4: Média export quinquénio | AH4: % do total | AI4: % acumulada | AN4: P | AO4: NC | AP4: Exportações | AQ4: 2018 | AR4: 2019 | AS4: 2020 | AT4: 2021 | AU4: 2022 | AV4: média quinquénio
AC5: 1 | AD5: º | AE5: 15 | AF5: Gorduras e óleos animais ou vegetais | AG5: 61.7124106 | AH5: 0.2278760948 | AN5: 1º | AO5: 15 | AP5: Gorduras e óleos animais ou vegetais | AQ5: 80.950073 | AR5: 65.639728 | AS5: 49.189793 | AT5: 45.091752 | AU5: 67.690707 | AV5: 61.7124106
AC6: 2 | AD6: º | AE6: 22 | AF6: Bebidas, líquidos alcoólicos e vinagres | AG6: 39.978392 | AH6: 0.147622168 | AN6: 2º | AO6: 22 | AP6: Bebidas, líquidos alcoólicos e vinagres | AQ6: 48.10069 | AR6: 41.175345 | AS6: 28.650491 | AT6: 27.079802 | AU6: 54.885632 | AV6: 39.978392
AC7: 3 | AD7: º | AE7: 04 | AF7: Leite e laticínios; ovos; mel, etc. | AG7: 35.1690744 | AH7: 0.1298635275 | AI7: 0.5053617904 | AN7: 3º | AO7: 04 | AP7: Leite e laticínios; ovos; mel, etc. | AQ7: 49.506584 | AR7: 42.735565 | AS7: 23.020897 | AT7: 24.76255 | AU7: 35.819776 | AV7: 35.1690744
AC8: 4 | AD8: º | AE8: 16a | AF8: Preparações de carnes (exc. NC 1604-05) (a) | AG8: 25.2198472 | AH8: 0.09312551943 | AO8: - | AP8: Outros | AQ8: 193.450799 | AR8: 143.900431 | AS8: 102.2435 | AT8: 97.517528 | AU8: 132.66656 | AV8: 133.9557636
AC9: 5 | AD9: º | AE9: 19a | AF9: Preparações à base de cereais (exc. NC 19022010) (a) | AG9: 21.0494608 | AH9: 0.07772616365 | AP9: Total | AQ9: 372.008146 | AR9: 293.451069 | AS9: 203.104681 | AT9: 194.451632 | AU9: 291.062675 | AV9: 270.8156406
AC10: 6 | AD10: º | AE10: 02 | AF10: Carnes e miudezas | AG10: 15.9243246 | AH10: 0.05880134753
AC11: 7 | AD11: º | AE11: 11 | AF11: Produtos da indústria de moagem e outros | AG11: 14.5651942 | AH11: 0.05378269205
AC12: 8 | AD12: º | AE12: 21 | AF12: Preparações alimentícias diversas | AG12: 10.7051542 | AH12: 0.03952930553
AC13: 9 | AD13: º | AE13: 20 | AF13: Preparações de produtos vegetais | AG13: 7.859423 | AH13: 0.02902130388
AC14: 10 | AD14: º | AE14: 23a | AF14: Resíduos indústrias alimentares; alimentos p/ animais (exc. NC 230120) (a) | AG14: 7.8105654 | AH14: 0.0288408948 | AI14: 0.8861890173
AE15: - | AF15: Outros | AG15: 30.8217942 | AH15: 0.1138109827
AE16: Total | AG16: 270.8156406 | AH16: 1
AC38: P | AE38: Cód.NC | AF38: Descritivo | AG38: Média import quinquénio | AH38: % do total | AI38: % acumulada | AN38: P | AO38: NC | AP38: Importações | AQ38: 2018 | AR38: 2019 | AS38: 2020 | AT38: 2021 | AU38: 2022 | AV38: média quinquénio
AC39: 1 | AD39: º | AE39: 08 | AF39: Frutas | AG39: 4.0175898 | AH39: 0.5641650325 | AN39: 1º | AO39: 08 | AP39: Frutas | AQ39: 0.582306 | AR39: 2.619066 | AS39: 3.601434 | AT39: 5.073929 | AU39: 8.211214 | AV39: 4.0175898
AC40: 2 | AD40: º | AE40: 23a | AF40: Resíduos indústrias alimentares; alimentos p/ animais (exc. NC 230120) (a) | AG40: 1.9627162 | AH40: 0.2756119723 | AN40: 2º | AO40: 23a | AP40: Resíduos indústrias alimentares; alimentos p/ animais (exc. NC 230120) (a) | AQ40: 1.47792 | AR40: 0 | AS40: 0.70142 | AT40: 6.325941 | AU40: 1.3083 | AV40: 1.9627162
AC41: 3 | AD41: º | AE41: 09 | AF41: Café, chá, mate e especiarias | AG41: 0.9121384 | AH41: 0.1280858962 | AI41: 0.967862901 | AN41: 3º | AO41: 09 | AP41: Café, chá, mate e especiarias | AQ41: 0.496088 | AR41: 0.921659 | AS41: 1.622914 | AT41: 0.737332 | AU41: 0.782699 | AV41: 0.9121384
AC42: 4 | AD42: º | AE42: 22 | AF42: Bebidas, líquidos alcoólicos e vinagres | AG42: 0.1239274 | AH42: 0.01740235045 | AO42: - | AP42: Outros | AQ42: 0.214259 | AR42: 0.126893 | AS42: 0.159541 | AT42: 0.366745 | AU42: 0.276852 | AV42: 0.228858
AC43: 5 | AD43: º | AE43: 11 | AF43: Produtos da indústria de moagem e outros | AG43: 0.0381826 | AH43: 0.005361743942 | AP43: Total | AQ43: 2.770573 | AR43: 3.667618 | AS43: 6.085309 | AT43: 12.503947 | AU43: 10.579065 | AV43: 7.1213024
AC44: 6 | AD44: º | AE44: 33 | AF44: Óleos essenciais e resinóides (NC 3301) | AG44: 0.037708 | AH44: 0.005295098829
AC45: 7 | AD45: º | AE45: 12 | AF45: Sementes e frutos oleaginosos | AG45: 0.0133348 | AH45: 0.001872522644
AC46: 8 | AD46: º | AE46: 07 | AF46: Produtos hortícolas | AG46: 0.0085028 | AH46: 0.001193995076
AC47: 9 | AD47: º | AE47: 52 | AF47: Algodão (NC 5201-5203) | AG47: 0.0023114 | AH47: 0.0003245754597
AC48: 10 | AD48: º | AE48: 20 | AF48: Preparações de produtos vegetais | AG48: 0.002038 | AH48: 0.000286183606 | AI48: 0.999599371
AE49: - | AF49: Outros | AG49: 0.002853 | AH49: 0.0004006289636
AE50: Total | AG50: 7.1213024 | AH50: 1
AC62: DESAGREGAÇÃO A 4 DÍGITOS | AN62: DESAGREGAÇÃO A 4 DÍGITOS
AC64: P | AE64: Cód.NC | AF64: Descritivo | AG64: Média export quinquénio | AH64: % do total | AI64: % acumulada | AN64: P | AO64: NC | AP64: Exportações | AQ64: 2018 | AR64: 2019 | AS64: 2020 | AT64: 2021 | AU64: 2022 | AV64: média quinquénio
AC65: 1 | AD65: º | AE65: 1507 | AF65: Óleo de soja e suas frações | AG65: 47.0618528 | AH65: 0.1737781935 | AN65: 1º | AO65: 1507 | AP65: Óleo de soja e suas frações | AQ65: 58.10773 | AR65: 52.528417 | AS65: 38.464757 | AT65: 36.149768 | AU65: 50.058592 | AV65: 47.0618528
AC66: 2 | AD66: º | AE66: 2204 | AF66: Vinhos de uvas frescas | AG66: 35.186499 | AH66: 0.1299278687 | AN66: 2º | AO66: 2204 | AP66: Vinhos de uvas frescas | AQ66: 39.566082 | AR66: 36.835782 | AS66: 26.136991 | AT66: 24.172424 | AU66: 49.221216 | AV66: 35.186499
AC67: 3 | AD67: º | AE67: 1601 | AF67: Enchidos e etc., de carne, miudezas ou sangue | AG67: 21.1313696 | AH67: 0.0780286159 | AI67: 0.3817346781 | AN67: 3º | AO67: 1601 | AP67: Enchidos e etc., de carne, miudezas ou sangue | AQ67: 24.769508 | AR67: 23.624733 | AS67: 18.613847 | AT67: 15.931238 | AU67: 22.717522 | AV67: 21.1313696
AC68: 4 | AD68: º | AE68: 0401 | AF68: Leite e nata, não concentrados | AG68: 12.3753972 | AH68: 0.04569675951 | AN68: - | AO68: - | AP68: Outros | AQ68: 249.564826 | AR68: 180.462137 | AS68: 119.889086 | AT68: 118.198202 | AU68: 169.065345 | AV68: 167.4359192
AC69: 5 | AD69: º | AE69: 1901 | AF69: Extratos de malte; preparações de farinhas, etc., sem cacau | AG69: 8.303255 | AH69: 0.03066017525 | AP69: Total | AQ69: 372.008146 | AR69: 293.451069 | AS69: 203.104681 | AT69: 194.451632 | AU69: 291.062675 | AV69: 270.8156406
AC70: 6 | AD70: º | AE70: 1101 | AF70: Farinhas de trigo ou trigo/centeio | AG70: 8.2918344 | AH70: 0.03061800412
AC71: 7 | AD71: º | AE71: 1509 | AF71: Azeite (processos mecânicos ou físicos) | AG71: 7.9065562 | AH71: 0.02919534552
AC72: 8 | AD72: º | AE72: 0203 | AF72: Carnes de suíno | AG72: 7.7456206 | AH72: 0.02860108295
AC73: 9 | AD73: º | AE73: 0406 | AF73: Queijos e requeijão | AG73: 7.5689938 | AH73: 0.02794887985
AC74: 10 | AD74: º | AE74: 1905 | AF74: Produtos de padaria, pastelaria, etc. | AG74: 7.561748 | AH74: 0.02792212438 | AI74: 0.6023770497
AE75: - | AF75: Outros | AG75: 107.682514 | AH75: 0.3976229503
AE76: Total | AG76: 270.8156406 | AH76: 1
AC89: DESAGREGAÇÃO A 4 DÍGITOS | AN89: DESAGREGAÇÃO A 4 DÍGITOS
G91: média 2018-2022 em milhões de euros | I91: Cód. NC | J91: Descritivo | K91: Export | L91: Import | M91: Saldo | AC91: P | AE91: Cód.NC | AF91: Descritivo | AG91: Média import quinquénio | AH91: % do total | AI91: % acumulada | AN91: P | AO91: NC | AP91: Importações | AQ91: 2018 | AR91: 2019 | AS91: 2020 | AT91: 2021 | AU91: 2022 | AV91: média quinquénio
I92: 1507 | J92: Óleo de soja e suas frações | K92: 47.0618528 | L92: 0 | M92: 47.0618528 | AC92: 1 | AD92: º | AE92: 0803 | AF92: Bananas, frescas ou secas | AG92: 3.1489294 | AH92: 0.4421844802 | AN92: 1º | AO92: 0803 | AP92: Bananas, frescas ou secas | AQ92: 0.382208 | AR92: 2.387255 | AS92: 3.091002 | AT92: 3.818092 | AU92: 6.06609 | AV92: 3.1489294
I93: 2204 | J93: Vinhos de uvas frescas | K93: 35.186499 | L93: 0.0017728 | M93: 35.1847262 | AC93: 2 | AD93: º | AE93: 2302 | AF93: Resíduos de tratamentos de cereais ou leguminosas | AG93: 1.9626818 | AH93: 0.2756071417 | AN93: 2º | AO93: 2302 | AP93: Resíduos de tratamentos de cereais ou leguminosas | AQ93: 1.47792 | AR93: 0 | AS93: 0.70142 | AT93: 6.325772 | AU93: 1.308297 | AV93: 1.9626818
I94: 1601 | J94: Enchidos e etc., de carne, miudezas ou sangue | K94: 21.1313696 | L94: 0 | M94: 21.1313696 | AC94: 3 | AD94: º | AE94: 0901 | AF94: Café | AG94: 0.9106488 | AH94: 0.127876721 | AI94: 0.8456683429 | AN94: 3º | AO94: 0901 | AP94: Café | AQ94: 0.488914 | AR94: 0.921421 | AS94: 1.622914 | AT94: 0.737332 | AU94: 0.782663 | AV94: 0.9106488
I95: 0401 | J95: Leite e nata, não concentrados | K95: 12.3753972 | L95: 0 | M95: 12.3753972 | AC95: 4 | AD95: º | AE95: 0807 | AF95: Melões, melancias e papaia, frescos | AG95: 0.40231 | AH95: 0.05649387955 | AN95: - | AO95: - | AP95: Outros | AQ95: 0.421531 | AR95: 0.358942 | AS95: 0.669973 | AT95: 1.622751 | AU95: 2.422015 | AV95: 1.0990424
I96: 1901 | J96: Extratos de malte; preparações de farinhas, etc., sem cacau | K96: 8.303255 | L96: 6.6e-06 | M96: 8.3032484 | AC96: 5 | AD96: º | AE96: 0810 | AF96: Outras frutas frescas | AG96: 0.3286148 | AH96: 0.04614532308 | AP96: Total | AQ96: 2.770573 | AR96: 3.667618 | AS96: 6.085309 | AT96: 12.503947 | AU96: 10.579065 | AV96: 7.1213024
I97: 1101 | J97: Farinhas de trigo ou trigo/centeio | K97: 8.2918344 | L97: 0 | M97: 8.2918344 | AC97: 6 | AD97: º | AE97: 0804 | AF97: Tâmaras, figos, ananases, abacates, goiabas, mangas | AG97: 0.1157532 | AH97: 0.01625449862
I98: 1509 | J98: Azeite (processos mecânicos ou físicos) | K98: 7.9065562 | L98: 0 | M98: 7.9065562 | AC98: 7 | AD98: º | AE98: 2203 | AF98: Cervejas de malte | AG98: 0.0990648 | AH98: 0.01391105088
I99: 0203 | J99: Carnes de suíno | K99: 7.7456206 | L99: 0 | M99: 7.7456206 | AC99: 8 | AD99: º | AE99: 1106 | AF99: Farinhas, etc. de leguminosas e outros tubérculos | AG99: 0.037976 | AH99: 0.005332732395
I100: 0406 | J100: Queijos e requeijão | K100: 7.5689938 | L100: 0 | M100: 7.5689938 | AC100: 9 | AD100: º | AE100: 3301 | AF100: Óleos essenciais; resinóides; etc. | AG100: 0.037708 | AH100: 0.005295098829
I101: 1905 | J101: Produtos de padaria, pastelaria, etc. | K101: 7.561748 | L101: 0 | M101: 7.561748 | AC101: 10 | AD101: º | AE101: 1211 | AF101: Plantas, partes de plantas para usos não alimentares | AG101: 0.0124596 | AH101: 0.001749623777 | AI101: 0.99085055
I102: - | J102: Outros | K102: 107.339485 | L102: 1.1150242 | M102: 106.2244608 | AE102: - | AF102: Outros | AG102: 0.065156 | AH102: 0.009149449966
I103: 5101 | J103: Lã não cardada nem penteada | K103: 0 | L103: 0 | M103: 0 | AE103: Total | AG103: 7.1213024 | AH103: 1
I104: 5103 | J104: Desperdícios de lã ou pêlos | K104: 0 | L104: 0 | M104: 0
I105: 0501 | J105: Cabelos em bruto | K105: 0 | L105: 5.48e-05 | M105: -5.48e-05
I106: 0714 | J106: Raízes de mandioca, de araruta, batata-doce, etc. | K106: 0.0041054 | L106: 0.0081788 | M106: -0.0040734
I107: 1106 | J107: Farinhas, etc. de leguminosas e outros tubérculos | K107: 0.0118872 | L107: 0.037976 | M107: -0.0260888
I108: 0804 | J108: Tâmaras, figos, ananases, abacates, goiabas, mangas | K108: 0.076224 | L108: 0.1157532 | M108: -0.0395292
I109: 0810 | J109: Outras frutas frescas | K109: 0.224487 | L109: 0.3286148 | M109: -0.1041278
I110: 0807 | J110: Melões, melancias e papaia, frescos | K110: 0.0091904 | L110: 0.40231 | M110: -0.3931196
I111: 2302 | J111: Resíduos de tratamentos de cereais ou leguminosas | K111: 0.0072798 | L111: 1.9626818 | M111: -1.955402
I112: 0803 | J112: Bananas, frescas ou secas | K112: 0.0098552 | L112: 3.1489294 | M112: -3.1390742
I113: Total | K113: 270.8156406 | L113: 7.1213024 | M113: 263.6943382
A116: Fonte: GPP a partir de dados INE/Comércio Internacional (2021 provisórios; 2022 preliminares) | Y116: 2023-04-18T16:29:06.580

Sheet 4A
A1: Evolução da balança comercial Portugal-Angola 2018-2022 por produto em euros (NC 2 dígitos)
A3: =+aux!A31 -> Evolução da balança comercial Portugal-Angola para Gorduras e óleos animais ou vegetais
A5: Selecione o produto:
Q7: Para obter uma maior desagregação deste produto, clique no botão respetivo:
A20: =+aux!A43 -> Evolução da balança comercial Portugal-Angola para Peixes e crustáceos
A22: Selecione o produto:
A38: Fonte: GPP a partir de dados INE/Comércio Internacional (2021 provisórios; 2022 preliminares) | N38: 2023-04-18T16:29:06.580

Sheet 5.2
A1: Trocas comerciais Portugal-Angola 2018-2022 em milhares de euros (NC 2 dígitos) | C1: Produtos agrícolas e agroalimentares, do mar e da floresta
A2: Cód. NC | B2: Descritivo | C2: Importações | K2: Exportações | S2: Saldo quinquénio (exp-imp) | T2: Evolução das importações | U2: =+"Variação das Importações " & INDEX(K3:N3,1,aux!AL1) & "-"& '5.2'!O3 &"" -> Variação das Importações 2018-2022 | Z2: Evolução das exportações | AA2: ="Variação das Exportações " & INDEX(K3:N3,1,aux!AL1) & "-"& '5.2'!O3 &"" -> Variação das Exportações 2018-2022
C3: 2018 | D3: 2019 | E3: 2020 | F3: 2021 | G3: 2022 | H3: média quinquénio | I3: % Subtot | J3: % Total | K3: 2018 | L3: 2019 | M3: 2020 | N3: 2021 | O3: 2022 | P3: média quinquénio | Q3: % Subtot | R3: % Total | U3: variação total em valor | V3: % no subtotal de variação | W3: % no total de variação | X3: taxa de variação média anual | Y3: taxa de variação total | AA3: variação total em valor | AB3: % no subtotal de variação | AC3: % no total de variação | AD3: taxa de variação média anual | AE3: taxa de variação total
A4: 01 | B4: Animais vivos | C4: 0 | D4: 0 | E4: 0 | F4: 0 | G4: 0 | H4: 0 | I4: 0 | J4: 0 | K4: 391.267 | L4: 208.556 | M4: 157.621 | N4: 189.586 | O4: 232.475 | P4: 235.901 | Q4: 0.0008710759817 | R4: 0.000712433416 | S4: 235.901 | U4: =G4-INDEX($C4:$G4,1,aux!$AL$1) -> 0 | V4: =IF($U$37<>0,U4/$U$37, "n.d.") -> 0 | W4: =IF($U$53<>0,U4/$U$53, "n.d.") -> 0 | X4: =+IF(INDEX($C4:$G4,1,aux!$AL$1)>0,(G4/INDEX($C4:$G4,1,aux!$AL$1))^(1/($G$3-INDEX($C$3:$G$3,1,aux!$AL$1)))-1,"n.d.") -> n.d. | Y4: =IF(INDEX($C4:$G4,1,aux!$AL$1)>0,(G4-INDEX($C4:$G4,1,aux!$AL$1))/INDEX($C4:$G4,1,aux!$AL$1),"n.d.") -> n.d. | AA4: =O4-INDEX($K4:$O4,1,aux!$AL$1) -> -158.792 | AB4: =IF($AA$37<>0,AA4/$AA$37, "n.d.") -> 0.001961715684 | AC4: =IF($AA$53<>0,AA4/$AA$53, "n.d.") -> 0.001727653026 | AD4: =+IF(INDEX($K4:$O4,1,aux!$AL$1)>0,(O4/INDEX($K4:$O4,1,aux!$AL$1))^(1/($O$3-INDEX($K$3:$O$3,1,aux!$AL$1)))-1,"n.d.") -> -0.1220379195 | AE4: =IF(INDEX($K4:$O4,1,aux!$AL$1)>0,(O4-INDEX($K4:$O4,1,aux!$AL$1))/INDEX($K4:$O4,1,aux!$AL$1),"n.d.") -> -0.405840513
A5: 02 | B5: Carnes e miudezas | C5: 0 | D5: 0 | E5: 0 | F5: 0 | G5: 0 | H5: 0 | I5: 0 | J5: 0 | K5: 27990.583 | L5: 12018.577 | M5: 10323.406 | N5: 13748.647 | O5: 15540.41 | P5: 15924.3246 | Q5: 0.05880134753 | R5: 0.04809229707 | S5: 15924.3246 | U5: =G5-INDEX($C5:$G5,1,aux!$AL$1) -> 0 | V5: 0 | W5: 0 | X5: =+IF(INDEX($C5:$G5,1,aux!$AL$1)>0,(G5/INDEX($C5:$G5,1,aux!$AL$1))^(1/($G$3-INDEX($C$3:$G$3,1,aux!$AL$1)))-1,"n.d.") -> n.d. | Y5: =IF(INDEX($C5:$G5,1,aux!$AL$1)>0,(G5-INDEX($C5:$G5,1,aux!$AL$1))/INDEX($C5:$G5,1,aux!$AL$1),"n.d.") -> n.d. | AA5: =O5-INDEX($K5:$O5,1,aux!$AL$1) -> -12450.173 | AB5: 0.1538093836 | AC5: 0.1354575738 | AD5: =+IF(INDEX($K5:$O5,1,aux!$AL$1)>0,(O5/INDEX($K5:$O5,1,aux!$AL$1))^(1/($O$3-INDEX($K$3:$O$3,1,aux!$AL$1)))-1,"n.d.") -> -0.1367976141 | AE5: =IF(INDEX($K5:$O5,1,aux!$AL$1)>0,(O5-INDEX($K5:$O5,1,aux!$AL$1))/INDEX($K5:$O5,1,aux!$AL$1),"n.d.") -> -0.444798631
A6: 04 | B6: Leite e laticínios; ovos; mel, etc. | C6: 0 | D6: 0 | E6: 0 | F6: 0.004 | G6: 0 | H6: 0.0008 | I6: 1.123390014e-07 | J6: 5.187008313e-08 | K6: 49506.584 | L6: 42735.565 | M6: 23020.897 | N6: 24762.55 | O6: 35819.776 | P6: 35169.0744 | Q6: 0.1298635275 | R6: 0.1062124527 | S6: 35169.0736 | U6: =G6-INDEX($C6:$G6,1,aux!$AL$1) -> 0 | V6: 0 | W6: 0 | X6: =+IF(INDEX($C6:$G6,1,aux!$AL$1)>0,(G6/INDEX($C6:$G6,1,aux!$AL$1))^(1/($G$3-INDEX($C$3:$G$3,1,aux!$AL$1)))-1,"n.d.") -> n.d. | Y6: =IF(INDEX($C6:$G6,1,aux!$AL$1)>0,(G6-INDEX($C6:$G6,1,aux!$AL$1))/INDEX($C6:$G6,1,aux!$AL$1),"n.d.") -> n.d. | AA6: =O6-INDEX($K6:$O6,1,aux!$AL$1) -> -13686.808 | AB6: 0.1690867671 | AC6: 0.1489121319 | AD6: =+IF(INDEX($K6:$O6,1,aux!$AL$1)>0,(O6/INDEX($K6:$O6,1,aux!$AL$1))^(1/($O$3-INDEX($K$3:$O$3,1,aux!$AL$1)))-1,"n.d.") -> -0.07771535911 | AE6: =IF(INDEX($K6:$O6,1,aux!$AL$1)>0,(O6-INDEX($K6:$O6,1,aux!$AL$1))/INDEX($K6:$O6,1,aux!$AL$1),"n.d.") -> -0.2764643992
A7: 05a | B7: Outros produtos de origem animal (exc. NC 0508, 051191) (a) | C7: 0 | D7: 0 | E7: 0 | F7: 0.338 | G7: 0.274 | H7: 0.1224 | I7: 1.718786721e-05 | J7: 7.936122719e-06 | K7: 40.096 | L7: 36.444 | M7: 72.398 | N7: 128.976 | O7: 835.625 | P7: 222.7078 | Q7: 0.0008223594454 | R7: 0.0006725892587 | S7: 222.5854 | U7: =G7-INDEX($C7:$G7,1,aux!$AL$1) -> 0.274 | V7: 3.509000201e-05 | W7: 2.143931009e-05 | X7: =+IF(INDEX($C7:$G7,1,aux!$AL$1)>0,(G7/INDEX($C7:$G7,1,aux!$AL$1))^(1/($G$3-INDEX($C$3:$G$3,1,aux!$AL$1)))-1,"n.d.") -> n.d. | Y7: =IF(INDEX($C7:$G7,1,aux!$AL$1)>0,(G7-INDEX($C7:$G7,1,aux!$AL$1))/INDEX($C7:$G7,1,aux!$AL$1),"n.d.") -> n.d. | AA7: =O7-INDEX($K7:$O7,1,aux!$AL$1) -> 795.529 | AB7: -0.009827961839 | AC7: -0.008655335811 | AD7: =+IF(INDEX($K7:$O7,1,aux!$AL$1)>0,(O7/INDEX($K7:$O7,1,aux!$AL$1))^(1/($O$3-INDEX($K$3:$O$3,1,aux!$AL$1)))-1,"n.d.") -> 1.136621498 | AE7: =IF(INDEX($K7:$O7,1,aux!$AL$1)>0,(O7-INDEX($K7:$O7,1,aux!$AL$1))/INDEX($K7:$O7,1,aux!$AL$1),"n.d.") -> 19.84060754
A8: 06 | B8: Plantas vivas e produtos de floricultura | C8: 1.109 | D8: 0.333 | E8: 0 | F8: 0 | G8: 0 | H8: 0.2884 | I8: 4.049820999e-05 | J8: 1.869916497e-05 | K8: 224.75 | L8: 345.144 | M8: 220.62 | N8: 218.171 | O8: 138.655 | P8: 229.468 | Q8: 0.0008473218145 | R8: 0.0006930054179 | S8: 229.1796 | U8: =G8-INDEX($C8:$G8,1,aux!$AL$1) -> -1.109 | V8: -0.0001420248622 | W8: -8.677443389e-05 | X8: =+IF(INDEX($C8:$G8,1,aux!$AL$1)>0,(G8/INDEX($C8:$G8,1,aux!$AL$1))^(1/($G$3-INDEX($C$3:$G$3,1,aux!$AL$1)))-1,"n.d.") -> -1 | Y8: =IF(INDEX($C8:$G8,1,aux!$AL$1)>0,(G8-INDEX($C8:$G8,1,aux!$AL$1))/INDEX($C8:$G8,1,aux!$AL$1),"n.d.") -> -1 | AA8: =O8-INDEX($K8:$O8,1,aux!$AL$1) -> -86.095 | AB8: 0.001063617259 | AC8: 0.000936711467 | AD8: =+IF(INDEX($K8:$O8,1,aux!$AL$1)>0,(O8/INDEX($K8:$O8,1,aux!$AL$1))^(1/($O$3-INDEX($K$3:$O$3,1,aux!$AL$1)))-1,"n.d.") -> -0.1137444688 | AE8: =IF(INDEX($K8:$O8,1,aux!$AL$1)>0,(O8-INDEX($K8:$O8,1,aux!$AL$1))/INDEX($K8:$O8,1,aux!$AL$1),"n.d.") -> -0.3830700779
A9: 07 | B9: Produtos hortícolas | C9: 1.325 | D9: 0.032 | E9: 6.741 | F9: 19.229 | G9: 15.187 | H9: 8.5028 | I9: 0.001193995076 | J9: 0.0005513011785 | K9: 4355.227 | L9: 2252.166 | M9: 2078.676 | N9: 1047.921 | O9: 1483.999 | P9: 2243.5978 | Q9: 0.008284594623 | R9: 0.006775783251 | S9: 2235.095 | U9: =G9-INDEX($C9:$G9,1,aux!$AL$1) -> 13.862 | V9: 0.001775246744 | W9: 0.001084641301 | X9: =+IF(INDEX($C9:$G9,1,aux!$AL$1)>0,(G9/INDEX($C9:$G9,1,aux!$AL$1))^(1/($G$3-INDEX($C$3:$G$3,1,aux!$AL$1)))-1,"n.d.") -> 0.8399839244 | Y9: =IF(INDEX($C9:$G9,1,aux!$AL$1)>0,(G9-INDEX($C9:$G9,1,aux!$AL$1))/INDEX($C9:$G9,1,aux!$AL$1),"n.d.") -> 10.46188679 | AA9: =O9-INDEX($K9:$O9,1,aux!$AL$1) -> -2871.228 | AB9: 0.03547113834 | AC9: 0.03123888951 | AD9: =+IF(INDEX($K9:$O9,1,aux!$AL$1)>0,(O9/INDEX($K9:$O9,1,aux!$AL$1))^(1/($O$3-INDEX($K$3:$O$3,1,aux!$AL$1)))-1,"n.d.") -> -0.2359782835 | AE9: =IF(INDEX($K9:$O9,1,aux!$AL$1)>0,(O9-INDEX($K9:$O9,1,aux!$AL$1))/INDEX($K9:$O9,1,aux!$AL$1),"n.d.") -> -0.6592602406
A10: 08 | B10: Frutas | C10: 582.306 | D10: 2619.066 | E10: 3601.434 | F10: 5073.929 | G10: 8211.214 | H10: 4017.5898 | I10: 0.5641650325 | J10: 0.2604908961 | K10: 4491.32 | L10: 3538.682 | M10: 1420.009 | N10: 861.791 | O10: 1347.714 | P10: 2331.9032 | Q10: 0.008610666632 | R10: 0.007042470199 | S10: -1685.6866 | U10: =G10-INDEX($C10:$G10,1,aux!$AL$1) -> 7628.908 | V10: 0.9770014492 | W10: 0.5969289205 | X10: =+IF(INDEX($C10:$G10,1,aux!$AL$1)>0,(G10/INDEX($C10:$G10,1,aux!$AL$1))^(1/($G$3-INDEX($C$3:$G$3,1,aux!$AL$1)))-1,"n.d.") -> 0.937822644 | Y10: =IF(INDEX($C10:$G10,1,aux!$AL$1)>0,(G10-INDEX($C10:$G10,1,aux!$AL$1))/INDEX($C10:$G10,1,aux!$AL$1),"n.d.") -> 13.10120109 | AA10: =O10-INDEX($K10:$O10,1,aux!$AL$1) -> -3143.606 | AB10: 0.03883609498 | AC10: 0.0342023554 | AD10: =+IF(INDEX($K10:$O10,1,aux!$AL$1)>0,(O10/INDEX($K10:$O10,1,aux!$AL$1))^(1/($O$3-INDEX($K$3:$O$3,1,aux!$AL$1)))-1,"n.d.") -> -0.2598735325 | AE10: =IF(INDEX($K10:$O10,1,aux!$AL$1)>0,(O10-INDEX($K10:$O10,1,aux!$AL$1))/INDEX($K10:$O10,1,aux!$AL$1),"n.d.") -> -0.6999291968
A11: 09 | B11: Café, chá, mate e especiarias | C11: 496.088 | D11: 921.659 | E11: 1622.914 | F11: 737.332 | G11: 782.699 | H11: 912.1384 | I11: 0.1280858962 | J11: 0.05914086829 | K11: 8076.976 | L11: 4740.838 | M11: 3614.972 | N11: 4231.044 | O11: 5462.718 | P11: 5225.3096 | Q11: 0.0192947113 | R11: 0.01578070957 | S11: 4313.1712 | U11: =G11-INDEX($C11:$G11,1,aux!$AL$1) -> 286.611 | V11: 0.03670503857 | W11: 0.02242606607 | X11: =+IF(INDEX($C11:$G11,1,aux!$AL$1)>0,(G11/INDEX($C11:$G11,1,aux!$AL$1))^(1/($G$3-INDEX($C$3:$G$3,1,aux!$AL$1)))-1,"n.d.") -> 0.1207506883 | Y11: =IF(INDEX($C11:$G11,1,aux!$AL$1)>0,(G11-INDEX($C11:$G11,1,aux!$AL$1))/INDEX($C11:$G11,1,aux!$AL$1),"n.d.") -> 0.5777422554 | AA11: =O11-INDEX($K11:$O11,1,aux!$AL$1) -> -2614.258 | AB11: 0.03229653207 | AC11: 0.02844306227 | AD11: =+IF(INDEX($K11:$O11,1,aux!$AL$1)>0,(O11/INDEX($K11:$O11,1,aux!$AL$1))^(1/($O$3-INDEX($K$3:$O$3,1,aux!$AL$1)))-1,"n.d.") -> -0.09314052003 | AE11: =IF(INDEX($K11:$O11,1,aux!$AL$1)>0,(O11-INDEX($K11:$O11,1,aux!$AL$1))/INDEX($K11:$O11,1,aux!$AL$1),"n.d.") -> -0.3236679173
A12: 10 | B12: Cereais | C12: 0 | D12: 0 | E12: 0 | F12: 0 | G12: 0.1 | H12: 0.02 | I12: 2.808475034e-06 | J12: 1.296752078e-06 | K12: 3555.094 | L12: 1605.949 | M12: 748.796 | N12: 724.289 | O12: 561.835 | P12: 1439.1926 | Q12: 0.005314289074 | R12: 0.004346437278 | S12: 1439.1726 | U12: =G12-INDEX($C12:$G12,1,aux!$AL$1) -> 0.1 | V12: 1.280657008e-05 | W12: 7.824565725e-06 | X12: =+IF(INDEX($C12:$G12,1,aux!$AL$1)>0,(G12/INDEX($C12:$G12,1,aux!$AL$1))^(1/($G$3-INDEX($C$3:$G$3,1,aux!$AL$1)))-1,"n.d.") -> n.d. | Y12: =IF(INDEX($C12:$G12,1,aux!$AL$1)>0,(G12-INDEX($C12:$G12,1,aux!$AL$1))/INDEX($C12:$G12,1,aux!$AL$1),"n.d.") -> n.d. | AA12: =O12-INDEX($K12:$O12,1,aux!$AL$1) -> -2993.259 | AB12: 0.03697870879 | AC12: 0.03256658376 | AD12: =+IF(INDEX($K12:$O12,1,aux!$AL$1)>0,(O12/INDEX($K12:$O12,1,aux!$AL$1))^(1/($O$3-INDEX($K$3:$O$3,1,aux!$AL$1)))-1,"n.d.") -> -0.3694937071 | AE12: =IF(INDEX($K12:$O12,1,aux!$AL$1)>0,(O12-INDEX($K12:$O12,1,aux!$AL$1))/INDEX($K12:$O12,1,aux!$AL$1),"n.d.") -> -0.8419633911
A13: 11 | B13: Produtos da indústria de moagem e outros | C13: 29.495 | D13: 4.676 | E13: 14.886 | F13: 118.015 | G13: 23.841 | H13: 38.1826 | I13: 0.005361743942 | J13: 0.002475668295 | K13: 19944.171 | L13: 21651.564 | M13: 14067.344 | N13: 7203.089 | O13: 9959.803 | P13: 14565.1942 | Q13: 0.05378269205 | R13: 0.04398765185 | S13: 14527.0116 | U13: =G13-INDEX($C13:$G13,1,aux!$AL$1) -> -5.654 | V13: -0.0007240834722 | W13: -0.0004424009461 | X13: =+IF(INDEX($C13:$G13,1,aux!$AL$1)>0,(G13/INDEX($C13:$G13,1,aux!$AL$1))^(1/($G$3-INDEX($C$3:$G$3,1,aux!$AL$1)))-1,"n.d.") -> -0.05181295606 | Y13: =IF(INDEX($C13:$G13,1,aux!$AL$1)>0,(G13-INDEX($C13:$G13,1,aux!$AL$1))/INDEX($C13:$G13,1,aux!$AL$1),"n.d.") -> -0.1916935074 | AA13: =O13-INDEX($K13:$O13,1,aux!$AL$1) -> -9984.368 | AB13: 0.1233468393 | AC13: 0.1086296765 | AD13: =+IF(INDEX($K13:$O13,1,aux!$AL$1)>0,(O13/INDEX($K13:$O13,1,aux!$AL$1))^(1/($O$3-INDEX($K$3:$O$3,1,aux!$AL$1)))-1,"n.d.") -> -0.159362635 | AE13: =IF(INDEX($K13:$O13,1,aux!$AL$1)>0,(O13-INDEX($K13:$O13,1,aux!$AL$1))/INDEX($K13:$O13,1,aux!$AL$1),"n.d.") -> -0.5006158441
A14: 12 | B14: Sementes e frutos oleaginosos | C14: 0.153 | D14: 1.499 | E14: 6.641 | F14: 48.942 | G14: 9.439 | H14: 13.3348 | I14: 0.001872522644 | J14: 0.0008645964806 | K14: 2610.792 | L14: 2211.363 | M14: 1991.965 | N14: 1938.492 | O14: 2000.564 | P14: 2150.6352 | Q14: 0.007941325675 | R14: 0.006495031314 | S14: 2137.3004 | U14: =G14-INDEX($C14:$G14,1,aux!$AL$1) -> 9.286 | V14: 0.001189218097 | W14: 0.0007265891732 | X14: =+IF(INDEX($C14:$G14,1,aux!$AL$1)>0,(G14/INDEX($C14:$G14,1,aux!$AL$1))^(1/($G$3-INDEX($C$3:$G$3,1,aux!$AL$1)))-1,"n.d.") -> 1.802584003 | Y14: =IF(INDEX($C14:$G14,1,aux!$AL$1)>0,(G14-INDEX($C14:$G14,1,aux!$AL$1))/INDEX($C14:$G14,1,aux!$AL$1),"n.d.") -> 60.69281046 | AA14: =O14-INDEX($K14:$O14,1,aux!$AL$1) -> -610.228 | AB14: 0.007538754083 | AC14: 0.006639265522 | AD14: =+IF(INDEX($K14:$O14,1,aux!$AL$1)>0,(O14/INDEX($K14:$O14,1,aux!$AL$1))^(1/($O$3-INDEX($K$3:$O$3,1,aux!$AL$1)))-1,"n.d.") -> -0.06438959272 | AE14: =IF(INDEX($K14:$O14,1,aux!$AL$1)>0,(O14-INDEX($K14:$O14,1,aux!$AL$1))/INDEX($K14:$O14,1,aux!$AL$1),"n.d.") -> -0.2337329056
A15: 13a | B15: Sucos e extratos vegetais (exc. NC 1301) (a) | C15: 0 | D15: 0 | E15: 0 | F15: 0 | G15: 0 | H15: 0 | I15: 0 | J15: 0 | K15: 176.789 | L15: 624.718 | M15: 545.002 | N15: 333.017 | O15: 243.602 | P15: 384.6256 | Q15: 0.001420248842 | R15: 0.001161589523 | S15: 384.6256 | U15: =G15-INDEX($C15:$G15,1,aux!$AL$1) -> 0 | V15: 0 | W15: 0 | X15: =+IF(INDEX($C15:$G15,1,aux!$AL$1)>0,(G15/INDEX($C15:$G15,1,aux!$AL$1))^(1/($G$3-INDEX($C$3:$G$3,1,aux!$AL$1)))-1,"n.d.") -> n.d. | Y15: =IF(INDEX($C15:$G15,1,aux!$AL$1)>0,(G15-INDEX($C15:$G15,1,aux!$AL$1))/INDEX($C15:$G15,1,aux!$AL$1),"n.d.") -> n.d. | AA15: =O15-INDEX($K15:$O15,1,aux!$AL$1) -> 66.813 | AB15: -0.0008254075142 | AC15: -0.0007269237847 | AD15: =+IF(INDEX($K15:$O15,1,aux!$AL$1)>0,(O15/INDEX($K15:$O15,1,aux!$AL$1))^(1/($O$3-INDEX($K$3:$O$3,1,aux!$AL$1)))-1,"n.d.") -> 0.08344383469 | AE15: =IF(INDEX($K15:$O15,1,aux!$AL$1)>0,(O15-INDEX($K15:$O15,1,aux!$AL$1))/INDEX($K15:$O15,1,aux!$AL$1),"n.d.") -> 0.3779250971
A16: 14 | B16: Matérias para entrançar e outros | C16: 0 | D16: 0 | E16: 0 | F16: 0 | G16: 0.501 | H16: 0.1002 | I16: 1.407045992e-05 | J16: 6.496727912e-06 | K16: 77.66 | L16: 15.814 | M16: 18.149 | N16: 15.008 | O16: 25.406 | P16: 30.4074 | Q16: 0.0001122808119 | R16: 9.183194583e-05 | S16: 30.3072 | U16: =G16-INDEX($C16:$G16,1,aux!$AL$1) -> 0.501 | V16: 6.416091609e-05 | W16: 3.920107428e-05 | X16: =+IF(INDEX($C16:$G16,1,aux!$AL$1)>0,(G16/INDEX($C16:$G16,1,aux!$AL$1))^(1/($G$3-INDEX($C$3:$G$3,1,aux!$AL$1)))-1,"n.d.") -> n.d. | Y16: =IF(INDEX($C16:$G16,1,aux!$AL$1)>0,(G16-INDEX($C16:$G16,1,aux!$AL$1))/INDEX($C16:$G16,1,aux!$AL$1),"n.d.") -> n.d. | AA16: =O16-INDEX($K16:$O16,1,aux!$AL$1) -> -52.254 | AB16: 0.0006455456909 | AC16: 0.0005685222254 | AD16: =+IF(INDEX($K16:$O16,1,aux!$AL$1)>0,(O16/INDEX($K16:$O16,1,aux!$AL$1))^(1/($O$3-INDEX($K$3:$O$3,1,aux!$AL$1)))-1,"n.d.") -> -0.2437163233 | AE16: =IF(INDEX($K16:$O16,1,aux!$AL$1)>0,(O16-INDEX($K16:$O16,1,aux!$AL$1))/INDEX($K16:$O16,1,aux!$AL$1),"n.d.") -> -0.6728560391
A17: 15 | B17: Gorduras e óleos animais ou vegetais | C17: 0 | D17: 0 | E17: 0 | F17: 0.098 | G17: 8.796 | H17: 1.7788 | I17: 0.0002497857695 | J17: 0.0001153331298 | K17: 80950.073 | L17: 65639.728 | M17: 49189.793 | N17: 45091.752 | O17: 67690.707 | P17: 61712.4106 | Q17: 0.2278760948 | R17: 0.1863747228 | S17: 61710.6318 | U17: =G17-INDEX($C17:$G17,1,aux!$AL$1) -> 8.796 | V17: 0.001126465904 | W17: 0.0006882488012 | X17: =+IF(INDEX($C17:$G17,1,aux!$AL$1)>0,(G17/INDEX($C17:$G17,1,aux!$AL$1))^(1/($G$3-INDEX($C$3:$G$3,1,aux!$AL$1)))-1,"n.d.") -> n.d. | Y17: =IF(INDEX($C17:$G17,1,aux!$AL$1)>0,(G17-INDEX($C17:$G17,1,aux!$AL$1))/INDEX($C17:$G17,1,aux!$AL$1),"n.d.") -> n.d. | AA17: =O17-INDEX($K17:$O17,1,aux!$AL$1) -> -13259.366 | AB17: 0.1638061504 | AC17: 0.1442615736 | AD17: =+IF(INDEX($K17:$O17,1,aux!$AL$1)>0,(O17/INDEX($K17:$O17,1,aux!$AL$1))^(1/($O$3-INDEX($K$3:$O$3,1,aux!$AL$1)))-1,"n.d.") -> -0.04373568086 | AE17: =IF(INDEX($K17:$O17,1,aux!$AL$1)>0,(O17-INDEX($K17:$O17,1,aux!$AL$1))/INDEX($K17:$O17,1,aux!$AL$1),"n.d.") -> -0.1637968381
A18: 16a | B18: Preparações de carnes (exc. NC 1604-05) (a) | C18: 0 | D18: 0 | E18: 0 | F18: 0 | G18: 0 | H18: 0 | I18: 0 | J18: 0 | K18: 30817.698 | L18: 28352.826 | M18: 22345.613 | N18: 18166.724 | O18: 26416.375 | P18: 25219.8472 | Q18: 0.09312551943 | R18: 0.07616526378 | S18: 25219.8472 | U18: =G18-INDEX($C18:$G18,1,aux!$AL$1) -> 0 | V18: 0 | W18: 0 | X18: =+IF(INDEX($C18:$G18,1,aux!$AL$1)>0,(G18/INDEX($C18:$G18,1,aux!$AL$1))^(1/($G$3-INDEX($C$3:$G$3,1,aux!$AL$1)))-1,"n.d.") -> n.d. | Y18: =IF(INDEX($C18:$G18,1,aux!$AL$1)>0,(G18-INDEX($C18:$G18,1,aux!$AL$1))/INDEX($C18:$G18,1,aux!$AL$1),"n.d.") -> n.d. | AA18: =O18-INDEX($K18:$O18,1,aux!$AL$1) -> -4401.323 | AB18: 0.05437392538 | AC18: 0.0478862852 | AD18: =+IF(INDEX($K18:$O18,1,aux!$AL$1)>0,(O18/INDEX($K18:$O18,1,aux!$AL$1))^(1/($O$3-INDEX($K$3:$O$3,1,aux!$AL$1)))-1,"n.d.") -> -0.0377935661 | AE18: =IF(INDEX($K18:$O18,1,aux!$AL$1)>0,(O18-INDEX($K18:$O18,1,aux!$AL$1))/INDEX($K18:$O18,1,aux!$AL$1),"n.d.") -> -0.1428180327
A19: 17 | B19: Açúcares e produtos de confeitaria | C19: 0 | D19: 0.013 | E19: 0 | F19: 0 | G19: 0 | H19: 0.0026 | I19: 3.651017544e-07 | J19: 1.685777702e-07 | K19: 7317.065 | L19: 5164.181 | M19: 1744.521 | N19: 1694.024 | O19: 3436.382 | P19: 3871.2346 | Q19: 0.01429472312 | R19: 0.01169133192 | S19: 3871.232 | U19: =G19-INDEX($C19:$G19,1,aux!$AL$1) -> 0 | V19: 0 | W19: 0 | X19: =+IF(INDEX($C19:$G19,1,aux!$AL$1)>0,(G19/INDEX($C19:$G19,1,aux!$AL$1))^(1/($G$3-INDEX($C$3:$G$3,1,aux!$AL$1)))-1,"n.d.") -> n.d. | Y19: =IF(INDEX($C19:$G19,1,aux!$AL$1)>0,(G19-INDEX($C19:$G19,1,aux!$AL$1))/INDEX($C19:$G19,1,aux!$AL$1),"n.d.") -> n.d. | AA19: =O19-INDEX($K19:$O19,1,aux!$AL$1) -> -3880.683 | AB19: 0.04794194106 | AC19: 0.0422217349 | AD19: =+IF(INDEX($K19:$O19,1,aux!$AL$1)>0,(O19/INDEX($K19:$O19,1,aux!$AL$1))^(1/($O$3-INDEX($K$3:$O$3,1,aux!$AL$1)))-1,"n.d.") -> -0.1721700577 | AE19: =IF(INDEX($K19:$O19,1,aux!$AL$1)>0,(O19-INDEX($K19:$O19,1,aux!$AL$1))/INDEX($K19:$O19,1,aux!$AL$1),"n.d.") -> -0.5303606022
A20: 18 | B20: Cacau e suas preparações | C20: 0 | D20: 0 | E20: 0 | F20: 0 | G20: 0 | H20: 0 | I20: 0 | J20: 0 | K20: 4767.116 | L20: 2824.129 | M20: 2370.532 | N20: 2227.625 | O20: 2583.719 | P20: 2954.6242 | Q20: 0.01091009439 | R20: 0.008923120342 | S20: 2954.6242 | U20: =G20-INDEX($C20:$G20,1,aux!$AL$1) -> 0 | V20: 0 | W20: 0 | X20: =+IF(INDEX($C20:$G20,1,aux!$AL$1)>0,(G20/INDEX($C20:$G20,1,aux!$AL$1))^(1/($G$3-INDEX($C$3:$G$3,1,aux!$AL$1)))-1,"n.d.") -> n.d. | Y20: =IF(INDEX($C20:$G20,1,aux!$AL$1)>0,(G20-INDEX($C20:$G20,1,aux!$AL$1))/INDEX($C20:$G20,1,aux!$AL$1),"n.d.") -> n.d. | AA20: =O20-INDEX($K20:$O20,1,aux!$AL$1) -> -2183.397 | AB20: 0.02697367713 | AC20: 0.02375530527 | AD20: =+IF(INDEX($K20:$O20,1,aux!$AL$1)>0,(O20/INDEX($K20:$O20,1,aux!$AL$1))^(1/($O$3-INDEX($K$3:$O$3,1,aux!$AL$1)))-1,"n.d.") -> -0.1419800423 | AE20: =IF(INDEX($K20:$O20,1,aux!$AL$1)>0,(O20-INDEX($K20:$O20,1,aux!$AL$1))/INDEX($K20:$O20,1,aux!$AL$1),"n.d.") -> -0.4580121398
A21: 19a | B21: Preparações à base de cereais (exc. NC 19022010) (a) | C21: 0.033 | D21: 0 | E21: 0 | F21: 0 | G21: 0 | H21: 0.0066 | I21: 9.267967612e-07 | J21: 4.279281858e-07 | K21: 30139.119 | L21: 22916.537 | M21: 15048.403 | N21: 15382.562 | O21: 21760.683 | P21: 21049.4608 | Q21: 0.07772616365 | R21: 0.06357047771 | S21: 21049.4542 | U21: =G21-INDEX($C21:$G21,1,aux!$AL$1) -> -0.033 | V21: -4.226168126e-06 | W21: -2.582106689e-06 | X21: =+IF(INDEX($C21:$G21,1,aux!$AL$1)>0,(G21/INDEX($C21:$G21,1,aux!$AL$1))^(1/($G$3-INDEX($C$3:$G$3,1,aux!$AL$1)))-1,"n.d.") -> -1 | Y21: =IF(INDEX($C21:$G21,1,aux!$AL$1)>0,(G21-INDEX($C21:$G21,1,aux!$AL$1))/INDEX($C21:$G21,1,aux!$AL$1),"n.d.") -> -1 | AA21: =O21-INDEX($K21:$O21,1,aux!$AL$1) -> -8378.436 | AB21: 0.1035071622 | AC21: 0.0911571761 | AD21: =+IF(INDEX($K21:$O21,1,aux!$AL$1)>0,(O21/INDEX($K21:$O21,1,aux!$AL$1))^(1/($O$3-INDEX($K$3:$O$3,1,aux!$AL$1)))-1,"n.d.") -> -0.07820257144 | AE21: =IF(INDEX($K21:$O21,1,aux!$AL$1)>0,(O21-INDEX($K21:$O21,1,aux!$AL$1))/INDEX($K21:$O21,1,aux!$AL$1),"n.d.") -> -0.2779920674
A22: 20 | B22: Preparações de produtos vegetais | C22: 0 | D22: 0 | E22: 0.208 | F22: 1.181 | G22: 8.801 | H22: 2.038 | I22: 0.000286183606 | J22: 0.0001321390368 | K22: 12916.351 | L22: 8419.937 | M22: 4670.969 | N22: 5437.719 | O22: 7852.139 | P22: 7859.423 | Q22: 0.02902130388 | R22: 0.02373587045 | S22: 7857.385 | U22: =G22-INDEX($C22:$G22,1,aux!$AL$1) -> 8.801 | V22: 0.001127106233 | W22: 0.0006886400294 | X22: =+IF(INDEX($C22:$G22,1,aux!$AL$1)>0,(G22/INDEX($C22:$G22,1,aux!$AL$1))^(1/($G$3-INDEX($C$3:$G$3,1,aux!$AL$1)))-1,"n.d.") -> n.d. | Y22: =IF(INDEX($C22:$G22,1,aux!$AL$1)>0,(G22-INDEX($C22:$G22,1,aux!$AL$1))/INDEX($C22:$G22,1,aux!$AL$1),"n.d.") -> n.d. | AA22: =O22-INDEX($K22:$O22,1,aux!$AL$1) -> -5064.212 | AB22: 0.06256325323 | AC22: 0.05509850109 | AD22: =+IF(INDEX($K22:$O22,1,aux!$AL$1)>0,(O22/INDEX($K22:$O22,1,aux!$AL$1))^(1/($O$3-INDEX($K$3:$O$3,1,aux!$AL$1)))-1,"n.d.") -> -0.1169972927 | AE22: =IF(INDEX($K22:$O22,1,aux!$AL$1)>0,(O22-INDEX($K22:$O22,1,aux!$AL$1))/INDEX($K22:$O22,1,aux!$AL$1),"n.d.") -> -0.3920776077
A23: 21 | B23: Preparações alimentícias diversas | C23: 0 | D23: 0 | E23: 1.189 | F23: 0.69 | G23: 0.787 | H23: 0.5332 | I23: 7.487394441e-05 | J23: 3.457141041e-05 | K23: 13550.341 | L23: 10161.17 | M23: 7866.834 | N23: 8583.763 | O23: 13363.663 | P23: 10705.1542 | Q23: 0.03952930553 | R23: 0.03233012821 | S23: 10704.621 | U23: =G23-INDEX($C23:$G23,1,aux!$AL$1) -> 0.787 | V23: 0.0001007877065 | W23: 6.157933225e-05 | X23: =+IF(INDEX($C23:$G23,1,aux!$AL$1)>0,(G23/INDEX($C23:$G23,1,aux!$AL$1))^(1/($G$3-INDEX($C$3:$G$3,1,aux!$AL$1)))-1,"n.d.") -> n.d. | Y23: =IF(INDEX($C23:$G23,1,aux!$AL$1)>0,(G23-INDEX($C23:$G23,1,aux!$AL$1))/INDEX($C23:$G23,1,aux!$AL$1),"n.d.") -> n.d. | AA23: =O23-INDEX($K23:$O23,1,aux!$AL$1) -> -186.678 | AB23: 0.002306219208 | AC23: 0.002031052015 | AD23: =+IF(INDEX($K23:$O23,1,aux!$AL$1)>0,(O23/INDEX($K23:$O23,1,aux!$AL$1))^(1/($O$3-INDEX($K$3:$O$3,1,aux!$AL$1)))-1,"n.d.") -> -0.003462094554 | AE23: =IF(INDEX($K23:$O23,1,aux!$AL$1)>0,(O23-INDEX($K23:$O23,1,aux!$AL$1))/INDEX($K23:$O23,1,aux!$AL$1),"n.d.") -> -0.01377662747
A24: 22 | B24: Bebidas, líquidos alcoólicos e vinagres | C24: 170.587 | D24: 120.34 | E24: 75.532 | F24: 82.242 | G24: 170.936 | H24: 123.9274 | I24: 0.01740235045 | J24: 0.008035155675 | K24: 48100.69 | L24: 41175.345 | M24: 28650.491 | N24: 27079.802 | O24: 54885.632 | P24: 39978.392 | Q24: 0.147622168 | R24: 0.1207368446 | S24: 39854.4646 | U24: =G24-INDEX($C24:$G24,1,aux!$AL$1) -> 0.349 | V24: 4.469492957e-05 | W24: 2.730773438e-05 | X24: =+IF(INDEX($C24:$G24,1,aux!$AL$1)>0,(G24/INDEX($C24:$G24,1,aux!$AL$1))^(1/($G$3-INDEX($C$3:$G$3,1,aux!$AL$1)))-1,"n.d.") -> 0.0005110772875 | Y24: =IF(INDEX($C24:$G24,1,aux!$AL$1)>0,(G24-INDEX($C24:$G24,1,aux!$AL$1))/INDEX($C24:$G24,1,aux!$AL$1),"n.d.") -> 0.002045876884 | AA24: =O24-INDEX($K24:$O24,1,aux!$AL$1) -> 6784.942 | AB24: -0.08382114424 | AC24: -0.07382000086 | AD24: =+IF(INDEX($K24:$O24,1,aux!$AL$1)>0,(O24/INDEX($K24:$O24,1,aux!$AL$1))^(1/($O$3-INDEX($K$3:$O$3,1,aux!$AL$1)))-1,"n.d.") -> 0.03353893252 | AE24: =IF(INDEX($K24:$O24,1,aux!$AL$1)>0,(O24-INDEX($K24:$O24,1,aux!$AL$1))/INDEX($K24:$O24,1,aux!$AL$1),"n.d.") -> 0.1410570618
A25: 23a | B25: Resíduos indústrias alimentares; alimentos p/ animais (exc. NC 230120) (a) | C25: 1477.92 | D25: 0 | E25: 701.42 | F25: 6325.941 | G25: 1308.3 | H25: 1962.7162 | I25: 0.2756119723 | J25: 0.1272578156 | K25: 10187.421 | L25: 7368.113 | M25: 5846.239 | N25: 6772.83 | O25: 8878.224 | P25: 7810.5654 | Q25: 0.0288408948 | R25: 0.02358831793 | S25: 5847.8492 | U25: =G25-INDEX($C25:$G25,1,aux!$AL$1) -> -169.62 | V25: -0.02172250417 | W25: -0.01327202838 | X25: =+IF(INDEX($C25:$G25,1,aux!$AL$1)>0,(G25/INDEX($C25:$G25,1,aux!$AL$1))^(1/($G$3-INDEX($C$3:$G$3,1,aux!$AL$1)))-1,"n.d.") -> -0.0300170426 | Y25: =IF(INDEX($C25:$G25,1,aux!$AL$1)>0,(G25-INDEX($C25:$G25,1,aux!$AL$1))/INDEX($C25:$G25,1,aux!$AL$1),"n.d.") -> -0.1147694057 | AA25: =O25-INDEX($K25:$O25,1,aux!$AL$1) -> -1309.197 | AB25: 0.0161738141 | AC25: 0.01424403092 | AD25: =+IF(INDEX($K25:$O25,1,aux!$AL$1)>0,(O25/INDEX($K25:$O25,1,aux!$AL$1))^(1/($O$3-INDEX($K$3:$O$3,1,aux!$AL$1)))-1,"n.d.") -> -0.03380349751 | AE25: =IF(INDEX($K25:$O25,1,aux!$AL$1)>0,(O25-INDEX($K25:$O25,1,aux!$AL$1))/INDEX($K25:$O25,1,aux!$AL$1),"n.d.") -> -0.1285111315
A26: 24 | B26: Tabaco | C26: 0 | D26: 0 | E26: 0 | F26: 0 | G26: 0 | H26: 0 | I26: 0 | J26: 0 | K26: 57.483 | L26: 71.586 | M26: 44.136 | N26: 43.715 | O26: 96.529 | P26: 62.6898 | Q26: 0.000231485153 | R26: 0.0001893264902 | S26: 62.6898 | U26: =G26-INDEX($C26:$G26,1,aux!$AL$1) -> 0 | V26: 0 | W26: 0 | X26: =+IF(INDEX($C26:$G26,1,aux!$AL$1)>0,(G26/INDEX($C26:$G26,1,aux!$AL$1))^(1/($G$3-INDEX($C$3:$G$3,1,aux!$AL$1)))-1,"n.d.") -> n.d. | Y26: =IF(INDEX($C26:$G26,1,aux!$AL$1)>0,(G26-INDEX($C26:$G26,1,aux!$AL$1))/INDEX($C26:$G26,1,aux!$AL$1),"n.d.") -> n.d. | AA26: =O26-INDEX($K26:$O26,1,aux!$AL$1) -> 39.046 | AB26: -0.0004823741158 | AC26: -0.0004248195126 | AD26: =+IF(INDEX($K26:$O26,1,aux!$AL$1)>0,(O26/INDEX($K26:$O26,1,aux!$AL$1))^(1/($O$3-INDEX($K$3:$O$3,1,aux!$AL$1)))-1,"n.d.") -> 0.1383599171 | AE26: =IF(INDEX($K26:$O26,1,aux!$AL$1)>0,(O26-INDEX($K26:$O26,1,aux!$AL$1))/INDEX($K26:$O26,1,aux!$AL$1),"n.d.") -> 0.6792616948
A27: 29 | B27: Manitol e sorbitol (NC 290543; 290544) | C27: 0 | D27: 0 | E27: 0 | F27: 0 | G27: 0 | H27: 0 | I27: 0 | J27: 0 | K27: 51.611 | L27: 40.161 | M27: 109.815 | N27: 110.756 | O27: 317.009 | P27: 125.8704 | Q27: 0.000464782609 | R27: 0.0003801352222 | S27: 125.8704 | U27: =G27-INDEX($C27:$G27,1,aux!$AL$1) -> 0 | V27: 0 | W27: 0 | X27: =+IF(INDEX($C27:$G27,1,aux!$AL$1)>0,(G27/INDEX($C27:$G27,1,aux!$AL$1))^(1/($G$3-INDEX($C$3:$G$3,1,aux!$AL$1)))-1,"n.d.") -> n.d. | Y27: =IF(INDEX($C27:$G27,1,aux!$AL$1)>0,(G27-INDEX($C27:$G27,1,aux!$AL$1))/INDEX($C27:$G27,1,aux!$AL$1),"n.d.") -> n.d. | AA27: =O27-INDEX($K27:$O27,1,aux!$AL$1) -> 265.398 | AB27: -0.003278725749 | AC27: -0.002887523665 | AD27: =+IF(INDEX($K27:$O27,1,aux!$AL$1)>0,(O27/INDEX($K27:$O27,1,aux!$AL$1))^(1/($O$3-INDEX($K$3:$O$3,1,aux!$AL$1)))-1,"n.d.") -> 0.574281274 | AE27: =IF(INDEX($K27:$O27,1,aux!$AL$1)>0,(O27-INDEX($K27:$O27,1,aux!$AL$1))/INDEX($K27:$O27,1,aux!$AL$1),"n.d.") -> 5.142275871
A28: 33 | B28: Óleos essenciais e resinóides (NC 3301) | C28: 0 | D28: 0 | E28: 54.344 | F28: 96.006 | G28: 38.19 | H28: 37.708 | I28: 0.005295098829 | J28: 0.002444896368 | K28: 6774.366 | L28: 5405.44 | M28: 2586.999 | N28: 2874.472 | O28: 6001.193 | P28: 4728.494 | Q28: 0.01746019539 | R28: 0.01428030035 | S28: 4690.786 | U28: =G28-INDEX($C28:$G28,1,aux!$AL$1) -> 38.19 | V28: 0.004890829113 | W28: 0.00298820165 | X28: =+IF(INDEX($C28:$G28,1,aux!$AL$1)>0,(G28/INDEX($C28:$G28,1,aux!$AL$1))^(1/($G$3-INDEX($C$3:$G$3,1,aux!$AL$1)))-1,"n.d.") -> n.d. | Y28: =IF(INDEX($C28:$G28,1,aux!$AL$1)>0,(G28-INDEX($C28:$G28,1,aux!$AL$1))/INDEX($C28:$G28,1,aux!$AL$1),"n.d.") -> n.d. | AA28: =O28-INDEX($K28:$O28,1,aux!$AL$1) -> -773.173 | AB28: 0.009551775911 | AC28: 0.008412103085 | AD28: =+IF(INDEX($K28:$O28,1,aux!$AL$1)>0,(O28/INDEX($K28:$O28,1,aux!$AL$1))^(1/($O$3-INDEX($K$3:$O$3,1,aux!$AL$1)))-1,"n.d.") -> -0.02984252477 | AE28: =IF(INDEX($K28:$O28,1,aux!$AL$1)>0,(O28-INDEX($K28:$O28,1,aux!$AL$1))/INDEX($K28:$O28,1,aux!$AL$1),"n.d.") -> -0.1141321564
A29: 35 | B29: Caseínas, albuminas, gelatinas, peptonas, dextrinas (NC 3501 a 3505) | C29: 0 | D29: 0 | E29: 0 | F29: 0 | G29: 0 | H29: 0 | I29: 0 | J29: 0 | K29: 253.538 | L29: 1280.463 | M29: 1310.321 | N29: 2094.46 | O29: 1532.716 | P29: 1294.2996 | Q29: 0.004779264584 | R29: 0.003908852804 | S29: 1294.2996 | U29: =G29-INDEX($C29:$G29,1,aux!$AL$1) -> 0 | V29: 0 | W29: 0 | X29: =+IF(INDEX($C29:$G29,1,aux!$AL$1)>0,(G29/INDEX($C29:$G29,1,aux!$AL$1))^(1/($G$3-INDEX($C$3:$G$3,1,aux!$AL$1)))-1,"n.d.") -> n.d. | Y29: =IF(INDEX($C29:$G29,1,aux!$AL$1)>0,(G29-INDEX($C29:$G29,1,aux!$AL$1))/INDEX($C29:$G29,1,aux!$AL$1),"n.d.") -> n.d. | AA29: =O29-INDEX($K29:$O29,1,aux!$AL$1) -> 1279.178 | AB29: -0.0158029595 | AC29: -0.01391742495 | AD29: =+IF(INDEX($K29:$O29,1,aux!$AL$1)>0,(O29/INDEX($K29:$O29,1,aux!$AL$1))^(1/($O$3-INDEX($K$3:$O$3,1,aux!$AL$1)))-1,"n.d.") -> 0.5680310479 | AE29: =IF(INDEX($K29:$O29,1,aux!$AL$1)>0,(O29-INDEX($K29:$O29,1,aux!$AL$1))/INDEX($K29:$O29,1,aux!$AL$1),"n.d.") -> 5.045310762
A30: 38a | B30: Agentes de acabamento, ácidos gordos, sorbitol (NC 380910, 382311-12-13-19-70, 382460) (a) | C30: 0 | D30: 0 | E30: 0 | F30: 0 | G30: 0 | H30: 0 | I30: 0 | J30: 0 | K30: 4603.647 | L30: 2538.683 | M30: 3006.879 | N30: 3439.144 | O30: 2523.288 | P30: 3222.3282 | Q30: 0.0118986045 | R30: 0.009731600489 | S30: 3222.3282 | U30: =G30-INDEX($C30:$G30,1,aux!$AL$1) -> 0 | V30: 0 | W30: 0 | X30: =+IF(INDEX($C30:$G30,1,aux!$AL$1)>0,(G30/INDEX($C30:$G30,1,aux!$AL$1))^(1/($G$3-INDEX($C$3:$G$3,1,aux!$AL$1)))-1,"n.d.") -> n.d. | Y30: =IF(INDEX($C30:$G30,1,aux!$AL$1)>0,(G30-INDEX($C30:$G30,1,aux!$AL$1))/INDEX($C30:$G30,1,aux!$AL$1),"n.d.") -> n.d. | AA30: =O30-INDEX($K30:$O30,1,aux!$AL$1) -> -2080.359 | AB30: 0.02570074612 | AC30: 0.02263425438 | AD30: =+IF(INDEX($K30:$O30,1,aux!$AL$1)>0,(O30/INDEX($K30:$O30,1,aux!$AL$1))^(1/($O$3-INDEX($K$3:$O$3,1,aux!$AL$1)))-1,"n.d.") -> -0.1395686972 | AE30: =IF(INDEX($K30:$O30,1,aux!$AL$1)>0,(O30-INDEX($K30:$O30,1,aux!$AL$1))/INDEX($K30:$O30,1,aux!$AL$1),"n.d.") -> -0.4518936834
A31: 41 | B31: Couro e peles em bruto (NC 4101 a 4103) | C31: 0 | D31: 0 | E31: 0 | F31: 0 | G31: 0 | H31: 0 | I31: 0 | J31: 0 | K31: 0 | L31: 0 | M31: 0 | N31: 0 | O31: 0 | P31: 0 | Q31: 0 | R31: 0 | S31: 0 | U31: =G31-INDEX($C31:$G31,1,aux!$AL$1) -> 0 | V31: 0 | W31: 0 | X31: =+IF(INDEX($C31:$G31,1,aux!$AL$1)>0,(G31/INDEX($C31:$G31,1,aux!$AL$1))^(1/($G$3-INDEX($C$3:$G$3,1,aux!$AL$1)))-1,"n.d.") -> n.d. | Y31: =IF(INDEX($C31:$G31,1,aux!$AL$1)>0,(G31-INDEX($C31:$G31,1,aux!$AL$1))/INDEX($C31:$G31,1,aux!$AL$1),"n.d.") -> n.d. | AA31: =O31-INDEX($K31:$O31,1,aux!$AL$1) -> 0 | AB31: 0 | AC31: 0 | AD31: =+IF(INDEX($K31:$O31,1,aux!$AL$1)>0,(O31/INDEX($K31:$O31,1,aux!$AL$1))^(1/($O$3-INDEX($K$3:$O$3,1,aux!$AL$1)))-1,"n.d.") -> n.d. | AE31: =IF(INDEX($K31:$O31,1,aux!$AL$1)>0,(O31-INDEX($K31:$O31,1,aux!$AL$1))/INDEX($K31:$O31,1,aux!$AL$1),"n.d.") -> n.d.
A32: 43 | B32: Peles com pelo em bruto (NC 4301) | C32: 0 | D32: 0 | E32: 0 | F32: 0 | G32: 0 | H32: 0 | I32: 0 | J32: 0 | K32: 0 | L32: 0 | M32: 0 | N32: 0 | O32: 0 | P32: 0 | Q32: 0 | R32: 0 | S32: 0 | U32: =G32-INDEX($C32:$G32,1,aux!$AL$1) -> 0 | V32: 0 | W32: 0 | X32: =+IF(INDEX($C32:$G32,1,aux!$AL$1)>0,(G32/INDEX($C32:$G32,1,aux!$AL$1))^(1/($G$3-INDEX($C$3:$G$3,1,aux!$AL$1)))-1,"n.d.") -> n.d. | Y32: =IF(INDEX($C32:$G32,1,aux!$AL$1)>0,(G32-INDEX($C32:$G32,1,aux!$AL$1))/INDEX($C32:$G32,1,aux!$AL$1),"n.d.") -> n.d. | AA32: =O32-INDEX($K32:$O32,1,aux!$AL$1) -> 0 | AB32: 0 | AC32: 0 | AD32: =+IF(INDEX($K32:$O32,1,aux!$AL$1)>0,(O32/INDEX($K32:$O32,1,aux!$AL$1))^(1/($O$3-INDEX($K$3:$O$3,1,aux!$AL$1)))-1,"n.d.") -> n.d. | AE32: =IF(INDEX($K32:$O32,1,aux!$AL$1)>0,(O32-INDEX($K32:$O32,1,aux!$AL$1))/INDEX($K32:$O32,1,aux!$AL$1),"n.d.") -> n.d.
A33: 50 | B33: Seda crua (NC 5001-5003) | C33: 0 | D33: 0 | E33: 0 | F33: 0 | G33: 0 | H33: 0 | I33: 0 | J33: 0 | K33: 0 | L33: 0 | M33: 0 | N33: 0 | O33: 0 | P33: 0 | Q33: 0 | R33: 0 | S33: 0 | U33: =G33-INDEX($C33:$G33,1,aux!$AL$1) -> 0 | V33: 0 | W33: 0 | X33: =+IF(INDEX($C33:$G33,1,aux!$AL$1)>0,(G33/INDEX($C33:$G33,1,aux!$AL$1))^(1/($G$3-INDEX($C$3:$G$3,1,aux!$AL$1)))-1,"n.d.") -> n.d. | Y33: =IF(INDEX($C33:$G33,1,aux!$AL$1)>0,(G33-INDEX($C33:$G33,1,aux!$AL$1))/INDEX($C33:$G33,1,aux!$AL$1),"n.d.") -> n.d. | AA33: =O33-INDEX($K33:$O33,1,aux!$AL$1) -> 0 | AB33: 0 | AC33: 0 | AD33: =+IF(INDEX($K33:$O33,1,aux!$AL$1)>0,(O33/INDEX($K33:$O33,1,aux!$AL$1))^(1/($O$3-INDEX($K$3:$O$3,1,aux!$AL$1)))-1,"n.d.") -> n.d. | AE33: =IF(INDEX($K33:$O33,1,aux!$AL$1)>0,(O33-INDEX($K33:$O33,1,aux!$AL$1))/INDEX($K33:$O33,1,aux!$AL$1),"n.d.") -> n.d.
A34: 51 | B34: Lã não cardada (NC 5101-5103) | C34: 0 | D34: 0 | E34: 0 | F34: 0 | G34: 0 | H34: 0 | I34: 0 | J34: 0 | K34: 0 | L34: 0 | M34: 0 | N34: 0 | O34: 0.01 | P34: 0.002 | Q34: 7.385097831e-09 | R34: 6.040105095e-09 | S34: 0.002 | U34: =G34-INDEX($C34:$G34,1,aux!$AL$1) -> 0 | V34: 0 | W34: 0 | X34: =+IF(INDEX($C34:$G34,1,aux!$AL$1)>0,(G34/INDEX($C34:$G34,1,aux!$AL$1))^(1/($G$3-INDEX($C$3:$G$3,1,aux!$AL$1)))-1,"n.d.") -> n.d. | Y34: =IF(INDEX($C34:$G34,1,aux!$AL$1)>0,(G34-INDEX($C34:$G34,1,aux!$AL$1))/INDEX($C34:$G34,1,aux!$AL$1),"n.d.") -> n.d. | AA34: =O34-INDEX($K34:$O34,1,aux!$AL$1) -> 0.01 | AB34: -1.235399569e-07 | AC34: -1.087997522e-07 | AD34: =+IF(INDEX($K34:$O34,1,aux!$AL$1)>0,(O34/INDEX($K34:$O34,1,aux!$AL$1))^(1/($O$3-INDEX($K$3:$O$3,1,aux!$AL$1)))-1,"n.d.") -> n.d. | AE34: =IF(INDEX($K34:$O34,1,aux!$AL$1)>0,(O34-INDEX($K34:$O34,1,aux!$AL$1))/INDEX($K34:$O34,1,aux!$AL$1),"n.d.") -> n.d.
A35: 52 | B35: Algodão (NC 5201-5203) | C35: 11.557 | D35: 0 | E35: 0 | F35: 0 | G35: 0 | H35: 2.3114 | I35: 0.0003245754597 | J35: 0.0001498656377 | K35: 71.483 | L35: 86.622 | M35: 22.263 | N35: 37.401 | O35: 53.444 | P35: 54.2426 | Q35: 0.0002002934538 | R35: 0.0001638155023 | S35: 51.9312 | U35: =G35-INDEX($C35:$G35,1,aux!$AL$1) -> -11.557 | V35: -0.001480055304 | W35: -0.0009042850608 | X35: =+IF(INDEX($C35:$G35,1,aux!$AL$1)>0,(G35/INDEX($C35:$G35,1,aux!$AL$1))^(1/($G$3-INDEX($C$3:$G$3,1,aux!$AL$1)))-1,"n.d.") -> -1 | Y35: =IF(INDEX($C35:$G35,1,aux!$AL$1)>0,(G35-INDEX($C35:$G35,1,aux!$AL$1))/INDEX($C35:$G35,1,aux!$AL$1),"n.d.") -> -1 | AA35: =O35-INDEX($K35:$O35,1,aux!$AL$1) -> -18.039 | AB35: 0.0002228537283 | AC35: 0.0001962638731 | AD35: =+IF(INDEX($K35:$O35,1,aux!$AL$1)>0,(O35/INDEX($K35:$O35,1,aux!$AL$1))^(1/($O$3-INDEX($K$3:$O$3,1,aux!$AL$1)))-1,"n.d.") -> -0.07012612528 | AE35: =IF(INDEX($K35:$O35,1,aux!$AL$1)>0,(O35-INDEX($K35:$O35,1,aux!$AL$1))/INDEX($K35:$O35,1,aux!$AL$1),"n.d.") -> -0.2523537065
A36: 53 | B36: Linho e cânhamo em bruto (NC 5301-5302) | C36: 0 | D36: 0 | E36: 0 | F36: 0 | G36: 0 | H36: 0 | I36: 0 | J36: 0 | K36: 8.835 | L36: 20.768 | M36: 11.018 | N36: 12.302 | O36: 18.38 | P36: 14.2606 | Q36: 5.265796306e-05 | R36: 4.306776136e-05 | S36: 14.2606 | U36: =G36-INDEX($C36:$G36,1,aux!$AL$1) -> 0 | V36: 0 | W36: =IF($U$53<>0,U36/$U$53, "n.d.") -> 0 | X36: =+IF(INDEX($C36:$G36,1,aux!$AL$1)>0,(G36/INDEX($C36:$G36,1,aux!$AL$1))^(1/($G$3-INDEX($C$3:$G$3,1,aux!$AL$1)))-1,"n.d.") -> n.d. | Y36: =IF(INDEX($C36:$G36,1,aux!$AL$1)>0,(G36-INDEX($C36:$G36,1,aux!$AL$1))/INDEX($C36:$G36,1,aux!$AL$1),"n.d.") -> n.d. | AA36: =O36-INDEX($K36:$O36,1,aux!$AL$1) -> 9.545 | AB36: -0.0001179188889 | AC36: =IF($AA$53<>0,AA36/$AA$53, "n.d.") -> -0.0001038493635 | AD36: =+IF(INDEX($K36:$O36,1,aux!$AL$1)>0,(O36/INDEX($K36:$O36,1,aux!$AL$1))^(1/($O$3-INDEX($K$3:$O$3,1,aux!$AL$1)))-1,"n.d.") -> 0.2009771328 | AE36: =IF(INDEX($K36:$O36,1,aux!$AL$1)>0,(O36-INDEX($K36:$O36,1,aux!$AL$1))/INDEX($K36:$O36,1,aux!$AL$1),"n.d.") -> 1.080362196
A37: Subtotal Agrícola e Agroalimentar | C37: 2770.573 | D37: 3667.618 | E37: 6085.309 | F37: 12503.947 | G37: 10579.065 | H37: 7121.3024 | I37: 1 | J37: 0.4617281843 | K37: 372008.146 | L37: 293451.069 | M37: 203104.681 | N37: 194451.632 | O37: 291062.675 | P37: 270815.6406 | Q37: 1 | R37: 0.8178774652 | S37: 263694.3382 | U37: =G37-INDEX($C37:$G37,1,aux!$AL$1) -> 7808.492 | V37: 1 | W37: 0.6109805887 | X37: =+IF(INDEX($C37:$G37,1,aux!$AL$1)>0,(G37/INDEX($C37:$G37,1,aux!$AL$1))^(1/($G$3-INDEX($C$3:$G$3,1,aux!$AL$1)))-1,"n.d.") -> 0.3978784894 | Y37: =IF(INDEX($C37:$G37,1,aux!$AL$1)>0,(G37-INDEX($C37:$G37,1,aux!$AL$1))/INDEX($C37:$G37,1,aux!$AL$1),"n.d.") -> 2.818367175 | AA37: =O37-INDEX($K37:$O37,1,aux!$AL$1) -> -80945.471 | AB37: 1 | AC37: 0.8806847191 | AD37: =+IF(INDEX($K37:$O37,1,aux!$AL$1)>0,(O37/INDEX($K37:$O37,1,aux!$AL$1))^(1/($O$3-INDEX($K$3:$O$3,1,aux!$AL$1)))-1,"n.d.") -> -0.05950061342 | AE37: =IF(INDEX($K37:$O37,1,aux!$AL$1)>0,(O37-INDEX($K37:$O37,1,aux!$AL$1))/INDEX($K37:$O37,1,aux!$AL$1),"n.d.") -> -0.2175905874
A38: 03 | B38: Peixes e crustáceos | C38: 5785.665 | D38: 5309.597 | E38: 5673.389 | F38: 6321.939 | G38: 8524.011 | H38: 6322.9202 | I38: 1 | J38: 0.4099629955 | K38: 14422.533 | L38: 8951.96 | M38: 5208.85 | N38: 6676.305 | O38: 10864.311 | P38: 9224.7918 | Q38: 0.6466634825 | R38: 0.02785935597 | S38: 2901.8716 | U38: =G38-INDEX($C38:$G38,1,aux!$AL$1) -> 2738.346 | V38: =IF($U$44<>0,U38/$U$44, "n.d.") -> 1 | W38: 0.2142636825 | X38: =+IF(INDEX($C38:$G38,1,aux!$AL$1)>0,(G38/INDEX($C38:$G38,1,aux!$AL$1))^(1/($G$3-INDEX($C$3:$G$3,1,aux!$AL$1)))-1,"n.d.") -> 0.1017236683 | Y38: =IF(INDEX($C38:$G38,1,aux!$AL$1)>0,(G38-INDEX($C38:$G38,1,aux!$AL$1))/INDEX($C38:$G38,1,aux!$AL$1),"n.d.") -> 0.4732984022 | AA38: =O38-INDEX($K38:$O38,1,aux!$AL$1) -> -3558.222 | AB38: =IF($AA$44<>0,AA38/$AA$44, "n.d.") -> 0.3955784691 | AC38: 0.03871336721 | AD38: =+IF(INDEX($K38:$O38,1,aux!$AL$1)>0,(O38/INDEX($K38:$O38,1,aux!$AL$1))^(1/($O$3-INDEX($K$3:$O$3,1,aux!$AL$1)))-1,"n.d.") -> -0.06837708569 | AE38: =IF(INDEX($K38:$O38,1,aux!$AL$1)>0,(O38-INDEX($K38:$O38,1,aux!$AL$1))/INDEX($K38:$O38,1,aux!$AL$1),"n.d.") -> -0.246712696
A39: 05p | B39: Outros produtos de pescado (NC 0508, 051191) (p) | C39: 0 | D39: 0 | E39: 0 | F39: 0 | G39: 0 | H39: 0 | I39: 0 | J39: 0 | K39: 0 | L39: 0.488 | M39: 0 | N39: 0 | O39: 0 | P39: 0.0976 | Q39: 6.841819009e-06 | R39: 2.947571286e-07 | S39: 0.0976 | U39: =G39-INDEX($C39:$G39,1,aux!$AL$1) -> 0 | V39: 0 | W39: 0 | X39: =+IF(INDEX($C39:$G39,1,aux!$AL$1)>0,(G39/INDEX($C39:$G39,1,aux!$AL$1))^(1/($G$3-INDEX($C$3:$G$3,1,aux!$AL$1)))-1,"n.d.") -> n.d. | Y39: =IF(INDEX($C39:$G39,1,aux!$AL$1)>0,(G39-INDEX($C39:$G39,1,aux!$AL$1))/INDEX($C39:$G39,1,aux!$AL$1),"n.d.") -> n.d. | AA39: =O39-INDEX($K39:$O39,1,aux!$AL$1) -> 0 | AB39: 0 | AC39: 0 | AD39: =+IF(INDEX($K39:$O39,1,aux!$AL$1)>0,(O39/INDEX($K39:$O39,1,aux!$AL$1))^(1/($O$3-INDEX($K$3:$O$3,1,aux!$AL$1)))-1,"n.d.") -> n.d. | AE39: =IF(INDEX($K39:$O39,1,aux!$AL$1)>0,(O39-INDEX($K39:$O39,1,aux!$AL$1))/INDEX($K39:$O39,1,aux!$AL$1),"n.d.") -> n.d.
A40: 16p | B40: Preparações e conservas de peixes ou crustáceos (NC 1604-05) (p) | C40: 0 | D40: 0 | E40: 0 | F40: 0 | G40: 0 | H40: 0 | I40: 0 | J40: 0 | K40: 8750.776 | L40: 2425.971 | M40: 2763.971 | N40: 1891.083 | O40: 4160.79 | P40: 3998.5182 | Q40: 0.2802985433 | R40: 0.01207573508 | S40: 3998.5182 | U40: =G40-INDEX($C40:$G40,1,aux!$AL$1) -> 0 | V40: 0 | W40: 0 | X40: =+IF(INDEX($C40:$G40,1,aux!$AL$1)>0,(G40/INDEX($C40:$G40,1,aux!$AL$1))^(1/($G$3-INDEX($C$3:$G$3,1,aux!$AL$1)))-1,"n.d.") -> n.d. | Y40: =IF(INDEX($C40:$G40,1,aux!$AL$1)>0,(G40-INDEX($C40:$G40,1,aux!$AL$1))/INDEX($C40:$G40,1,aux!$AL$1),"n.d.") -> n.d. | AA40: =O40-INDEX($K40:$O40,1,aux!$AL$1) -> -4589.986 | AB40: 0.5102828421 | AC40: 0.04993893396 | AD40: =+IF(INDEX($K40:$O40,1,aux!$AL$1)>0,(O40/INDEX($K40:$O40,1,aux!$AL$1))^(1/($O$3-INDEX($K$3:$O$3,1,aux!$AL$1)))-1,"n.d.") -> -0.1696096234 | AE40: =IF(INDEX($K40:$O40,1,aux!$AL$1)>0,(O40-INDEX($K40:$O40,1,aux!$AL$1))/INDEX($K40:$O40,1,aux!$AL$1),"n.d.") -> -0.5245233108
A41: 19p | B41: Massas recheadas com pescado (NC 19022010) (p) | C41: 0 | D41: 0 | E41: 0 | F41: 0 | G41: 0 | H41: 0 | I41: 0 | J41: 0 | K41: 17.61 | L41: 2.473 | M41: 0.224 | N41: 0.242 | O41: 4.109 | P41: 4.9316 | Q41: 0.0003457081417 | R41: 1.489369114e-05 | S41: 4.9316 | U41: =G41-INDEX($C41:$G41,1,aux!$AL$1) -> 0 | V41: 0 | W41: 0 | X41: =+IF(INDEX($C41:$G41,1,aux!$AL$1)>0,(G41/INDEX($C41:$G41,1,aux!$AL$1))^(1/($G$3-INDEX($C$3:$G$3,1,aux!$AL$1)))-1,"n.d.") -> n.d. | Y41: =IF(INDEX($C41:$G41,1,aux!$AL$1)>0,(G41-INDEX($C41:$G41,1,aux!$AL$1))/INDEX($C41:$G41,1,aux!$AL$1),"n.d.") -> n.d. | AA41: =O41-INDEX($K41:$O41,1,aux!$AL$1) -> -13.501 | AB41: 0.001500947639 | AC41: 0.0001468905455 | AD41: =+IF(INDEX($K41:$O41,1,aux!$AL$1)>0,(O41/INDEX($K41:$O41,1,aux!$AL$1))^(1/($O$3-INDEX($K$3:$O$3,1,aux!$AL$1)))-1,"n.d.") -> -0.3049849703 | AE41: =IF(INDEX($K41:$O41,1,aux!$AL$1)>0,(O41-INDEX($K41:$O41,1,aux!$AL$1))/INDEX($K41:$O41,1,aux!$AL$1),"n.d.") -> -0.7666666667
A42: 23p | B42: Farinhas de pescado (NC 230120) (p) | C42: 0 | D42: 0 | E42: 0 | F42: 0 | G42: 0 | H42: 0 | I42: 0 | J42: 0 | K42: 0 | L42: 0 | M42: 0 | N42: 0 | O42: 0 | P42: 0 | Q42: 0 | R42: 0 | S42: 0 | U42: =G42-INDEX($C42:$G42,1,aux!$AL$1) -> 0 | V42: 0 | W42: 0 | X42: =+IF(INDEX($C42:$G42,1,aux!$AL$1)>0,(G42/INDEX($C42:$G42,1,aux!$AL$1))^(1/($G$3-INDEX($C$3:$G$3,1,aux!$AL$1)))-1,"n.d.") -> n.d. | Y42: =IF(INDEX($C42:$G42,1,aux!$AL$1)>0,(G42-INDEX($C42:$G42,1,aux!$AL$1))/INDEX($C42:$G42,1,aux!$AL$1),"n.d.") -> n.d. | AA42: =O42-INDEX($K42:$O42,1,aux!$AL$1) -> 0 | AB42: 0 | AC42: 0 | AD42: =+IF(INDEX($K42:$O42,1,aux!$AL$1)>0,(O42/INDEX($K42:$O42,1,aux!$AL$1))^(1/($O$3-INDEX($K$3:$O$3,1,aux!$AL$1)))-1,"n.d.") -> n.d. | AE42: =IF(INDEX($K42:$O42,1,aux!$AL$1)>0,(O42-INDEX($K42:$O42,1,aux!$AL$1))/INDEX($K42:$O42,1,aux!$AL$1),"n.d.") -> n.d.
A43: 25 | B43: Sal e cloreto de sódio puro; água do mar (NC 2501) | C43: 0 | D43: 0 | E43: 0 | F43: 0 | G43: 0 | H43: 0 | I43: 0 | J43: 0 | K43: 1452.226 | L43: 1432.565 | M43: 1094.88 | N43: 585.743 | O43: 618.951 | P43: 1036.873 | Q43: 0.0726854242 | R43: 0.003131410945 | S43: 1036.873 | U43: =G43-INDEX($C43:$G43,1,aux!$AL$1) -> 0 | V43: 0 | W43: 0 | X43: =+IF(INDEX($C43:$G43,1,aux!$AL$1)>0,(G43/INDEX($C43:$G43,1,aux!$AL$1))^(1/($G$3-INDEX($C$3:$G$3,1,aux!$AL$1)))-1,"n.d.") -> n.d. | Y43: =IF(INDEX($C43:$G43,1,aux!$AL$1)>0,(G43-INDEX($C43:$G43,1,aux!$AL$1))/INDEX($C43:$G43,1,aux!$AL$1),"n.d.") -> n.d. | AA43: =O43-INDEX($K43:$O43,1,aux!$AL$1) -> -833.275 | AB43: 0.09263774121 | AC43: 0.009066011356 | AD43: =+IF(INDEX($K43:$O43,1,aux!$AL$1)>0,(O43/INDEX($K43:$O43,1,aux!$AL$1))^(1/($O$3-INDEX($K$3:$O$3,1,aux!$AL$1)))-1,"n.d.") -> -0.1920108754 | AE43: =IF(INDEX($K43:$O43,1,aux!$AL$1)>0,(O43-INDEX($K43:$O43,1,aux!$AL$1))/INDEX($K43:$O43,1,aux!$AL$1),"n.d.") -> -0.5737915448
A44: Subtotal Mar | C44: 5785.665 | D44: 5309.597 | E44: 5673.389 | F44: 6321.939 | G44: 8524.011 | H44: 6322.9202 | I44: 1 | J44: 0.4099629955 | K44: 24643.145 | L44: 12813.457 | M44: 9067.925 | N44: 9153.373 | O44: 15648.161 | P44: 14265.2122 | Q44: 1 | R44: 0.04308169044 | S44: 7942.292 | U44: =G44-INDEX($C44:$G44,1,aux!$AL$1) -> 2738.346 | V44: 1 | W44: 0.2142636825 | X44: =+IF(INDEX($C44:$G44,1,aux!$AL$1)>0,(G44/INDEX($C44:$G44,1,aux!$AL$1))^(1/($G$3-INDEX($C$3:$G$3,1,aux!$AL$1)))-1,"n.d.") -> 0.1017236683 | Y44: =IF(INDEX($C44:$G44,1,aux!$AL$1)>0,(G44-INDEX($C44:$G44,1,aux!$AL$1))/INDEX($C44:$G44,1,aux!$AL$1),"n.d.") -> 0.4732984022 | AA44: =O44-INDEX($K44:$O44,1,aux!$AL$1) -> -8994.984 | AB44: 1 | AC44: 0.09786520307 | AD44: =+IF(INDEX($K44:$O44,1,aux!$AL$1)>0,(O44/INDEX($K44:$O44,1,aux!$AL$1))^(1/($O$3-INDEX($K$3:$O$3,1,aux!$AL$1)))-1,"n.d.") -> -0.1073282453 | AE44: =IF(INDEX($K44:$O44,1,aux!$AL$1)>0,(O44-INDEX($K44:$O44,1,aux!$AL$1))/INDEX($K44:$O44,1,aux!$AL$1),"n.d.") -> -0.3650095797
A45: 13f | B45: Gomas e resinas (NC 1301) (f) | C45: 0 | D45: 0 | E45: 0 | F45: 0 | G45: 0 | H45: 0 | I45: 0 | J45: 0 | K45: 63.588 | L45: 48.362 | M45: 33.498 | N45: 34.441 | O45: 53.659 | P45: 46.7096 | Q45: 0.001014561204 | R45: 0.0001410654465 | S45: 46.7096 | U45: =G45-INDEX($C45:$G45,1,aux!$AL$1) -> 0 | V45: =IF($U$52<>0,U45/$U$52, "n.d.") -> 0 | W45: 0 | X45: =+IF(INDEX($C45:$G45,1,aux!$AL$1)>0,(G45/INDEX($C45:$G45,1,aux!$AL$1))^(1/($G$3-INDEX($C$3:$G$3,1,aux!$AL$1)))-1,"n.d.") -> n.d. | Y45: =IF(INDEX($C45:$G45,1,aux!$AL$1)>0,(G45-INDEX($C45:$G45,1,aux!$AL$1))/INDEX($C45:$G45,1,aux!$AL$1),"n.d.") -> n.d. | AA45: =O45-INDEX($K45:$O45,1,aux!$AL$1) -> -9.929 | AB45: =IF($AA$52<>0,AA45/$AA$52, "n.d.") -> 0.005036218266 | AC45: 0.000108027274 | AD45: =+IF(INDEX($K45:$O45,1,aux!$AL$1)>0,(O45/INDEX($K45:$O45,1,aux!$AL$1))^(1/($O$3-INDEX($K$3:$O$3,1,aux!$AL$1)))-1,"n.d.") -> -0.04155575872 | AE45: =IF(INDEX($K45:$O45,1,aux!$AL$1)>0,(O45-INDEX($K45:$O45,1,aux!$AL$1))/INDEX($K45:$O45,1,aux!$AL$1),"n.d.") -> -0.1561458137
A46: 38f | B46: Tall oil, essências e colofónias (NC 3803,3805,3806) (f) | C46: 0 | D46: 0 | E46: 0 | F46: 0 | G46: 0 | H46: 0 | I46: 0 | J46: 0 | K46: 27.801 | L46: 14.218 | M46: 21.081 | N46: 6.623 | O46: 8.384 | P46: 15.6214 | Q46: 0.0003393064038 | R46: 4.717744886e-05 | S46: 15.6214 | U46: =G46-INDEX($C46:$G46,1,aux!$AL$1) -> 0 | V46: 0 | W46: 0 | X46: =+IF(INDEX($C46:$G46,1,aux!$AL$1)>0,(G46/INDEX($C46:$G46,1,aux!$AL$1))^(1/($G$3-INDEX($C$3:$G$3,1,aux!$AL$1)))-1,"n.d.") -> n.d. | Y46: =IF(INDEX($C46:$G46,1,aux!$AL$1)>0,(G46-INDEX($C46:$G46,1,aux!$AL$1))/INDEX($C46:$G46,1,aux!$AL$1),"n.d.") -> n.d. | AA46: =O46-INDEX($K46:$O46,1,aux!$AL$1) -> -19.417 | AB46: 0.009848751141 | AC46: 0.0002112564789 | AD46: =+IF(INDEX($K46:$O46,1,aux!$AL$1)>0,(O46/INDEX($K46:$O46,1,aux!$AL$1))^(1/($O$3-INDEX($K$3:$O$3,1,aux!$AL$1)))-1,"n.d.") -> -0.2589496564 | AE46: =IF(INDEX($K46:$O46,1,aux!$AL$1)>0,(O46-INDEX($K46:$O46,1,aux!$AL$1))/INDEX($K46:$O46,1,aux!$AL$1),"n.d.") -> -0.6984281141
A47: 44 | B47: Madeira e suas obras | C47: 689.727 | D47: 2038.961 | E47: 2095.519 | F47: 2134.523 | G47: 2922.509 | H47: 1976.2478 | I47: 0.9986466396 | J47: 0.1281351721 | K47: 13890.647 | L47: 10719.147 | M47: 7609.899 | N47: 9025.718 | O47: 13330.148 | P47: 10915.1118 | Q47: 0.2370829331 | R47: 0.0329642112 | S47: 8938.864 | U47: =G47-INDEX($C47:$G47,1,aux!$AL$1) -> 2232.782 | V47: 0.999712549 | W47: 0.1747054951 | X47: =+IF(INDEX($C47:$G47,1,aux!$AL$1)>0,(G47/INDEX($C47:$G47,1,aux!$AL$1))^(1/($G$3-INDEX($C$3:$G$3,1,aux!$AL$1)))-1,"n.d.") -> 0.4347282758 | Y47: =IF(INDEX($C47:$G47,1,aux!$AL$1)>0,(G47-INDEX($C47:$G47,1,aux!$AL$1))/INDEX($C47:$G47,1,aux!$AL$1),"n.d.") -> 3.237196746 | AA47: =O47-INDEX($K47:$O47,1,aux!$AL$1) -> -560.499 | AB47: 0.2842980463 | AC47: 0.006098215234 | AD47: =+IF(INDEX($K47:$O47,1,aux!$AL$1)>0,(O47/INDEX($K47:$O47,1,aux!$AL$1))^(1/($O$3-INDEX($K$3:$O$3,1,aux!$AL$1)))-1,"n.d.") -> -0.01024404344 | AE47: =IF(INDEX($K47:$O47,1,aux!$AL$1)>0,(O47-INDEX($K47:$O47,1,aux!$AL$1))/INDEX($K47:$O47,1,aux!$AL$1),"n.d.") -> -0.04035082023
A48: 45 | B48: Cortiça e suas obras | C48: 0 | D48: 0.009 | E48: 0 | F48: 0 | G48: 0 | H48: 0.0018 | I48: 9.095842897e-07 | J48: 1.16707687e-07 | K48: 224.981 | L48: 166.372 | M48: 107.364 | N48: 92.003 | O48: 198.438 | P48: 157.8316 | Q48: 0.003428199304 | R48: 0.0004766597256 | S48: 157.8298 | U48: =G48-INDEX($C48:$G48,1,aux!$AL$1) -> 0 | V48: 0 | W48: 0 | X48: =+IF(INDEX($C48:$G48,1,aux!$AL$1)>0,(G48/INDEX($C48:$G48,1,aux!$AL$1))^(1/($G$3-INDEX($C$3:$G$3,1,aux!$AL$1)))-1,"n.d.") -> n.d. | Y48: =IF(INDEX($C48:$G48,1,aux!$AL$1)>0,(G48-INDEX($C48:$G48,1,aux!$AL$1))/INDEX($C48:$G48,1,aux!$AL$1),"n.d.") -> n.d. | AA48: =O48-INDEX($K48:$O48,1,aux!$AL$1) -> -26.543 | AB48: 0.01346322303 | AC48: 0.0002887871824 | AD48: =+IF(INDEX($K48:$O48,1,aux!$AL$1)>0,(O48/INDEX($K48:$O48,1,aux!$AL$1))^(1/($O$3-INDEX($K$3:$O$3,1,aux!$AL$1)))-1,"n.d.") -> -0.03089742036 | AE48: =IF(INDEX($K48:$O48,1,aux!$AL$1)>0,(O48-INDEX($K48:$O48,1,aux!$AL$1))/INDEX($K48:$O48,1,aux!$AL$1),"n.d.") -> -0.1179788515
A49: 46 | B49: Obras de espartaria ou de cestaria | C49: 1.512 | D49: 0.064 | E49: 0.161 | F49: 0.517 | G49: 0.41 | H49: 0.5328 | I49: 0.0002692369497 | J49: 3.454547536e-05 | K49: 130.146 | L49: 85.788 | M49: 70.774 | N49: 58.408 | O49: 62.77 | P49: 81.5772 | Q49: 0.001771906895 | R49: 0.0002463674307 | S49: 81.0444 | U49: =G49-INDEX($C49:$G49,1,aux!$AL$1) -> -1.102 | V49: -0.0004934128047 | W49: -8.622671429e-05 | X49: =+IF(INDEX($C49:$G49,1,aux!$AL$1)>0,(G49/INDEX($C49:$G49,1,aux!$AL$1))^(1/($G$3-INDEX($C$3:$G$3,1,aux!$AL$1)))-1,"n.d.") -> -0.2783809055 | Y49: =IF(INDEX($C49:$G49,1,aux!$AL$1)>0,(G49-INDEX($C49:$G49,1,aux!$AL$1))/INDEX($C49:$G49,1,aux!$AL$1),"n.d.") -> -0.7288359788 | AA49: =O49-INDEX($K49:$O49,1,aux!$AL$1) -> -67.376 | AB49: 0.03417466431 | AC49: 0.0007330492108 | AD49: =+IF(INDEX($K49:$O49,1,aux!$AL$1)>0,(O49/INDEX($K49:$O49,1,aux!$AL$1))^(1/($O$3-INDEX($K$3:$O$3,1,aux!$AL$1)))-1,"n.d.") -> -0.1666444617 | AE49: =IF(INDEX($K49:$O49,1,aux!$AL$1)>0,(O49-INDEX($K49:$O49,1,aux!$AL$1))/INDEX($K49:$O49,1,aux!$AL$1),"n.d.") -> -0.5176955112
A50: 47 | B50: Pastas de madeira | C50: 0 | D50: 0 | E50: 0 | F50: 0 | G50: 0 | H50: 0 | I50: 0 | J50: 0 | K50: 4.241 | L50: 10.063 | M50: 1.727 | N50: 5.869 | O50: 8.272 | P50: 6.0344 | Q50: 0.0001310708748 | R50: 1.822420509e-05 | S50: 6.0344 | U50: =G50-INDEX($C50:$G50,1,aux!$AL$1) -> 0 | V50: 0 | W50: 0 | X50: =+IF(INDEX($C50:$G50,1,aux!$AL$1)>0,(G50/INDEX($C50:$G50,1,aux!$AL$1))^(1/($G$3-INDEX($C$3:$G$3,1,aux!$AL$1)))-1,"n.d.") -> n.d. | Y50: =IF(INDEX($C50:$G50,1,aux!$AL$1)>0,(G50-INDEX($C50:$G50,1,aux!$AL$1))/INDEX($C50:$G50,1,aux!$AL$1),"n.d.") -> n.d. | AA50: =O50-INDEX($K50:$O50,1,aux!$AL$1) -> 4.031 | AB50: -0.002044616359 | AC50: -4.385718013e-05 | AD50: =+IF(INDEX($K50:$O50,1,aux!$AL$1)>0,(O50/INDEX($K50:$O50,1,aux!$AL$1))^(1/($O$3-INDEX($K$3:$O$3,1,aux!$AL$1)))-1,"n.d.") -> 0.1817770814 | AE50: =IF(INDEX($K50:$O50,1,aux!$AL$1)>0,(O50-INDEX($K50:$O50,1,aux!$AL$1))/INDEX($K50:$O50,1,aux!$AL$1),"n.d.") -> 0.9504833766
A51: 48 | B51: Papel e cartão | C51: 0.193 | D51: 7.321 | E51: 0.197 | F51: 1.07 | G51: 1.937 | H51: 2.1436 | I51: 0.001083213824 | J51: 0.0001389858877 | K51: 45121.028 | L51: 37853.228 | M51: 19830.535 | N51: 27447.605 | O51: 43829.242 | P51: 34816.3276 | Q51: 0.7562320222 | R51: 0.1051471389 | S51: 34814.184 | U51: =G51-INDEX($C51:$G51,1,aux!$AL$1) -> 1.744 | V51: 0.0007808638216 | W51: 0.0001364604262 | X51: =+IF(INDEX($C51:$G51,1,aux!$AL$1)>0,(G51/INDEX($C51:$G51,1,aux!$AL$1))^(1/($G$3-INDEX($C$3:$G$3,1,aux!$AL$1)))-1,"n.d.") -> 0.7798896511 | Y51: =IF(INDEX($C51:$G51,1,aux!$AL$1)>0,(G51-INDEX($C51:$G51,1,aux!$AL$1))/INDEX($C51:$G51,1,aux!$AL$1),"n.d.") -> 9.03626943 | AA51: =O51-INDEX($K51:$O51,1,aux!$AL$1) -> -1291.786 | AB51: 0.6552237133 | AC51: 0.01405459968 | AD51: =+IF(INDEX($K51:$O51,1,aux!$AL$1)>0,(O51/INDEX($K51:$O51,1,aux!$AL$1))^(1/($O$3-INDEX($K$3:$O$3,1,aux!$AL$1)))-1,"n.d.") -> -0.007235489499 | AE51: =IF(INDEX($K51:$O51,1,aux!$AL$1)>0,(O51-INDEX($K51:$O51,1,aux!$AL$1))/INDEX($K51:$O51,1,aux!$AL$1),"n.d.") -> -0.02862935658
A52: Subtotal Florestas | C52: 691.432 | D52: 2046.355 | E52: 2095.877 | F52: 2136.11 | G52: 2924.856 | H52: 1978.926 | I52: 1 | J52: 0.1283088202 | K52: 59462.432 | L52: 48897.178 | M52: 27674.878 | N52: 36670.667 | O52: 57490.913 | P52: 46039.2136 | Q52: 1 | R52: 0.1390408443 | S52: 44060.2876 | U52: =G52-INDEX($C52:$G52,1,aux!$AL$1) -> 2233.424 | V52: 1 | W52: 0.1747557288 | X52: =+IF(INDEX($C52:$G52,1,aux!$AL$1)>0,(G52/INDEX($C52:$G52,1,aux!$AL$1))^(1/($G$3-INDEX($C$3:$G$3,1,aux!$AL$1)))-1,"n.d.") -> 0.4341307687 | Y52: =IF(INDEX($C52:$G52,1,aux!$AL$1)>0,(G52-INDEX($C52:$G52,1,aux!$AL$1))/INDEX($C52:$G52,1,aux!$AL$1),"n.d.") -> 3.23014266 | AA52: =O52-INDEX($K52:$O52,1,aux!$AL$1) -> -1971.519 | AB52: 1 | AC52: 0.02145007788 | AD52: =+IF(INDEX($K52:$O52,1,aux!$AL$1)>0,(O52/INDEX($K52:$O52,1,aux!$AL$1))^(1/($O$3-INDEX($K$3:$O$3,1,aux!$AL$1)))-1,"n.d.") -> -0.008394026178 | AE52: =IF(INDEX($K52:$O52,1,aux!$AL$1)>0,(O52-INDEX($K52:$O52,1,aux!$AL$1))/INDEX($K52:$O52,1,aux!$AL$1),"n.d.") -> -0.03315570746
B53: TOTAL | C53: 9247.67 | D53: 11023.57 | E53: 13854.575 | F53: 20961.996 | G53: 22027.932 | H53: 15423.1486 | J53: 1 | K53: 456113.723 | L53: 355161.704 | M53: 239847.484 | N53: 240275.672 | O53: 364201.749 | P53: 331120.0664 | R53: 1 | S53: 315696.9178 | U53: =G53-INDEX($C53:$G53,1,aux!$AL$1) -> 12780.262 | W53: 1 | X53: =+IF(INDEX($C53:$G53,1,aux!$AL$1)>0,(G53/INDEX($C53:$G53,1,aux!$AL$1))^(1/($G$3-INDEX($C$3:$G$3,1,aux!$AL$1)))-1,"n.d.") -> 0.2423253604 | Y53: =IF(INDEX($C53:$G53,1,aux!$AL$1)>0,(G53-INDEX($C53:$G53,1,aux!$AL$1))/INDEX($C53:$G53,1,aux!$AL$1),"n.d.") -> 1.38199806 | AA53: =O53-INDEX($K53:$O53,1,aux!$AL$1) -> -91911.974 | AC53: 1 | AD53: =+IF(INDEX($K53:$O53,1,aux!$AL$1)>0,(O53/INDEX($K53:$O53,1,aux!$AL$1))^(1/($O$3-INDEX($K$3:$O$3,1,aux!$AL$1)))-1,"n.d.") -> -0.05470530198 | AE53: =IF(INDEX($K53:$O53,1,aux!$AL$1)>0,(O53-INDEX($K53:$O53,1,aux!$AL$1))/INDEX($K53:$O53,1,aux!$AL$1),"n.d.") -> -0.2015110911
B54: a - agrícola e agroalimentar; p - pescas; f - florestas
A55: Fonte: GPP a partir de dados INE/Comércio Internacional (2021 provisórios; 2022 preliminares) | S55: 2023-04-18T16:29:06.580

Sheet 5.2_var
A1: ="Principais contributos por produto para a variação das trocas comerciais PT-Angola_x000D_ no período " & INDEX('5.2'!K3:N3,1,aux!AL1) & "-2022 (NC 2 dígitos - milhares de euros) Produtos agrícolas e agroalimentares, do mar e da floresta" -> Principais contributos por produto para a variação das trocas comerciais PT-Angola no período 2018-2022 (NC 2 dígitos - milhares de euros) Produtos agrícolas e agroalimentares, do mar e da floresta
E5: aumento das importações | J5: aumento das exportações
E17: redução das importações | J17: redução das exportações
A28: Fonte: GPP a partir de dados INE/Comércio Internacional (2021 provisórios; 2022 preliminares) | F28: a - agrícola e agroalimentar; p - mar; f - florestas | H28: ='3'!Y116 -> 2023-04-18T16:29:06.580
A29: Cód. NC | B29: Descritivo | C29: ="Variação das Importações " & INDEX('5.2'!K3:N3,1,aux!AL1) & "-"& '5.2'!O3 &"" -> Variação das Importações 2018-2022 | F29: Cód. NC | G29: Descritivo | H29: ="Variação das Exportações " & INDEX('5.2'!K3:N3,1,aux!AL1) & "-"& '5.2'!O3 &"" -> Variação das Exportações 2018-2022
C30: variação total em valor | D30: % do aumento/ redução total | H30: variação total em valor | I30: % do aumento/ redução total
A31: =IF(C31>0,aux!AU6,"") -> 08 | B31: =IF(C31>0,aux!AV6,"") -> Frutas | C31: =IF(aux!AW6>0,aux!AW6,0) -> 7628.908 | D31: =IF(SUM($C$31:$C$41)<>0,C31/SUM($C$31:$C$41),0) -> 0.5882265223 | F31: =IF(H31>0,aux!AZ6,"") -> 22 | G31: =IF(H31>0,aux!BA6,"") -> Bebidas, líquidos alcoólicos e vinagres | H31: =IF(aux!BB6>0,aux!BB6,0) -> 6784.942 | I31: =IF(SUM($H$31:$H$41)<>0,H31/SUM($H$31:$H$41),0) -> 0.7339442773
A32: =IF(C32>0,aux!AU7,"") -> 03 | B32: =IF(C32>0,aux!AV7,"") -> Peixes e crustáceos | C32: =IF(aux!AW7>0,aux!AW7,0) -> 2738.346 | D32: =IF(SUM($C$31:$C$41)<>0,C32/SUM($C$31:$C$41),0) -> 0.2111400143 | F32: =IF(H32>0,aux!AZ7,"") -> 35 | G32: =IF(H32>0,aux!BA7,"") -> Caseínas, albuminas, gelatinas, peptonas, dextrinas (NC 3501 a 3505) | H32: =IF(aux!BB7>0,aux!BB7,0) -> 1279.178 | I32: =IF(SUM($H$31:$H$41)<>0,H32/SUM($H$31:$H$41),0) -> 0.1383719084
A33: =IF(C33>0,aux!AU8,"") -> 44 | B33: =IF(C33>0,aux!AV8,"") -> Madeira e suas obras | C33: =IF(aux!AW8>0,aux!AW8,0) -> 2232.782 | D33: 0.1721585305 | F33: =IF(H33>0,aux!AZ8,"") -> 05a | G33: =IF(H33>0,aux!BA8,"") -> Outros produtos de origem animal (exc. NC 0508, 051191) (a) | H33: =IF(aux!BB8>0,aux!BB8,0) -> 795.529 | I33: 0.08605437703
A34: =IF(C34>0,aux!AU9,"") -> 09 | B34: =IF(C34>0,aux!AV9,"") -> Café, chá, mate e especiarias | C34: =IF(aux!AW9>0,aux!AW9,0) -> 286.611 | D34: 0.02209912504 | F34: =IF(H34>0,aux!AZ9,"") -> 29 | G34: =IF(H34>0,aux!BA9,"") -> Manitol e sorbitol (NC 290543; 290544) | H34: =IF(aux!BB9>0,aux!BB9,0) -> 265.398 | I34: 0.02870877058
A35: =IF(C35>0,aux!AU10,"") -> 33 | B35: =IF(C35>0,aux!AV10,"") -> Óleos essenciais e resinóides (NC 3301) | C35: =IF(aux!AW10>0,aux!AW10,0) -> 38.19 | D35: 0.002944637802 | F35: =IF(H35>0,aux!AZ10,"") -> 13a | G35: =IF(H35>0,aux!BA10,"") -> Sucos e extratos vegetais (exc. NC 1301) (a) | H35: =IF(aux!BB10>0,aux!BB10,0) -> 66.813 | I35: 0.007227330609
A36: =IF(C36>0,aux!AU11,"") -> 07 | B36: =IF(C36>0,aux!AV11,"") -> Produtos hortícolas | C36: =IF(aux!AW11>0,aux!AW11,0) -> 13.862 | D36: 0.00106882873 | F36: =IF(H36>0,aux!AZ11,"") -> 24 | G36: =IF(H36>0,aux!BA11,"") -> Tabaco | H36: =IF(aux!BB11>0,aux!BB11,0) -> 39.046 | I36: 0.004223704234
A37: =IF(C37>0,aux!AU12,"") -> 12 | B37: =IF(C37>0,aux!AV12,"") -> Sementes e frutos oleaginosos | C37: =IF(aux!AW12>0,aux!AW12,0) -> 9.286 | D37: 0.0007159965078 | F37: =IF(H37>0,aux!AZ12,"") -> 53 | G37: =IF(H37>0,aux!BA12,"") -> Linho e cânhamo em bruto (NC 5301-5302) | H37: =IF(aux!BB12>0,aux!BB12,0) -> 9.545 | I37: 0.001032506708
A38: =IF(C38>0,aux!AU13,"") -> 20 | B38: =IF(C38>0,aux!AV13,"") -> Preparações de produtos vegetais | C38: =IF(aux!AW13>0,aux!AW13,0) -> 8.801 | D38: 0.00067860061 | F38: =IF(H38>0,aux!AZ13,"") -> 47 | G38: =IF(H38>0,aux!BA13,"") -> Pastas de madeira | H38: =IF(aux!BB13>0,aux!BB13,0) -> 4.031 | I38: 0.00043604343
A39: =IF(C39>0,aux!AU14,"") -> 15 | B39: =IF(C39>0,aux!AV14,"") -> Gorduras e óleos animais ou vegetais | C39: =IF(aux!AW14>0,aux!AW14,0) -> 8.796 | D39: 0.0006782150853 | F39: =IF(H39>0,aux!AZ14,"") -> 51 | G39: =IF(H39>0,aux!BA14,"") -> Lã não cardada (NC 5101-5103) | H39: =IF(aux!BB14>0,aux!BB14,0) -> 0.01 | I39: 1.081725205e-06
A40: =IF(C40>0,aux!AU15,"") -> 48 | B40: =IF(C40>0,aux!AV15,"") -> Papel e cartão | C40: =IF(aux!AW15>0,aux!AW15,0) -> 1.744 | D40: 0.0001344710219 | F40: =IF(H40>0,aux!AZ15,"") ->  | G40: =IF(H40>0,aux!BA15,"") ->  | H40: =IF(aux!BB15>0,aux!BB15,0) -> 0 | I40: 0
B41: Outros contributos para o aumento das importações | C41: =SUMIF(aux!AW16:AW51,">0") -> 2.011 | D41: 0.0001550580419 | G41: Outros contributos para o aumento das exportações | H41: =SUMIF(aux!BB16:BB51,">0") -> 0 | I41: 0
B42: Outros contributos para a redução das importações | C42: =SUMIF(aux!AW6:AW41,"<0") -> 0 | D42: =IF(SUM($C$42:$C$52)<>0,C42/SUM($C$42:$C$52),0) -> 0 | G42: Outros contributos para a redução das exportações | H42: =SUMIF(aux!BB6:BB41,"<0") -> -21902.889 | I42: =IF(SUM($H$42:$H$52)<>0,H42/SUM($H$42:$H$52),0) -> 0.2165248537
A43: =IF(C43<>0,aux!AU42,"") ->  | B43: =IF(C43<0,aux!AV42,"") ->  | C43: =IF(aux!AW42<0,aux!AW42,0) -> 0 | D43: =IF(SUM($C$42:$C$52)<>0,C43/SUM($C$42:$C$52),0) -> 0 | F43: =IF(H43<>0,aux!AZ42,"") -> 03 | G43: =IF(H43<>0,aux!BA42,"") -> Peixes e crustáceos | H43: =IF(aux!BB42<0,aux!BB42,0) -> -3558.222 | I43: =IF(SUM($H$42:$H$52)<>0,H43/SUM($H$42:$H$52),0) -> 0.03517542813
A44: =IF(C44<>0,aux!AU43,"") ->  | B44: =IF(C44<0,aux!AV43,"") ->  | C44: =IF(aux!AW43<0,aux!AW43,0) -> 0 | D44: 0 | F44: =IF(H44<>0,aux!AZ43,"") -> 17 | G44: =IF(H44<>0,aux!BA43,"") -> Açúcares e produtos de confeitaria | H44: =IF(aux!BB43<0,aux!BB43,0) -> -3880.683 | I44: 0.03836317295
A45: =IF(C45<>0,aux!AU44,"") ->  | B45: =IF(C45<0,aux!AV44,"") ->  | C45: =IF(aux!AW44<0,aux!AW44,0) -> 0 | D45: 0 | F45: =IF(H45<>0,aux!AZ44,"") -> 16a | G45: =IF(H45<>0,aux!BA44,"") -> Preparações de carnes (exc. NC 1604-05) (a) | H45: =IF(aux!BB44<0,aux!BB44,0) -> -4401.323 | I45: 0.04351005105
A46: =IF(C46<>0,aux!AU45,"") ->  | B46: =IF(C46<0,aux!AV45,"") ->  | C46: =IF(aux!AW45<0,aux!AW45,0) -> 0 | D46: 0 | F46: =IF(H46<>0,aux!AZ45,"") -> 16p | G46: =IF(H46<>0,aux!BA45,"") -> Preparações e conservas de peixes ou crustáceos (NC 1604-05) (p) | H46: =IF(aux!BB45<0,aux!BB45,0) -> -4589.986 | I46: 0.04537511225
A47: =IF(C47<>0,aux!AU46,"") -> 19a | B47: =IF(C47<0,aux!AV46,"") -> Preparações à base de cereais (exc. NC 19022010) (a) | C47: =IF(aux!AW46<0,aux!AW46,0) -> -0.033 | D47: 0.0001745339151 | F47: =IF(H47<>0,aux!AZ46,"") -> 20 | G47: =IF(H47<>0,aux!BA46,"") -> Preparações de produtos vegetais | H47: =IF(aux!BB46<0,aux!BB46,0) -> -5064.212 | I47: 0.05006315662
A48: =IF(C48<>0,aux!AU47,"") -> 46 | B48: =IF(C48<0,aux!AV47,"") -> Obras de espartaria ou de cestaria | C48: =IF(aux!AW47<0,aux!AW47,0) -> -1.102 | D48: 0.005828374983 | F48: =IF(H48<>0,aux!AZ47,"") -> 19a | G48: =IF(H48<>0,aux!BA47,"") -> Preparações à base de cereais (exc. NC 19022010) (a) | H48: =IF(aux!BB47<0,aux!BB47,0) -> -8378.436 | I48: 0.08282649969
A49: =IF(C49<>0,aux!AU48,"") -> 06 | B49: =IF(C49<0,aux!AV48,"") -> Plantas vivas e produtos de floricultura | C49: =IF(aux!AW48<0,aux!AW48,0) -> -1.109 | D49: 0.005865397329 | F49: =IF(H49<>0,aux!AZ48,"") -> 11 | G49: =IF(H49<>0,aux!BA48,"") -> Produtos da indústria de moagem e outros | H49: =IF(aux!BB48<0,aux!BB48,0) -> -9984.368 | I49: 0.09870222236
A50: =IF(C50<>0,aux!AU49,"") -> 11 | B50: =IF(C50<0,aux!AV49,"") -> Produtos da indústria de moagem e outros | C50: =IF(aux!AW49<0,aux!AW49,0) -> -5.654 | D50: 0.02990347746 | F50: =IF(H50<>0,aux!AZ49,"") -> 02 | G50: =IF(H50<>0,aux!BA49,"") -> Carnes e miudezas | H50: =IF(aux!BB49<0,aux!BB49,0) -> -12450.173 | I50: 0.1230783705
A51: =IF(C51<>0,aux!AU50,"") -> 52 | B51: =IF(C51<0,aux!AV50,"") -> Algodão (NC 5201-5203) | C51: =IF(aux!AW50<0,aux!AW50,0) -> -11.557 | D51: 0.06112389264 | F51: =IF(H51<>0,aux!AZ50,"") -> 15 | G51: =IF(H51<>0,aux!BA50,"") -> Gorduras e óleos animais ou vegetais | H51: =IF(aux!BB50<0,aux!BB50,0) -> -13259.366 | I51: 0.1310777899
A52: =IF(C52<>0,aux!AU51,"") -> 23a | B52: =IF(C52<0,aux!AV51,"") -> Resíduos indústrias alimentares; alimentos p/ animais (exc. NC 230120) (a) | C52: =IF(aux!AW51<0,aux!AW51,0) -> -169.62 | D52: 0.8971043237 | F52: =IF(H52<>0,aux!AZ51,"") -> 04 | G52: =IF(H52<>0,aux!BA51,"") -> Leite e laticínios; ovos; mel, etc. | H52: =IF(aux!BB51<0,aux!BB51,0) -> -13686.808 | I52: 0.1353033428
A53: TOTAL | C53: =SUM(C31:C52) -> 12780.262 | F53: TOTAL | H53: =SUM(H31:H52) -> -91911.974

Sheet 5.2A
A1: Trocas comerciais Portugal-Angola 2018-2022 em milhares de euros (NC 4 dígitos) | G1: Produtos agrícolas e agroalimentares, do mar e da floresta
A2: Cód. NC | B2: Descritivo | C2: Importações | K2: Exportações | S2: Saldo quinquénio (exp-imp) | T2: Evolução das importações | U2: =+"Variação das Importações " & INDEX(K3:N3,1,aux!AL1) & "-"& '5.2'!O3 &"" -> Variação das Importações 2018-2022 | Z2: Evolução das exportações | AA2: ="Variação das Exportações " & INDEX(K3:N3,1,aux!AL1) & "-"& '5.2'!O3 &"" -> Variação das Exportações 2018-2022
C3: 2018 | D3: 2019 | E3: 2020 | F3: 2021 | G3: 2022 | H3: média quinquénio | I3: % Subtot | J3: % Total | K3: 2018 | L3: 2019 | M3: 2020 | N3: 2021 | O3: 2022 | P3: média quinquénio | Q3: % Subtot | R3: % Total | U3: variação total em valor | V3: % no subtotal de variação | W3: % no total de variação | X3: taxa de variação média anual | Y3: taxa de variação total | AA3: variação total em valor | AB3: % no subtotal de variação | AC3: % no total de variação | AD3: taxa de variação média anual | AE3: taxa de variação total | AX3: filtro
A4: 0101 | B4: Equídeos vivos | C4: 0 | D4: 0 | E4: 0 | F4: 0 | G4: 0 | H4: 0 | I4: 0 | J4: 0 | K4: 0 | L4: 0 | M4: 0 | N4: 0 | O4: 0 | P4: 0 | Q4: 0 | R4: 0 | S4: 0 | U4: =G4-INDEX($C4:$G4,1,aux!$AL$1) -> 0 | V4: =IF($U$237<>0,U4/$U$237, "n.d.") -> 0 | W4: =IF($U$322<>0,U4/$U$322, "n.d.") -> 0 | X4: =+IF(INDEX($C4:$G4,1,aux!$AL$1)>0,(G4/INDEX($C4:$G4,1,aux!$AL$1))^(1/($G$3-INDEX($C$3:$G$3,1,aux!$AL$1)))-1,"n.d.") -> n.d. | Y4: =IF(INDEX($C4:$G4,1,aux!$AL$1)>0,(G4-INDEX($C4:$G4,1,aux!$AL$1))/INDEX($C4:$G4,1,aux!$AL$1),"n.d.") -> n.d. | AA4: =O4-INDEX($K4:$O4,1,aux!$AL$1) -> 0 | AB4: =IF($AA$237<>0,AA4/$AA$237, "n.d.") -> 0 | AC4: =IF($AA$322<>0,AA4/$AA$322, "n.d.") -> 0 | AD4: =+IF(INDEX($K4:$O4,1,aux!$AL$1)>0,(O4/INDEX($K4:$O4,1,aux!$AL$1))^(1/($O$3-INDEX($K$3:$O$3,1,aux!$AL$1)))-1,"n.d.") -> n.d. | AE4: =IF(INDEX($K4:$O4,1,aux!$AL$1)>0,(O4-INDEX($K4:$O4,1,aux!$AL$1))/INDEX($K4:$O4,1,aux!$AL$1),"n.d.") -> n.d. | AX4: =+LEFT(A4,2) -> 01
A5: 0102 | B5: Bovinos vivos | C5: 0 | D5: 0 | E5: 0 | F5: 0 | G5: 0 | H5: 0 | I5: 0 | J5: 0 | K5: 0 | L5: 0 | M5: 0 | N5: 0 | O5: 0 | P5: 0 | Q5: 0 | R5: 0 | S5: 0 | U5: =G5-INDEX($C5:$G5,1,aux!$AL$1) -> 0 | V5: 0 | W5: 0 | X5: =+IF(INDEX($C5:$G5,1,aux!$AL$1)>0,(G5/INDEX($C5:$G5,1,aux!$AL$1))^(1/($G$3-INDEX($C$3:$G$3,1,aux!$AL$1)))-1,"n.d.") -> n.d. | Y5: =IF(INDEX($C5:$G5,1,aux!$AL$1)>0,(G5-INDEX($C5:$G5,1,aux!$AL$1))/INDEX($C5:$G5,1,aux!$AL$1),"n.d.") -> n.d. | AA5: =O5-INDEX($K5:$O5,1,aux!$AL$1) -> 0 | AB5: 0 | AC5: 0 | AD5: =+IF(INDEX($K5:$O5,1,aux!$AL$1)>0,(O5/INDEX($K5:$O5,1,aux!$AL$1))^(1/($O$3-INDEX($K$3:$O$3,1,aux!$AL$1)))-1,"n.d.") -> n.d. | AE5: =IF(INDEX($K5:$O5,1,aux!$AL$1)>0,(O5-INDEX($K5:$O5,1,aux!$AL$1))/INDEX($K5:$O5,1,aux!$AL$1),"n.d.") -> n.d. | AX5: 01
A6: 0103 | B6: Suínos vivos | C6: 0 | D6: 0 | E6: 0 | F6: 0 | G6: 0 | H6: 0 | I6: 0 | J6: 0 | K6: 0 | L6: 0 | M6: 0 | N6: 0 | O6: 0 | P6: 0 | Q6: 0 | R6: 0 | S6: 0 | U6: =G6-INDEX($C6:$G6,1,aux!$AL$1) -> 0 | V6: 0 | W6: 0 | X6: =+IF(INDEX($C6:$G6,1,aux!$AL$1)>0,(G6/INDEX($C6:$G6,1,aux!$AL$1))^(1/($G$3-INDEX($C$3:$G$3,1,aux!$AL$1)))-1,"n.d.") -> n.d. | Y6: =IF(INDEX($C6:$G6,1,aux!$AL$1)>0,(G6-INDEX($C6:$G6,1,aux!$AL$1))/INDEX($C6:$G6,1,aux!$AL$1),"n.d.") -> n.d. | AA6: =O6-INDEX($K6:$O6,1,aux!$AL$1) -> 0 | AB6: 0 | AC6: 0 | AD6: =+IF(INDEX($K6:$O6,1,aux!$AL$1)>0,(O6/INDEX($K6:$O6,1,aux!$AL$1))^(1/($O$3-INDEX($K$3:$O$3,1,aux!$AL$1)))-1,"n.d.") -> n.d. | AE6: =IF(INDEX($K6:$O6,1,aux!$AL$1)>0,(O6-INDEX($K6:$O6,1,aux!$AL$1))/INDEX($K6:$O6,1,aux!$AL$1),"n.d.") -> n.d. | AX6: 01
A7: 0104 | B7: Ovinos ou caprinos vivos | C7: 0 | D7: 0 | E7: 0 | F7: 0 | G7: 0 | H7: 0 | I7: 0 | J7: 0 | K7: 0 | L7: 0 | M7: 0 | N7: 0 | O7: 0 | P7: 0 | Q7: 0 | R7: 0 | S7: 0 | U7: =G7-INDEX($C7:$G7,1,aux!$AL$1) -> 0 | V7: 0 | W7: 0 | X7: =+IF(INDEX($C7:$G7,1,aux!$AL$1)>0,(G7/INDEX($C7:$G7,1,aux!$AL$1))^(1/($G$3-INDEX($C$3:$G$3,1,aux!$AL$1)))-1,"n.d.") -> n.d. | Y7: =IF(INDEX($C7:$G7,1,aux!$AL$1)>0,(G7-INDEX($C7:$G7,1,aux!$AL$1))/INDEX($C7:$G7,1,aux!$AL$1),"n.d.") -> n.d. | AA7: =O7-INDEX($K7:$O7,1,aux!$AL$1) -> 0 | AB7: 0 | AC7: 0 | AD7: =+IF(INDEX($K7:$O7,1,aux!$AL$1)>0,(O7/INDEX($K7:$O7,1,aux!$AL$1))^(1/($O$3-INDEX($K$3:$O$3,1,aux!$AL$1)))-1,"n.d.") -> n.d. | AE7: =IF(INDEX($K7:$O7,1,aux!$AL$1)>0,(O7-INDEX($K7:$O7,1,aux!$AL$1))/INDEX($K7:$O7,1,aux!$AL$1),"n.d.") -> n.d. | AX7: 01
A8: 0105 | B8: Aves de capoeira vivas | C8: 0 | D8: 0 | E8: 0 | F8: 0 | G8: 0 | H8: 0 | I8: 0 | J8: 0 | K8: 310.206 | L8: 198.965 | M8: 149.808 | N8: 180.599 | O8: 184.873 | P8: 204.8902 | Q8: 0.0007565670858 | R8: 0.0006187791704 | S8: 204.8902 | U8: =G8-INDEX($C8:$G8,1,aux!$AL$1) -> 0 | V8: 0 | W8: 0 | X8: =+IF(INDEX($C8:$G8,1,aux!$AL$1)>0,(G8/INDEX($C8:$G8,1,aux!$AL$1))^(1/($G$3-INDEX($C$3:$G$3,1,aux!$AL$1)))-1,"n.d.") -> n.d. | Y8: =IF(INDEX($C8:$G8,1,aux!$AL$1)>0,(G8-INDEX($C8:$G8,1,aux!$AL$1))/INDEX($C8:$G8,1,aux!$AL$1),"n.d.") -> n.d. | AA8: =O8-INDEX($K8:$O8,1,aux!$AL$1) -> -125.333 | AB8: 0.001548363342 | AC8: 0.001363619935 | AD8: =+IF(INDEX($K8:$O8,1,aux!$AL$1)>0,(O8/INDEX($K8:$O8,1,aux!$AL$1))^(1/($O$3-INDEX($K$3:$O$3,1,aux!$AL$1)))-1,"n.d.") -> -0.1213704127 | AE8: =IF(INDEX($K8:$O8,1,aux!$AL$1)>0,(O8-INDEX($K8:$O8,1,aux!$AL$1))/INDEX($K8:$O8,1,aux!$AL$1),"n.d.") -> -0.4040315145 | AX8: 01
A9: 0106 | B9: Outros animais vivos | C9: 0 | D9: 0 | E9: 0 | F9: 0 | G9: 0 | H9: 0 | I9: 0 | J9: 0 | K9: 81.061 | L9: 9.591 | M9: 7.813 | N9: 8.987 | O9: 47.602 | P9: 31.0108 | Q9: 0.0001145088959 | R9: 9.365424553e-05 | S9: 31.0108 | U9: =G9-INDEX($C9:$G9,1,aux!$AL$1) -> 0 | V9: 0 | W9: 0 | X9: =+IF(INDEX($C9:$G9,1,aux!$AL$1)>0,(G9/INDEX($C9:$G9,1,aux!$AL$1))^(1/($G$3-INDEX($C$3:$G$3,1,aux!$AL$1)))-1,"n.d.") -> n.d. | Y9: =IF(INDEX($C9:$G9,1,aux!$AL$1)>0,(G9-INDEX($C9:$G9,1,aux!$AL$1))/INDEX($C9:$G9,1,aux!$AL$1),"n.d.") -> n.d. | AA9: =O9-INDEX($K9:$O9,1,aux!$AL$1) -> -33.459 | AB9: 0.0004133523418 | AC9: 0.0003640330911 | AD9: =+IF(INDEX($K9:$O9,1,aux!$AL$1)>0,(O9/INDEX($K9:$O9,1,aux!$AL$1))^(1/($O$3-INDEX($K$3:$O$3,1,aux!$AL$1)))-1,"n.d.") -> -0.1246065137 | AE9: =IF(INDEX($K9:$O9,1,aux!$AL$1)>0,(O9-INDEX($K9:$O9,1,aux!$AL$1))/INDEX($K9:$O9,1,aux!$AL$1),"n.d.") -> -0.4127632277 | AX9: 01
A10: 01SS | B10: Animais vivos | C10: 0 | D10: 0 | E10: 0 | F10: 0 | G10: 0 | H10: 0 | I10: 0 | J10: 0 | K10: 0 | L10: 0 | M10: 0 | N10: 0 | O10: 0 | P10: 0 | Q10: 0 | R10: 0 | S10: 0 | U10: =G10-INDEX($C10:$G10,1,aux!$AL$1) -> 0 | V10: 0 | W10: 0 | X10: =+IF(INDEX($C10:$G10,1,aux!$AL$1)>0,(G10/INDEX($C10:$G10,1,aux!$AL$1))^(1/($G$3-INDEX($C$3:$G$3,1,aux!$AL$1)))-1,"n.d.") -> n.d. | Y10: =IF(INDEX($C10:$G10,1,aux!$AL$1)>0,(G10-INDEX($C10:$G10,1,aux!$AL$1))/INDEX($C10:$G10,1,aux!$AL$1),"n.d.") -> n.d. | AA10: =O10-INDEX($K10:$O10,1,aux!$AL$1) -> 0 | AB10: 0 | AC10: 0 | AD10: =+IF(INDEX($K10:$O10,1,aux!$AL$1)>0,(O10/INDEX($K10:$O10,1,aux!$AL$1))^(1/($O$3-INDEX($K$3:$O$3,1,aux!$AL$1)))-1,"n.d.") -> n.d. | AE10: =IF(INDEX($K10:$O10,1,aux!$AL$1)>0,(O10-INDEX($K10:$O10,1,aux!$AL$1))/INDEX($K10:$O10,1,aux!$AL$1),"n.d.") -> n.d. | AX10: 01
A11: 0201 | B11: Carnes de bovino, frescas ou refrigeradas | C11: 0 | D11: 0 | E11: 0 | F11: 0 | G11: 0 | H11: 0 | I11: 0 | J11: 0 | K11: 600.736 | L11: 103.427 | M11: 1.2 | N11: 1.826 | O11: 11.326 | P11: 143.703 | Q11: 0.0005306303568 | R11: 0.0004339906112 | S11: 143.703 | U11: =G11-INDEX($C11:$G11,1,aux!$AL$1) -> 0 | V11: 0 | W11: 0 | X11: =+IF(INDEX($C11:$G11,1,aux!$AL$1)>0,(G11/INDEX($C11:$G11,1,aux!$AL$1))^(1/($G$3-INDEX($C$3:$G$3,1,aux!$AL$1)))-1,"n.d.") -> n.d. | Y11: =IF(INDEX($C11:$G11,1,aux!$AL$1)>0,(G11-INDEX($C11:$G11,1,aux!$AL$1))/INDEX($C11:$G11,1,aux!$AL$1),"n.d.") -> n.d. | AA11: =O11-INDEX($K11:$O11,1,aux!$AL$1) -> -589.41 | AB11: 0.007281568601 | AC11: 0.006412766197 | AD11: =+IF(INDEX($K11:$O11,1,aux!$AL$1)>0,(O11/INDEX($K11:$O11,1,aux!$AL$1))^(1/($O$3-INDEX($K$3:$O$3,1,aux!$AL$1)))-1,"n.d.") -> -0.6294487994 | AE11: =IF(INDEX($K11:$O11,1,aux!$AL$1)>0,(O11-INDEX($K11:$O11,1,aux!$AL$1))/INDEX($K11:$O11,1,aux!$AL$1),"n.d.") -> -0.9811464603 | AX11: 02
A12: 0202 | B12: Carnes de bovino, congeladas | C12: 0 | D12: 0 | E12: 0 | F12: 0 | G12: 0 | H12: 0 | I12: 0 | J12: 0 | K12: 5285.786 | L12: 1885.596 | M12: 971.562 | N12: 1513.692 | O12: 2188.719 | P12: 2369.071 | Q12: 0.008747910552 | R12: 0.007154718908 | S12: 2369.071 | U12: =G12-INDEX($C12:$G12,1,aux!$AL$1) -> 0 | V12: 0 | W12: 0 | X12: =+IF(INDEX($C12:$G12,1,aux!$AL$1)>0,(G12/INDEX($C12:$G12,1,aux!$AL$1))^(1/($G$3-INDEX($C$3:$G$3,1,aux!$AL$1)))-1,"n.d.") -> n.d. | Y12: =IF(INDEX($C12:$G12,1,aux!$AL$1)>0,(G12-INDEX($C12:$G12,1,aux!$AL$1))/INDEX($C12:$G12,1,aux!$AL$1),"n.d.") -> n.d. | AA12: =O12-INDEX($K12:$O12,1,aux!$AL$1) -> -3097.067 | AB12: 0.03826115238 | AC12: 0.03369601223 | AD12: =+IF(INDEX($K12:$O12,1,aux!$AL$1)>0,(O12/INDEX($K12:$O12,1,aux!$AL$1))^(1/($O$3-INDEX($K$3:$O$3,1,aux!$AL$1)))-1,"n.d.") -> -0.1978231807 | AE12: =IF(INDEX($K12:$O12,1,aux!$AL$1)>0,(O12-INDEX($K12:$O12,1,aux!$AL$1))/INDEX($K12:$O12,1,aux!$AL$1),"n.d.") -> -0.585923645 | AX12: 02
A13: 0203 | B13: Carnes de suíno | C13: 0 | D13: 0 | E13: 0 | F13: 0 | G13: 0 | H13: 0 | I13: 0 | J13: 0 | K13: 11732.491 | L13: 5046.053 | M13: 5030.038 | N13: 8390.795 | O13: 8528.726 | P13: 7745.6206 | Q13: 0.02860108295 | R13: 0.02339218122 | S13: 7745.6206 | U13: =G13-INDEX($C13:$G13,1,aux!$AL$1) -> 0 | V13: 0 | W13: 0 | X13: =+IF(INDEX($C13:$G13,1,aux!$AL$1)>0,(G13/INDEX($C13:$G13,1,aux!$AL$1))^(1/($G$3-INDEX($C$3:$G$3,1,aux!$AL$1)))-1,"n.d.") -> n.d. | Y13: =IF(INDEX($C13:$G13,1,aux!$AL$1)>0,(G13-INDEX($C13:$G13,1,aux!$AL$1))/INDEX($C13:$G13,1,aux!$AL$1),"n.d.") -> n.d. | AA13: =O13-INDEX($K13:$O13,1,aux!$AL$1) -> -3203.765 | AB13: 0.03957929901 | AC13: 0.03485688383 | AD13: =+IF(INDEX($K13:$O13,1,aux!$AL$1)>0,(O13/INDEX($K13:$O13,1,aux!$AL$1))^(1/($O$3-INDEX($K$3:$O$3,1,aux!$AL$1)))-1,"n.d.") -> -0.07663484172 | AE13: =IF(INDEX($K13:$O13,1,aux!$AL$1)>0,(O13-INDEX($K13:$O13,1,aux!$AL$1))/INDEX($K13:$O13,1,aux!$AL$1),"n.d.") -> -0.2730677569 | AX13: 02
A14: 0204 | B14: Carnes de ovino ou caprino | C14: 0 | D14: 0 | E14: 0 | F14: 0 | G14: 0 | H14: 0 | I14: 0 | J14: 0 | K14: 323.722 | L14: 191.459 | M14: 80.335 | N14: 266.549 | O14: 205.951 | P14: 213.6032 | Q14: 0.0007887402645 | R14: 0.0006450928883 | S14: 213.6032 | U14: =G14-INDEX($C14:$G14,1,aux!$AL$1) -> 0 | V14: 0 | W14: 0 | X14: =+IF(INDEX($C14:$G14,1,aux!$AL$1)>0,(G14/INDEX($C14:$G14,1,aux!$AL$1))^(1/($G$3-INDEX($C$3:$G$3,1,aux!$AL$1)))-1,"n.d.") -> n.d. | Y14: =IF(INDEX($C14:$G14,1,aux!$AL$1)>0,(G14-INDEX($C14:$G14,1,aux!$AL$1))/INDEX($C14:$G14,1,aux!$AL$1),"n.d.") -> n.d. | AA14: =O14-INDEX($K14:$O14,1,aux!$AL$1) -> -117.771 | AB14: 0.001454942427 | AC14: 0.001281345562 | AD14: =+IF(INDEX($K14:$O14,1,aux!$AL$1)>0,(O14/INDEX($K14:$O14,1,aux!$AL$1))^(1/($O$3-INDEX($K$3:$O$3,1,aux!$AL$1)))-1,"n.d.") -> -0.1069044559 | AE14: =IF(INDEX($K14:$O14,1,aux!$AL$1)>0,(O14-INDEX($K14:$O14,1,aux!$AL$1))/INDEX($K14:$O14,1,aux!$AL$1),"n.d.") -> -0.3638028926 | AX14: 02
A15: 0205 | B15: Carnes de equídeo | C15: 0 | D15: 0 | E15: 0 | F15: 0 | G15: 0 | H15: 0 | I15: 0 | J15: 0 | K15: 0 | L15: 0 | M15: 0 | N15: 0 | O15: 0 | P15: 0 | Q15: 0 | R15: 0 | S15: 0 | U15: =G15-INDEX($C15:$G15,1,aux!$AL$1) -> 0 | V15: 0 | W15: 0 | X15: =+IF(INDEX($C15:$G15,1,aux!$AL$1)>0,(G15/INDEX($C15:$G15,1,aux!$AL$1))^(1/($G$3-INDEX($C$3:$G$3,1,aux!$AL$1)))-1,"n.d.") -> n.d. | Y15: =IF(INDEX($C15:$G15,1,aux!$AL$1)>0,(G15-INDEX($C15:$G15,1,aux!$AL$1))/INDEX($C15:$G15,1,aux!$AL$1),"n.d.") -> n.d. | AA15: =O15-INDEX($K15:$O15,1,aux!$AL$1) -> 0 | AB15: 0 | AC15: 0 | AD15: =+IF(INDEX($K15:$O15,1,aux!$AL$1)>0,(O15/INDEX($K15:$O15,1,aux!$AL$1))^(1/($O$3-INDEX($K$3:$O$3,1,aux!$AL$1)))-1,"n.d.") -> n.d. | AE15: =IF(INDEX($K15:$O15,1,aux!$AL$1)>0,(O15-INDEX($K15:$O15,1,aux!$AL$1))/INDEX($K15:$O15,1,aux!$AL$1),"n.d.") -> n.d. | AX15: 02
A16: 0206 | B16: Miudezas de bovino, suíno, ovino, caprino,equídeo | C16: 0 | D16: 0 | E16: 0 | F16: 0 | G16: 0 | H16: 0 | I16: 0 | J16: 0 | K16: 346.086 | L16: 67.877 | M16: 261.019 | N16: 168.517 | O16: 217.861 | P16: 212.272 | Q16: 0.0007838247434 | R16: 0.0006410725943 | S16: 212.272 | U16: =G16-INDEX($C16:$G16,1,aux!$AL$1) -> 0 | V16: 0 | W16: 0 | X16: =+IF(INDEX($C16:$G16,1,aux!$AL$1)>0,(G16/INDEX($C16:$G16,1,aux!$AL$1))^(1/($G$3-INDEX($C$3:$G$3,1,aux!$AL$1)))-1,"n.d.") -> n.d. | Y16: =IF(INDEX($C16:$G16,1,aux!$AL$1)>0,(G16-INDEX($C16:$G16,1,aux!$AL$1))/INDEX($C16:$G16,1,aux!$AL$1),"n.d.") -> n.d. | AA16: =O16-INDEX($K16:$O16,1,aux!$AL$1) -> -128.225 | AB16: 0.001584091098 | AC16: 0.001395084823 | AD16: =+IF(INDEX($K16:$O16,1,aux!$AL$1)>0,(O16/INDEX($K16:$O16,1,aux!$AL$1))^(1/($O$3-INDEX($K$3:$O$3,1,aux!$AL$1)))-1,"n.d.") -> -0.1092642867 | AE16: =IF(INDEX($K16:$O16,1,aux!$AL$1)>0,(O16-INDEX($K16:$O16,1,aux!$AL$1))/INDEX($K16:$O16,1,aux!$AL$1),"n.d.") -> -0.3705003959 | AX16: 02
A17: 0207 | B17: Carnes e miudezas de aves de capoeira | C17: 0 | D17: 0 | E17: 0 | F17: 0 | G17: 0 | H17: 0 | I17: 0 | J17: 0 | K17: 6229.044 | L17: 2774.465 | M17: 2513.47 | N17: 2086.309 | O17: 2345.092 | P17: 3189.676 | Q17: 0.01177803465 | R17: 0.009632989129 | S17: 3189.676 | U17: =G17-INDEX($C17:$G17,1,aux!$AL$1) -> 0 | V17: 0 | W17: 0 | X17: =+IF(INDEX($C17:$G17,1,aux!$AL$1)>0,(G17/INDEX($C17:$G17,1,aux!$AL$1))^(1/($G$3-INDEX($C$3:$G$3,1,aux!$AL$1)))-1,"n.d.") -> n.d. | Y17: =IF(INDEX($C17:$G17,1,aux!$AL$1)>0,(G17-INDEX($C17:$G17,1,aux!$AL$1))/INDEX($C17:$G17,1,aux!$AL$1),"n.d.") -> n.d. | AA17: =O17-INDEX($K17:$O17,1,aux!$AL$1) -> -3883.952 | AB17: 0.04798232627 | AC17: 0.04225730154 | AD17: =+IF(INDEX($K17:$O17,1,aux!$AL$1)>0,(O17/INDEX($K17:$O17,1,aux!$AL$1))^(1/($O$3-INDEX($K$3:$O$3,1,aux!$AL$1)))-1,"n.d.") -> -0.2166882853 | AE17: =IF(INDEX($K17:$O17,1,aux!$AL$1)>0,(O17-INDEX($K17:$O17,1,aux!$AL$1))/INDEX($K17:$O17,1,aux!$AL$1),"n.d.") -> -0.6235229676 | AX17: 02
A18: 0208 | B18: Outras carnes e miudezas | C18: 0 | D18: 0 | E18: 0 | F18: 0 | G18: 0 | H18: 0 | I18: 0 | J18: 0 | K18: 107.906 | L18: 31.141 | M18: 26.939 | N18: 32.863 | O18: 30.969 | P18: 45.9636 | Q18: 0.0001697228413 | R18: 0.0001388124873 | S18: 45.9636 | U18: =G18-INDEX($C18:$G18,1,aux!$AL$1) -> 0 | V18: 0 | W18: 0 | X18: =+IF(INDEX($C18:$G18,1,aux!$AL$1)>0,(G18/INDEX($C18:$G18,1,aux!$AL$1))^(1/($G$3-INDEX($C$3:$G$3,1,aux!$AL$1)))-1,"n.d.") -> n.d. | Y18: =IF(INDEX($C18:$G18,1,aux!$AL$1)>0,(G18-INDEX($C18:$G18,1,aux!$AL$1))/INDEX($C18:$G18,1,aux!$AL$1),"n.d.") -> n.d. | AA18: =O18-INDEX($K18:$O18,1,aux!$AL$1) -> -76.937 | AB18: 0.0009504793665 | AC18: 0.0008370726539 | AD18: =+IF(INDEX($K18:$O18,1,aux!$AL$1)>0,(O18/INDEX($K18:$O18,1,aux!$AL$1))^(1/($O$3-INDEX($K$3:$O$3,1,aux!$AL$1)))-1,"n.d.") -> -0.2680685694 | AE18: =IF(INDEX($K18:$O18,1,aux!$AL$1)>0,(O18-INDEX($K18:$O18,1,aux!$AL$1))/INDEX($K18:$O18,1,aux!$AL$1),"n.d.") -> -0.7130002039 | AX18: 02
A19: 0209 | B19: Toucinho, gorduras de porco e de aves | C19: 0 | D19: 0 | E19: 0 | F19: 0 | G19: 0 | H19: 0 | I19: 0 | J19: 0 | K19: 146.735 | L19: 112.283 | M19: 48.025 | N19: 120.774 | O19: 138.548 | P19: 113.273 | Q19: 0.0004182660933 | R19: 0.0003420904122 | S19: 113.273 | U19: =G19-INDEX($C19:$G19,1,aux!$AL$1) -> 0 | V19: 0 | W19: 0 | X19: =+IF(INDEX($C19:$G19,1,aux!$AL$1)>0,(G19/INDEX($C19:$G19,1,aux!$AL$1))^(1/($G$3-INDEX($C$3:$G$3,1,aux!$AL$1)))-1,"n.d.") -> n.d. | Y19: =IF(INDEX($C19:$G19,1,aux!$AL$1)>0,(G19-INDEX($C19:$G19,1,aux!$AL$1))/INDEX($C19:$G19,1,aux!$AL$1),"n.d.") -> n.d. | AA19: =O19-INDEX($K19:$O19,1,aux!$AL$1) -> -8.187 | AB19: 0.0001011421627 | AC19: 8.907435717e-05 | AD19: =+IF(INDEX($K19:$O19,1,aux!$AL$1)>0,(O19/INDEX($K19:$O19,1,aux!$AL$1))^(1/($O$3-INDEX($K$3:$O$3,1,aux!$AL$1)))-1,"n.d.") -> -0.01425033958 | AE19: =IF(INDEX($K19:$O19,1,aux!$AL$1)>0,(O19-INDEX($K19:$O19,1,aux!$AL$1))/INDEX($K19:$O19,1,aux!$AL$1),"n.d.") -> -0.0557944594 | AX19: 02
A20: 0210 | B20: Carnes e miudezas processadas; farinhas de carnes | C20: 0 | D20: 0 | E20: 0 | F20: 0 | G20: 0 | H20: 0 | I20: 0 | J20: 0 | K20: 3218.077 | L20: 1806.276 | M20: 1390.818 | N20: 1167.322 | O20: 1873.218 | P20: 1891.1422 | Q20: 0.00698313508 | R20: 0.005711348818 | S20: 1891.1422 | U20: =G20-INDEX($C20:$G20,1,aux!$AL$1) -> 0 | V20: 0 | W20: 0 | X20: =+IF(INDEX($C20:$G20,1,aux!$AL$1)>0,(G20/INDEX($C20:$G20,1,aux!$AL$1))^(1/($G$3-INDEX($C$3:$G$3,1,aux!$AL$1)))-1,"n.d.") -> n.d. | Y20: =IF(INDEX($C20:$G20,1,aux!$AL$1)>0,(G20-INDEX($C20:$G20,1,aux!$AL$1))/INDEX($C20:$G20,1,aux!$AL$1),"n.d.") -> n.d. | AA20: =O20-INDEX($K20:$O20,1,aux!$AL$1) -> -1344.859 | AB20: 0.01661438229 | AC20: 0.0146320326 | AD20: =+IF(INDEX($K20:$O20,1,aux!$AL$1)>0,(O20/INDEX($K20:$O20,1,aux!$AL$1))^(1/($O$3-INDEX($K$3:$O$3,1,aux!$AL$1)))-1,"n.d.") -> -0.1265300416 | AE20: =IF(INDEX($K20:$O20,1,aux!$AL$1)>0,(O20-INDEX($K20:$O20,1,aux!$AL$1))/INDEX($K20:$O20,1,aux!$AL$1),"n.d.") -> -0.4179076511 | AX20: 02
A21: 02SS | B21: Carnes e miudezas, comestíveis | C21: 0 | D21: 0 | E21: 0 | F21: 0 | G21: 0 | H21: 0 | I21: 0 | J21: 0 | K21: 0 | L21: 0 | M21: 0 | N21: 0 | O21: 0 | P21: 0 | Q21: 0 | R21: 0 | S21: 0 | U21: =G21-INDEX($C21:$G21,1,aux!$AL$1) -> 0 | V21: 0 | W21: 0 | X21: =+IF(INDEX($C21:$G21,1,aux!$AL$1)>0,(G21/INDEX($C21:$G21,1,aux!$AL$1))^(1/($G$3-INDEX($C$3:$G$3,1,aux!$AL$1)))-1,"n.d.") -> n.d. | Y21: =IF(INDEX($C21:$G21,1,aux!$AL$1)>0,(G21-INDEX($C21:$G21,1,aux!$AL$1))/INDEX($C21:$G21,1,aux!$AL$1),"n.d.") -> n.d. | AA21: =O21-INDEX($K21:$O21,1,aux!$AL$1) -> 0 | AB21: 0 | AC21: 0 | AD21: =+IF(INDEX($K21:$O21,1,aux!$AL$1)>0,(O21/INDEX($K21:$O21,1,aux!$AL$1))^(1/($O$3-INDEX($K$3:$O$3,1,aux!$AL$1)))-1,"n.d.") -> n.d. | AE21: =IF(INDEX($K21:$O21,1,aux!$AL$1)>0,(O21-INDEX($K21:$O21,1,aux!$AL$1))/INDEX($K21:$O21,1,aux!$AL$1),"n.d.") -> n.d. | AX21: 02
A22: 0401 | B22: Leite e nata, não concentrados | C22: 0 | D22: 0 | E22: 0 | F22: 0 | G22: 0 | H22: 0 | I22: 0 | J22: 0 | K22: 20882.247 | L22: 17235.405 | M22: 8163.108 | N22: 6238.327 | O22: 9357.899 | P22: 12375.3972 | Q22: 0.04569675951 | R22: 0.03737434984 | S22: 12375.3972 | U22: =G22-INDEX($C22:$G22,1,aux!$AL$1) -> 0 | V22: 0 | W22: 0 | X22: =+IF(INDEX($C22:$G22,1,aux!$AL$1)>0,(G22/INDEX($C22:$G22,1,aux!$AL$1))^(1/($G$3-INDEX($C$3:$G$3,1,aux!$AL$1)))-1,"n.d.") -> n.d. | Y22: =IF(INDEX($C22:$G22,1,aux!$AL$1)>0,(G22-INDEX($C22:$G22,1,aux!$AL$1))/INDEX($C22:$G22,1,aux!$AL$1),"n.d.") -> n.d. | AA22: =O22-INDEX($K22:$O22,1,aux!$AL$1) -> -11524.348 | AB22: 0.1423717455 | AC22: 0.1253846207 | AD22: =+IF(INDEX($K22:$O22,1,aux!$AL$1)>0,(O22/INDEX($K22:$O22,1,aux!$AL$1))^(1/($O$3-INDEX($K$3:$O$3,1,aux!$AL$1)))-1,"n.d.") -> -0.1818173209 | AE22: =IF(INDEX($K22:$O22,1,aux!$AL$1)>0,(O22-INDEX($K22:$O22,1,aux!$AL$1))/INDEX($K22:$O22,1,aux!$AL$1),"n.d.") -> -0.5518729857 | AX22: 04
A23: 0402 | B23: Leite e nata, concentrados | C23: 0 | D23: 0 | E23: 0 | F23: 0 | G23: 0 | H23: 0 | I23: 0 | J23: 0 | K23: 3580.045 | L23: 5840.725 | M23: 3432.302 | N23: 3914.748 | O23: 6224.036 | P23: 4598.3712 | Q23: 0.01697971059 | R23: 0.01388732266 | S23: 4598.3712 | U23: =G23-INDEX($C23:$G23,1,aux!$AL$1) -> 0 | V23: 0 | W23: 0 | X23: =+IF(INDEX($C23:$G23,1,aux!$AL$1)>0,(G23/INDEX($C23:$G23,1,aux!$AL$1))^(1/($G$3-INDEX($C$3:$G$3,1,aux!$AL$1)))-1,"n.d.") -> n.d. | Y23: =IF(INDEX($C23:$G23,1,aux!$AL$1)>0,(G23-INDEX($C23:$G23,1,aux!$AL$1))/INDEX($C23:$G23,1,aux!$AL$1),"n.d.") -> n.d. | AA23: =O23-INDEX($K23:$O23,1,aux!$AL$1) -> 2643.991 | AB23: -0.03266385342 | AC23: -0.02876655658 | AD23: =+IF(INDEX($K23:$O23,1,aux!$AL$1)>0,(O23/INDEX($K23:$O23,1,aux!$AL$1))^(1/($O$3-INDEX($K$3:$O$3,1,aux!$AL$1)))-1,"n.d.") -> 0.1482749816 | AE23: =IF(INDEX($K23:$O23,1,aux!$AL$1)>0,(O23-INDEX($K23:$O23,1,aux!$AL$1))/INDEX($K23:$O23,1,aux!$AL$1),"n.d.") -> 0.7385356888 | AX23: 04
A24: 0403 | B24: Leitelho, leite coalhado, iogurte, etc. | C24: 0 | D24: 0 | E24: 0 | F24: 0 | G24: 0 | H24: 0 | I24: 0 | J24: 0 | K24: 11999.524 | L24: 8457.536 | M24: 4096.169 | N24: 3623.755 | O24: 5701.522 | P24: 6775.7012 | Q24: 0.02501960812 | R24: 0.02046297367 | S24: 6775.7012 | U24: =G24-INDEX($C24:$G24,1,aux!$AL$1) -> 0 | V24: 0 | W24: 0 | X24: =+IF(INDEX($C24:$G24,1,aux!$AL$1)>0,(G24/INDEX($C24:$G24,1,aux!$AL$1))^(1/($G$3-INDEX($C$3:$G$3,1,aux!$AL$1)))-1,"n.d.") -> n.d. | Y24: =IF(INDEX($C24:$G24,1,aux!$AL$1)>0,(G24-INDEX($C24:$G24,1,aux!$AL$1))/INDEX($C24:$G24,1,aux!$AL$1),"n.d.") -> n.d. | AA24: =O24-INDEX($K24:$O24,1,aux!$AL$1) -> -6298.002 | AB24: 0.07780548957 | AC24: 0.06852210573 | AD24: =+IF(INDEX($K24:$O24,1,aux!$AL$1)>0,(O24/INDEX($K24:$O24,1,aux!$AL$1))^(1/($O$3-INDEX($K$3:$O$3,1,aux!$AL$1)))-1,"n.d.") -> -0.1697541825 | AE24: =IF(INDEX($K24:$O24,1,aux!$AL$1)>0,(O24-INDEX($K24:$O24,1,aux!$AL$1))/INDEX($K24:$O24,1,aux!$AL$1),"n.d.") -> -0.5248543192 | AX24: 04
A25: 0404 | B25: Soro de leite e outros produtos do leite | C25: 0 | D25: 0 | E25: 0 | F25: 0 | G25: 0 | H25: 0 | I25: 0 | J25: 0 | K25: 56.909 | L25: 623.872 | M25: 1186.801 | N25: 2236.865 | O25: 1304.43 | P25: 1081.7754 | Q25: 0.00399450858 | R25: 0.003267018552 | S25: 1081.7754 | U25: =G25-INDEX($C25:$G25,1,aux!$AL$1) -> 0 | V25: 0 | W25: 0 | X25: =+IF(INDEX($C25:$G25,1,aux!$AL$1)>0,(G25/INDEX($C25:$G25,1,aux!$AL$1))^(1/($G$3-INDEX($C$3:$G$3,1,aux!$AL$1)))-1,"n.d.") -> n.d. | Y25: =IF(INDEX($C25:$G25,1,aux!$AL$1)>0,(G25-INDEX($C25:$G25,1,aux!$AL$1))/INDEX($C25:$G25,1,aux!$AL$1),"n.d.") -> n.d. | AA25: =O25-INDEX($K25:$O25,1,aux!$AL$1) -> 1247.521 | AB25: -0.01541186906 | AC25: -0.01357299757 | AD25: =+IF(INDEX($K25:$O25,1,aux!$AL$1)>0,(O25/INDEX($K25:$O25,1,aux!$AL$1))^(1/($O$3-INDEX($K$3:$O$3,1,aux!$AL$1)))-1,"n.d.") -> 1.188063674 | AE25: =IF(INDEX($K25:$O25,1,aux!$AL$1)>0,(O25-INDEX($K25:$O25,1,aux!$AL$1))/INDEX($K25:$O25,1,aux!$AL$1),"n.d.") -> 21.92133055 | AX25: 04
A26: 0405 | B26: Manteiga | C26: 0 | D26: 0 | E26: 0 | F26: 0 | G26: 0 | H26: 0 | I26: 0 | J26: 0 | K26: 3349.205 | L26: 2859.105 | M26: 1768.265 | N26: 1870.797 | O26: 2930.653 | P26: 2555.605 | Q26: 0.009436696471 | R26: 0.00771806139 | S26: 2555.605 | U26: =G26-INDEX($C26:$G26,1,aux!$AL$1) -> 0 | V26: 0 | W26: 0 | X26: =+IF(INDEX($C26:$G26,1,aux!$AL$1)>0,(G26/INDEX($C26:$G26,1,aux!$AL$1))^(1/($G$3-INDEX($C$3:$G$3,1,aux!$AL$1)))-1,"n.d.") -> n.d. | Y26: =IF(INDEX($C26:$G26,1,aux!$AL$1)>0,(G26-INDEX($C26:$G26,1,aux!$AL$1))/INDEX($C26:$G26,1,aux!$AL$1),"n.d.") -> n.d. | AA26: =O26-INDEX($K26:$O26,1,aux!$AL$1) -> -418.552 | AB26: 0.005170789605 | AC26: 0.00455383539 | AD26: =+IF(INDEX($K26:$O26,1,aux!$AL$1)>0,(O26/INDEX($K26:$O26,1,aux!$AL$1))^(1/($O$3-INDEX($K$3:$O$3,1,aux!$AL$1)))-1,"n.d.") -> -0.03282365269 | AE26: =IF(INDEX($K26:$O26,1,aux!$AL$1)>0,(O26-INDEX($K26:$O26,1,aux!$AL$1))/INDEX($K26:$O26,1,aux!$AL$1),"n.d.") -> -0.1249705527 | AX26: 04
A27: 0406 | B27: Queijos e requeijão | C27: 0 | D27: 0 | E27: 0 | F27: 0 | G27: 0 | H27: 0 | I27: 0 | J27: 0 | K27: 9243.117 | L27: 7489.49 | M27: 4332.999 | N27: 6695.123 | O27: 10084.24 | P27: 7568.9938 | Q27: 0.02794887985 | R27: 0.02285875901 | S27: 7568.9938 | U27: =G27-INDEX($C27:$G27,1,aux!$AL$1) -> 0 | V27: 0 | W27: 0 | X27: =+IF(INDEX($C27:$G27,1,aux!$AL$1)>0,(G27/INDEX($C27:$G27,1,aux!$AL$1))^(1/($G$3-INDEX($C$3:$G$3,1,aux!$AL$1)))-1,"n.d.") -> n.d. | Y27: =IF(INDEX($C27:$G27,1,aux!$AL$1)>0,(G27-INDEX($C27:$G27,1,aux!$AL$1))/INDEX($C27:$G27,1,aux!$AL$1),"n.d.") -> n.d. | AA27: =O27-INDEX($K27:$O27,1,aux!$AL$1) -> 841.123 | AB27: -0.01039122992 | AC27: -0.009151397401 | AD27: =+IF(INDEX($K27:$O27,1,aux!$AL$1)>0,(O27/INDEX($K27:$O27,1,aux!$AL$1))^(1/($O$3-INDEX($K$3:$O$3,1,aux!$AL$1)))-1,"n.d.") -> 0.02201243668 | AE27: =IF(INDEX($K27:$O27,1,aux!$AL$1)>0,(O27-INDEX($K27:$O27,1,aux!$AL$1))/INDEX($K27:$O27,1,aux!$AL$1),"n.d.") -> 0.09099993 | AX27: 04
A28: 0407 | B28: Ovos de aves, com cascas | C28: 0 | D28: 0 | E28: 0 | F28: 0 | G28: 0 | H28: 0 | I28: 0 | J28: 0 | K28: 0.272 | L28: 13.8 | M28: 0.024 | N28: 7.752 | O28: 0.111 | P28: 4.3918 | Q28: 1.621693633e-05 | R28: 1.326346678e-05 | S28: 4.3918 | U28: =G28-INDEX($C28:$G28,1,aux!$AL$1) -> 0 | V28: 0 | W28: 0 | X28: =+IF(INDEX($C28:$G28,1,aux!$AL$1)>0,(G28/INDEX($C28:$G28,1,aux!$AL$1))^(1/($G$3-INDEX($C$3:$G$3,1,aux!$AL$1)))-1,"n.d.") -> n.d. | Y28: =IF(INDEX($C28:$G28,1,aux!$AL$1)>0,(G28-INDEX($C28:$G28,1,aux!$AL$1))/INDEX($C28:$G28,1,aux!$AL$1),"n.d.") -> n.d. | AA28: =O28-INDEX($K28:$O28,1,aux!$AL$1) -> -0.161 | AB28: 1.988993306e-06 | AC28: 1.751676011e-06 | AD28: =+IF(INDEX($K28:$O28,1,aux!$AL$1)>0,(O28/INDEX($K28:$O28,1,aux!$AL$1))^(1/($O$3-INDEX($K$3:$O$3,1,aux!$AL$1)))-1,"n.d.") -> -0.2007391902 | AE28: =IF(INDEX($K28:$O28,1,aux!$AL$1)>0,(O28-INDEX($K28:$O28,1,aux!$AL$1))/INDEX($K28:$O28,1,aux!$AL$1),"n.d.") -> -0.5919117647 | AX28: 04
A29: 0408 | B29: Ovos de aves, sem casca | C29: 0 | D29: 0 | E29: 0 | F29: 0 | G29: 0 | H29: 0 | I29: 0 | J29: 0 | K29: 2.436 | L29: 12.826 | M29: 1.669 | N29: 24.162 | O29: 83.513 | P29: 24.9212 | Q29: 9.202275003e-05 | R29: 7.526333354e-05 | S29: 24.9212 | U29: =G29-INDEX($C29:$G29,1,aux!$AL$1) -> 0 | V29: 0 | W29: 0 | X29: =+IF(INDEX($C29:$G29,1,aux!$AL$1)>0,(G29/INDEX($C29:$G29,1,aux!$AL$1))^(1/($G$3-INDEX($C$3:$G$3,1,aux!$AL$1)))-1,"n.d.") -> n.d. | Y29: =IF(INDEX($C29:$G29,1,aux!$AL$1)>0,(G29-INDEX($C29:$G29,1,aux!$AL$1))/INDEX($C29:$G29,1,aux!$AL$1),"n.d.") -> n.d. | AA29: =O29-INDEX($K29:$O29,1,aux!$AL$1) -> 81.077 | AB29: -0.001001624909 | AC29: -0.0008821157513 | AD29: =+IF(INDEX($K29:$O29,1,aux!$AL$1)>0,(O29/INDEX($K29:$O29,1,aux!$AL$1))^(1/($O$3-INDEX($K$3:$O$3,1,aux!$AL$1)))-1,"n.d.") -> 1.419742766 | AE29: =IF(INDEX($K29:$O29,1,aux!$AL$1)>0,(O29-INDEX($K29:$O29,1,aux!$AL$1))/INDEX($K29:$O29,1,aux!$AL$1),"n.d.") -> 33.28284072 | AX29: 04
A30: 0409 | B30: Mel natural | C30: 0 | D30: 0 | E30: 0 | F30: 0.004 | G30: 0 | H30: 0.0008 | I30: 1.123390014e-07 | J30: 5.187008313e-08 | K30: 392.592 | L30: 202.806 | M30: 39.56 | N30: 151.021 | O30: 133.372 | P30: 183.8702 | Q30: 0.0006789497076 | R30: 0.0005552976659 | S30: 183.8694 | U30: =G30-INDEX($C30:$G30,1,aux!$AL$1) -> 0 | V30: 0 | W30: 0 | X30: =+IF(INDEX($C30:$G30,1,aux!$AL$1)>0,(G30/INDEX($C30:$G30,1,aux!$AL$1))^(1/($G$3-INDEX($C$3:$G$3,1,aux!$AL$1)))-1,"n.d.") -> n.d. | Y30: =IF(INDEX($C30:$G30,1,aux!$AL$1)>0,(G30-INDEX($C30:$G30,1,aux!$AL$1))/INDEX($C30:$G30,1,aux!$AL$1),"n.d.") -> n.d. | AA30: =O30-INDEX($K30:$O30,1,aux!$AL$1) -> -259.22 | AB30: 0.003202402763 | AC30: 0.002820307178 | AD30: =+IF(INDEX($K30:$O30,1,aux!$AL$1)>0,(O30/INDEX($K30:$O30,1,aux!$AL$1))^(1/($O$3-INDEX($K$3:$O$3,1,aux!$AL$1)))-1,"n.d.") -> -0.2365496394 | AE30: =IF(INDEX($K30:$O30,1,aux!$AL$1)>0,(O30-INDEX($K30:$O30,1,aux!$AL$1))/INDEX($K30:$O30,1,aux!$AL$1),"n.d.") -> -0.6602783551 | AX30: 04
A31: 0410 | B31: Outros produtos comestíveis de origem animal | C31: 0 | D31: 0 | E31: 0 | F31: 0 | G31: 0 | H31: 0 | I31: 0 | J31: 0 | K31: 0.237 | L31: 0 | M31: 0 | N31: 0 | O31: 0 | P31: 0.0474 | Q31: 1.750268186e-07 | R31: 1.431504907e-07 | S31: 0.0474 | U31: =G31-INDEX($C31:$G31,1,aux!$AL$1) -> 0 | V31: 0 | W31: 0 | X31: =+IF(INDEX($C31:$G31,1,aux!$AL$1)>0,(G31/INDEX($C31:$G31,1,aux!$AL$1))^(1/($G$3-INDEX($C$3:$G$3,1,aux!$AL$1)))-1,"n.d.") -> n.d. | Y31: =IF(INDEX($C31:$G31,1,aux!$AL$1)>0,(G31-INDEX($C31:$G31,1,aux!$AL$1))/INDEX($C31:$G31,1,aux!$AL$1),"n.d.") -> n.d. | AA31: =O31-INDEX($K31:$O31,1,aux!$AL$1) -> -0.237 | AB31: 2.927896979e-06 | AC31: 2.578554128e-06 | AD31: =+IF(INDEX($K31:$O31,1,aux!$AL$1)>0,(O31/INDEX($K31:$O31,1,aux!$AL$1))^(1/($O$3-INDEX($K$3:$O$3,1,aux!$AL$1)))-1,"n.d.") -> -1 | AE31: =IF(INDEX($K31:$O31,1,aux!$AL$1)>0,(O31-INDEX($K31:$O31,1,aux!$AL$1))/INDEX($K31:$O31,1,aux!$AL$1),"n.d.") -> -1 | AX31: 04
A32: 04SS | B32: Leite e lacticínios; ovos de aves; mel natural; etc. | C32: 0 | D32: 0 | E32: 0 | F32: 0 | G32: 0 | H32: 0 | I32: 0 | J32: 0 | K32: 0 | L32: 0 | M32: 0 | N32: 0 | O32: 0 | P32: 0 | Q32: 0 | R32: 0 | S32: 0 | U32: =G32-INDEX($C32:$G32,1,aux!$AL$1) -> 0 | V32: 0 | W32: 0 | X32: =+IF(INDEX($C32:$G32,1,aux!$AL$1)>0,(G32/INDEX($C32:$G32,1,aux!$AL$1))^(1/($G$3-INDEX($C$3:$G$3,1,aux!$AL$1)))-1,"n.d.") -> n.d. | Y32: =IF(INDEX($C32:$G32,1,aux!$AL$1)>0,(G32-INDEX($C32:$G32,1,aux!$AL$1))/INDEX($C32:$G32,1,aux!$AL$1),"n.d.") -> n.d. | AA32: =O32-INDEX($K32:$O32,1,aux!$AL$1) -> 0 | AB32: 0 | AC32: 0 | AD32: =+IF(INDEX($K32:$O32,1,aux!$AL$1)>0,(O32/INDEX($K32:$O32,1,aux!$AL$1))^(1/($O$3-INDEX($K$3:$O$3,1,aux!$AL$1)))-1,"n.d.") -> n.d. | AE32: =IF(INDEX($K32:$O32,1,aux!$AL$1)>0,(O32-INDEX($K32:$O32,1,aux!$AL$1))/INDEX($K32:$O32,1,aux!$AL$1),"n.d.") -> n.d. | AX32: 04
A33: 0501 | B33: Cabelos em bruto | C33: 0 | D33: 0 | E33: 0 | F33: 0 | G33: 0.274 | H33: 0.0548 | I33: 7.695221593e-06 | J33: 3.553100694e-06 | K33: 0 | L33: 0 | M33: 0 | N33: 0 | O33: 0 | P33: 0 | Q33: 0 | R33: 0 | S33: -0.0548 | U33: =G33-INDEX($C33:$G33,1,aux!$AL$1) -> 0.274 | V33: 3.509000201e-05 | W33: 2.143931009e-05 | X33: =+IF(INDEX($C33:$G33,1,aux!$AL$1)>0,(G33/INDEX($C33:$G33,1,aux!$AL$1))^(1/($G$3-INDEX($C$3:$G$3,1,aux!$AL$1)))-1,"n.d.") -> n.d. | Y33: =IF(INDEX($C33:$G33,1,aux!$AL$1)>0,(G33-INDEX($C33:$G33,1,aux!$AL$1))/INDEX($C33:$G33,1,aux!$AL$1),"n.d.") -> n.d. | AA33: =O33-INDEX($K33:$O33,1,aux!$AL$1) -> 0 | AB33: 0 | AC33: 0 | AD33: =+IF(INDEX($K33:$O33,1,aux!$AL$1)>0,(O33/INDEX($K33:$O33,1,aux!$AL$1))^(1/($O$3-INDEX($K$3:$O$3,1,aux!$AL$1)))-1,"n.d.") -> n.d. | AE33: =IF(INDEX($K33:$O33,1,aux!$AL$1)>0,(O33-INDEX($K33:$O33,1,aux!$AL$1))/INDEX($K33:$O33,1,aux!$AL$1),"n.d.") -> n.d. | AX33: 05
A34: 0502 | B34: Cerdas de porco ou de javali, etc. | C34: 0 | D34: 0 | E34: 0 | F34: 0 | G34: 0 | H34: 0 | I34: 0 | J34: 0 | K34: 0 | L34: 0 | M34: 0 | N34: 0 | O34: 0 | P34: 0 | Q34: 0 | R34: 0 | S34: 0 | U34: =G34-INDEX($C34:$G34,1,aux!$AL$1) -> 0 | V34: 0 | W34: 0 | X34: =+IF(INDEX($C34:$G34,1,aux!$AL$1)>0,(G34/INDEX($C34:$G34,1,aux!$AL$1))^(1/($G$3-INDEX($C$3:$G$3,1,aux!$AL$1)))-1,"n.d.") -> n.d. | Y34: =IF(INDEX($C34:$G34,1,aux!$AL$1)>0,(G34-INDEX($C34:$G34,1,aux!$AL$1))/INDEX($C34:$G34,1,aux!$AL$1),"n.d.") -> n.d. | AA34: =O34-INDEX($K34:$O34,1,aux!$AL$1) -> 0 | AB34: 0 | AC34: 0 | AD34: =+IF(INDEX($K34:$O34,1,aux!$AL$1)>0,(O34/INDEX($K34:$O34,1,aux!$AL$1))^(1/($O$3-INDEX($K$3:$O$3,1,aux!$AL$1)))-1,"n.d.") -> n.d. | AE34: =IF(INDEX($K34:$O34,1,aux!$AL$1)>0,(O34-INDEX($K34:$O34,1,aux!$AL$1))/INDEX($K34:$O34,1,aux!$AL$1),"n.d.") -> n.d. | AX34: 05
A35: 0504 | B35: Tripas de animais (excepto peixes) | C35: 0 | D35: 0 | E35: 0 | F35: 0 | G35: 0 | H35: 0 | I35: 0 | J35: 0 | K35: 16.042 | L35: 17.816 | M35: 49.363 | N35: 105.563 | O35: 798.509 | P35: 197.4586 | Q35: 0.0007291255393 | R35: 0.0005963353479 | S35: 197.4586 | U35: =G35-INDEX($C35:$G35,1,aux!$AL$1) -> 0 | V35: 0 | W35: 0 | X35: =+IF(INDEX($C35:$G35,1,aux!$AL$1)>0,(G35/INDEX($C35:$G35,1,aux!$AL$1))^(1/($G$3-INDEX($C$3:$G$3,1,aux!$AL$1)))-1,"n.d.") -> n.d. | Y35: =IF(INDEX($C35:$G35,1,aux!$AL$1)>0,(G35-INDEX($C35:$G35,1,aux!$AL$1))/INDEX($C35:$G35,1,aux!$AL$1),"n.d.") -> n.d. | AA35: =O35-INDEX($K35:$O35,1,aux!$AL$1) -> 782.467 | AB35: -0.009666593947 | AC35: -0.008513221574 | AD35: =+IF(INDEX($K35:$O35,1,aux!$AL$1)>0,(O35/INDEX($K35:$O35,1,aux!$AL$1))^(1/($O$3-INDEX($K$3:$O$3,1,aux!$AL$1)))-1,"n.d.") -> 1.656166689 | AE35: =IF(INDEX($K35:$O35,1,aux!$AL$1)>0,(O35-INDEX($K35:$O35,1,aux!$AL$1))/INDEX($K35:$O35,1,aux!$AL$1),"n.d.") -> 48.77615011 | AX35: 05
A36: 0505 | B36: Peles e outras partes de aves | C36: 0 | D36: 0 | E36: 0 | F36: 0 | G36: 0 | H36: 0 | I36: 0 | J36: 0 | K36: 0 | L36: 0 | M36: 0 | N36: 0.108 | O36: 0.06 | P36: 0.0336 | Q36: 1.240696436e-07 | R36: 1.014737656e-07 | S36: 0.0336 | U36: =G36-INDEX($C36:$G36,1,aux!$AL$1) -> 0 | V36: 0 | W36: 0 | X36: =+IF(INDEX($C36:$G36,1,aux!$AL$1)>0,(G36/INDEX($C36:$G36,1,aux!$AL$1))^(1/($G$3-INDEX($C$3:$G$3,1,aux!$AL$1)))-1,"n.d.") -> n.d. | Y36: =IF(INDEX($C36:$G36,1,aux!$AL$1)>0,(G36-INDEX($C36:$G36,1,aux!$AL$1))/INDEX($C36:$G36,1,aux!$AL$1),"n.d.") -> n.d. | AA36: =O36-INDEX($K36:$O36,1,aux!$AL$1) -> 0.06 | AB36: -7.412397415e-07 | AC36: -6.527985135e-07 | AD36: =+IF(INDEX($K36:$O36,1,aux!$AL$1)>0,(O36/INDEX($K36:$O36,1,aux!$AL$1))^(1/($O$3-INDEX($K$3:$O$3,1,aux!$AL$1)))-1,"n.d.") -> n.d. | AE36: =IF(INDEX($K36:$O36,1,aux!$AL$1)>0,(O36-INDEX($K36:$O36,1,aux!$AL$1))/INDEX($K36:$O36,1,aux!$AL$1),"n.d.") -> n.d. | AX36: 05
A37: 0506 | B37: Ossos e núcleos córneos, em bruto | C37: 0 | D37: 0 | E37: 0 | F37: 0 | G37: 0 | H37: 0 | I37: 0 | J37: 0 | K37: 0 | L37: 0 | M37: 2.28 | N37: 0 | O37: 0.027 | P37: 0.4614 | Q37: 1.70374207e-06 | R37: 1.393452245e-06 | S37: 0.4614 | U37: =G37-INDEX($C37:$G37,1,aux!$AL$1) -> 0 | V37: 0 | W37: 0 | X37: =+IF(INDEX($C37:$G37,1,aux!$AL$1)>0,(G37/INDEX($C37:$G37,1,aux!$AL$1))^(1/($G$3-INDEX($C$3:$G$3,1,aux!$AL$1)))-1,"n.d.") -> n.d. | Y37: =IF(INDEX($C37:$G37,1,aux!$AL$1)>0,(G37-INDEX($C37:$G37,1,aux!$AL$1))/INDEX($C37:$G37,1,aux!$AL$1),"n.d.") -> n.d. | AA37: =O37-INDEX($K37:$O37,1,aux!$AL$1) -> 0.027 | AB37: -3.335578837e-07 | AC37: -2.937593311e-07 | AD37: =+IF(INDEX($K37:$O37,1,aux!$AL$1)>0,(O37/INDEX($K37:$O37,1,aux!$AL$1))^(1/($O$3-INDEX($K$3:$O$3,1,aux!$AL$1)))-1,"n.d.") -> n.d. | AE37: =IF(INDEX($K37:$O37,1,aux!$AL$1)>0,(O37-INDEX($K37:$O37,1,aux!$AL$1))/INDEX($K37:$O37,1,aux!$AL$1),"n.d.") -> n.d. | AX37: 05
A38: 0507 | B38: Marfim, carapaças de tartaruga, etc. | C38: 0 | D38: 0 | E38: 0 | F38: 0 | G38: 0 | H38: 0 | I38: 0 | J38: 0 | K38: 0 | L38: 0 | M38: 0 | N38: 0 | O38: 0 | P38: 0 | Q38: 0 | R38: 0 | S38: 0 | U38: =G38-INDEX($C38:$G38,1,aux!$AL$1) -> 0 | V38: 0 | W38: 0 | X38: =+IF(INDEX($C38:$G38,1,aux!$AL$1)>0,(G38/INDEX($C38:$G38,1,aux!$AL$1))^(1/($G$3-INDEX($C$3:$G$3,1,aux!$AL$1)))-1,"n.d.") -> n.d. | Y38: =IF(INDEX($C38:$G38,1,aux!$AL$1)>0,(G38-INDEX($C38:$G38,1,aux!$AL$1))/INDEX($C38:$G38,1,aux!$AL$1),"n.d.") -> n.d. | AA38: =O38-INDEX($K38:$O38,1,aux!$AL$1) -> 0 | AB38: 0 | AC38: 0 | AD38: =+IF(INDEX($K38:$O38,1,aux!$AL$1)>0,(O38/INDEX($K38:$O38,1,aux!$AL$1))^(1/($O$3-INDEX($K$3:$O$3,1,aux!$AL$1)))-1,"n.d.") -> n.d. | AE38: =IF(INDEX($K38:$O38,1,aux!$AL$1)>0,(O38-INDEX($K38:$O38,1,aux!$AL$1))/INDEX($K38:$O38,1,aux!$AL$1),"n.d.") -> n.d. | AX38: 05
A39: 0510 | B39: Âmbar-cinzento, castóreo, algália e almíscar, etc. | C39: 0 | D39: 0 | E39: 0 | F39: 0 | G39: 0 | H39: 0 | I39: 0 | J39: 0 | K39: 0 | L39: 0 | M39: 0 | N39: 0 | O39: 0 | P39: 0 | Q39: 0 | R39: 0 | S39: 0 | U39: =G39-INDEX($C39:$G39,1,aux!$AL$1) -> 0 | V39: 0 | W39: 0 | X39: =+IF(INDEX($C39:$G39,1,aux!$AL$1)>0,(G39/INDEX($C39:$G39,1,aux!$AL$1))^(1/($G$3-INDEX($C$3:$G$3,1,aux!$AL$1)))-1,"n.d.") -> n.d. | Y39: =IF(INDEX($C39:$G39,1,aux!$AL$1)>0,(G39-INDEX($C39:$G39,1,aux!$AL$1))/INDEX($C39:$G39,1,aux!$AL$1),"n.d.") -> n.d. | AA39: =O39-INDEX($K39:$O39,1,aux!$AL$1) -> 0 | AB39: 0 | AC39: 0 | AD39: =+IF(INDEX($K39:$O39,1,aux!$AL$1)>0,(O39/INDEX($K39:$O39,1,aux!$AL$1))^(1/($O$3-INDEX($K$3:$O$3,1,aux!$AL$1)))-1,"n.d.") -> n.d. | AE39: =IF(INDEX($K39:$O39,1,aux!$AL$1)>0,(O39-INDEX($K39:$O39,1,aux!$AL$1))/INDEX($K39:$O39,1,aux!$AL$1),"n.d.") -> n.d. | AX39: 05
A40: 0511 | B40: Outros produtos de origem animal (exc. NC 0511 91) (a) | C40: 0 | D40: 0 | E40: 0 | F40: 0.338 | G40: 0 | H40: 0.0676 | I40: 9.492645615e-06 | J40: 4.383022024e-06 | K40: 24.054 | L40: 18.628 | M40: 20.755 | N40: 23.305 | O40: 37.029 | P40: 24.7542 | Q40: 9.140609436e-05 | R40: 7.475898477e-05 | S40: 24.6866 | U40: =G40-INDEX($C40:$G40,1,aux!$AL$1) -> 0 | V40: 0 | W40: 0 | X40: =+IF(INDEX($C40:$G40,1,aux!$AL$1)>0,(G40/INDEX($C40:$G40,1,aux!$AL$1))^(1/($G$3-INDEX($C$3:$G$3,1,aux!$AL$1)))-1,"n.d.") -> n.d. | Y40: =IF(INDEX($C40:$G40,1,aux!$AL$1)>0,(G40-INDEX($C40:$G40,1,aux!$AL$1))/INDEX($C40:$G40,1,aux!$AL$1),"n.d.") -> n.d. | AA40: =O40-INDEX($K40:$O40,1,aux!$AL$1) -> 12.975 | AB40: -0.0001602930941 | AC40: -0.0001411676785 | AD40: =+IF(INDEX($K40:$O40,1,aux!$AL$1)>0,(O40/INDEX($K40:$O40,1,aux!$AL$1))^(1/($O$3-INDEX($K$3:$O$3,1,aux!$AL$1)))-1,"n.d.") -> 0.1138806749 | AE40: =IF(INDEX($K40:$O40,1,aux!$AL$1)>0,(O40-INDEX($K40:$O40,1,aux!$AL$1))/INDEX($K40:$O40,1,aux!$AL$1),"n.d.") -> 0.5394113245 | AX40: 05
A41: 05SS | B41: Outros produtos de origem animal | C41: 0 | D41: 0 | E41: 0 | F41: 0 | G41: 0 | H41: 0 | I41: 0 | J41: 0 | K41: 0 | L41: 0 | M41: 0 | N41: 0 | O41: 0 | P41: 0 | Q41: 0 | R41: 0 | S41: 0 | U41: =G41-INDEX($C41:$G41,1,aux!$AL$1) -> 0 | V41: 0 | W41: 0 | X41: =+IF(INDEX($C41:$G41,1,aux!$AL$1)>0,(G41/INDEX($C41:$G41,1,aux!$AL$1))^(1/($G$3-INDEX($C$3:$G$3,1,aux!$AL$1)))-1,"n.d.") -> n.d. | Y41: =IF(INDEX($C41:$G41,1,aux!$AL$1)>0,(G41-INDEX($C41:$G41,1,aux!$AL$1))/INDEX($C41:$G41,1,aux!$AL$1),"n.d.") -> n.d. | AA41: =O41-INDEX($K41:$O41,1,aux!$AL$1) -> 0 | AB41: 0 | AC41: 0 | AD41: =+IF(INDEX($K41:$O41,1,aux!$AL$1)>0,(O41/INDEX($K41:$O41,1,aux!$AL$1))^(1/($O$3-INDEX($K$3:$O$3,1,aux!$AL$1)))-1,"n.d.") -> n.d. | AE41: =IF(INDEX($K41:$O41,1,aux!$AL$1)>0,(O41-INDEX($K41:$O41,1,aux!$AL$1))/INDEX($K41:$O41,1,aux!$AL$1),"n.d.") -> n.d. | AX41: 05
A42: 0601 | B42: Bolbos, tubérculos, raízes, etc. | C42: 0 | D42: 0 | E42: 0 | F42: 0 | G42: 0 | H42: 0 | I42: 0 | J42: 0 | K42: 3.157 | L42: 0.988 | M42: 0.301 | N42: 0.011 | O42: 0 | P42: 0.8914 | Q42: 3.291538103e-06 | R42: 2.692074841e-06 | S42: 0.8914 | U42: =G42-INDEX($C42:$G42,1,aux!$AL$1) -> 0 | V42: 0 | W42: 0 | X42: =+IF(INDEX($C42:$G42,1,aux!$AL$1)>0,(G42/INDEX($C42:$G42,1,aux!$AL$1))^(1/($G$3-INDEX($C$3:$G$3,1,aux!$AL$1)))-1,"n.d.") -> n.d. | Y42: =IF(INDEX($C42:$G42,1,aux!$AL$1)>0,(G42-INDEX($C42:$G42,1,aux!$AL$1))/INDEX($C42:$G42,1,aux!$AL$1),"n.d.") -> n.d. | AA42: =O42-INDEX($K42:$O42,1,aux!$AL$1) -> -3.157 | AB42: 3.90015644e-05 | AC42: 3.434808179e-05 | AD42: =+IF(INDEX($K42:$O42,1,aux!$AL$1)>0,(O42/INDEX($K42:$O42,1,aux!$AL$1))^(1/($O$3-INDEX($K$3:$O$3,1,aux!$AL$1)))-1,"n.d.") -> -1 | AE42: =IF(INDEX($K42:$O42,1,aux!$AL$1)>0,(O42-INDEX($K42:$O42,1,aux!$AL$1))/INDEX($K42:$O42,1,aux!$AL$1),"n.d.") -> -1 | AX42: 06
A43: 0602 | B43: Plantas vivas | C43: 0 | D43: 0 | E43: 0 | F43: 0 | G43: 0 | H43: 0 | I43: 0 | J43: 0 | K43: 129.301 | L43: 285.827 | M43: 186.803 | N43: 196.473 | O43: 129.219 | P43: 185.5246 | Q43: 0.0006850586605 | R43: 0.0005602940408 | S43: 185.5246 | U43: =G43-INDEX($C43:$G43,1,aux!$AL$1) -> 0 | V43: 0 | W43: 0 | X43: =+IF(INDEX($C43:$G43,1,aux!$AL$1)>0,(G43/INDEX($C43:$G43,1,aux!$AL$1))^(1/($G$3-INDEX($C$3:$G$3,1,aux!$AL$1)))-1,"n.d.") -> n.d. | Y43: =IF(INDEX($C43:$G43,1,aux!$AL$1)>0,(G43-INDEX($C43:$G43,1,aux!$AL$1))/INDEX($C43:$G43,1,aux!$AL$1),"n.d.") -> n.d. | AA43: =O43-INDEX($K43:$O43,1,aux!$AL$1) -> -0.082 | AB43: 1.013027647e-06 | AC43: 8.921579684e-07 | AD43: =+IF(INDEX($K43:$O43,1,aux!$AL$1)>0,(O43/INDEX($K43:$O43,1,aux!$AL$1))^(1/($O$3-INDEX($K$3:$O$3,1,aux!$AL$1)))-1,"n.d.") -> -0.0001585825095 | AE43: =IF(INDEX($K43:$O43,1,aux!$AL$1)>0,(O43-INDEX($K43:$O43,1,aux!$AL$1))/INDEX($K43:$O43,1,aux!$AL$1),"n.d.") -> -0.0006341791633 | AX43: 06
A44: 0603 | B44: Flores e seus botões | C44: 1.109 | D44: 0.333 | E44: 0 | F44: 0 | G44: 0 | H44: 0.2884 | I44: 4.049820999e-05 | J44: 1.869916497e-05 | K44: 81.059 | L44: 28.307 | M44: 29.643 | N44: 19.37 | O44: 7.234 | P44: 33.1226 | Q44: 0.0001223068207 | R44: 0.0001000319925 | S44: 32.8342 | U44: =G44-INDEX($C44:$G44,1,aux!$AL$1) -> -1.109 | V44: -0.0001420248622 | W44: -8.677443389e-05 | X44: =+IF(INDEX($C44:$G44,1,aux!$AL$1)>0,(G44/INDEX($C44:$G44,1,aux!$AL$1))^(1/($G$3-INDEX($C$3:$G$3,1,aux!$AL$1)))-1,"n.d.") -> -1 | Y44: =IF(INDEX($C44:$G44,1,aux!$AL$1)>0,(G44-INDEX($C44:$G44,1,aux!$AL$1))/INDEX($C44:$G44,1,aux!$AL$1),"n.d.") -> -1 | AA44: =O44-INDEX($K44:$O44,1,aux!$AL$1) -> -73.825 | AB44: 0.0009120337319 | AC44: 0.000803214171 | AD44: =+IF(INDEX($K44:$O44,1,aux!$AL$1)>0,(O44/INDEX($K44:$O44,1,aux!$AL$1))^(1/($O$3-INDEX($K$3:$O$3,1,aux!$AL$1)))-1,"n.d.") -> -0.4534318562 | AE44: =IF(INDEX($K44:$O44,1,aux!$AL$1)>0,(O44-INDEX($K44:$O44,1,aux!$AL$1))/INDEX($K44:$O44,1,aux!$AL$1),"n.d.") -> -0.9107563626 | AX44: 06
A45: 0604 | B45: Folhagem, folhas, ramos e outras partes de plantas | C45: 0 | D45: 0 | E45: 0 | F45: 0 | G45: 0 | H45: 0 | I45: 0 | J45: 0 | K45: 11.233 | L45: 30.022 | M45: 3.873 | N45: 2.317 | O45: 2.202 | P45: 9.9294 | Q45: 3.66647952e-05 | R45: 2.998730976e-05 | S45: 9.9294 | U45: =G45-INDEX($C45:$G45,1,aux!$AL$1) -> 0 | V45: 0 | W45: 0 | X45: =+IF(INDEX($C45:$G45,1,aux!$AL$1)>0,(G45/INDEX($C45:$G45,1,aux!$AL$1))^(1/($G$3-INDEX($C$3:$G$3,1,aux!$AL$1)))-1,"n.d.") -> n.d. | Y45: =IF(INDEX($C45:$G45,1,aux!$AL$1)>0,(G45-INDEX($C45:$G45,1,aux!$AL$1))/INDEX($C45:$G45,1,aux!$AL$1),"n.d.") -> n.d. | AA45: =O45-INDEX($K45:$O45,1,aux!$AL$1) -> -9.031 | AB45: 0.0001115689351 | AC45: 9.825705626e-05 | AD45: =+IF(INDEX($K45:$O45,1,aux!$AL$1)>0,(O45/INDEX($K45:$O45,1,aux!$AL$1))^(1/($O$3-INDEX($K$3:$O$3,1,aux!$AL$1)))-1,"n.d.") -> -0.3346036888 | AE45: =IF(INDEX($K45:$O45,1,aux!$AL$1)>0,(O45-INDEX($K45:$O45,1,aux!$AL$1))/INDEX($K45:$O45,1,aux!$AL$1),"n.d.") -> -0.8039704442 | AX45: 06
A46: 06SS | B46: Plantas vivas e produtos de floricultura | C46: 0 | D46: 0 | E46: 0 | F46: 0 | G46: 0 | H46: 0 | I46: 0 | J46: 0 | K46: 0 | L46: 0 | M46: 0 | N46: 0 | O46: 0 | P46: 0 | Q46: 0 | R46: 0 | S46: 0 | U46: =G46-INDEX($C46:$G46,1,aux!$AL$1) -> 0 | V46: 0 | W46: 0 | X46: =+IF(INDEX($C46:$G46,1,aux!$AL$1)>0,(G46/INDEX($C46:$G46,1,aux!$AL$1))^(1/($G$3-INDEX($C$3:$G$3,1,aux!$AL$1)))-1,"n.d.") -> n.d. | Y46: =IF(INDEX($C46:$G46,1,aux!$AL$1)>0,(G46-INDEX($C46:$G46,1,aux!$AL$1))/INDEX($C46:$G46,1,aux!$AL$1),"n.d.") -> n.d. | AA46: =O46-INDEX($K46:$O46,1,aux!$AL$1) -> 0 | AB46: 0 | AC46: 0 | AD46: =+IF(INDEX($K46:$O46,1,aux!$AL$1)>0,(O46/INDEX($K46:$O46,1,aux!$AL$1))^(1/($O$3-INDEX($K$3:$O$3,1,aux!$AL$1)))-1,"n.d.") -> n.d. | AE46: =IF(INDEX($K46:$O46,1,aux!$AL$1)>0,(O46-INDEX($K46:$O46,1,aux!$AL$1))/INDEX($K46:$O46,1,aux!$AL$1),"n.d.") -> n.d. | AX46: 06
A47: 0701 | B47: Batatas, frescas ou refrigeradas | C47: 0 | D47: 0 | E47: 0 | F47: 0 | G47: 0 | H47: 0 | I47: 0 | J47: 0 | K47: 96.786 | L47: 9.539 | M47: 113.906 | N47: 5.594 | O47: 3.44 | P47: 45.853 | Q47: 0.0001693144454 | R47: 0.0001384784695 | S47: 45.853 | U47: =G47-INDEX($C47:$G47,1,aux!$AL$1) -> 0 | V47: 0 | W47: 0 | X47: =+IF(INDEX($C47:$G47,1,aux!$AL$1)>0,(G47/INDEX($C47:$G47,1,aux!$AL$1))^(1/($G$3-INDEX($C$3:$G$3,1,aux!$AL$1)))-1,"n.d.") -> n.d. | Y47: =IF(INDEX($C47:$G47,1,aux!$AL$1)>0,(G47-INDEX($C47:$G47,1,aux!$AL$1))/INDEX($C47:$G47,1,aux!$AL$1),"n.d.") -> n.d. | AA47: =O47-INDEX($K47:$O47,1,aux!$AL$1) -> -93.346 | AB47: 0.001153196082 | AC47: 0.001015602167 | AD47: =+IF(INDEX($K47:$O47,1,aux!$AL$1)>0,(O47/INDEX($K47:$O47,1,aux!$AL$1))^(1/($O$3-INDEX($K$3:$O$3,1,aux!$AL$1)))-1,"n.d.") -> -0.5658033431 | AE47: =IF(INDEX($K47:$O47,1,aux!$AL$1)>0,(O47-INDEX($K47:$O47,1,aux!$AL$1))/INDEX($K47:$O47,1,aux!$AL$1),"n.d.") -> -0.9644576695 | AX47: 07
A48: 0702 | B48: Tomates, frescos ou refrigerados | C48: 0 | D48: 0 | E48: 0 | F48: 0 | G48: 0 | H48: 0 | I48: 0 | J48: 0 | K48: 79.67 | L48: 34.926 | M48: 15.236 | N48: 3.743 | O48: 11.784 | P48: 29.0718 | Q48: 0.0001073490436 | R48: 8.779836365e-05 | S48: 29.0718 | U48: =G48-INDEX($C48:$G48,1,aux!$AL$1) -> 0 | V48: 0 | W48: 0 | X48: =+IF(INDEX($C48:$G48,1,aux!$AL$1)>0,(G48/INDEX($C48:$G48,1,aux!$AL$1))^(1/($G$3-INDEX($C$3:$G$3,1,aux!$AL$1)))-1,"n.d.") -> n.d. | Y48: =IF(INDEX($C48:$G48,1,aux!$AL$1)>0,(G48-INDEX($C48:$G48,1,aux!$AL$1))/INDEX($C48:$G48,1,aux!$AL$1),"n.d.") -> n.d. | AA48: =O48-INDEX($K48:$O48,1,aux!$AL$1) -> -67.886 | AB48: 0.0008386633515 | AC48: 0.0007385979981 | AD48: =+IF(INDEX($K48:$O48,1,aux!$AL$1)>0,(O48/INDEX($K48:$O48,1,aux!$AL$1))^(1/($O$3-INDEX($K$3:$O$3,1,aux!$AL$1)))-1,"n.d.") -> -0.3798461001 | AE48: =IF(INDEX($K48:$O48,1,aux!$AL$1)>0,(O48-INDEX($K48:$O48,1,aux!$AL$1))/INDEX($K48:$O48,1,aux!$AL$1),"n.d.") -> -0.8520898707 | AX48: 07
A49: 0703 | B49: Cebolas, alhos, etc., frescos ou refrigerados | C49: 0 | D49: 0 | E49: 0 | F49: 0 | G49: 0 | H49: 0 | I49: 0 | J49: 0 | K49: 121.535 | L49: 61.447 | M49: 15.775 | N49: 9.92 | O49: 63.908 | P49: 54.517 | Q49: 0.0002013066892 | R49: 0.0001646442047 | S49: 54.517 | U49: =G49-INDEX($C49:$G49,1,aux!$AL$1) -> 0 | V49: 0 | W49: 0 | X49: =+IF(INDEX($C49:$G49,1,aux!$AL$1)>0,(G49/INDEX($C49:$G49,1,aux!$AL$1))^(1/($G$3-INDEX($C$3:$G$3,1,aux!$AL$1)))-1,"n.d.") -> n.d. | Y49: =IF(INDEX($C49:$G49,1,aux!$AL$1)>0,(G49-INDEX($C49:$G49,1,aux!$AL$1))/INDEX($C49:$G49,1,aux!$AL$1),"n.d.") -> n.d. | AA49: =O49-INDEX($K49:$O49,1,aux!$AL$1) -> -57.627 | AB49: 0.0007119237097 | AC49: 0.0006269803323 | AD49: =+IF(INDEX($K49:$O49,1,aux!$AL$1)>0,(O49/INDEX($K49:$O49,1,aux!$AL$1))^(1/($O$3-INDEX($K$3:$O$3,1,aux!$AL$1)))-1,"n.d.") -> -0.1484435059 | AE49: =IF(INDEX($K49:$O49,1,aux!$AL$1)>0,(O49-INDEX($K49:$O49,1,aux!$AL$1))/INDEX($K49:$O49,1,aux!$AL$1),"n.d.") -> -0.4741597071 | AX49: 07
A50: 0704 | B50: Couves, frescas ou refrigeradas | C50: 0 | D50: 0 | E50: 0 | F50: 0 | G50: 0 | H50: 0 | I50: 0 | J50: 0 | K50: 29.178 | L50: 14.711 | M50: 25.539 | N50: 14.954 | O50: 18.03 | P50: 20.4824 | Q50: 7.563226391e-05 | R50: 6.18579243e-05 | S50: 20.4824 | U50: =G50-INDEX($C50:$G50,1,aux!$AL$1) -> 0 | V50: 0 | W50: 0 | X50: =+IF(INDEX($C50:$G50,1,aux!$AL$1)>0,(G50/INDEX($C50:$G50,1,aux!$AL$1))^(1/($G$3-INDEX($C$3:$G$3,1,aux!$AL$1)))-1,"n.d.") -> n.d. | Y50: =IF(INDEX($C50:$G50,1,aux!$AL$1)>0,(G50-INDEX($C50:$G50,1,aux!$AL$1))/INDEX($C50:$G50,1,aux!$AL$1),"n.d.") -> n.d. | AA50: =O50-INDEX($K50:$O50,1,aux!$AL$1) -> -11.148 | AB50: 0.000137722344 | AC50: 0.0001212899638 | AD50: =+IF(INDEX($K50:$O50,1,aux!$AL$1)>0,(O50/INDEX($K50:$O50,1,aux!$AL$1))^(1/($O$3-INDEX($K$3:$O$3,1,aux!$AL$1)))-1,"n.d.") -> -0.1133850466 | AE50: =IF(INDEX($K50:$O50,1,aux!$AL$1)>0,(O50-INDEX($K50:$O50,1,aux!$AL$1))/INDEX($K50:$O50,1,aux!$AL$1),"n.d.") -> -0.3820686819 | AX50: 07
A51: 0705 | B51: Alfaces, frescas ou refrigeradas | C51: 0 | D51: 0 | E51: 0 | F51: 0 | G51: 0 | H51: 0 | I51: 0 | J51: 0 | K51: 7.19 | L51: 10.721 | M51: 5.612 | N51: 0.656 | O51: 4.491 | P51: 5.734 | Q51: 2.117307548e-05 | R51: 1.731698131e-05 | S51: 5.734 | U51: =G51-INDEX($C51:$G51,1,aux!$AL$1) -> 0 | V51: 0 | W51: 0 | X51: =+IF(INDEX($C51:$G51,1,aux!$AL$1)>0,(G51/INDEX($C51:$G51,1,aux!$AL$1))^(1/($G$3-INDEX($C$3:$G$3,1,aux!$AL$1)))-1,"n.d.") -> n.d. | Y51: =IF(INDEX($C51:$G51,1,aux!$AL$1)>0,(G51-INDEX($C51:$G51,1,aux!$AL$1))/INDEX($C51:$G51,1,aux!$AL$1),"n.d.") -> n.d. | AA51: =O51-INDEX($K51:$O51,1,aux!$AL$1) -> -2.699 | AB51: 3.334343437e-05 | AC51: 2.936505313e-05 | AD51: =+IF(INDEX($K51:$O51,1,aux!$AL$1)>0,(O51/INDEX($K51:$O51,1,aux!$AL$1))^(1/($O$3-INDEX($K$3:$O$3,1,aux!$AL$1)))-1,"n.d.") -> -0.1109963559 | AE51: =IF(INDEX($K51:$O51,1,aux!$AL$1)>0,(O51-INDEX($K51:$O51,1,aux!$AL$1))/INDEX($K51:$O51,1,aux!$AL$1),"n.d.") -> -0.3753824757 | AX51: 07
A52: 0706 | B52: Cenouras, nabos, beterrabas, etc., frescos ou refrigerados | C52: 0 | D52: 0 | E52: 0 | F52: 0 | G52: 0 | H52: 0 | I52: 0 | J52: 0 | K52: 34.943 | L52: 36.481 | M52: 36.415 | N52: 3.004 | O52: 25.76 | P52: 27.3206 | Q52: 0.0001008826519 | R52: 8.250964762e-05 | S52: 27.3206 | U52: =G52-INDEX($C52:$G52,1,aux!$AL$1) -> 0 | V52: 0 | W52: 0 | X52: =+IF(INDEX($C52:$G52,1,aux!$AL$1)>0,(G52/INDEX($C52:$G52,1,aux!$AL$1))^(1/($G$3-INDEX($C$3:$G$3,1,aux!$AL$1)))-1,"n.d.") -> n.d. | Y52: =IF(INDEX($C52:$G52,1,aux!$AL$1)>0,(G52-INDEX($C52:$G52,1,aux!$AL$1))/INDEX($C52:$G52,1,aux!$AL$1),"n.d.") -> n.d. | AA52: =O52-INDEX($K52:$O52,1,aux!$AL$1) -> -9.183 | AB52: 0.0001134467424 | AC52: 9.991081249e-05 | AD52: =+IF(INDEX($K52:$O52,1,aux!$AL$1)>0,(O52/INDEX($K52:$O52,1,aux!$AL$1))^(1/($O$3-INDEX($K$3:$O$3,1,aux!$AL$1)))-1,"n.d.") -> -0.07339120589 | AE52: =IF(INDEX($K52:$O52,1,aux!$AL$1)>0,(O52-INDEX($K52:$O52,1,aux!$AL$1))/INDEX($K52:$O52,1,aux!$AL$1),"n.d.") -> -0.2627994162 | AX52: 07
A53: 0707 | B53: Pepinos e pepininhos, frescos ou refrigerados | C53: 0 | D53: 0 | E53: 0 | F53: 0 | G53: 0 | H53: 0 | I53: 0 | J53: 0 | K53: 16.066 | L53: 2.537 | M53: 0.05 | N53: 0.204 | O53: 0.077 | P53: 3.7868 | Q53: 1.398294423e-05 | R53: 1.143633499e-05 | S53: 3.7868 | U53: =G53-INDEX($C53:$G53,1,aux!$AL$1) -> 0 | V53: 0 | W53: 0 | X53: =+IF(INDEX($C53:$G53,1,aux!$AL$1)>0,(G53/INDEX($C53:$G53,1,aux!$AL$1))^(1/($G$3-INDEX($C$3:$G$3,1,aux!$AL$1)))-1,"n.d.") -> n.d. | Y53: =IF(INDEX($C53:$G53,1,aux!$AL$1)>0,(G53-INDEX($C53:$G53,1,aux!$AL$1))/INDEX($C53:$G53,1,aux!$AL$1),"n.d.") -> n.d. | AA53: =O53-INDEX($K53:$O53,1,aux!$AL$1) -> -15.989 | AB53: 0.0001975280371 | AC53: 0.0001739599239 | AD53: =+IF(INDEX($K53:$O53,1,aux!$AL$1)>0,(O53/INDEX($K53:$O53,1,aux!$AL$1))^(1/($O$3-INDEX($K$3:$O$3,1,aux!$AL$1)))-1,"n.d.") -> -0.7368849194 | AE53: =IF(INDEX($K53:$O53,1,aux!$AL$1)>0,(O53-INDEX($K53:$O53,1,aux!$AL$1))/INDEX($K53:$O53,1,aux!$AL$1),"n.d.") -> -0.99520727 | AX53: 07
A54: 0708 | B54: Tomates preparados ou conservados | C54: 0.058 | D54: 0 | E54: 0 | F54: 0 | G54: 0 | H54: 0.0116 | I54: 1.62891552e-06 | J54: 7.521162054e-07 | K54: 23.31 | L54: 8.248 | M54: 6.862 | N54: 57.602 | O54: 3.148 | P54: 19.834 | Q54: 7.323801519e-05 | R54: 5.989972222e-05 | S54: 19.8224 | U54: =G54-INDEX($C54:$G54,1,aux!$AL$1) -> -0.058 | V54: -7.427810645e-06 | W54: -4.53824812e-06 | X54: =+IF(INDEX($C54:$G54,1,aux!$AL$1)>0,(G54/INDEX($C54:$G54,1,aux!$AL$1))^(1/($G$3-INDEX($C$3:$G$3,1,aux!$AL$1)))-1,"n.d.") -> -1 | Y54: =IF(INDEX($C54:$G54,1,aux!$AL$1)>0,(G54-INDEX($C54:$G54,1,aux!$AL$1))/INDEX($C54:$G54,1,aux!$AL$1),"n.d.") -> -1 | AA54: =O54-INDEX($K54:$O54,1,aux!$AL$1) -> -20.162 | AB54: 0.0002490812611 | AC54: 0.0002193620605 | AD54: =+IF(INDEX($K54:$O54,1,aux!$AL$1)>0,(O54/INDEX($K54:$O54,1,aux!$AL$1))^(1/($O$3-INDEX($K$3:$O$3,1,aux!$AL$1)))-1,"n.d.") -> -0.3937899772 | AE54: =IF(INDEX($K54:$O54,1,aux!$AL$1)>0,(O54-INDEX($K54:$O54,1,aux!$AL$1))/INDEX($K54:$O54,1,aux!$AL$1),"n.d.") -> -0.864950665 | AX54: 07
A55: 0709 | B55: Outros produtos hortícolas, frescos ou refrigerados | C55: 1.267 | D55: 0.032 | E55: 0 | F55: 0.076 | G55: 0.139 | H55: 0.3028 | I55: 4.252031201e-05 | J55: 1.963282646e-05 | K55: 270.9 | L55: 150.915 | M55: 123.485 | N55: 93.233 | O55: 142.378 | P55: 156.1822 | Q55: 0.0005767104132 | R55: 0.000471678451 | S55: 155.8794 | U55: =G55-INDEX($C55:$G55,1,aux!$AL$1) -> -1.128 | V55: -0.0001444581105 | W55: -8.826110138e-05 | X55: =+IF(INDEX($C55:$G55,1,aux!$AL$1)>0,(G55/INDEX($C55:$G55,1,aux!$AL$1))^(1/($G$3-INDEX($C$3:$G$3,1,aux!$AL$1)))-1,"n.d.") -> -0.4244811584 | Y55: =IF(INDEX($C55:$G55,1,aux!$AL$1)>0,(G55-INDEX($C55:$G55,1,aux!$AL$1))/INDEX($C55:$G55,1,aux!$AL$1),"n.d.") -> -0.8902920284 | AA55: =O55-INDEX($K55:$O55,1,aux!$AL$1) -> -128.522 | AB55: 0.001587760234 | AC55: 0.001398316176 | AD55: =+IF(INDEX($K55:$O55,1,aux!$AL$1)>0,(O55/INDEX($K55:$O55,1,aux!$AL$1))^(1/($O$3-INDEX($K$3:$O$3,1,aux!$AL$1)))-1,"n.d.") -> -0.1485513313 | AE55: =IF(INDEX($K55:$O55,1,aux!$AL$1)>0,(O55-INDEX($K55:$O55,1,aux!$AL$1))/INDEX($K55:$O55,1,aux!$AL$1),"n.d.") -> -0.4744259874 | AX55: 07
A56: 0710 | B56: Produtos hortícolas congelados | C56: 0 | D56: 0 | E56: 0 | F56: 0 | G56: 0 | H56: 0 | I56: 0 | J56: 0 | K56: 859.196 | L56: 753.23 | M56: 295.157 | N56: 434.535 | O56: 764.984 | P56: 621.4204 | Q56: 0.002294625224 | R56: 0.001876722262 | S56: 621.4204 | U56: =G56-INDEX($C56:$G56,1,aux!$AL$1) -> 0 | V56: 0 | W56: 0 | X56: =+IF(INDEX($C56:$G56,1,aux!$AL$1)>0,(G56/INDEX($C56:$G56,1,aux!$AL$1))^(1/($G$3-INDEX($C$3:$G$3,1,aux!$AL$1)))-1,"n.d.") -> n.d. | Y56: =IF(INDEX($C56:$G56,1,aux!$AL$1)>0,(G56-INDEX($C56:$G56,1,aux!$AL$1))/INDEX($C56:$G56,1,aux!$AL$1),"n.d.") -> n.d. | AA56: =O56-INDEX($K56:$O56,1,aux!$AL$1) -> -94.212 | AB56: 0.001163894642 | AC56: 0.001025024226 | AD56: =+IF(INDEX($K56:$O56,1,aux!$AL$1)>0,(O56/INDEX($K56:$O56,1,aux!$AL$1))^(1/($O$3-INDEX($K$3:$O$3,1,aux!$AL$1)))-1,"n.d.") -> -0.02861805655 | AE56: =IF(INDEX($K56:$O56,1,aux!$AL$1)>0,(O56-INDEX($K56:$O56,1,aux!$AL$1))/INDEX($K56:$O56,1,aux!$AL$1),"n.d.") -> -0.1096513485 | AX56: 07
A57: 0711 | B57: Produtos hortícolas conservados transitoriamente | C57: 0 | D57: 0 | E57: 0 | F57: 0 | G57: 0 | H57: 0 | I57: 0 | J57: 0 | K57: 14.016 | L57: 2.489 | M57: 0.264 | N57: 8.565 | O57: 9.698 | P57: 7.0064 | Q57: 2.587147472e-05 | R57: 2.115969617e-05 | S57: 7.0064 | U57: =G57-INDEX($C57:$G57,1,aux!$AL$1) -> 0 | V57: 0 | W57: 0 | X57: =+IF(INDEX($C57:$G57,1,aux!$AL$1)>0,(G57/INDEX($C57:$G57,1,aux!$AL$1))^(1/($G$3-INDEX($C$3:$G$3,1,aux!$AL$1)))-1,"n.d.") -> n.d. | Y57: =IF(INDEX($C57:$G57,1,aux!$AL$1)>0,(G57-INDEX($C57:$G57,1,aux!$AL$1))/INDEX($C57:$G57,1,aux!$AL$1),"n.d.") -> n.d. | AA57: =O57-INDEX($K57:$O57,1,aux!$AL$1) -> -4.318 | AB57: 5.33445534e-05 | AC57: 4.697973302e-05 | AD57: =+IF(INDEX($K57:$O57,1,aux!$AL$1)>0,(O57/INDEX($K57:$O57,1,aux!$AL$1))^(1/($O$3-INDEX($K$3:$O$3,1,aux!$AL$1)))-1,"n.d.") -> -0.08795866264 | AE57: =IF(INDEX($K57:$O57,1,aux!$AL$1)>0,(O57-INDEX($K57:$O57,1,aux!$AL$1))/INDEX($K57:$O57,1,aux!$AL$1),"n.d.") -> -0.308076484 | AX57: 07
A58: 0712 | B58: Produtos hortícolas secos | C58: 0 | D58: 0 | E58: 0 | F58: 0 | G58: 0 | H58: 0 | I58: 0 | J58: 0 | K58: 105.685 | L58: 67.619 | M58: 28.281 | N58: 40.207 | O58: 57.209 | P58: 59.8002 | Q58: 0.0002208151637 | R58: 0.0001805997463 | S58: 59.8002 | U58: =G58-INDEX($C58:$G58,1,aux!$AL$1) -> 0 | V58: 0 | W58: 0 | X58: =+IF(INDEX($C58:$G58,1,aux!$AL$1)>0,(G58/INDEX($C58:$G58,1,aux!$AL$1))^(1/($G$3-INDEX($C$3:$G$3,1,aux!$AL$1)))-1,"n.d.") -> n.d. | Y58: =IF(INDEX($C58:$G58,1,aux!$AL$1)>0,(G58-INDEX($C58:$G58,1,aux!$AL$1))/INDEX($C58:$G58,1,aux!$AL$1),"n.d.") -> n.d. | AA58: =O58-INDEX($K58:$O58,1,aux!$AL$1) -> -48.476 | AB58: 0.0005988722952 | AC58: 0.000527417679 | AD58: =+IF(INDEX($K58:$O58,1,aux!$AL$1)>0,(O58/INDEX($K58:$O58,1,aux!$AL$1))^(1/($O$3-INDEX($K$3:$O$3,1,aux!$AL$1)))-1,"n.d.") -> -0.1422460016 | AE58: =IF(INDEX($K58:$O58,1,aux!$AL$1)>0,(O58-INDEX($K58:$O58,1,aux!$AL$1))/INDEX($K58:$O58,1,aux!$AL$1),"n.d.") -> -0.4586838246 | AX58: 07
A59: 0713 | B59: Legumes de vagem, secos, em grão | C59: 0 | D59: 0 | E59: 0 | F59: 0 | G59: 0.048 | H59: 0.0096 | I59: 1.348068016e-06 | J59: 6.224409976e-07 | K59: 2683.08 | L59: 1096.893 | M59: 1410.991 | N59: 375.349 | O59: 376.105 | P59: 1188.4836 | Q59: 0.004388533828 | R59: 0.003589282924 | S59: 1188.474 | U59: =G59-INDEX($C59:$G59,1,aux!$AL$1) -> 0.048 | V59: 6.147153637e-06 | W59: 3.755791548e-06 | X59: =+IF(INDEX($C59:$G59,1,aux!$AL$1)>0,(G59/INDEX($C59:$G59,1,aux!$AL$1))^(1/($G$3-INDEX($C$3:$G$3,1,aux!$AL$1)))-1,"n.d.") -> n.d. | Y59: =IF(INDEX($C59:$G59,1,aux!$AL$1)>0,(G59-INDEX($C59:$G59,1,aux!$AL$1))/INDEX($C59:$G59,1,aux!$AL$1),"n.d.") -> n.d. | AA59: =O59-INDEX($K59:$O59,1,aux!$AL$1) -> -2306.975 | AB59: 0.02850035921 | AC59: 0.02509983084 | AD59: =+IF(INDEX($K59:$O59,1,aux!$AL$1)>0,(O59/INDEX($K59:$O59,1,aux!$AL$1))^(1/($O$3-INDEX($K$3:$O$3,1,aux!$AL$1)))-1,"n.d.") -> -0.3881163182 | AE59: =IF(INDEX($K59:$O59,1,aux!$AL$1)>0,(O59-INDEX($K59:$O59,1,aux!$AL$1))/INDEX($K59:$O59,1,aux!$AL$1),"n.d.") -> -0.8598234119 | AX59: 07
A60: 0714 | B60: Raízes de mandioca, de araruta, batata-doce, etc. | C60: 0 | D60: 0 | E60: 6.741 | F60: 19.153 | G60: 15 | H60: 8.1788 | I60: 0.00114849778 | J60: 0.0005302937949 | K60: 13.672 | L60: 2.41 | M60: 1.103 | N60: 0.355 | O60: 2.987 | P60: 4.1054 | Q60: 1.515939032e-05 | R60: 1.239852373e-05 | S60: -4.0734 | U60: =G60-INDEX($C60:$G60,1,aux!$AL$1) -> 15 | V60: 0.001920985512 | W60: 0.001173684859 | X60: =+IF(INDEX($C60:$G60,1,aux!$AL$1)>0,(G60/INDEX($C60:$G60,1,aux!$AL$1))^(1/($G$3-INDEX($C$3:$G$3,1,aux!$AL$1)))-1,"n.d.") -> n.d. | Y60: =IF(INDEX($C60:$G60,1,aux!$AL$1)>0,(G60-INDEX($C60:$G60,1,aux!$AL$1))/INDEX($C60:$G60,1,aux!$AL$1),"n.d.") -> n.d. | AA60: =O60-INDEX($K60:$O60,1,aux!$AL$1) -> -10.685 | AB60: 0.000132002444 | AC60: 0.0001162525353 | AD60: =+IF(INDEX($K60:$O60,1,aux!$AL$1)>0,(O60/INDEX($K60:$O60,1,aux!$AL$1))^(1/($O$3-INDEX($K$3:$O$3,1,aux!$AL$1)))-1,"n.d.") -> -0.3163232779 | AE60: =IF(INDEX($K60:$O60,1,aux!$AL$1)>0,(O60-INDEX($K60:$O60,1,aux!$AL$1))/INDEX($K60:$O60,1,aux!$AL$1),"n.d.") -> -0.7815242832 | AX60: 07
A61: 07SS | B61: Produtos hortícolas, plantas, raízes e tubérculos, comestíveis | C61: 0 | D61: 0 | E61: 0 | F61: 0 | G61: 0 | H61: 0 | I61: 0 | J61: 0 | K61: 0 | L61: 0 | M61: 0 | N61: 0 | O61: 0 | P61: 0 | Q61: 0 | R61: 0 | S61: 0 | U61: =G61-INDEX($C61:$G61,1,aux!$AL$1) -> 0 | V61: 0 | W61: 0 | X61: =+IF(INDEX($C61:$G61,1,aux!$AL$1)>0,(G61/INDEX($C61:$G61,1,aux!$AL$1))^(1/($G$3-INDEX($C$3:$G$3,1,aux!$AL$1)))-1,"n.d.") -> n.d. | Y61: =IF(INDEX($C61:$G61,1,aux!$AL$1)>0,(G61-INDEX($C61:$G61,1,aux!$AL$1))/INDEX($C61:$G61,1,aux!$AL$1),"n.d.") -> n.d. | AA61: =O61-INDEX($K61:$O61,1,aux!$AL$1) -> 0 | AB61: 0 | AC61: 0 | AD61: =+IF(INDEX($K61:$O61,1,aux!$AL$1)>0,(O61/INDEX($K61:$O61,1,aux!$AL$1))^(1/($O$3-INDEX($K$3:$O$3,1,aux!$AL$1)))-1,"n.d.") -> n.d. | AE61: =IF(INDEX($K61:$O61,1,aux!$AL$1)>0,(O61-INDEX($K61:$O61,1,aux!$AL$1))/INDEX($K61:$O61,1,aux!$AL$1),"n.d.") -> n.d. | AX61: 07
A62: 0801 | B62: Cocos, castanhas do brasil e castanha de cajú | C62: 0 | D62: 0 | E62: 0 | F62: 0 | G62: 0 | H62: 0 | I62: 0 | J62: 0 | K62: 425.448 | L62: 204.334 | M62: 79.349 | N62: 130.247 | O62: 169.96 | P62: 201.8676 | Q62: 0.0007454059875 | R62: 0.0006096507596 | S62: 201.8676 | U62: =G62-INDEX($C62:$G62,1,aux!$AL$1) -> 0 | V62: 0 | W62: 0 | X62: =+IF(INDEX($C62:$G62,1,aux!$AL$1)>0,(G62/INDEX($C62:$G62,1,aux!$AL$1))^(1/($G$3-INDEX($C$3:$G$3,1,aux!$AL$1)))-1,"n.d.") -> n.d. | Y62: =IF(INDEX($C62:$G62,1,aux!$AL$1)>0,(G62-INDEX($C62:$G62,1,aux!$AL$1))/INDEX($C62:$G62,1,aux!$AL$1),"n.d.") -> n.d. | AA62: =O62-INDEX($K62:$O62,1,aux!$AL$1) -> -255.488 | AB62: 0.003156297651 | AC62: 0.00277970311 | AD62: =+IF(INDEX($K62:$O62,1,aux!$AL$1)>0,(O62/INDEX($K62:$O62,1,aux!$AL$1))^(1/($O$3-INDEX($K$3:$O$3,1,aux!$AL$1)))-1,"n.d.") -> -0.2049854829 | AE62: =IF(INDEX($K62:$O62,1,aux!$AL$1)>0,(O62-INDEX($K62:$O62,1,aux!$AL$1))/INDEX($K62:$O62,1,aux!$AL$1),"n.d.") -> -0.6005152216 | AX62: 08
A63: 0802 | B63: Frutas de casca rija | C63: 0 | D63: 0 | E63: 5.3 | F63: 16.151 | G63: 11.82 | H63: 6.6542 | I63: 0.0009344077286 | J63: 0.000431442384 | K63: 562.891 | L63: 452.697 | M63: 174.295 | N63: 213.475 | O63: 350.531 | P63: 350.7778 | Q63: 0.001295264185 | R63: 0.001059367388 | S63: 344.1236 | U63: =G63-INDEX($C63:$G63,1,aux!$AL$1) -> 11.82 | V63: 0.001513736583 | W63: 0.0009248636687 | X63: =+IF(INDEX($C63:$G63,1,aux!$AL$1)>0,(G63/INDEX($C63:$G63,1,aux!$AL$1))^(1/($G$3-INDEX($C$3:$G$3,1,aux!$AL$1)))-1,"n.d.") -> n.d. | Y63: =IF(INDEX($C63:$G63,1,aux!$AL$1)>0,(G63-INDEX($C63:$G63,1,aux!$AL$1))/INDEX($C63:$G63,1,aux!$AL$1),"n.d.") -> n.d. | AA63: =O63-INDEX($K63:$O63,1,aux!$AL$1) -> -212.36 | AB63: 0.002623494525 | AC63: 0.002310471539 | AD63: =+IF(INDEX($K63:$O63,1,aux!$AL$1)>0,(O63/INDEX($K63:$O63,1,aux!$AL$1))^(1/($O$3-INDEX($K$3:$O$3,1,aux!$AL$1)))-1,"n.d.") -> -0.1116675399 | AE63: =IF(INDEX($K63:$O63,1,aux!$AL$1)>0,(O63-INDEX($K63:$O63,1,aux!$AL$1))/INDEX($K63:$O63,1,aux!$AL$1),"n.d.") -> -0.3772666467 | AX63: 08
A64: 0803 | B64: Bananas, frescas ou secas | C64: 382.208 | D64: 2387.255 | E64: 3091.002 | F64: 3818.092 | G64: 6066.09 | H64: 3148.9294 | I64: 0.4421844802 | J64: 0.2041690372 | K64: 0.468 | L64: 1.18 | M64: 47.462 | N64: 0 | O64: 0.166 | P64: 9.8552 | Q64: 3.639080807e-05 | R64: 2.976322186e-05 | S64: -3139.0742 | U64: =G64-INDEX($C64:$G64,1,aux!$AL$1) -> 5683.882 | V64: 0.7279103315 | W64: 0.4447390828 | X64: =+IF(INDEX($C64:$G64,1,aux!$AL$1)>0,(G64/INDEX($C64:$G64,1,aux!$AL$1))^(1/($G$3-INDEX($C$3:$G$3,1,aux!$AL$1)))-1,"n.d.") -> 0.9959620017 | Y64: =IF(INDEX($C64:$G64,1,aux!$AL$1)>0,(G64-INDEX($C64:$G64,1,aux!$AL$1))/INDEX($C64:$G64,1,aux!$AL$1),"n.d.") -> 14.87117486 | AA64: =O64-INDEX($K64:$O64,1,aux!$AL$1) -> -0.302 | AB64: 3.730906699e-06 | AC64: 3.285752518e-06 | AD64: =+IF(INDEX($K64:$O64,1,aux!$AL$1)>0,(O64/INDEX($K64:$O64,1,aux!$AL$1))^(1/($O$3-INDEX($K$3:$O$3,1,aux!$AL$1)))-1,"n.d.") -> -0.2282696881 | AE64: =IF(INDEX($K64:$O64,1,aux!$AL$1)>0,(O64-INDEX($K64:$O64,1,aux!$AL$1))/INDEX($K64:$O64,1,aux!$AL$1),"n.d.") -> -0.6452991453 | AX64: 08
A65: 0804 | B65: Tâmaras, figos, ananases, abacates, goiabas, mangas | C65: 97.111 | D65: 96.492 | E65: 59.699 | F65: 121.266 | G65: 204.198 | H65: 115.7532 | I65: 0.01625449862 | J65: 0.007505160133 | K65: 214.125 | L65: 94.351 | M65: 28.086 | N65: 16.354 | O65: 28.204 | P65: 76.224 | Q65: 0.0002814608485 | R65: 0.0002302004854 | S65: -39.5292 | U65: =G65-INDEX($C65:$G65,1,aux!$AL$1) -> 107.087 | V65: 0.0137141717 | W65: 0.008379092698 | X65: =+IF(INDEX($C65:$G65,1,aux!$AL$1)>0,(G65/INDEX($C65:$G65,1,aux!$AL$1))^(1/($G$3-INDEX($C$3:$G$3,1,aux!$AL$1)))-1,"n.d.") -> 0.2041920743 | Y65: =IF(INDEX($C65:$G65,1,aux!$AL$1)>0,(G65-INDEX($C65:$G65,1,aux!$AL$1))/INDEX($C65:$G65,1,aux!$AL$1),"n.d.") -> 1.102727806 | AA65: =O65-INDEX($K65:$O65,1,aux!$AL$1) -> -185.921 | AB65: 0.002296867233 | AC65: 0.002022815874 | AD65: =+IF(INDEX($K65:$O65,1,aux!$AL$1)>0,(O65/INDEX($K65:$O65,1,aux!$AL$1))^(1/($O$3-INDEX($K$3:$O$3,1,aux!$AL$1)))-1,"n.d.") -> -0.3975641162 | AE65: =IF(INDEX($K65:$O65,1,aux!$AL$1)>0,(O65-INDEX($K65:$O65,1,aux!$AL$1))/INDEX($K65:$O65,1,aux!$AL$1),"n.d.") -> -0.8682825452 | AX65: 08
A66: 0805 | B66: Citrinos, frescos ou secos | C66: 8.507 | D66: 0 | E66: 0 | F66: 0 | G66: 0 | H66: 1.7014 | I66: 0.0002389169711 | J66: 0.0001103146993 | K66: 627.523 | L66: 488.145 | M66: 142.535 | N66: 86.306 | O66: 32.06 | P66: 275.3138 | Q66: 0.001016609674 | R66: 0.000831462143 | S66: 273.6124 | U66: =G66-INDEX($C66:$G66,1,aux!$AL$1) -> -8.507 | V66: -0.001089454917 | W66: -0.0006656358062 | X66: =+IF(INDEX($C66:$G66,1,aux!$AL$1)>0,(G66/INDEX($C66:$G66,1,aux!$AL$1))^(1/($G$3-INDEX($C$3:$G$3,1,aux!$AL$1)))-1,"n.d.") -> -1 | Y66: =IF(INDEX($C66:$G66,1,aux!$AL$1)>0,(G66-INDEX($C66:$G66,1,aux!$AL$1))/INDEX($C66:$G66,1,aux!$AL$1),"n.d.") -> -1 | AA66: =O66-INDEX($K66:$O66,1,aux!$AL$1) -> -595.463 | AB66: 0.007356347337 | AC66: 0.006478622687 | AD66: =+IF(INDEX($K66:$O66,1,aux!$AL$1)>0,(O66/INDEX($K66:$O66,1,aux!$AL$1))^(1/($O$3-INDEX($K$3:$O$3,1,aux!$AL$1)))-1,"n.d.") -> -0.5245734102 | AE66: =IF(INDEX($K66:$O66,1,aux!$AL$1)>0,(O66-INDEX($K66:$O66,1,aux!$AL$1))/INDEX($K66:$O66,1,aux!$AL$1),"n.d.") -> -0.9489102391 | AX66: 08
A67: 0806 | B67: Uvas, frescas ou secas | C67: 0.022 | D67: 0.152 | E67: 0 | F67: 3.873 | G67: 0.764 | H67: 0.9622 | I67: 0.0001351157339 | J67: 6.238674248e-05 | K67: 467.975 | L67: 559.987 | M67: 201.645 | N67: 80.33 | O67: 114.975 | P67: 284.9824 | Q67: 0.001052311452 | R67: 0.0008606618231 | S67: 284.0202 | U67: =G67-INDEX($C67:$G67,1,aux!$AL$1) -> 0.742 | V67: 9.502474998e-05 | W67: 5.805827768e-05 | X67: =+IF(INDEX($C67:$G67,1,aux!$AL$1)>0,(G67/INDEX($C67:$G67,1,aux!$AL$1))^(1/($G$3-INDEX($C$3:$G$3,1,aux!$AL$1)))-1,"n.d.") -> 1.427547125 | Y67: =IF(INDEX($C67:$G67,1,aux!$AL$1)>0,(G67-INDEX($C67:$G67,1,aux!$AL$1))/INDEX($C67:$G67,1,aux!$AL$1),"n.d.") -> 33.72727273 | AA67: =O67-INDEX($K67:$O67,1,aux!$AL$1) -> -353 | AB67: 0.004360960479 | AC67: 0.003840631254 | AD67: =+IF(INDEX($K67:$O67,1,aux!$AL$1)>0,(O67/INDEX($K67:$O67,1,aux!$AL$1))^(1/($O$3-INDEX($K$3:$O$3,1,aux!$AL$1)))-1,"n.d.") -> -0.2959634739 | AE67: =IF(INDEX($K67:$O67,1,aux!$AL$1)>0,(O67-INDEX($K67:$O67,1,aux!$AL$1))/INDEX($K67:$O67,1,aux!$AL$1),"n.d.") -> -0.7543137988 | AX67: 08
A68: 0807 | B68: Melões, melancias e papaia, frescos | C68: 51.461 | D68: 96.51 | E68: 363.384 | F68: 553.004 | G68: 947.191 | H68: 402.31 | I68: 0.05649387955 | J68: 0.02608481643 | K68: 16.579 | L68: 15.72 | M68: 6.439 | N68: 2.799 | O68: 4.415 | P68: 9.1904 | Q68: 3.393600155e-05 | R68: 2.775549093e-05 | S68: -393.1196 | U68: =G68-INDEX($C68:$G68,1,aux!$AL$1) -> 895.73 | V68: =IF($U$237<>0,U68/$U$237, "n.d.") -> 0.1147122902 | W68: =IF($U$322<>0,U68/$U$322, "n.d.") -> 0.07008698257 | X68: =+IF(INDEX($C68:$G68,1,aux!$AL$1)>0,(G68/INDEX($C68:$G68,1,aux!$AL$1))^(1/($G$3-INDEX($C$3:$G$3,1,aux!$AL$1)))-1,"n.d.") -> 1.071284882 | Y68: =IF(INDEX($C68:$G68,1,aux!$AL$1)>0,(G68-INDEX($C68:$G68,1,aux!$AL$1))/INDEX($C68:$G68,1,aux!$AL$1),"n.d.") -> 17.40599677 | AA68: =O68-INDEX($K68:$O68,1,aux!$AL$1) -> -12.164 | AB68: =IF($AA$237<>0,AA68/$AA$237, "n.d.") -> 0.0001502740036 | AC68: =IF($AA$322<>0,AA68/$AA$322, "n.d.") -> 0.0001323440186 | AD68: =+IF(INDEX($K68:$O68,1,aux!$AL$1)>0,(O68/INDEX($K68:$O68,1,aux!$AL$1))^(1/($O$3-INDEX($K$3:$O$3,1,aux!$AL$1)))-1,"n.d.") -> -0.2816384248 | AE68: =IF(INDEX($K68:$O68,1,aux!$AL$1)>0,(O68-INDEX($K68:$O68,1,aux!$AL$1))/INDEX($K68:$O68,1,aux!$AL$1),"n.d.") -> -0.7336992581 | AX68: 08
A69: 0808 | B69: Maçãs, peras e marmelos, frescos | C69: 0 | D69: 0 | E69: 0 | F69: 0 | G69: 0 | H69: 0 | I69: 0 | J69: 0 | K69: 1171.38 | L69: 918.008 | M69: 457.919 | N69: 76.276 | O69: 93.461 | P69: 543.4088 | Q69: 0.002006563575 | R69: 0.001641123131 | S69: 543.4088 | U69: =G69-INDEX($C69:$G69,1,aux!$AL$1) -> 0 | V69: 0 | W69: 0 | X69: =+IF(INDEX($C69:$G69,1,aux!$AL$1)>0,(G69/INDEX($C69:$G69,1,aux!$AL$1))^(1/($G$3-INDEX($C$3:$G$3,1,aux!$AL$1)))-1,"n.d.") -> n.d. | Y69: =IF(INDEX($C69:$G69,1,aux!$AL$1)>0,(G69-INDEX($C69:$G69,1,aux!$AL$1))/INDEX($C69:$G69,1,aux!$AL$1),"n.d.") -> n.d. | AA69: =O69-INDEX($K69:$O69,1,aux!$AL$1) -> -1077.919 | AB69: 0.01331660668 | AC69: 0.01172773201 | AD69: =+IF(INDEX($K69:$O69,1,aux!$AL$1)>0,(O69/INDEX($K69:$O69,1,aux!$AL$1))^(1/($O$3-INDEX($K$3:$O$3,1,aux!$AL$1)))-1,"n.d.") -> -0.4685246156 | AE69: =IF(INDEX($K69:$O69,1,aux!$AL$1)>0,(O69-INDEX($K69:$O69,1,aux!$AL$1))/INDEX($K69:$O69,1,aux!$AL$1),"n.d.") -> -0.9202129113 | AX69: 08
A70: 0809 | B70: Damascos, cerejas, pêssegos, etc., frescos | C70: 0 | D70: 0 | E70: 0 | F70: 0 | G70: 0 | H70: 0 | I70: 0 | J70: 0 | K70: 245.521 | L70: 242.917 | M70: 45.159 | N70: 18.491 | O70: 62.75 | P70: 122.9676 | Q70: 0.000454063878 | R70: 0.0003713686136 | S70: 122.9676 | U70: =G70-INDEX($C70:$G70,1,aux!$AL$1) -> 0 | V70: 0 | W70: 0 | X70: =+IF(INDEX($C70:$G70,1,aux!$AL$1)>0,(G70/INDEX($C70:$G70,1,aux!$AL$1))^(1/($G$3-INDEX($C$3:$G$3,1,aux!$AL$1)))-1,"n.d.") -> n.d. | Y70: =IF(INDEX($C70:$G70,1,aux!$AL$1)>0,(G70-INDEX($C70:$G70,1,aux!$AL$1))/INDEX($C70:$G70,1,aux!$AL$1),"n.d.") -> n.d. | AA70: =O70-INDEX($K70:$O70,1,aux!$AL$1) -> -182.771 | AB70: 0.002257952147 | AC70: 0.001988543952 | AD70: =+IF(INDEX($K70:$O70,1,aux!$AL$1)>0,(O70/INDEX($K70:$O70,1,aux!$AL$1))^(1/($O$3-INDEX($K$3:$O$3,1,aux!$AL$1)))-1,"n.d.") -> -0.2889808931 | AE70: =IF(INDEX($K70:$O70,1,aux!$AL$1)>0,(O70-INDEX($K70:$O70,1,aux!$AL$1))/INDEX($K70:$O70,1,aux!$AL$1),"n.d.") -> -0.7444210475 | AX70: 08
A71: 0810 | B71: Outras frutas frescas | C71: 42.997 | D71: 38.657 | E71: 80.725 | F71: 543.755 | G71: 936.94 | H71: 328.6148 | I71: 0.04614532308 | J71: 0.02130659624 | K71: 446.914 | L71: 343.959 | M71: 113.12 | N71: 73.981 | O71: 144.461 | P71: 224.487 | Q71: 0.0008289292284 | R71: 0.0006779625362 | S71: -104.1278 | U71: =G71-INDEX($C71:$G71,1,aux!$AL$1) -> 893.943 | V71: 0.1144834368 | W71: 0.06994715758 | X71: =+IF(INDEX($C71:$G71,1,aux!$AL$1)>0,(G71/INDEX($C71:$G71,1,aux!$AL$1))^(1/($G$3-INDEX($C$3:$G$3,1,aux!$AL$1)))-1,"n.d.") -> 1.160570323 | Y71: =IF(INDEX($C71:$G71,1,aux!$AL$1)>0,(G71-INDEX($C71:$G71,1,aux!$AL$1))/INDEX($C71:$G71,1,aux!$AL$1),"n.d.") -> 20.79082262 | AA71: =O71-INDEX($K71:$O71,1,aux!$AL$1) -> -302.453 | AB71: 0.003736503059 | AC71: 0.003290681147 | AD71: =+IF(INDEX($K71:$O71,1,aux!$AL$1)>0,(O71/INDEX($K71:$O71,1,aux!$AL$1))^(1/($O$3-INDEX($K$3:$O$3,1,aux!$AL$1)))-1,"n.d.") -> -0.2459820854 | AE71: =IF(INDEX($K71:$O71,1,aux!$AL$1)>0,(O71-INDEX($K71:$O71,1,aux!$AL$1))/INDEX($K71:$O71,1,aux!$AL$1),"n.d.") -> -0.6767588395 | AX71: 08
A72: 0811 | B72: Frutas não cozidas ou cozidas em água ou vapor, congeladas | C72: 0 | D72: 0 | E72: 0 | F72: 17.788 | G72: 42.508 | H72: 12.0592 | I72: 0.001693398107 | J72: 0.0007818896331 | K72: 165.299 | L72: 104.147 | M72: 77.799 | N72: 108.648 | O72: 235.522 | P72: 138.283 | Q72: 0.0005106167417 | R72: 0.0004176219264 | S72: 126.2238 | U72: =G72-INDEX($C72:$G72,1,aux!$AL$1) -> 42.508 | V72: 0.005443816809 | W72: 0.003326066398 | X72: =+IF(INDEX($C72:$G72,1,aux!$AL$1)>0,(G72/INDEX($C72:$G72,1,aux!$AL$1))^(1/($G$3-INDEX($C$3:$G$3,1,aux!$AL$1)))-1,"n.d.") -> n.d. | Y72: =IF(INDEX($C72:$G72,1,aux!$AL$1)>0,(G72-INDEX($C72:$G72,1,aux!$AL$1))/INDEX($C72:$G72,1,aux!$AL$1),"n.d.") -> n.d. | AA72: =O72-INDEX($K72:$O72,1,aux!$AL$1) -> 70.223 | AB72: -0.0008675346395 | AC72: -0.0007640245002 | AD72: =+IF(INDEX($K72:$O72,1,aux!$AL$1)>0,(O72/INDEX($K72:$O72,1,aux!$AL$1))^(1/($O$3-INDEX($K$3:$O$3,1,aux!$AL$1)))-1,"n.d.") -> 0.09254746475 | AE72: =IF(INDEX($K72:$O72,1,aux!$AL$1)>0,(O72-INDEX($K72:$O72,1,aux!$AL$1))/INDEX($K72:$O72,1,aux!$AL$1),"n.d.") -> 0.4248241066 | AX72: 08
A73: 0812 | B73: Frutas conservadas transitoriamente | C73: 0 | D73: 0 | E73: 0 | F73: 0 | G73: 0 | H73: 0 | I73: 0 | J73: 0 | K73: 0 | L73: 0.28 | M73: 0.046 | N73: 0 | O73: 0.113 | P73: 0.0878 | Q73: 3.242057948e-07 | R73: 2.651606137e-07 | S73: 0.0878 | U73: =G73-INDEX($C73:$G73,1,aux!$AL$1) -> 0 | V73: 0 | W73: 0 | X73: =+IF(INDEX($C73:$G73,1,aux!$AL$1)>0,(G73/INDEX($C73:$G73,1,aux!$AL$1))^(1/($G$3-INDEX($C$3:$G$3,1,aux!$AL$1)))-1,"n.d.") -> n.d. | Y73: =IF(INDEX($C73:$G73,1,aux!$AL$1)>0,(G73-INDEX($C73:$G73,1,aux!$AL$1))/INDEX($C73:$G73,1,aux!$AL$1),"n.d.") -> n.d. | AA73: =O73-INDEX($K73:$O73,1,aux!$AL$1) -> 0.113 | AB73: -1.396001513e-06 | AC73: -1.2294372e-06 | AD73: =+IF(INDEX($K73:$O73,1,aux!$AL$1)>0,(O73/INDEX($K73:$O73,1,aux!$AL$1))^(1/($O$3-INDEX($K$3:$O$3,1,aux!$AL$1)))-1,"n.d.") -> n.d. | AE73: =IF(INDEX($K73:$O73,1,aux!$AL$1)>0,(O73-INDEX($K73:$O73,1,aux!$AL$1))/INDEX($K73:$O73,1,aux!$AL$1),"n.d.") -> n.d. | AX73: 08
A74: 0813 | B74: Outras frutas secas | C74: 0 | D74: 0 | E74: 1.324 | F74: 0 | G74: 1.703 | H74: 0.6054 | I74: 8.501253928e-05 | J74: 3.925268541e-05 | K74: 147.163 | L74: 112.952 | M74: 43.542 | N74: 54.884 | O74: 111.096 | P74: 93.9274 | Q74: 0.000346831519 | R74: 0.0002836656836 | S74: 93.322 | U74: =G74-INDEX($C74:$G74,1,aux!$AL$1) -> 1.703 | V74: 0.0002180958884 | W74: 0.0001332523543 | X74: =+IF(INDEX($C74:$G74,1,aux!$AL$1)>0,(G74/INDEX($C74:$G74,1,aux!$AL$1))^(1/($G$3-INDEX($C$3:$G$3,1,aux!$AL$1)))-1,"n.d.") -> n.d. | Y74: =IF(INDEX($C74:$G74,1,aux!$AL$1)>0,(G74-INDEX($C74:$G74,1,aux!$AL$1))/INDEX($C74:$G74,1,aux!$AL$1),"n.d.") -> n.d. | AA74: =O74-INDEX($K74:$O74,1,aux!$AL$1) -> -36.067 | AB74: 0.0004455715626 | AC74: 0.0003924080664 | AD74: =+IF(INDEX($K74:$O74,1,aux!$AL$1)>0,(O74/INDEX($K74:$O74,1,aux!$AL$1))^(1/($O$3-INDEX($K$3:$O$3,1,aux!$AL$1)))-1,"n.d.") -> -0.06787330146 | AE74: =IF(INDEX($K74:$O74,1,aux!$AL$1)>0,(O74-INDEX($K74:$O74,1,aux!$AL$1))/INDEX($K74:$O74,1,aux!$AL$1),"n.d.") -> -0.2450819839 | AX74: 08
A75: 0814 | B75: Cascas de citrinos, melões ou melancias | C75: 0 | D75: 0 | E75: 0 | F75: 0 | G75: 0 | H75: 0 | I75: 0 | J75: 0 | K75: 0.034 | L75: 0.005 | M75: 2.613 | N75: 0 | O75: 0 | P75: 0.5304 | Q75: 1.958527945e-06 | R75: 1.601835871e-06 | S75: 0.5304 | U75: =G75-INDEX($C75:$G75,1,aux!$AL$1) -> 0 | V75: 0 | W75: 0 | X75: =+IF(INDEX($C75:$G75,1,aux!$AL$1)>0,(G75/INDEX($C75:$G75,1,aux!$AL$1))^(1/($G$3-INDEX($C$3:$G$3,1,aux!$AL$1)))-1,"n.d.") -> n.d. | Y75: =IF(INDEX($C75:$G75,1,aux!$AL$1)>0,(G75-INDEX($C75:$G75,1,aux!$AL$1))/INDEX($C75:$G75,1,aux!$AL$1),"n.d.") -> n.d. | AA75: =O75-INDEX($K75:$O75,1,aux!$AL$1) -> -0.034 | AB75: 4.200358535e-07 | AC75: 3.699191576e-07 | AD75: =+IF(INDEX($K75:$O75,1,aux!$AL$1)>0,(O75/INDEX($K75:$O75,1,aux!$AL$1))^(1/($O$3-INDEX($K$3:$O$3,1,aux!$AL$1)))-1,"n.d.") -> -1 | AE75: =IF(INDEX($K75:$O75,1,aux!$AL$1)>0,(O75-INDEX($K75:$O75,1,aux!$AL$1))/INDEX($K75:$O75,1,aux!$AL$1),"n.d.") -> -1 | AX75: =+LEFT(A75,2) -> 08
A76: 08SS | B76: Frutas; cascas de citrinos e de melões | C76: 0 | D76: 0 | E76: 0 | F76: 0 | G76: 0 | H76: 0 | I76: 0 | J76: 0 | K76: 0 | L76: 0 | M76: 0 | N76: 0 | O76: 0 | P76: 0 | Q76: 0 | R76: 0 | S76: 0 | U76: =G76-INDEX($C76:$G76,1,aux!$AL$1) -> 0 | V76: 0 | W76: 0 | X76: =+IF(INDEX($C76:$G76,1,aux!$AL$1)>0,(G76/INDEX($C76:$G76,1,aux!$AL$1))^(1/($G$3-INDEX($C$3:$G$3,1,aux!$AL$1)))-1,"n.d.") -> n.d. | Y76: =IF(INDEX($C76:$G76,1,aux!$AL$1)>0,(G76-INDEX($C76:$G76,1,aux!$AL$1))/INDEX($C76:$G76,1,aux!$AL$1),"n.d.") -> n.d. | AA76: =O76-INDEX($K76:$O76,1,aux!$AL$1) -> 0 | AB76: 0 | AC76: 0 | AD76: =+IF(INDEX($K76:$O76,1,aux!$AL$1)>0,(O76/INDEX($K76:$O76,1,aux!$AL$1))^(1/($O$3-INDEX($K$3:$O$3,1,aux!$AL$1)))-1,"n.d.") -> n.d. | AE76: =IF(INDEX($K76:$O76,1,aux!$AL$1)>0,(O76-INDEX($K76:$O76,1,aux!$AL$1))/INDEX($K76:$O76,1,aux!$AL$1),"n.d.") -> n.d. | AX76: 08
A77: 0901 | B77: Café | C77: 488.914 | D77: 921.421 | E77: 1622.914 | F77: 737.332 | G77: 782.663 | H77: 910.6488 | I77: 0.127876721 | J77: 0.0590442862 | K77: 4432.979 | L77: 2931.454 | M77: 2337.182 | N77: 2821.476 | O77: 3314.074 | P77: 3167.433 | Q77: 0.01169590129 | R77: 0.0095658141 | S77: 2256.7842 | U77: =G77-INDEX($C77:$G77,1,aux!$AL$1) -> 293.749 | V77: 0.03761917154 | W77: 0.02298458357 | X77: =+IF(INDEX($C77:$G77,1,aux!$AL$1)>0,(G77/INDEX($C77:$G77,1,aux!$AL$1))^(1/($G$3-INDEX($C$3:$G$3,1,aux!$AL$1)))-1,"n.d.") -> 0.1248266115 | Y77: =IF(INDEX($C77:$G77,1,aux!$AL$1)>0,(G77-INDEX($C77:$G77,1,aux!$AL$1))/INDEX($C77:$G77,1,aux!$AL$1),"n.d.") -> 0.600819367 | AA77: =O77-INDEX($K77:$O77,1,aux!$AL$1) -> -1118.905 | AB77: 0.01382294755 | AC77: 0.01217365868 | AD77: =+IF(INDEX($K77:$O77,1,aux!$AL$1)>0,(O77/INDEX($K77:$O77,1,aux!$AL$1))^(1/($O$3-INDEX($K$3:$O$3,1,aux!$AL$1)))-1,"n.d.") -> -0.07014199991 | AE77: =IF(INDEX($K77:$O77,1,aux!$AL$1)>0,(O77-INDEX($K77:$O77,1,aux!$AL$1))/INDEX($K77:$O77,1,aux!$AL$1),"n.d.") -> -0.2524047599 | AX77: 09
A78: 0902 | B78: Chá | C78: 7.174 | D78: 0.238 | E78: 0 | F78: 0 | G78: 0 | H78: 1.4824 | I78: 0.0002081641695 | J78: 9.611526404e-05 | K78: 2068.961 | L78: 976.4 | M78: 411.82 | N78: 571.033 | O78: 883.796 | P78: 982.402 | Q78: 0.00362756744 | R78: 0.002966905663 | S78: 980.9196 | U78: =G78-INDEX($C78:$G78,1,aux!$AL$1) -> -7.174 | V78: -0.0009187433374 | W78: -0.0005613343451 | X78: =+IF(INDEX($C78:$G78,1,aux!$AL$1)>0,(G78/INDEX($C78:$G78,1,aux!$AL$1))^(1/($G$3-INDEX($C$3:$G$3,1,aux!$AL$1)))-1,"n.d.") -> -1 | Y78: =IF(INDEX($C78:$G78,1,aux!$AL$1)>0,(G78-INDEX($C78:$G78,1,aux!$AL$1))/INDEX($C78:$G78,1,aux!$AL$1),"n.d.") -> -1 | AA78: =O78-INDEX($K78:$O78,1,aux!$AL$1) -> -1185.165 | AB78: 0.0146415233 | AC78: 0.01289456584 | AD78: =+IF(INDEX($K78:$O78,1,aux!$AL$1)>0,(O78/INDEX($K78:$O78,1,aux!$AL$1))^(1/($O$3-INDEX($K$3:$O$3,1,aux!$AL$1)))-1,"n.d.") -> -0.1915560193 | AE78: =IF(INDEX($K78:$O78,1,aux!$AL$1)>0,(O78-INDEX($K78:$O78,1,aux!$AL$1))/INDEX($K78:$O78,1,aux!$AL$1),"n.d.") -> -0.5728310007 | AX78: 09
A79: 0903 | B79: Mate | C79: 0 | D79: 0 | E79: 0 | F79: 0 | G79: 0.001 | H79: 0.0002 | I79: 2.808475034e-08 | J79: 1.296752078e-08 | K79: 0.349 | L79: 14.926 | M79: 0 | N79: 0 | O79: 0.396 | P79: 3.1342 | Q79: 1.157318681e-05 | R79: 9.465448694e-06 | S79: 3.134 | U79: =G79-INDEX($C79:$G79,1,aux!$AL$1) -> 0.001 | V79: 1.280657008e-07 | W79: 7.824565725e-08 | X79: =+IF(INDEX($C79:$G79,1,aux!$AL$1)>0,(G79/INDEX($C79:$G79,1,aux!$AL$1))^(1/($G$3-INDEX($C$3:$G$3,1,aux!$AL$1)))-1,"n.d.") -> n.d. | Y79: =IF(INDEX($C79:$G79,1,aux!$AL$1)>0,(G79-INDEX($C79:$G79,1,aux!$AL$1))/INDEX($C79:$G79,1,aux!$AL$1),"n.d.") -> n.d. | AA79: =O79-INDEX($K79:$O79,1,aux!$AL$1) -> 0.047 | AB79: -5.806377975e-07 | AC79: -5.113588356e-07 | AD79: =+IF(INDEX($K79:$O79,1,aux!$AL$1)>0,(O79/INDEX($K79:$O79,1,aux!$AL$1))^(1/($O$3-INDEX($K$3:$O$3,1,aux!$AL$1)))-1,"n.d.") -> 0.03208969007 | AE79: =IF(INDEX($K79:$O79,1,aux!$AL$1)>0,(O79-INDEX($K79:$O79,1,aux!$AL$1))/INDEX($K79:$O79,1,aux!$AL$1),"n.d.") -> 0.1346704871 | AX79: 09
A80: 0904 | B80: Pimenta | C80: 0 | D80: 0 | E80: 0 | F80: 0 | G80: 0 | H80: 0 | I80: 0 | J80: 0 | K80: 461.779 | L80: 288.617 | M80: 122.114 | N80: 265.875 | O80: 488.502 | P80: 325.3774 | Q80: 0.001201471966 | R80: 0.0009826568457 | S80: 325.3774 | U80: =G80-INDEX($C80:$G80,1,aux!$AL$1) -> 0 | V80: 0 | W80: 0 | X80: =+IF(INDEX($C80:$G80,1,aux!$AL$1)>0,(G80/INDEX($C80:$G80,1,aux!$AL$1))^(1/($G$3-INDEX($C$3:$G$3,1,aux!$AL$1)))-1,"n.d.") -> n.d. | Y80: =IF(INDEX($C80:$G80,1,aux!$AL$1)>0,(G80-INDEX($C80:$G80,1,aux!$AL$1))/INDEX($C80:$G80,1,aux!$AL$1),"n.d.") -> n.d. | AA80: =O80-INDEX($K80:$O80,1,aux!$AL$1) -> 26.723 | AB80: -0.0003301358269 | AC80: -0.0002907455779 | AD80: =+IF(INDEX($K80:$O80,1,aux!$AL$1)>0,(O80/INDEX($K80:$O80,1,aux!$AL$1))^(1/($O$3-INDEX($K$3:$O$3,1,aux!$AL$1)))-1,"n.d.") -> 0.01416365336 | AE80: =IF(INDEX($K80:$O80,1,aux!$AL$1)>0,(O80-INDEX($K80:$O80,1,aux!$AL$1))/INDEX($K80:$O80,1,aux!$AL$1),"n.d.") -> 0.05786967359 | AX80: 09
A81: 0905 | B81: Baunilha | C81: 0 | D81: 0 | E81: 0 | F81: 0 | G81: 0 | H81: 0 | I81: 0 | J81: 0 | K81: 3.872 | L81: 1.182 | M81: 0.008 | N81: 3.645 | O81: 6.111 | P81: 2.9636 | Q81: 1.094323797e-05 | R81: 8.950227729e-06 | S81: 2.9636 | U81: =G81-INDEX($C81:$G81,1,aux!$AL$1) -> 0 | V81: 0 | W81: 0 | X81: =+IF(INDEX($C81:$G81,1,aux!$AL$1)>0,(G81/INDEX($C81:$G81,1,aux!$AL$1))^(1/($G$3-INDEX($C$3:$G$3,1,aux!$AL$1)))-1,"n.d.") -> n.d. | Y81: =IF(INDEX($C81:$G81,1,aux!$AL$1)>0,(G81-INDEX($C81:$G81,1,aux!$AL$1))/INDEX($C81:$G81,1,aux!$AL$1),"n.d.") -> n.d. | AA81: =O81-INDEX($K81:$O81,1,aux!$AL$1) -> 2.239 | AB81: -2.766059635e-05 | AC81: -2.436026453e-05 | AD81: =+IF(INDEX($K81:$O81,1,aux!$AL$1)>0,(O81/INDEX($K81:$O81,1,aux!$AL$1))^(1/($O$3-INDEX($K$3:$O$3,1,aux!$AL$1)))-1,"n.d.") -> 0.1208415803 | AE81: =IF(INDEX($K81:$O81,1,aux!$AL$1)>0,(O81-INDEX($K81:$O81,1,aux!$AL$1))/INDEX($K81:$O81,1,aux!$AL$1),"n.d.") -> 0.5782541322 | AX81: 09
A82: 0906 | B82: Canela | C82: 0 | D82: 0 | E82: 0 | F82: 0 | G82: 0 | H82: 0 | I82: 0 | J82: 0 | K82: 250.926 | L82: 157.269 | M82: 83.946 | N82: 148.767 | O82: 306.546 | P82: 189.4908 | Q82: 0.000699704048 | R82: 0.0005722721732 | S82: 189.4908 | U82: =G82-INDEX($C82:$G82,1,aux!$AL$1) -> 0 | V82: 0 | W82: 0 | X82: =+IF(INDEX($C82:$G82,1,aux!$AL$1)>0,(G82/INDEX($C82:$G82,1,aux!$AL$1))^(1/($G$3-INDEX($C$3:$G$3,1,aux!$AL$1)))-1,"n.d.") -> n.d. | Y82: =IF(INDEX($C82:$G82,1,aux!$AL$1)>0,(G82-INDEX($C82:$G82,1,aux!$AL$1))/INDEX($C82:$G82,1,aux!$AL$1),"n.d.") -> n.d. | AA82: =O82-INDEX($K82:$O82,1,aux!$AL$1) -> 55.62 | AB82: -0.0006871292404 | AC82: -0.000605144222 | AD82: =+IF(INDEX($K82:$O82,1,aux!$AL$1)>0,(O82/INDEX($K82:$O82,1,aux!$AL$1))^(1/($O$3-INDEX($K$3:$O$3,1,aux!$AL$1)))-1,"n.d.") -> 0.05132622404 | AE82: =IF(INDEX($K82:$O82,1,aux!$AL$1)>0,(O82-INDEX($K82:$O82,1,aux!$AL$1))/INDEX($K82:$O82,1,aux!$AL$1),"n.d.") -> 0.2216589752 | AX82: 09
A83: 0907 | B83: Cravo-da-índia | C83: 0 | D83: 0 | E83: 0 | F83: 0 | G83: 0 | H83: 0 | I83: 0 | J83: 0 | K83: 25.832 | L83: 8.245 | M83: 10.119 | N83: 18.745 | O83: 23.094 | P83: 17.207 | Q83: 6.353768919e-05 | R83: 5.196604418e-05 | S83: 17.207 | U83: =G83-INDEX($C83:$G83,1,aux!$AL$1) -> 0 | V83: 0 | W83: 0 | X83: =+IF(INDEX($C83:$G83,1,aux!$AL$1)>0,(G83/INDEX($C83:$G83,1,aux!$AL$1))^(1/($G$3-INDEX($C$3:$G$3,1,aux!$AL$1)))-1,"n.d.") -> n.d. | Y83: =IF(INDEX($C83:$G83,1,aux!$AL$1)>0,(G83-INDEX($C83:$G83,1,aux!$AL$1))/INDEX($C83:$G83,1,aux!$AL$1),"n.d.") -> n.d. | AA83: =O83-INDEX($K83:$O83,1,aux!$AL$1) -> -2.738 | AB83: 3.38252402e-05 | AC83: 2.978937217e-05 | AD83: =+IF(INDEX($K83:$O83,1,aux!$AL$1)>0,(O83/INDEX($K83:$O83,1,aux!$AL$1))^(1/($O$3-INDEX($K$3:$O$3,1,aux!$AL$1)))-1,"n.d.") -> -0.0276216463 | AE83: =IF(INDEX($K83:$O83,1,aux!$AL$1)>0,(O83-INDEX($K83:$O83,1,aux!$AL$1))/INDEX($K83:$O83,1,aux!$AL$1),"n.d.") -> -0.1059925674 | AX83: 09
A84: 0908 | B84: Noz-moscada, etc. | C84: 0 | D84: 0 | E84: 0 | F84: 0 | G84: 0 | H84: 0 | I84: 0 | J84: 0 | K84: 76.919 | L84: 25.257 | M84: 9.664 | N84: 36.269 | O84: 34.479 | P84: 36.5176 | Q84: 0.0001348430243 | R84: 0.0001102850709 | S84: 36.5176 | U84: =G84-INDEX($C84:$G84,1,aux!$AL$1) -> 0 | V84: 0 | W84: 0 | X84: =+IF(INDEX($C84:$G84,1,aux!$AL$1)>0,(G84/INDEX($C84:$G84,1,aux!$AL$1))^(1/($G$3-INDEX($C$3:$G$3,1,aux!$AL$1)))-1,"n.d.") -> n.d. | Y84: =IF(INDEX($C84:$G84,1,aux!$AL$1)>0,(G84-INDEX($C84:$G84,1,aux!$AL$1))/INDEX($C84:$G84,1,aux!$AL$1),"n.d.") -> n.d. | AA84: =O84-INDEX($K84:$O84,1,aux!$AL$1) -> -42.44 | AB84: 0.0005243035772 | AC84: 0.0004617461485 | AD84: =+IF(INDEX($K84:$O84,1,aux!$AL$1)>0,(O84/INDEX($K84:$O84,1,aux!$AL$1))^(1/($O$3-INDEX($K$3:$O$3,1,aux!$AL$1)))-1,"n.d.") -> -0.1817608447 | AE84: =IF(INDEX($K84:$O84,1,aux!$AL$1)>0,(O84-INDEX($K84:$O84,1,aux!$AL$1))/INDEX($K84:$O84,1,aux!$AL$1),"n.d.") -> -0.5517492427 | AX84: 09
A85: 0909 | B85: Sementes de anis, funcho, etc. | C85: 0 | D85: 0 | E85: 0 | F85: 0 | G85: 0 | H85: 0 | I85: 0 | J85: 0 | K85: 153.332 | L85: 27.318 | M85: 11.316 | N85: 40.767 | O85: 63.593 | P85: 59.2652 | Q85: 0.00021883965 | R85: 0.0001789840182 | S85: 59.2652 | U85: =G85-INDEX($C85:$G85,1,aux!$AL$1) -> 0 | V85: 0 | W85: 0 | X85: =+IF(INDEX($C85:$G85,1,aux!$AL$1)>0,(G85/INDEX($C85:$G85,1,aux!$AL$1))^(1/($G$3-INDEX($C$3:$G$3,1,aux!$AL$1)))-1,"n.d.") -> n.d. | Y85: =IF(INDEX($C85:$G85,1,aux!$AL$1)>0,(G85-INDEX($C85:$G85,1,aux!$AL$1))/INDEX($C85:$G85,1,aux!$AL$1),"n.d.") -> n.d. | AA85: =O85-INDEX($K85:$O85,1,aux!$AL$1) -> -89.739 | AB85: 0.001108635219 | AC85: 0.0009763580967 | AD85: =+IF(INDEX($K85:$O85,1,aux!$AL$1)>0,(O85/INDEX($K85:$O85,1,aux!$AL$1))^(1/($O$3-INDEX($K$3:$O$3,1,aux!$AL$1)))-1,"n.d.") -> -0.1975016868 | AE85: =IF(INDEX($K85:$O85,1,aux!$AL$1)>0,(O85-INDEX($K85:$O85,1,aux!$AL$1))/INDEX($K85:$O85,1,aux!$AL$1),"n.d.") -> -0.585259437 | AX85: 09
A86: 0910 | B86: Gengibre, açafrão, tomilho, louro, etc. | C86: 0 | D86: 0 | E86: 0 | F86: 0 | G86: 0.035 | H86: 0.007 | I86: 9.829662619e-07 | J86: 4.538632274e-07 | K86: 602.027 | L86: 310.17 | M86: 628.803 | N86: 324.467 | O86: 342.127 | P86: 441.5188 | Q86: 0.001630329766 | R86: 0.001333409977 | S86: 441.5118 | U86: =G86-INDEX($C86:$G86,1,aux!$AL$1) -> 0.035 | V86: 4.482299527e-06 | W86: 2.738598004e-06 | X86: =+IF(INDEX($C86:$G86,1,aux!$AL$1)>0,(G86/INDEX($C86:$G86,1,aux!$AL$1))^(1/($G$3-INDEX($C$3:$G$3,1,aux!$AL$1)))-1,"n.d.") -> n.d. | Y86: =IF(INDEX($C86:$G86,1,aux!$AL$1)>0,(G86-INDEX($C86:$G86,1,aux!$AL$1))/INDEX($C86:$G86,1,aux!$AL$1),"n.d.") -> n.d. | AA86: =O86-INDEX($K86:$O86,1,aux!$AL$1) -> -259.9 | AB86: 0.00321080348 | AC86: 0.002827705561 | AD86: =+IF(INDEX($K86:$O86,1,aux!$AL$1)>0,(O86/INDEX($K86:$O86,1,aux!$AL$1))^(1/($O$3-INDEX($K$3:$O$3,1,aux!$AL$1)))-1,"n.d.") -> -0.1317538924 | AE86: =IF(INDEX($K86:$O86,1,aux!$AL$1)>0,(O86-INDEX($K86:$O86,1,aux!$AL$1))/INDEX($K86:$O86,1,aux!$AL$1),"n.d.") -> -0.4317082124 | AX86: 09
A87: 09SS | B87: Café, chá, mate e especiarias | C87: 0 | D87: 0 | E87: 0 | F87: 0 | G87: 0 | H87: 0 | I87: 0 | J87: 0 | K87: 0 | L87: 0 | M87: 0 | N87: 0 | O87: 0 | P87: 0 | Q87: 0 | R87: 0 | S87: 0 | U87: =G87-INDEX($C87:$G87,1,aux!$AL$1) -> 0 | V87: 0 | W87: 0 | X87: =+IF(INDEX($C87:$G87,1,aux!$AL$1)>0,(G87/INDEX($C87:$G87,1,aux!$AL$1))^(1/($G$3-INDEX($C$3:$G$3,1,aux!$AL$1)))-1,"n.d.") -> n.d. | Y87: =IF(INDEX($C87:$G87,1,aux!$AL$1)>0,(G87-INDEX($C87:$G87,1,aux!$AL$1))/INDEX($C87:$G87,1,aux!$AL$1),"n.d.") -> n.d. | AA87: =O87-INDEX($K87:$O87,1,aux!$AL$1) -> 0 | AB87: 0 | AC87: 0 | AD87: =+IF(INDEX($K87:$O87,1,aux!$AL$1)>0,(O87/INDEX($K87:$O87,1,aux!$AL$1))^(1/($O$3-INDEX($K$3:$O$3,1,aux!$AL$1)))-1,"n.d.") -> n.d. | AE87: =IF(INDEX($K87:$O87,1,aux!$AL$1)>0,(O87-INDEX($K87:$O87,1,aux!$AL$1))/INDEX($K87:$O87,1,aux!$AL$1),"n.d.") -> n.d. | AX87: 09
A88: 1001 | B88: Trigo e mistura trigo/centeio | C88: 0 | D88: 0 | E88: 0 | F88: 0 | G88: 0.1 | H88: 0.02 | I88: 2.808475034e-06 | J88: 1.296752078e-06 | K88: 0 | L88: 1.2 | M88: 0.877 | N88: 0 | O88: 0 | P88: 0.4154 | Q88: 1.53388482e-06 | R88: 1.254529828e-06 | S88: 0.3954 | U88: =G88-INDEX($C88:$G88,1,aux!$AL$1) -> 0.1 | V88: 1.280657008e-05 | W88: 7.824565725e-06 | X88: =+IF(INDEX($C88:$G88,1,aux!$AL$1)>0,(G88/INDEX($C88:$G88,1,aux!$AL$1))^(1/($G$3-INDEX($C$3:$G$3,1,aux!$AL$1)))-1,"n.d.") -> n.d. | Y88: =IF(INDEX($C88:$G88,1,aux!$AL$1)>0,(G88-INDEX($C88:$G88,1,aux!$AL$1))/INDEX($C88:$G88,1,aux!$AL$1),"n.d.") -> n.d. | AA88: =O88-INDEX($K88:$O88,1,aux!$AL$1) -> 0 | AB88: 0 | AC88: 0 | AD88: =+IF(INDEX($K88:$O88,1,aux!$AL$1)>0,(O88/INDEX($K88:$O88,1,aux!$AL$1))^(1/($O$3-INDEX($K$3:$O$3,1,aux!$AL$1)))-1,"n.d.") -> n.d. | AE88: =IF(INDEX($K88:$O88,1,aux!$AL$1)>0,(O88-INDEX($K88:$O88,1,aux!$AL$1))/INDEX($K88:$O88,1,aux!$AL$1),"n.d.") -> n.d. | AX88: 10
A89: 1002 | B89: Centeio | C89: 0 | D89: 0 | E89: 0 | F89: 0 | G89: 0 | H89: 0 | I89: 0 | J89: 0 | K89: 0 | L89: 0 | M89: 0 | N89: 0 | O89: 0 | P89: 0 | Q89: 0 | R89: 0 | S89: 0 | U89: =G89-INDEX($C89:$G89,1,aux!$AL$1) -> 0 | V89: 0 | W89: 0 | X89: =+IF(INDEX($C89:$G89,1,aux!$AL$1)>0,(G89/INDEX($C89:$G89,1,aux!$AL$1))^(1/($G$3-INDEX($C$3:$G$3,1,aux!$AL$1)))-1,"n.d.") -> n.d. | Y89: =IF(INDEX($C89:$G89,1,aux!$AL$1)>0,(G89-INDEX($C89:$G89,1,aux!$AL$1))/INDEX($C89:$G89,1,aux!$AL$1),"n.d.") -> n.d. | AA89: =O89-INDEX($K89:$O89,1,aux!$AL$1) -> 0 | AB89: 0 | AC89: 0 | AD89: =+IF(INDEX($K89:$O89,1,aux!$AL$1)>0,(O89/INDEX($K89:$O89,1,aux!$AL$1))^(1/($O$3-INDEX($K$3:$O$3,1,aux!$AL$1)))-1,"n.d.") -> n.d. | AE89: =IF(INDEX($K89:$O89,1,aux!$AL$1)>0,(O89-INDEX($K89:$O89,1,aux!$AL$1))/INDEX($K89:$O89,1,aux!$AL$1),"n.d.") -> n.d. | AX89: 10
A90: 1003 | B90: Cevada | C90: 0 | D90: 0 | E90: 0 | F90: 0 | G90: 0 | H90: 0 | I90: 0 | J90: 0 | K90: 0.453 | L90: 29.536 | M90: 47.623 | N90: 32.586 | O90: 10.332 | P90: 24.106 | Q90: 8.901258416e-05 | R90: 7.280138671e-05 | S90: 24.106 | U90: =G90-INDEX($C90:$G90,1,aux!$AL$1) -> 0 | V90: 0 | W90: 0 | X90: =+IF(INDEX($C90:$G90,1,aux!$AL$1)>0,(G90/INDEX($C90:$G90,1,aux!$AL$1))^(1/($G$3-INDEX($C$3:$G$3,1,aux!$AL$1)))-1,"n.d.") -> n.d. | Y90: =IF(INDEX($C90:$G90,1,aux!$AL$1)>0,(G90-INDEX($C90:$G90,1,aux!$AL$1))/INDEX($C90:$G90,1,aux!$AL$1),"n.d.") -> n.d. | AA90: =O90-INDEX($K90:$O90,1,aux!$AL$1) -> 9.879 | AB90: -0.0001220451234 | AC90: -0.0001074832752 | AD90: =+IF(INDEX($K90:$O90,1,aux!$AL$1)>0,(O90/INDEX($K90:$O90,1,aux!$AL$1))^(1/($O$3-INDEX($K$3:$O$3,1,aux!$AL$1)))-1,"n.d.") -> 1.18535275 | AE90: =IF(INDEX($K90:$O90,1,aux!$AL$1)>0,(O90-INDEX($K90:$O90,1,aux!$AL$1))/INDEX($K90:$O90,1,aux!$AL$1),"n.d.") -> 21.80794702 | AX90: 10
A91: 1004 | B91: Aveia | C91: 0 | D91: 0 | E91: 0 | F91: 0 | G91: 0 | H91: 0 | I91: 0 | J91: 0 | K91: 4.997 | L91: 8.401 | M91: 0.273 | N91: 0.755 | O91: 4.006 | P91: 3.6864 | Q91: 1.361221232e-05 | R91: 1.113312171e-05 | S91: 3.6864 | U91: =G91-INDEX($C91:$G91,1,aux!$AL$1) -> 0 | V91: 0 | W91: 0 | X91: =+IF(INDEX($C91:$G91,1,aux!$AL$1)>0,(G91/INDEX($C91:$G91,1,aux!$AL$1))^(1/($G$3-INDEX($C$3:$G$3,1,aux!$AL$1)))-1,"n.d.") -> n.d. | Y91: =IF(INDEX($C91:$G91,1,aux!$AL$1)>0,(G91-INDEX($C91:$G91,1,aux!$AL$1))/INDEX($C91:$G91,1,aux!$AL$1),"n.d.") -> n.d. | AA91: =O91-INDEX($K91:$O91,1,aux!$AL$1) -> -0.991 | AB91: 1.224280973e-05 | AC91: 1.078205545e-05 | AD91: =+IF(INDEX($K91:$O91,1,aux!$AL$1)>0,(O91/INDEX($K91:$O91,1,aux!$AL$1))^(1/($O$3-INDEX($K$3:$O$3,1,aux!$AL$1)))-1,"n.d.") -> -0.05376196956 | AE91: =IF(INDEX($K91:$O91,1,aux!$AL$1)>0,(O91-INDEX($K91:$O91,1,aux!$AL$1))/INDEX($K91:$O91,1,aux!$AL$1),"n.d.") -> -0.1983189914 | AX91: 10
A92: 1005 | B92: Milho | C92: 0 | D92: 0 | E92: 0 | F92: 0 | G92: 0 | H92: 0 | I92: 0 | J92: 0 | K92: 301.208 | L92: 310.536 | M92: 141.621 | N92: 308.56 | O92: 139.993 | P92: 240.3836 | Q92: 0.0008876282015 | R92: 0.0007259711035 | S92: 240.3836 | U92: =G92-INDEX($C92:$G92,1,aux!$AL$1) -> 0 | V92: 0 | W92: 0 | X92: =+IF(INDEX($C92:$G92,1,aux!$AL$1)>0,(G92/INDEX($C92:$G92,1,aux!$AL$1))^(1/($G$3-INDEX($C$3:$G$3,1,aux!$AL$1)))-1,"n.d.") -> n.d. | Y92: =IF(INDEX($C92:$G92,1,aux!$AL$1)>0,(G92-INDEX($C92:$G92,1,aux!$AL$1))/INDEX($C92:$G92,1,aux!$AL$1),"n.d.") -> n.d. | AA92: =O92-INDEX($K92:$O92,1,aux!$AL$1) -> -161.215 | AB92: 0.001991649415 | AC92: 0.001754015206 | AD92: =+IF(INDEX($K92:$O92,1,aux!$AL$1)>0,(O92/INDEX($K92:$O92,1,aux!$AL$1))^(1/($O$3-INDEX($K$3:$O$3,1,aux!$AL$1)))-1,"n.d.") -> -0.1743234422 | AE92: =IF(INDEX($K92:$O92,1,aux!$AL$1)>0,(O92-INDEX($K92:$O92,1,aux!$AL$1))/INDEX($K92:$O92,1,aux!$AL$1),"n.d.") -> -0.535228148 | AX92: 10
A93: 1006 | B93: Arroz | C93: 0 | D93: 0 | E93: 0 | F93: 0 | G93: 0 | H93: 0 | I93: 0 | J93: 0 | K93: 3240.81 | L93: 1238.557 | M93: 549.348 | N93: 358.161 | O93: 373.656 | P93: 1152.1064 | Q93: 0.004254209238 | R93: 0.003479421868 | S93: 1152.1064 | U93: =G93-INDEX($C93:$G93,1,aux!$AL$1) -> 0 | V93: 0 | W93: 0 | X93: =+IF(INDEX($C93:$G93,1,aux!$AL$1)>0,(G93/INDEX($C93:$G93,1,aux!$AL$1))^(1/($G$3-INDEX($C$3:$G$3,1,aux!$AL$1)))-1,"n.d.") -> n.d. | Y93: =IF(INDEX($C93:$G93,1,aux!$AL$1)>0,(G93-INDEX($C93:$G93,1,aux!$AL$1))/INDEX($C93:$G93,1,aux!$AL$1),"n.d.") -> n.d. | AA93: =O93-INDEX($K93:$O93,1,aux!$AL$1) -> -2867.154 | AB93: 0.03542080816 | AC93: 0.03119456449 | AD93: =+IF(INDEX($K93:$O93,1,aux!$AL$1)>0,(O93/INDEX($K93:$O93,1,aux!$AL$1))^(1/($O$3-INDEX($K$3:$O$3,1,aux!$AL$1)))-1,"n.d.") -> -0.417287147 | AE93: =IF(INDEX($K93:$O93,1,aux!$AL$1)>0,(O93-INDEX($K93:$O93,1,aux!$AL$1))/INDEX($K93:$O93,1,aux!$AL$1),"n.d.") -> -0.8847028983 | AX93: 10
A94: 1007 | B94: Sorgo de grão | C94: 0 | D94: 0 | E94: 0 | F94: 0 | G94: 0 | H94: 0 | I94: 0 | J94: 0 | K94: 0 | L94: 1.082 | M94: 0 | N94: 0 | O94: 0 | P94: 0.2164 | Q94: 7.990675853e-07 | R94: 6.535393712e-07 | S94: 0.2164 | U94: =G94-INDEX($C94:$G94,1,aux!$AL$1) -> 0 | V94: 0 | W94: 0 | X94: =+IF(INDEX($C94:$G94,1,aux!$AL$1)>0,(G94/INDEX($C94:$G94,1,aux!$AL$1))^(1/($G$3-INDEX($C$3:$G$3,1,aux!$AL$1)))-1,"n.d.") -> n.d. | Y94: =IF(INDEX($C94:$G94,1,aux!$AL$1)>0,(G94-INDEX($C94:$G94,1,aux!$AL$1))/INDEX($C94:$G94,1,aux!$AL$1),"n.d.") -> n.d. | AA94: =O94-INDEX($K94:$O94,1,aux!$AL$1) -> 0 | AB94: 0 | AC94: 0 | AD94: =+IF(INDEX($K94:$O94,1,aux!$AL$1)>0,(O94/INDEX($K94:$O94,1,aux!$AL$1))^(1/($O$3-INDEX($K$3:$O$3,1,aux!$AL$1)))-1,"n.d.") -> n.d. | AE94: =IF(INDEX($K94:$O94,1,aux!$AL$1)>0,(O94-INDEX($K94:$O94,1,aux!$AL$1))/INDEX($K94:$O94,1,aux!$AL$1),"n.d.") -> n.d. | AX94: 10
A95: 1008 | B95: Trigo mourisco, painço e outros cereais | C95: 0 | D95: 0 | E95: 0 | F95: 0 | G95: 0 | H95: 0 | I95: 0 | J95: 0 | K95: 7.626 | L95: 16.637 | M95: 9.054 | N95: 24.227 | O95: 33.848 | P95: 18.2784 | Q95: 6.74938861e-05 | R95: 5.520172848e-05 | S95: 18.2784 | U95: =G95-INDEX($C95:$G95,1,aux!$AL$1) -> 0 | V95: 0 | W95: 0 | X95: =+IF(INDEX($C95:$G95,1,aux!$AL$1)>0,(G95/INDEX($C95:$G95,1,aux!$AL$1))^(1/($G$3-INDEX($C$3:$G$3,1,aux!$AL$1)))-1,"n.d.") -> n.d. | Y95: =IF(INDEX($C95:$G95,1,aux!$AL$1)>0,(G95-INDEX($C95:$G95,1,aux!$AL$1))/INDEX($C95:$G95,1,aux!$AL$1),"n.d.") -> n.d. | AA95: =O95-INDEX($K95:$O95,1,aux!$AL$1) -> 26.222 | AB95: -0.000323946475 | AC95: -0.0002852947103 | AD95: =+IF(INDEX($K95:$O95,1,aux!$AL$1)>0,(O95/INDEX($K95:$O95,1,aux!$AL$1))^(1/($O$3-INDEX($K$3:$O$3,1,aux!$AL$1)))-1,"n.d.") -> 0.451473305 | AE95: =IF(INDEX($K95:$O95,1,aux!$AL$1)>0,(O95-INDEX($K95:$O95,1,aux!$AL$1))/INDEX($K95:$O95,1,aux!$AL$1),"n.d.") -> 3.438499869 | AX95: 10
A96: 10SS | B96: Cereais | C96: 0 | D96: 0 | E96: 0 | F96: 0 | G96: 0 | H96: 0 | I96: 0 | J96: 0 | K96: 0 | L96: 0 | M96: 0 | N96: 0 | O96: 0 | P96: 0 | Q96: 0 | R96: 0 | S96: 0 | U96: =G96-INDEX($C96:$G96,1,aux!$AL$1) -> 0 | V96: 0 | W96: 0 | X96: =+IF(INDEX($C96:$G96,1,aux!$AL$1)>0,(G96/INDEX($C96:$G96,1,aux!$AL$1))^(1/($G$3-INDEX($C$3:$G$3,1,aux!$AL$1)))-1,"n.d.") -> n.d. | Y96: =IF(INDEX($C96:$G96,1,aux!$AL$1)>0,(G96-INDEX($C96:$G96,1,aux!$AL$1))/INDEX($C96:$G96,1,aux!$AL$1),"n.d.") -> n.d. | AA96: =O96-INDEX($K96:$O96,1,aux!$AL$1) -> 0 | AB96: 0 | AC96: 0 | AD96: =+IF(INDEX($K96:$O96,1,aux!$AL$1)>0,(O96/INDEX($K96:$O96,1,aux!$AL$1))^(1/($O$3-INDEX($K$3:$O$3,1,aux!$AL$1)))-1,"n.d.") -> n.d. | AE96: =IF(INDEX($K96:$O96,1,aux!$AL$1)>0,(O96-INDEX($K96:$O96,1,aux!$AL$1))/INDEX($K96:$O96,1,aux!$AL$1),"n.d.") -> n.d. | AX96: 10
A97: 1101 | B97: Farinhas de trigo ou trigo/centeio | C97: 0 | D97: 0 | E97: 0 | F97: 0 | G97: 0 | H97: 0 | I97: 0 | J97: 0 | K97: 14899.84 | L97: 15346.966 | M97: 5693.178 | N97: 1925.716 | O97: 3593.472 | P97: 8291.8344 | Q97: 0.03061800412 | R97: 0.0250417756 | S97: 8291.8344 | U97: =G97-INDEX($C97:$G97,1,aux!$AL$1) -> 0 | V97: 0 | W97: 0 | X97: =+IF(INDEX($C97:$G97,1,aux!$AL$1)>0,(G97/INDEX($C97:$G97,1,aux!$AL$1))^(1/($G$3-INDEX($C$3:$G$3,1,aux!$AL$1)))-1,"n.d.") -> n.d. | Y97: =IF(INDEX($C97:$G97,1,aux!$AL$1)>0,(G97-INDEX($C97:$G97,1,aux!$AL$1))/INDEX($C97:$G97,1,aux!$AL$1),"n.d.") -> n.d. | AA97: =O97-INDEX($K97:$O97,1,aux!$AL$1) -> -11306.368 | AB97: 0.1396788216 | AC97: 0.1230130037 | AD97: =+IF(INDEX($K97:$O97,1,aux!$AL$1)>0,(O97/INDEX($K97:$O97,1,aux!$AL$1))^(1/($O$3-INDEX($K$3:$O$3,1,aux!$AL$1)))-1,"n.d.") -> -0.2992176339 | AE97: =IF(INDEX($K97:$O97,1,aux!$AL$1)>0,(O97-INDEX($K97:$O97,1,aux!$AL$1))/INDEX($K97:$O97,1,aux!$AL$1),"n.d.") -> -0.7588247927 | AX97: 11
A98: 1102 | B98: Outras farinhas de cereais | C98: 0 | D98: 0 | E98: 0.049 | F98: 0.29 | G98: 0.224 | H98: 0.1126 | I98: 1.581171444e-05 | J98: 7.3007142e-06 | K98: 170.419 | L98: 354.617 | M98: 2216.227 | N98: 64.158 | O98: 91.557 | P98: 579.3956 | Q98: 0.002139446594 | R98: 0.001749805158 | S98: 579.283 | U98: =G98-INDEX($C98:$G98,1,aux!$AL$1) -> 0.224 | V98: 2.868671697e-05 | W98: 1.752702722e-05 | X98: =+IF(INDEX($C98:$G98,1,aux!$AL$1)>0,(G98/INDEX($C98:$G98,1,aux!$AL$1))^(1/($G$3-INDEX($C$3:$G$3,1,aux!$AL$1)))-1,"n.d.") -> n.d. | Y98: =IF(INDEX($C98:$G98,1,aux!$AL$1)>0,(G98-INDEX($C98:$G98,1,aux!$AL$1))/INDEX($C98:$G98,1,aux!$AL$1),"n.d.") -> n.d. | AA98: =O98-INDEX($K98:$O98,1,aux!$AL$1) -> -78.862 | AB98: 0.0009742608082 | AC98: 0.0008580166062 | AD98: =+IF(INDEX($K98:$O98,1,aux!$AL$1)>0,(O98/INDEX($K98:$O98,1,aux!$AL$1))^(1/($O$3-INDEX($K$3:$O$3,1,aux!$AL$1)))-1,"n.d.") -> -0.1438627658 | AE98: =IF(INDEX($K98:$O98,1,aux!$AL$1)>0,(O98-INDEX($K98:$O98,1,aux!$AL$1))/INDEX($K98:$O98,1,aux!$AL$1),"n.d.") -> -0.4627535662 | AX98: 11
A99: 1103 | B99: Grumos, sêmolas, etc. de cereais | C99: 0.132 | D99: 0 | E99: 0.02 | F99: 0 | G99: 0 | H99: 0.0304 | I99: 4.268882052e-06 | J99: 1.971063159e-06 | K99: 731.14 | L99: 1560.616 | M99: 1058.888 | N99: 1591.121 | O99: 1360.318 | P99: 1260.4166 | Q99: 0.004654149949 | R99: 0.003806524364 | S99: 1260.3862 | U99: =G99-INDEX($C99:$G99,1,aux!$AL$1) -> -0.132 | V99: -1.69046725e-05 | W99: -1.032842676e-05 | X99: =+IF(INDEX($C99:$G99,1,aux!$AL$1)>0,(G99/INDEX($C99:$G99,1,aux!$AL$1))^(1/($G$3-INDEX($C$3:$G$3,1,aux!$AL$1)))-1,"n.d.") -> -1 | Y99: =IF(INDEX($C99:$G99,1,aux!$AL$1)>0,(G99-INDEX($C99:$G99,1,aux!$AL$1))/INDEX($C99:$G99,1,aux!$AL$1),"n.d.") -> -1 | AA99: =O99-INDEX($K99:$O99,1,aux!$AL$1) -> 629.178 | AB99: -0.007772862301 | AC99: -0.006845441052 | AD99: =+IF(INDEX($K99:$O99,1,aux!$AL$1)>0,(O99/INDEX($K99:$O99,1,aux!$AL$1))^(1/($O$3-INDEX($K$3:$O$3,1,aux!$AL$1)))-1,"n.d.") -> 0.1679116084 | AE99: =IF(INDEX($K99:$O99,1,aux!$AL$1)>0,(O99-INDEX($K99:$O99,1,aux!$AL$1))/INDEX($K99:$O99,1,aux!$AL$1),"n.d.") -> 0.8605438083 | AX99: 11
A100: 1104 | B100: Grãos de cereais processados | C100: 0 | D100: 0 | E100: 0 | F100: 0 | G100: 0 | H100: 0 | I100: 0 | J100: 0 | K100: 233.342 | L100: 140.44 | M100: 98.354 | N100: 157.088 | O100: 347.657 | P100: 195.3762 | Q100: 0.0007214361754 | R100: 0.0005900463905 | S100: 195.3762 | U100: =G100-INDEX($C100:$G100,1,aux!$AL$1) -> 0 | V100: 0 | W100: 0 | X100: =+IF(INDEX($C100:$G100,1,aux!$AL$1)>0,(G100/INDEX($C100:$G100,1,aux!$AL$1))^(1/($G$3-INDEX($C$3:$G$3,1,aux!$AL$1)))-1,"n.d.") -> n.d. | Y100: =IF(INDEX($C100:$G100,1,aux!$AL$1)>0,(G100-INDEX($C100:$G100,1,aux!$AL$1))/INDEX($C100:$G100,1,aux!$AL$1),"n.d.") -> n.d. | AA100: =O100-INDEX($K100:$O100,1,aux!$AL$1) -> 114.315 | AB100: -0.001412247018 | AC100: -0.001243744368 | AD100: =+IF(INDEX($K100:$O100,1,aux!$AL$1)>0,(O100/INDEX($K100:$O100,1,aux!$AL$1))^(1/($O$3-INDEX($K$3:$O$3,1,aux!$AL$1)))-1,"n.d.") -> 0.1048148819 | AE100: =IF(INDEX($K100:$O100,1,aux!$AL$1)>0,(O100-INDEX($K100:$O100,1,aux!$AL$1))/INDEX($K100:$O100,1,aux!$AL$1),"n.d.") -> 0.4899032322 | AX100: 11
A101: 1105 | B101: Farinha, sêmola, etc. de batata | C101: 0 | D101: 0 | E101: 0 | F101: 0 | G101: 0 | H101: 0 | I101: 0 | J101: 0 | K101: 135.041 | L101: 166.134 | M101: 113.276 | N101: 173.481 | O101: 322.092 | P101: 182.0048 | Q101: 0.0006720616269 | R101: 0.0005496640599 | S101: 182.0048 | U101: =G101-INDEX($C101:$G101,1,aux!$AL$1) -> 0 | V101: 0 | W101: 0 | X101: =+IF(INDEX($C101:$G101,1,aux!$AL$1)>0,(G101/INDEX($C101:$G101,1,aux!$AL$1))^(1/($G$3-INDEX($C$3:$G$3,1,aux!$AL$1)))-1,"n.d.") -> n.d. | Y101: =IF(INDEX($C101:$G101,1,aux!$AL$1)>0,(G101-INDEX($C101:$G101,1,aux!$AL$1))/INDEX($C101:$G101,1,aux!$AL$1),"n.d.") -> n.d. | AA101: =O101-INDEX($K101:$O101,1,aux!$AL$1) -> 187.051 | AB101: -0.002310827248 | AC101: -0.002035110246 | AD101: =+IF(INDEX($K101:$O101,1,aux!$AL$1)>0,(O101/INDEX($K101:$O101,1,aux!$AL$1))^(1/($O$3-INDEX($K$3:$O$3,1,aux!$AL$1)))-1,"n.d.") -> 0.2427351241 | AE101: =IF(INDEX($K101:$O101,1,aux!$AL$1)>0,(O101-INDEX($K101:$O101,1,aux!$AL$1))/INDEX($K101:$O101,1,aux!$AL$1),"n.d.") -> 1.38514229 | AX101: 11
A102: 1106 | B102: Farinhas, etc. de leguminosas e outros tubérculos | C102: 29.363 | D102: 4.421 | E102: 14.754 | F102: 117.725 | G102: 23.617 | H102: 37.976 | I102: 0.005332732395 | J102: 0.002462272846 | K102: 10.788 | L102: 3.699 | M102: 2.416 | N102: 11.076 | O102: 31.457 | P102: 11.8872 | Q102: 4.389406747e-05 | R102: 3.589996864e-05 | S102: -26.0888 | U102: =G102-INDEX($C102:$G102,1,aux!$AL$1) -> -5.746 | V102: -0.0007358655167 | W102: -0.0004495995466 | X102: =+IF(INDEX($C102:$G102,1,aux!$AL$1)>0,(G102/INDEX($C102:$G102,1,aux!$AL$1))^(1/($G$3-INDEX($C$3:$G$3,1,aux!$AL$1)))-1,"n.d.") -> -0.05298670485 | Y102: =IF(INDEX($C102:$G102,1,aux!$AL$1)>0,(G102-INDEX($C102:$G102,1,aux!$AL$1))/INDEX($C102:$G102,1,aux!$AL$1),"n.d.") -> -0.1956884515 | AA102: =O102-INDEX($K102:$O102,1,aux!$AL$1) -> 20.669 | AB102: -0.000255344737 | AC102: -0.0002248782079 | AD102: =+IF(INDEX($K102:$O102,1,aux!$AL$1)>0,(O102/INDEX($K102:$O102,1,aux!$AL$1))^(1/($O$3-INDEX($K$3:$O$3,1,aux!$AL$1)))-1,"n.d.") -> 0.3067547612 | AE102: =IF(INDEX($K102:$O102,1,aux!$AL$1)>0,(O102-INDEX($K102:$O102,1,aux!$AL$1))/INDEX($K102:$O102,1,aux!$AL$1),"n.d.") -> 1.915925102 | AX102: 11
A103: 1107 | B103: Malte, mesmo torrado | C103: 0 | D103: 0.255 | E103: 0.014 | F103: 0 | G103: 0 | H103: 0.0538 | I103: 7.554797841e-06 | J103: 3.48826309e-06 | K103: 3429.174 | L103: 3756.865 | M103: 4580.455 | N103: 2910.092 | O103: 3689.631 | P103: 3673.2434 | Q103: 0.01356363093 | R103: 0.01109338809 | S103: 3673.1896 | U103: =G103-INDEX($C103:$G103,1,aux!$AL$1) -> 0 | V103: 0 | W103: 0 | X103: =+IF(INDEX($C103:$G103,1,aux!$AL$1)>0,(G103/INDEX($C103:$G103,1,aux!$AL$1))^(1/($G$3-INDEX($C$3:$G$3,1,aux!$AL$1)))-1,"n.d.") -> n.d. | Y103: =IF(INDEX($C103:$G103,1,aux!$AL$1)>0,(G103-INDEX($C103:$G103,1,aux!$AL$1))/INDEX($C103:$G103,1,aux!$AL$1),"n.d.") -> n.d. | AA103: =O103-INDEX($K103:$O103,1,aux!$AL$1) -> 260.457 | AB103: -0.003217684656 | AC103: -0.002833765707 | AD103: =+IF(INDEX($K103:$O103,1,aux!$AL$1)>0,(O103/INDEX($K103:$O103,1,aux!$AL$1))^(1/($O$3-INDEX($K$3:$O$3,1,aux!$AL$1)))-1,"n.d.") -> 0.0184702629 | AE103: =IF(INDEX($K103:$O103,1,aux!$AL$1)>0,(O103-INDEX($K103:$O103,1,aux!$AL$1))/INDEX($K103:$O103,1,aux!$AL$1),"n.d.") -> 0.07595327621 | AX103: 11
A104: 1108 | B104: Amidos e féculas; inulina | C104: 0 | D104: 0 | E104: 0.049 | F104: 0 | G104: 0 | H104: 0.0098 | I104: 1.376152767e-06 | J104: 6.354085183e-07 | K104: 317.234 | L104: 311.13 | M104: 292.687 | N104: 359.592 | O104: 483.184 | P104: 352.7654 | Q104: 0.001302603495 | R104: 0.001065370045 | S104: 352.7556 | U104: =G104-INDEX($C104:$G104,1,aux!$AL$1) -> 0 | V104: 0 | W104: 0 | X104: =+IF(INDEX($C104:$G104,1,aux!$AL$1)>0,(G104/INDEX($C104:$G104,1,aux!$AL$1))^(1/($G$3-INDEX($C$3:$G$3,1,aux!$AL$1)))-1,"n.d.") -> n.d. | Y104: =IF(INDEX($C104:$G104,1,aux!$AL$1)>0,(G104-INDEX($C104:$G104,1,aux!$AL$1))/INDEX($C104:$G104,1,aux!$AL$1),"n.d.") -> n.d. | AA104: =O104-INDEX($K104:$O104,1,aux!$AL$1) -> 165.95 | AB104: -0.002050145585 | AC104: -0.001805531889 | AD104: =+IF(INDEX($K104:$O104,1,aux!$AL$1)>0,(O104/INDEX($K104:$O104,1,aux!$AL$1))^(1/($O$3-INDEX($K$3:$O$3,1,aux!$AL$1)))-1,"n.d.") -> 0.1109210715 | AE104: =IF(INDEX($K104:$O104,1,aux!$AL$1)>0,(O104-INDEX($K104:$O104,1,aux!$AL$1))/INDEX($K104:$O104,1,aux!$AL$1),"n.d.") -> 0.523115429 | AX104: 11
A105: 1109 | B105: Glúten de trigo, mesmo seco | C105: 0 | D105: 0 | E105: 0 | F105: 0 | G105: 0 | H105: 0 | I105: 0 | J105: 0 | K105: 17.193 | L105: 11.097 | M105: 11.863 | N105: 10.765 | O105: 40.435 | P105: 18.2706 | Q105: 6.746508422e-05 | R105: 5.517817207e-05 | S105: 18.2706 | U105: =G105-INDEX($C105:$G105,1,aux!$AL$1) -> 0 | V105: 0 | W105: 0 | X105: =+IF(INDEX($C105:$G105,1,aux!$AL$1)>0,(G105/INDEX($C105:$G105,1,aux!$AL$1))^(1/($G$3-INDEX($C$3:$G$3,1,aux!$AL$1)))-1,"n.d.") -> n.d. | Y105: =IF(INDEX($C105:$G105,1,aux!$AL$1)>0,(G105-INDEX($C105:$G105,1,aux!$AL$1))/INDEX($C105:$G105,1,aux!$AL$1),"n.d.") -> n.d. | AA105: =O105-INDEX($K105:$O105,1,aux!$AL$1) -> 23.242 | AB105: -0.0002871315679 | AC105: -0.0002528723842 | AD105: =+IF(INDEX($K105:$O105,1,aux!$AL$1)>0,(O105/INDEX($K105:$O105,1,aux!$AL$1))^(1/($O$3-INDEX($K$3:$O$3,1,aux!$AL$1)))-1,"n.d.") -> 0.2383729186 | AE105: =IF(INDEX($K105:$O105,1,aux!$AL$1)>0,(O105-INDEX($K105:$O105,1,aux!$AL$1))/INDEX($K105:$O105,1,aux!$AL$1),"n.d.") -> 1.351829233 | AX105: 11
A106: 11SS | B106: Produtos da indústria de moagem e outros | C106: 0 | D106: 0 | E106: 0 | F106: 0 | G106: 0 | H106: 0 | I106: 0 | J106: 0 | K106: 0 | L106: 0 | M106: 0 | N106: 0 | O106: 0 | P106: 0 | Q106: 0 | R106: 0 | S106: 0 | U106: =G106-INDEX($C106:$G106,1,aux!$AL$1) -> 0 | V106: 0 | W106: 0 | X106: =+IF(INDEX($C106:$G106,1,aux!$AL$1)>0,(G106/INDEX($C106:$G106,1,aux!$AL$1))^(1/($G$3-INDEX($C$3:$G$3,1,aux!$AL$1)))-1,"n.d.") -> n.d. | Y106: =IF(INDEX($C106:$G106,1,aux!$AL$1)>0,(G106-INDEX($C106:$G106,1,aux!$AL$1))/INDEX($C106:$G106,1,aux!$AL$1),"n.d.") -> n.d. | AA106: =O106-INDEX($K106:$O106,1,aux!$AL$1) -> 0 | AB106: 0 | AC106: 0 | AD106: =+IF(INDEX($K106:$O106,1,aux!$AL$1)>0,(O106/INDEX($K106:$O106,1,aux!$AL$1))^(1/($O$3-INDEX($K$3:$O$3,1,aux!$AL$1)))-1,"n.d.") -> n.d. | AE106: =IF(INDEX($K106:$O106,1,aux!$AL$1)>0,(O106-INDEX($K106:$O106,1,aux!$AL$1))/INDEX($K106:$O106,1,aux!$AL$1),"n.d.") -> n.d. | AX106: 11
A107: 1201 | B107: Soja, mesmo triturada | C107: 0 | D107: 0 | E107: 0 | F107: 0 | G107: 0 | H107: 0 | I107: 0 | J107: 0 | K107: 114.853 | L107: 88.036 | M107: 49.224 | N107: 252.201 | O107: 191.645 | P107: 139.1918 | Q107: 0.0005139725301 | R107: 0.0004203665502 | S107: 139.1918 | U107: =G107-INDEX($C107:$G107,1,aux!$AL$1) -> 0 | V107: 0 | W107: 0 | X107: =+IF(INDEX($C107:$G107,1,aux!$AL$1)>0,(G107/INDEX($C107:$G107,1,aux!$AL$1))^(1/($G$3-INDEX($C$3:$G$3,1,aux!$AL$1)))-1,"n.d.") -> n.d. | Y107: =IF(INDEX($C107:$G107,1,aux!$AL$1)>0,(G107-INDEX($C107:$G107,1,aux!$AL$1))/INDEX($C107:$G107,1,aux!$AL$1),"n.d.") -> n.d. | AA107: =O107-INDEX($K107:$O107,1,aux!$AL$1) -> 76.792 | AB107: -0.0009486880372 | AC107: -0.0008354950575 | AD107: =+IF(INDEX($K107:$O107,1,aux!$AL$1)>0,(O107/INDEX($K107:$O107,1,aux!$AL$1))^(1/($O$3-INDEX($K$3:$O$3,1,aux!$AL$1)))-1,"n.d.") -> 0.1365506308 | AE107: =IF(INDEX($K107:$O107,1,aux!$AL$1)>0,(O107-INDEX($K107:$O107,1,aux!$AL$1))/INDEX($K107:$O107,1,aux!$AL$1),"n.d.") -> 0.6686111812 | AX107: 12
A108: 1202 | B108: Amendoins não torrados | C108: 0 | D108: 1.499 | E108: 2.527 | F108: 0 | G108: 0 | H108: 0.8052 | I108: 0.0001130692049 | J108: 5.220723867e-05 | K108: 10.138 | L108: 1.053 | M108: 0.949 | N108: 0.044 | O108: 0.059 | P108: 2.4486 | Q108: 9.041575275e-06 | R108: 7.394900667e-06 | S108: 1.6434 | U108: =G108-INDEX($C108:$G108,1,aux!$AL$1) -> 0 | V108: 0 | W108: 0 | X108: =+IF(INDEX($C108:$G108,1,aux!$AL$1)>0,(G108/INDEX($C108:$G108,1,aux!$AL$1))^(1/($G$3-INDEX($C$3:$G$3,1,aux!$AL$1)))-1,"n.d.") -> n.d. | Y108: =IF(INDEX($C108:$G108,1,aux!$AL$1)>0,(G108-INDEX($C108:$G108,1,aux!$AL$1))/INDEX($C108:$G108,1,aux!$AL$1),"n.d.") -> n.d. | AA108: =O108-INDEX($K108:$O108,1,aux!$AL$1) -> -10.079 | AB108: 0.0001245159226 | AC108: 0.0001096592703 | AD108: =+IF(INDEX($K108:$O108,1,aux!$AL$1)>0,(O108/INDEX($K108:$O108,1,aux!$AL$1))^(1/($O$3-INDEX($K$3:$O$3,1,aux!$AL$1)))-1,"n.d.") -> -0.7237992006 | AE108: =IF(INDEX($K108:$O108,1,aux!$AL$1)>0,(O108-INDEX($K108:$O108,1,aux!$AL$1))/INDEX($K108:$O108,1,aux!$AL$1),"n.d.") -> -0.9941803117 | AX108: 12
A109: 1203 | B109: Copra | C109: 0 | D109: 0 | E109: 0 | F109: 0 | G109: 0 | H109: 0 | I109: 0 | J109: 0 | K109: 0 | L109: 0 | M109: 0 | N109: 0 | O109: 0 | P109: 0 | Q109: 0 | R109: 0 | S109: 0 | U109: =G109-INDEX($C109:$G109,1,aux!$AL$1) -> 0 | V109: 0 | W109: 0 | X109: =+IF(INDEX($C109:$G109,1,aux!$AL$1)>0,(G109/INDEX($C109:$G109,1,aux!$AL$1))^(1/($G$3-INDEX($C$3:$G$3,1,aux!$AL$1)))-1,"n.d.") -> n.d. | Y109: =IF(INDEX($C109:$G109,1,aux!$AL$1)>0,(G109-INDEX($C109:$G109,1,aux!$AL$1))/INDEX($C109:$G109,1,aux!$AL$1),"n.d.") -> n.d. | AA109: =O109-INDEX($K109:$O109,1,aux!$AL$1) -> 0 | AB109: 0 | AC109: 0 | AD109: =+IF(INDEX($K109:$O109,1,aux!$AL$1)>0,(O109/INDEX($K109:$O109,1,aux!$AL$1))^(1/($O$3-INDEX($K$3:$O$3,1,aux!$AL$1)))-1,"n.d.") -> n.d. | AE109: =IF(INDEX($K109:$O109,1,aux!$AL$1)>0,(O109-INDEX($K109:$O109,1,aux!$AL$1))/INDEX($K109:$O109,1,aux!$AL$1),"n.d.") -> n.d. | AX109: 12
A110: 1204 | B110: Sementes de linho (linhaça) | C110: 0 | D110: 0 | E110: 0 | F110: 0 | G110: 0 | H110: 0 | I110: 0 | J110: 0 | K110: 18.424 | L110: 15.977 | M110: 14.416 | N110: 23.767 | O110: 30.749 | P110: 20.6666 | Q110: 7.631243142e-05 | R110: 6.241421797e-05 | S110: 20.6666 | U110: =G110-INDEX($C110:$G110,1,aux!$AL$1) -> 0 | V110: 0 | W110: 0 | X110: =+IF(INDEX($C110:$G110,1,aux!$AL$1)>0,(G110/INDEX($C110:$G110,1,aux!$AL$1))^(1/($G$3-INDEX($C$3:$G$3,1,aux!$AL$1)))-1,"n.d.") -> n.d. | Y110: =IF(INDEX($C110:$G110,1,aux!$AL$1)>0,(G110-INDEX($C110:$G110,1,aux!$AL$1))/INDEX($C110:$G110,1,aux!$AL$1),"n.d.") -> n.d. | AA110: =O110-INDEX($K110:$O110,1,aux!$AL$1) -> 12.325 | AB110: -0.0001522629969 | AC110: -0.0001340956946 | AD110: =+IF(INDEX($K110:$O110,1,aux!$AL$1)>0,(O110/INDEX($K110:$O110,1,aux!$AL$1))^(1/($O$3-INDEX($K$3:$O$3,1,aux!$AL$1)))-1,"n.d.") -> 0.1366107726 | AE110: =IF(INDEX($K110:$O110,1,aux!$AL$1)>0,(O110-INDEX($K110:$O110,1,aux!$AL$1))/INDEX($K110:$O110,1,aux!$AL$1),"n.d.") -> 0.6689643943 | AX110: 12
A111: 1205 | B111: Sementes de nabo silvestre ou de colza | C111: 0 | D111: 0 | E111: 0 | F111: 0 | G111: 0 | H111: 0 | I111: 0 | J111: 0 | K111: 0 | L111: 2.728 | M111: 2.176 | N111: 2.17 | O111: 3.876 | P111: 2.19 | Q111: 8.086682125e-06 | R111: 6.613915079e-06 | S111: 2.19 | U111: =G111-INDEX($C111:$G111,1,aux!$AL$1) -> 0 | V111: 0 | W111: 0 | X111: =+IF(INDEX($C111:$G111,1,aux!$AL$1)>0,(G111/INDEX($C111:$G111,1,aux!$AL$1))^(1/($G$3-INDEX($C$3:$G$3,1,aux!$AL$1)))-1,"n.d.") -> n.d. | Y111: =IF(INDEX($C111:$G111,1,aux!$AL$1)>0,(G111-INDEX($C111:$G111,1,aux!$AL$1))/INDEX($C111:$G111,1,aux!$AL$1),"n.d.") -> n.d. | AA111: =O111-INDEX($K111:$O111,1,aux!$AL$1) -> 3.876 | AB111: -4.78840873e-05 | AC111: -4.217078397e-05 | AD111: =+IF(INDEX($K111:$O111,1,aux!$AL$1)>0,(O111/INDEX($K111:$O111,1,aux!$AL$1))^(1/($O$3-INDEX($K$3:$O$3,1,aux!$AL$1)))-1,"n.d.") -> n.d. | AE111: =IF(INDEX($K111:$O111,1,aux!$AL$1)>0,(O111-INDEX($K111:$O111,1,aux!$AL$1))/INDEX($K111:$O111,1,aux!$AL$1),"n.d.") -> n.d. | AX111: 12
A112: 1206 | B112: Sementes de girassol | C112: 0 | D112: 0 | E112: 0 | F112: 0 | G112: 0 | H112: 0 | I112: 0 | J112: 0 | K112: 7.912 | L112: 8.226 | M112: 10.58 | N112: 17.061 | O112: 27.082 | P112: 14.1722 | Q112: 5.233154174e-05 | R112: 4.280078871e-05 | S112: 14.1722 | U112: =G112-INDEX($C112:$G112,1,aux!$AL$1) -> 0 | V112: 0 | W112: 0 | X112: =+IF(INDEX($C112:$G112,1,aux!$AL$1)>0,(G112/INDEX($C112:$G112,1,aux!$AL$1))^(1/($G$3-INDEX($C$3:$G$3,1,aux!$AL$1)))-1,"n.d.") -> n.d. | Y112: =IF(INDEX($C112:$G112,1,aux!$AL$1)>0,(G112-INDEX($C112:$G112,1,aux!$AL$1))/INDEX($C112:$G112,1,aux!$AL$1),"n.d.") -> n.d. | AA112: =O112-INDEX($K112:$O112,1,aux!$AL$1) -> 19.17 | AB112: -0.0002368260974 | AC112: -0.0002085691251 | AD112: =+IF(INDEX($K112:$O112,1,aux!$AL$1)>0,(O112/INDEX($K112:$O112,1,aux!$AL$1))^(1/($O$3-INDEX($K$3:$O$3,1,aux!$AL$1)))-1,"n.d.") -> 0.3601869813 | AE112: =IF(INDEX($K112:$O112,1,aux!$AL$1)>0,(O112-INDEX($K112:$O112,1,aux!$AL$1))/INDEX($K112:$O112,1,aux!$AL$1),"n.d.") -> 2.422901921 | AX112: 12
A113: 1207 | B113: Sementes e frutos oleaginosos | C113: 0 | D113: 0 | E113: 0 | F113: 0 | G113: 0 | H113: 0 | I113: 0 | J113: 0 | K113: 164.58 | L113: 151.447 | M113: 146.202 | N113: 118.726 | O113: 380.813 | P113: 192.3536 | Q113: 0.0007102750771 | R113: 0.0005809179797 | S113: 192.3536 | U113: =G113-INDEX($C113:$G113,1,aux!$AL$1) -> 0 | V113: 0 | W113: 0 | X113: =+IF(INDEX($C113:$G113,1,aux!$AL$1)>0,(G113/INDEX($C113:$G113,1,aux!$AL$1))^(1/($G$3-INDEX($C$3:$G$3,1,aux!$AL$1)))-1,"n.d.") -> n.d. | Y113: =IF(INDEX($C113:$G113,1,aux!$AL$1)>0,(G113-INDEX($C113:$G113,1,aux!$AL$1))/INDEX($C113:$G113,1,aux!$AL$1),"n.d.") -> n.d. | AA113: =O113-INDEX($K113:$O113,1,aux!$AL$1) -> 216.233 | AB113: -0.00267134155 | AC113: -0.002352609683 | AD113: =+IF(INDEX($K113:$O113,1,aux!$AL$1)>0,(O113/INDEX($K113:$O113,1,aux!$AL$1))^(1/($O$3-INDEX($K$3:$O$3,1,aux!$AL$1)))-1,"n.d.") -> 0.2333424424 | AE113: =IF(INDEX($K113:$O113,1,aux!$AL$1)>0,(O113-INDEX($K113:$O113,1,aux!$AL$1))/INDEX($K113:$O113,1,aux!$AL$1),"n.d.") -> 1.313847369 | AX113: 12
